Workbook

Sheet QandA

Sheet QandA (simple) (hidden)

Sheet GUIDE
B2: How to use the calculator
C5: Step 1
C7: To erase the information from a previous action press
C10: To visualise the calculator as full screen press | I10: and to go back press
C13: Fill in all the blank fields, all numbers should be entered as whole numbers (50000 and not 50.000 or 50,000)
C16: "Waste treatment option" refers to the type of waste treatment that would have been used if the food had been wasted, if you do not have this information, the right option is not provided, or more
C17: than one waste treatment type is used, select "other/unknown"
C19: When entering the amounts of food waste saved, remember to select the right unit of measure (this is the same for the entire list of food items)
C22: When entering number of leaflets please calculate them as A4-equivalent (one poster size A1 is equivalent to 8 A4)
C24: Step 2
C26: To see the results of the calculation press
C29: To check the environmental savings for other impact categories select the desired one from the drop down list on the right and press
C32: Press | E32: to generate a PDF file with a summary of the evaluation

Sheet Calculator
B2: Food waste prevention calculator
B5: Action name | D5: Country | F5: Action type | K5: Action cost in € | Z5: =1 -> 1 | AA5: =Z5 -> 1
D6: Belgium | F6: Supply chain efficiency | H6: Primary production | L6: Anaerobic Digestion
B9: Food waste prevented | H9: Economic assessment | N9: Environmental assessment | Q9: Human toxicity, cancer effects
H10: [euros] | N10: ="["&Q32&"]" -> [CTUh]
B11: Type | D11: Amount | F11: Select Unit *
H27: saved food | J27: avoided waste treatment | L27: action
N28: =Q9 -> Human toxicity, cancer effects
H29: =Calculations!B87 -> Cost of action | J29: =Calculations!C87 -> 0 | K29: € | N29: =Calculations!B105 -> Impact of action | P29: =Calculations!C112 -> 0 | Q29: =Calculations!D112 -> CTUh
H30: =Calculations!B88 -> Savings from avoided treatment | J30: =Calculations!C88 -> 0 | K30: € | N30: =Calculations!B106 -> Impact of avoided treatment | P30: =Calculations!C113 -> 0 | Q30: =Calculations!D113 -> CTUh
H31: =Calculations!B89 -> Savings from avoided food production | J31: =Calculations!C89 -> 0 | K31: € | N31: =Calculations!B107 -> Impact of saved food | P31: =Calculations!C114 -> 0 | Q31: =Calculations!D114 -> CTUh
H32: =Calculations!B90 -> Total net savings | J32: =Calculations!C90 -> 0 | K32: € | N32: =Calculations!B108 -> Total | P32: =Calculations!C115 -> 0 | Q32: =Calculations!D115 -> CTUh
B35: Value of food waste prevented | F35: Euros | H35: =CONCATENATE("Did you know that on average 59 million tonnes of food are wasted in the EU every year? Considering you have saved ",Calculations!D32, " kg of food, you are part of the solution.") -> Did you know that on average 59 million tonnes of food are wasted in the EU every year? Considering you have saved 0 kg of food, you are part of the solution.
B37: Action resources
B39: Paper used (leaflets, letters) | E39: Number (A4 equivalent) | I39: =CONCATENATE("You are saving enough food to feed one person for ", ROUND(Calculations!B79,0)," days!") -> You are saving enough food to feed one person for 0 days!
B41: Transport distances | E41: km
B43: Electricity use | E43: kWh
I44: =CONCATENATE("You are saving same carbon dioxide emissions as driving a car for ", IFERROR(ROUND(Calculations!F10/'Action impacts'!B23,0),0), " km!") -> You are saving same carbon dioxide emissions as driving a car for 0 km!
H48: Total nutritional value of saved food:
H49: =TRANSPOSE(nutrional_value_names) -> Kilojoules | J49: =TRANSPOSE(nutritional_results) -> 0 | K49: kJ
H50: Kilocalories | J50: 0 | K50: kcal
H51: Fat | J51: 0 | K51: g
H52: Saturated fat | J52: 0 | K52: g
H53: Carbohydrates | J53: 0 | K53: g
H54: Starch | J54: 0 | K54: g
H55: Sugar | J55: 0 | K55: g
H56: Proteins | J56: 0 | K56: g
H57: Salt | J57: 0 | K57: g
H58: Dietary fibre | J58: 0 | K58: g
H59: Number of saved meals (for an average adult):
H60: =J50/(2000/3) -> 0

Sheet Calculations (hidden)
A3: Country | B3: =Calculator!D6 -> Belgium
A4: Step of the FSC | B4: =Calculator!H6 -> Primary production
B5: =IF((D51="Redistribution"),"use",IF($B$4="Primary production","agriculture",IF($B$4="Processing and manufacturing","manufacturing",IF($B$4="Retail and distribution","retail","use")))) -> agriculture
A7: Food waste prevented
F8: 2 | G8: 3 | H8: 4 | I8: 5 | J8: 6 | K8: 7 | L8: 8 | M8: 9 | N8: 10 | O8: 11 | P8: 12 | Q8: 13 | R8: 14 | S8: 15 | T8: 16 | U8: 17 | V8: 18
A9: Type | C9: Amount | D9: Amount (in kg) | E9: Cost (euros) | F9: Climate change | G9: Ozone depletion | H9: Particulate Matter | I9: Ionizing radiation HH | J9: Photochemical ozone formation | K9: Acidification | L9: Terrestrial eutrophication | M9: Freshwater eutrophication | N9: Marine eutrophication | O9: Water scarcity | P9: Land use global | Q9: Resource use (fossil) | R9: Resource use (minerals and metals) | S9: Humantox cancer_weight | T9: Humantox non cancer_weight | U9: Ecotoxicity_weight | V9: Single point
A10: =IF(Calculator!B12=0,"",Calculator!B12) ->  | B10: =IF(A10="","",CONCATENATE(A10," ",$B$5)) ->  | C10: =IF(Calculator!D12=0,"",Calculator!D12) ->  | D10: =IFERROR(IF($D$34=1,C10,IF($D$34=2,C10*10^3,IF($D$34=3,C10*10^9))),"") ->  | E10: =IFERROR((INDEX(cost_table_p,VLOOKUP(B10,type_number,2,FALSE),VLOOKUP($B$3,country_number,2,FALSE))*D10),"") ->  | F10: =IFERROR(VLOOKUP($B10, impacts,F$8,FALSE)*$D10,"") ->  | G10: =IFERROR(VLOOKUP($B10, impacts,G$8,FALSE)*$D10,"") ->  | H10: =IFERROR(VLOOKUP($B10, impacts,H$8,FALSE)*$D10,"") ->  | J10: =IFERROR(VLOOKUP($B10, impacts,J$8,FALSE)*$D10,"") ->  | V10: =IFERROR(VLOOKUP($B10, impacts,V$8,FALSE)*$D10,"") -> 
A11: =IF(Calculator!B13=0,"",Calculator!B13) ->  | B11: =IF(A11="","",CONCATENATE(A11," ",$B$5)) ->  | C11: =IF(Calculator!D13=0,"",Calculator!D13) ->  | D11: =IFERROR(IF($D$34=1,C11,IF($D$34=2,C11*10^3,IF($D$34=3,C11*10^9))),"") ->  | E11: =IFERROR((INDEX(cost_table_p,VLOOKUP(B11,type_number,2,FALSE),VLOOKUP($B$3,country_number,2,FALSE))*D11),"") -> 
A12: =IF(Calculator!B14=0,"",Calculator!B14) ->  | B12: =IF(A12="","",CONCATENATE(A12," ",$B$5)) ->  | C12: =IF(Calculator!D14=0,"",Calculator!D14) ->  | D12: =IFERROR(IF($D$34=1,C12,IF($D$34=2,C12*10^3,IF($D$34=3,C12*10^9))),"") ->  | E12: =IFERROR((INDEX(cost_table_p,VLOOKUP(B12,type_number,2,FALSE),VLOOKUP($B$3,country_number,2,FALSE))*D12),"") -> 
A13: =IF(Calculator!B15=0,"",Calculator!B15) ->  | C13: =IF(Calculator!D15=0,"",Calculator!D15) ->  | F13: =IFERROR(VLOOKUP($B13, impacts,F$8,FALSE)*$D13,"") -> 
A14: =IF(Calculator!B16=0,"",Calculator!B16) ->  | C14: =IF(Calculator!D16=0,"",Calculator!D16) -> 
A15: =IF(Calculator!B17=0,"",Calculator!B17) ->  | C15: =IF(Calculator!D17=0,"",Calculator!D17) -> 
A16: =IF(Calculator!B18=0,"",Calculator!B18) ->  | C16: =IF(Calculator!D18=0,"",Calculator!D18) -> 
A17: =IF(Calculator!B19=0,"",Calculator!B19) ->  | C17: =IF(Calculator!D19=0,"",Calculator!D19) -> 
A18: =IF(Calculator!B20=0,"",Calculator!B20) ->  | C18: =IF(Calculator!D20=0,"",Calculator!D20) -> 
A19: =IF(Calculator!B21=0,"",Calculator!B21) ->  | C19: =IF(Calculator!D21=0,"",Calculator!D21) -> 
A20: =IF(Calculator!B22=0,"",Calculator!B22) ->  | C20: =IF(Calculator!D22=0,"",Calculator!D22) ->  | F20: =IFERROR(VLOOKUP($B20, impacts,F$8,FALSE)*$D20,"") -> 
A21: =IF(Calculator!B23=0,"",Calculator!B23) ->  | C21: =IF(Calculator!D23=0,"",Calculator!D23) -> 
A22: =IF(Calculator!B24=0,"",Calculator!B24) ->  | C22: =IF(Calculator!D24=0,"",Calculator!D24) -> 
A23: =IF(Calculator!B25=0,"",Calculator!B25) ->  | C23: =IF(Calculator!D25=0,"",Calculator!D25) -> 
A24: =IF(Calculator!B26=0,"",Calculator!B26) ->  | C24: =IF(Calculator!D26=0,"",Calculator!D26) -> 
A25: =IF(Calculator!B28=0,"",Calculator!B28) ->  | C25: =IF(Calculator!D28=0,"",Calculator!D28) -> 
A26: =IF(Calculator!B29=0,"",Calculator!B29) ->  | C26: =IF(Calculator!D29=0,"",Calculator!D29) -> 
A27: =IF(Calculator!B30=0,"",Calculator!B30) ->  | C27: =IF(Calculator!D30=0,"",Calculator!D30) -> 
A28: =IF(Calculator!B31=0,"",Calculator!B31) ->  | C28: =IF(Calculator!D31=0,"",Calculator!D31) -> 
A29: =IF(Calculator!B32=0,"",Calculator!B32) ->  | C29: =IF(Calculator!D32=0,"",Calculator!D32) -> 
A30: =IF(Calculator!B33=0,"",Calculator!B33) ->  | C30: =IF(Calculator!D33=0,"",Calculator!D33) -> 
A31: =IF(Calculator!B34=0,"",Calculator!B34) ->  | C31: =IF(Calculator!D34=0,"",Calculator!D34) -> 
A32: TOTAL | C32: =SUM(C10:C31) -> 0 | D32: =SUM(D10:D31) -> 0 | E32: =SUM(E10:E31) -> 0 | F32: =SUM(F10:F31) -> 0 | G32: 0 | H32: 0 | I32: 0 | J32: 0 | K32: 0 | L32: 0 | M32: 0 | N32: 0 | O32: 0 | P32: 0 | Q32: 0 | R32: 0 | S32: 0 | T32: 0 | U32: 0 | V32: =SUM(V10:V31) -> 0
A34: Unit type | D34: =Calculator!AA5 -> 1
A35: Cost provided by user | B35: =Calculator!E44 -> 0
A37: Waste management prevented | F37: 2 | G37: 3 | H37: 4 | I37: 5 | J37: 6 | K37: 7 | L37: 8 | M37: 9 | N37: 10 | O37: 11 | P37: 12 | Q37: 13 | R37: 14 | S37: 15 | T37: 16 | U37: 17 | V37: 18
E38: Waste treatment | F38: Climate change | G38: Ozone depletion | H38: Particulate Matter | I38: Ionizing radiation HH | J38: Photochemical ozone formation | K38: Acidification | L38: Terrestrial eutrophication | M38: Freshwater eutrophication | N38: Marine eutrophication | O38: Water scarcity | P38: Land use global | Q38: Resource use (fossil) | R38: Resource use (minerals and metals) | S38: Humantox cancer_weight | T38: Humantox non cancer_weight | U38: Ecotoxicity_weight | V38: Single point
E39: Anaerobic Digestion | F39: ='EoL emissions'!B17 -> 501.0738119 | G39: ='EoL emissions'!C17 -> 2.147613161e-05 | H39: ='EoL emissions'!D17 -> 3.171518215e-05 | I39: ='EoL emissions'!E17 -> 5.932466336 | J39: ='EoL emissions'!F17 -> 1.556599312 | K39: ='EoL emissions'!G17 -> 3.531237309 | L39: ='EoL emissions'!H17 -> 12.10022743 | M39: ='EoL emissions'!I17 -> 0.0162372042 | N39: ='EoL emissions'!J17 -> 0.6981751598 | O39: ='EoL emissions'!K17 -> 1270.946002 | P39: ='EoL emissions'!L17 -> 7855.678129 | Q39: ='EoL emissions'!M17 -> -2118.224722 | R39: ='EoL emissions'!N17 -> 0.001316034803 | S39: ='EoL emissions'!O17 -> 3.881400427e-07 | T39: ='EoL emissions'!P17 -> 9.609999606e-06 | U39: ='EoL emissions'!Q17 -> -2145.997324 | V39: ='EoL emissions'!R17 -> 5.604808226e-10
E40: Composting | F40: ='EoL emissions'!B18 -> 201.3230362 | G40: ='EoL emissions'!C18 -> 2.730347337e-06 | H40: ='EoL emissions'!D18 -> 9.33191705e-06 | I40: ='EoL emissions'!E18 -> 3.157882339 | J40: ='EoL emissions'!F18 -> 1.869058148 | K40: ='EoL emissions'!G18 -> 1.863887565 | L40: ='EoL emissions'!H18 -> 8.59848015 | M40: ='EoL emissions'!I18 -> 0.001562069716 | N40: ='EoL emissions'!J18 -> 0.2166162479 | O40: ='EoL emissions'!K18 -> 21.47776196 | P40: ='EoL emissions'!L18 -> 515.6198036 | Q40: ='EoL emissions'!M18 -> 261.7308482 | R40: ='EoL emissions'!N18 -> 0.002282230115 | S40: ='EoL emissions'!O18 -> 2.496999877e-08 | T40: ='EoL emissions'!P18 -> 7.91817716e-07 | U40: ='EoL emissions'!Q18 -> 4717.290955 | V40: ='EoL emissions'!R18 -> 2.679614742e-10
E41: Incineration | F41: ='EoL emissions'!B19 -> 32.15515235 | G41: ='EoL emissions'!C19 -> 3.018005102e-06 | H41: ='EoL emissions'!D19 -> 2.477632451e-06 | I41: ='EoL emissions'!E19 -> 0.6767692041 | J41: ='EoL emissions'!F19 -> 0.2568229541 | K41: ='EoL emissions'!G19 -> 0.234367999 | L41: ='EoL emissions'!H19 -> 1.035492093 | M41: ='EoL emissions'!I19 -> 0.0008422340824 | N41: ='EoL emissions'!J19 -> 0.1039090086 | O41: ='EoL emissions'!K19 -> 8.228441587 | P41: ='EoL emissions'!L19 -> 141.8149364 | Q41: ='EoL emissions'!M19 -> 244.2186554 | R41: ='EoL emissions'!N19 -> 3.489537844e-05 | S41: ='EoL emissions'!O19 -> 6.228225188e-08 | T41: ='EoL emissions'!P19 -> 2.370299643e-06 | U41: ='EoL emissions'!Q19 -> 983.1420454 | V41: ='EoL emissions'!R19 -> 4.944567671e-11
E42: Landfill | F42: ='EoL emissions'!B20 -> 601.3609648 | G42: ='EoL emissions'!C20 -> 3.440233355e-06 | H42: ='EoL emissions'!D20 -> 1.727923302e-06 | I42: ='EoL emissions'!E20 -> 1.889004109 | J42: ='EoL emissions'!F20 -> 0.3242041681 | K42: ='EoL emissions'!G20 -> 0.1322612431 | L42: ='EoL emissions'!H20 -> 0.3966966728 | M42: ='EoL emissions'!I20 -> 0.005028338626 | N42: ='EoL emissions'!J20 -> 1.261175506 | O42: ='EoL emissions'!K20 -> 1.671911967 | P42: ='EoL emissions'!L20 -> 598.7030353 | Q42: ='EoL emissions'!M20 -> 282.3581376 | R42: ='EoL emissions'!N20 -> 2.189562006e-05 | S42: ='EoL emissions'!O20 -> 2.909055281e-08 | T42: ='EoL emissions'!P20 -> 1.393044294e-06 | U42: ='EoL emissions'!Q20 -> 2493.494616 | V42: ='EoL emissions'!R20 -> 3.074118783e-10
E43: Other/Unknown use | F43: =IF($B$3="Other/unknown",'EoL emissions'!B21,VLOOKUP($B$3,treat_impact_UU,F$37,FALSE)) -> 67.40317454 | G43: =IF($B$3="Other/unknown",'EoL emissions'!C21,VLOOKUP($B$3,treat_impact_UU,G$37,FALSE)) -> 3.451633888e-06 | H43: =IF($B$3="Other/unknown",'EoL emissions'!D21,VLOOKUP($B$3,treat_impact_UU,H$37,FALSE)) -> 3.665099653e-06 | I43: =IF($B$3="Other/unknown",'EoL emissions'!E21,VLOOKUP($B$3,treat_impact_UU,I$37,FALSE)) -> 1.008331169 | J43: =IF($B$3="Other/unknown",'EoL emissions'!F21,VLOOKUP($B$3,treat_impact_UU,J$37,FALSE)) -> 0.4064183974 | K43: =IF($B$3="Other/unknown",'EoL emissions'!G21,VLOOKUP($B$3,treat_impact_UU,K$37,FALSE)) -> 0.4299784614 | L43: =IF($B$3="Other/unknown",'EoL emissions'!H21,VLOOKUP($B$3,treat_impact_UU,L$37,FALSE)) -> 1.837655676 | M43: =IF($B$3="Other/unknown",'EoL emissions'!I21,VLOOKUP($B$3,treat_impact_UU,M$37,FALSE)) -> 0.001352011747 | N43: =IF($B$3="Other/unknown",'EoL emissions'!J21,VLOOKUP($B$3,treat_impact_UU,N$37,FALSE)) -> 0.1501443144 | O43: =IF($B$3="Other/unknown",'EoL emissions'!K21,VLOOKUP($B$3,treat_impact_UU,O$37,FALSE)) -> 39.55257046 | P43: =IF($B$3="Other/unknown",'EoL emissions'!L21,VLOOKUP($B$3,treat_impact_UU,P$37,FALSE)) -> 364.5764567 | Q43: =IF($B$3="Other/unknown",'EoL emissions'!M21,VLOOKUP($B$3,treat_impact_UU,Q$37,FALSE)) -> 189.2089816 | R43: =IF($B$3="Other/unknown",'EoL emissions'!N21,VLOOKUP($B$3,treat_impact_UU,R$37,FALSE)) -> 0.000228412209 | S43: =IF($B$3="Other/unknown",'EoL emissions'!O21,VLOOKUP($B$3,treat_impact_UU,S$37,FALSE)) -> 6.676891121e-08 | T43: =IF($B$3="Other/unknown",'EoL emissions'!P21,VLOOKUP($B$3,treat_impact_UU,T$37,FALSE)) -> 2.410758539e-06 | U43: =IF($B$3="Other/unknown",'EoL emissions'!Q21,VLOOKUP($B$3,treat_impact_UU,U$37,FALSE)) -> 1209.087819 | V43: =IF($B$3="Other/unknown",'EoL emissions'!R21,VLOOKUP($B$3,treat_impact_UU,V$37,FALSE)) -> 8.290855876e-11
E44: Other/Unknown | F44: =IF($B$3="Other/unknown",'EoL emissions'!B22,VLOOKUP($B$3,treat_impact_UP,F$37,FALSE)) -> 197.3509866 | G44: =IF($B$3="Other/unknown",'EoL emissions'!C22,VLOOKUP($B$3,treat_impact_UP,G$37,FALSE)) -> 5.928985052e-06 | H44: =IF($B$3="Other/unknown",'EoL emissions'!D22,VLOOKUP($B$3,treat_impact_UP,H$37,FALSE)) -> 1.070369635e-05 | I44: =IF($B$3="Other/unknown",'EoL emissions'!E22,VLOOKUP($B$3,treat_impact_UP,I$37,FALSE)) -> 2.783801568 | J44: =IF($B$3="Other/unknown",'EoL emissions'!F22,VLOOKUP($B$3,treat_impact_UP,J$37,FALSE)) -> 1.271520879 | K44: =IF($B$3="Other/unknown",'EoL emissions'!G22,VLOOKUP($B$3,treat_impact_UP,K$37,FALSE)) -> 1.586583872 | L44: =IF($B$3="Other/unknown",'EoL emissions'!H22,VLOOKUP($B$3,treat_impact_UP,L$37,FALSE)) -> 6.61007585 | M44: =IF($B$3="Other/unknown",'EoL emissions'!I22,VLOOKUP($B$3,treat_impact_UP,M$37,FALSE)) -> 0.003771693386 | N44: =IF($B$3="Other/unknown",'EoL emissions'!J22,VLOOKUP($B$3,treat_impact_UP,N$37,FALSE)) -> 0.2657643353 | O44: =IF($B$3="Other/unknown",'EoL emissions'!K22,VLOOKUP($B$3,treat_impact_UP,O$37,FALSE)) -> 223.4579547 | P44: =IF($B$3="Other/unknown",'EoL emissions'!L22,VLOOKUP($B$3,treat_impact_UP,P$37,FALSE)) -> 1605.181886 | Q44: =IF($B$3="Other/unknown",'EoL emissions'!M22,VLOOKUP($B$3,treat_impact_UP,Q$37,FALSE)) -> -137.3107571 | R44: =IF($B$3="Other/unknown",'EoL emissions'!N22,VLOOKUP($B$3,treat_impact_UP,R$37,FALSE)) -> 0.0013608853 | S44: =IF($B$3="Other/unknown",'EoL emissions'!O22,VLOOKUP($B$3,treat_impact_UP,S$37,FALSE)) -> 9.741718738e-08 | T44: =IF($B$3="Other/unknown",'EoL emissions'!P22,VLOOKUP($B$3,treat_impact_UP,T$37,FALSE)) -> 2.777662892e-06 | U44: =IF($B$3="Other/unknown",'EoL emissions'!Q22,VLOOKUP($B$3,treat_impact_UP,U$37,FALSE)) -> 2327.623249 | V44: =IF($B$3="Other/unknown",'EoL emissions'!R22,VLOOKUP($B$3,treat_impact_UP,V$37,FALSE)) -> 2.439874569e-10
F45: 2 | G45: 3 | H45: 4 | I45: 5 | J45: 6 | K45: 7 | L45: 8 | M45: 9 | N45: 10 | O45: 11 | P45: 12 | Q45: 13 | R45: 14 | S45: 15 | T45: 16 | U45: 17 | V45: 18
B46: Waste treatment | D46: Amount (in tonnes) | E46: Cost (euros) | F46: Climate change | G46: Ozone depletion | H46: Particulate Matter | I46: Ionizing radiation HH | J46: Photochemical ozone formation | K46: Acidification | L46: Terrestrial eutrophication | M46: Freshwater eutrophication | N46: Marine eutrophication | O46: Water scarcity | P46: Land use global | Q46: Resource use (fossil) | R46: Resource use (minerals and metals) | S46: Humantox cancer_weight | T46: Humantox non cancer_weight | U46: Ecotoxicity_weight | V46: Single point
B47: =Calculator!L6 -> Anaerobic Digestion | C47: =IF((AND(B47="Other/Unknown",B5="use")),"Other/Unknown use",B47) -> Anaerobic Digestion | D47: =D32*10^-3 -> 0 | E47: =IF(D51="Gleaning",0,D47*VLOOKUP(C47,treatment_cost,2,FALSE)) -> 0 | F47: =IF($D$51="Gleaning",0,VLOOKUP($C$47,treat_impacts_CS,F45,FALSE)*$D$47) -> 0 | G47: 0 | H47: 0 | I47: 0 | J47: 0 | K47: 0 | L47: 0 | M47: 0 | N47: 0 | O47: 0 | P47: 0 | Q47: 0 | R47: 0 | S47: 0 | T47: 0 | U47: 0 | V47: =IF($D$51="Gleaning",0,VLOOKUP($C$47,treat_impacts_CS,V45,FALSE)*$D$47) -> 0
A49: ACTION impacts/costs
D50: Action type | E50: Cost (euros) | F50: Climate change | G50: Ozone depletion | H50: Particulate Matter | I50: Ionizing radiation HH | J50: Photochemical ozone formation | K50: Acidification | L50: Terrestrial eutrophication | M50: Freshwater eutrophication | N50: Marine eutrophication | O50: Water scarcity | P50: Land use global | Q50: Resource use (fossil) | R50: Resource use (minerals and metals) | S50: Humantox cancer_weight | T50: Humantox non cancer_weight | U50: Ecotoxicity_weight | V50: Single point
D51: =Calculator!F6 -> Supply chain efficiency | E51: =Calculator!J6 -> 0 | F51: ='Action impacts'!B25 -> 0 | G51: ='Action impacts'!C25 -> 0 | H51: ='Action impacts'!D25 -> 0 | I51: ='Action impacts'!E25 -> 0 | J51: ='Action impacts'!F25 -> 0 | K51: ='Action impacts'!G25 -> 0 | L51: ='Action impacts'!H25 -> 0 | M51: ='Action impacts'!I25 -> 0 | N51: ='Action impacts'!J25 -> 0 | O51: ='Action impacts'!K25 -> 0 | P51: ='Action impacts'!L25 -> 0 | Q51: ='Action impacts'!M25 -> 0 | R51: ='Action impacts'!N25 -> 0 | S51: ='Action impacts'!O25 -> 0 | T51: ='Action impacts'!P25 -> 0 | U51: ='Action impacts'!Q25 -> 0 | V51: ='Action impacts'!R25 -> 0
A53: Nutritional value of savings | C53: 2 | D53: 3 | E53: 4 | F53: 5 | G53: 6 | H53: 7 | I53: 8 | J53: 9 | K53: 10 | L53: 11 | M53: 12 | N53: 13
A54: Type | C54: Kilojoules | D54: Kilocalories | E54: Fat | F54: Saturated fat | G54: Carbohydrates | H54: Starch | I54: Sugar | J54: Proteins | K54: Salt | L54: Dietary fibre | M54: Water | N54: Edible part
A55: =IF(Calculator!B12=0,"",Calculator!B12) ->  | B55: =IF(A10="","",CONCATENATE(A10," ",$B$5)) ->  | C55: =IFERROR(VLOOKUP($A55,nutritional_data,C$53,FALSE)*$D10*10*($N55/100),"") ->  | N55: =IFERROR(VLOOKUP($A55,nutritional_data,N$53,FALSE),"") -> 
A56: =IF(Calculator!B13=0,"",Calculator!B13) ->  | B56: =IF(A11="","",CONCATENATE(A11," ",$B$5)) ->  | C56: =IFERROR(VLOOKUP($A56,nutritional_data,C$53,FALSE)*$D11*10*($N56/100),"") -> 
A57: =IF(Calculator!B14=0,"",Calculator!B14) ->  | B57: =IF(A12="","",CONCATENATE(A12," ",$B$5)) ->  | C57: =IFERROR(VLOOKUP($A57,nutritional_data,C$53,FALSE)*$D12*10*($N57/100),"") -> 
A58: =IF(Calculator!B15=0,"",Calculator!B15) ->  | C58: =IFERROR(VLOOKUP($A58,nutritional_data,C$53,FALSE)*$D13*10*($N58/100),"") -> 
A59: =IF(Calculator!B16=0,"",Calculator!B16) ->  | C59: =IFERROR(VLOOKUP($A59,nutritional_data,C$53,FALSE)*$D14*10*($N59/100),"") -> 
A60: =IF(Calculator!B17=0,"",Calculator!B17) ->  | C60: =IFERROR(VLOOKUP($A60,nutritional_data,C$53,FALSE)*$D15*10*($N60/100),"") -> 
A61: =IF(Calculator!B18=0,"",Calculator!B18) ->  | C61: =IFERROR(VLOOKUP($A61,nutritional_data,C$53,FALSE)*$D16*10*($N61/100),"") -> 
A62: =IF(Calculator!B19=0,"",Calculator!B19) ->  | C62: =IFERROR(VLOOKUP($A62,nutritional_data,C$53,FALSE)*$D17*10*($N62/100),"") -> 
A63: =IF(Calculator!B20=0,"",Calculator!B20) ->  | C63: =IFERROR(VLOOKUP($A63,nutritional_data,C$53,FALSE)*$D18*10*($N63/100),"") -> 
A64: =IF(Calculator!B21=0,"",Calculator!B21) ->  | C64: =IFERROR(VLOOKUP($A64,nutritional_data,C$53,FALSE)*$D19*10*($N64/100),"") -> 
A65: =IF(Calculator!B22=0,"",Calculator!B22) ->  | C65: =IFERROR(VLOOKUP($A65,nutritional_data,C$53,FALSE)*$D20*10*($N65/100),"") -> 
A66: =IF(Calculator!B23=0,"",Calculator!B23) ->  | C66: =IFERROR(VLOOKUP($A66,nutritional_data,C$53,FALSE)*$D21*10*($N66/100),"") -> 
A67: =IF(Calculator!B24=0,"",Calculator!B24) ->  | C67: =IFERROR(VLOOKUP($A67,nutritional_data,C$53,FALSE)*$D22*10*($N67/100),"") -> 
A68: =IF(Calculator!B25=0,"",Calculator!B25) ->  | C68: =IFERROR(VLOOKUP($A68,nutritional_data,C$53,FALSE)*$D23*10*($N68/100),"") -> 
A69: =IF(Calculator!B26=0,"",Calculator!B26) ->  | C69: =IFERROR(VLOOKUP($A69,nutritional_data,C$53,FALSE)*$D24*10*($N69/100),"") -> 
A70: =IF(Calculator!B27=0,"",Calculator!B27) ->  | C70: =IFERROR(VLOOKUP($A70,nutritional_data,C$53,FALSE)*$D25*10*($N70/100),"") -> 
A71: =IF(Calculator!B28=0,"",Calculator!B28) ->  | C71: =IFERROR(VLOOKUP($A71,nutritional_data,C$53,FALSE)*$D26*10*($N71/100),"") -> 
A72: =IF(Calculator!B29=0,"",Calculator!B29) ->  | C72: =IFERROR(VLOOKUP($A72,nutritional_data,C$53,FALSE)*$D27*10*($N72/100),"") -> 
A73: =IF(Calculator!B30=0,"",Calculator!B30) ->  | C73: =IFERROR(VLOOKUP($A73,nutritional_data,C$53,FALSE)*$D28*10*($N73/100),"") -> 
A74: =IF(Calculator!B31=0,"",Calculator!B31) ->  | C74: =IFERROR(VLOOKUP($A74,nutritional_data,C$53,FALSE)*$D29*10*($N74/100),"") -> 
A75: =IF(Calculator!B32=0,"",Calculator!B32) ->  | C75: =IFERROR(VLOOKUP($A75,nutritional_data,C$53,FALSE)*$D30*10*($N75/100),"") -> 
A76: =IF(Calculator!B33=0,"",Calculator!B33) ->  | C76: =IFERROR(VLOOKUP($A76,nutritional_data,C$53,FALSE)*$D31*10*($N76/100),"") -> 
B77: TOTAL | C77: =SUM(C55:C76) -> 0 | D77: =SUM(D55:D76) -> 0 | E77: 0 | F77: 0 | G77: 0 | H77: 0 | I77: 0 | J77: 0 | K77: 0 | L77: 0 | M77: 0 | N77: 0
A79: Number of saved daily intakes | B79: =D77/2000 -> 0 | C79: days
A86: Results
B87: Cost of action | C87: =-E51 -> 0
B88: Savings from avoided treatment | C88: =E47 -> 0
B89: Savings from avoided food production | C89: =IF(B35=0,E32*VLOOKUP(Calculator!$F$6,category,2,FALSE),B35) -> 0
B90: Total net savings | C90: =C89+C88+C87 -> 0
N96: €
C104: Climate change | D104: Ozone depletion | E104: Particulate Matter | F104: Ionizing radiation, human health | G104: Photochemical ozone formation, human health | H104: Acidification | I104: Terrestrial eutrophication | J104: Freshwater eutrophication | K104: Marine eutrophication | L104: Water use | M104: Land use | N104: Resource use, fossil | O104: Resource use, minerals and metals | P104: Human toxicity, cancer effects | Q104: Human toxicity, non-cancer effects | R104: Freshwater ecotoxicity | S104: Single Point
B105: Impact of action | C105: =-F51 -> 0 | D105: 0 | E105: 0 | F105: 0 | G105: 0 | H105: 0 | I105: 0 | J105: 0 | K105: 0 | L105: 0 | M105: 0 | N105: 0 | O105: 0 | P105: 0 | Q105: 0 | R105: 0 | S105: =-V51 -> 0
B106: Impact of avoided treatment | C106: =F47 -> 0 | D106: =G47 -> 0 | E106: 0 | F106: 0 | G106: 0 | H106: 0 | I106: 0 | J106: 0 | K106: 0 | L106: 0 | M106: 0 | N106: 0 | O106: 0 | P106: 0 | Q106: 0 | R106: 0 | S106: =V47 -> 0
B107: Impact of saved food | C107: =F32*VLOOKUP(Calculator!$F$6,category,2,FALSE) -> 0 | D107: =G32*VLOOKUP(Calculator!$F$6,category,2,FALSE) -> 0 | E107: =H32*VLOOKUP(Calculator!$F$6,category,2,FALSE) -> 0 | F107: =I32*VLOOKUP(Calculator!$F$6,category,2,FALSE) -> 0 | G107: =J32*VLOOKUP(Calculator!$F$6,category,2,FALSE) -> 0 | H107: =K32*VLOOKUP(Calculator!$F$6,category,2,FALSE) -> 0 | I107: =L32*VLOOKUP(Calculator!$F$6,category,2,FALSE) -> 0 | J107: =M32*VLOOKUP(Calculator!$F$6,category,2,FALSE) -> 0 | K107: =N32*VLOOKUP(Calculator!$F$6,category,2,FALSE) -> 0 | L107: =O32*VLOOKUP(Calculator!$F$6,category,2,FALSE) -> 0 | M107: =P32*VLOOKUP(Calculator!$F$6,category,2,FALSE) -> 0 | N107: =Q32*VLOOKUP(Calculator!$F$6,category,2,FALSE) -> 0 | O107: =R32*VLOOKUP(Calculator!$F$6,category,2,FALSE) -> 0 | P107: =S32*VLOOKUP(Calculator!$F$6,category,2,FALSE) -> 0 | Q107: =T32*VLOOKUP(Calculator!$F$6,category,2,FALSE) -> 0 | R107: =U32*VLOOKUP(Calculator!$F$6,category,2,FALSE) -> 0 | S107: =V32*VLOOKUP(Calculator!$F$6,category,2,FALSE) -> 0
B108: Total | C108: =SUM(C105:C107) -> 0 | D108: =SUM(D105:D107) -> 0 | E108: 0 | F108: 0 | G108: 0 | H108: 0 | I108: 0 | J108: 0 | K108: 0 | L108: 0 | M108: 0 | N108: 0 | O108: 0 | P108: 0 | Q108: 0 | R108: 0 | S108: =SUM(S105:S107) -> 0
B111: Impact category | C111: =Calculator!Q9 -> Human toxicity, cancer effects
B112: Impact of action | C112: =HLOOKUP($C$111,$B$104:$S$108,2,FALSE) -> 0 | D112: =VLOOKUP($C$111,units,2,FALSE) -> CTUh
B113: Impact of avoided treatment | C113: =HLOOKUP($C$111,$B$104:$S$108,3,FALSE) -> 0 | D113: =VLOOKUP($C$111,units,2,FALSE) -> CTUh
B114: Impact of saved food | C114: =HLOOKUP($C$111,$B$104:$S$108,4,FALSE) -> 0 | D114: =VLOOKUP($C$111,units,2,FALSE) -> CTUh
B115: Total | C115: =HLOOKUP($C$111,$B$104:$S$108,5,FALSE) -> 0 | D115: =VLOOKUP($C$111,units,2,FALSE) -> CTUh
B129: Impact category | C129: Single Point
B130: Impact of action | C130: =HLOOKUP($C$129,$B$104:$S$108,2,FALSE) -> 0 | D130: =VLOOKUP($C$129,units,2,FALSE) -> Pt
B131: Impact of avoided treatment | C131: =HLOOKUP($C$129,$B$104:$S$108,3,FALSE) -> 0 | D131: =VLOOKUP($C$129,units,2,FALSE) -> Pt
B132: Impact of saved food | C132: =HLOOKUP($C$129,$B$104:$S$108,4,FALSE) -> 0 | D132: =VLOOKUP($C$129,units,2,FALSE) -> Pt
B133: Total | C133: =HLOOKUP($C$129,$B$104:$S$108,5,FALSE) -> 0 | D133: =VLOOKUP($C$129,units,2,FALSE) -> Pt
B147: Impact category | C147: Climate Change | D147: Climate change [kgCO2eq]
B148: Impact of action | C148: =HLOOKUP($C$147,$B$104:$S$108,2,FALSE) -> 0
B149: Impact of avoided treatment | C149: =HLOOKUP($C$147,$B$104:$S$108,3,FALSE) -> 0
B150: Impact of saved food | C150: =HLOOKUP($C$147,$B$104:$S$108,4,FALSE) -> 0
B151: Total | C151: =HLOOKUP($C$147,$B$104:$S$108,5,FALSE) -> 0
B153: Impact category | C153: Ozone depletion | D153: Ozone depletion [kg CFC-11eq]
B154: Impact of action | C154: =HLOOKUP(C153,$B$104:$S$108,2,FALSE) -> 0
B155: Impact of avoided treatment | C155: =HLOOKUP(C153,$B$104:$S$108,3,FALSE) -> 0
B156: Impact of saved food | C156: =HLOOKUP(C153,$B$104:$S$108,4,FALSE) -> 0
B157: Total | C157: =HLOOKUP(C153,$B$104:$S$108,5,FALSE) -> 0
B159: Impact category | C159: Human toxicity, non-cancer effects | D159: Human toxicity, non-cancer effects [CTUh]
B160: Impact of action | C160: =HLOOKUP(C159,$B$104:$S$108,2,FALSE) -> 0
B161: Impact of avoided treatment | C161: =HLOOKUP(C159,$B$104:$S$108,3,FALSE) -> 0
B162: Impact of saved food | C162: =HLOOKUP(C159,$B$104:$S$108,4,FALSE) -> 0
B163: Total | C163: =HLOOKUP(C159,$B$104:$S$108,5,FALSE) -> 0
B165: Impact category | C165: Human toxicity, cancer effects | D165: Human toxicity, cancer effects [CTUh]
B166: Impact of action | C166: =HLOOKUP(C165,$B$104:$S$108,2,FALSE) -> 0
B167: Impact of avoided treatment | C167: =HLOOKUP(C165,$B$104:$S$108,3,FALSE) -> 0
B168: Impact of saved food | C168: =HLOOKUP(C165,$B$104:$S$108,4,FALSE) -> 0
B169: Total | C169: =HLOOKUP(C165,$B$104:$S$108,5,FALSE) -> 0
B171: Impact category | C171: Particulate matter | D171: Particulate matter [diseases incidences]
B172: Impact of action | C172: =HLOOKUP(C171,$B$104:$S$108,2,FALSE) -> 0
B173: Impact of avoided treatment | C173: =HLOOKUP(C171,$B$104:$S$108,3,FALSE) -> 0
B174: Impact of saved food | C174: =HLOOKUP(C171,$B$104:$S$108,4,FALSE) -> 0
B175: Total | C175: =HLOOKUP(C171,$B$104:$S$108,5,FALSE) -> 0
B177: Impact category | C177: Ionizing radiation, human health | D177: Ionizing radiation, human health [kBq U235]
B178: Impact of action | C178: =HLOOKUP(C177,$B$104:$S$108,2,FALSE) -> 0
B179: Impact of avoided treatment | C179: =HLOOKUP(C177,$B$104:$S$108,3,FALSE) -> 0
B180: Impact of saved food | C180: =HLOOKUP(C177,$B$104:$S$108,4,FALSE) -> 0
B181: Total | C181: =HLOOKUP(C177,$B$104:$S$108,5,FALSE) -> 0
B183: Impact category | C183: Photochemical ozone formation, human health | D183: Photochemical ozone formation, human health [kg NMVOC eq]
B184: Impact of action | C184: =HLOOKUP(C183,$B$104:$S$108,2,FALSE) -> 0
B185: Impact of avoided treatment | C185: =HLOOKUP(C183,$B$104:$S$108,3,FALSE) -> 0
B186: Impact of saved food | C186: =HLOOKUP(C183,$B$104:$S$108,4,FALSE) -> 0
B187: Total | C187: =HLOOKUP(C183,$B$104:$S$108,5,FALSE) -> 0
B189: Impact category | C189: Acidification | D189: Acidification [mol H+ eq]
B190: Impact of action | C190: =HLOOKUP(C189,$B$104:$S$108,2,FALSE) -> 0
B191: Impact of avoided treatment | C191: =HLOOKUP(C189,$B$104:$S$108,3,FALSE) -> 0
B192: Impact of saved food | C192: =HLOOKUP(C189,$B$104:$S$108,4,FALSE) -> 0
B193: Total | C193: =HLOOKUP(C189,$B$104:$S$108,5,FALSE) -> 0
B195: Impact category | C195: Terrestrial eutrophication | D195: Terrestrial eutrophication [mol N eq]
B196: Impact of action | C196: =HLOOKUP(C195,$B$104:$S$108,2,FALSE) -> 0
B197: Impact of avoided treatment | C197: =HLOOKUP(C195,$B$104:$S$108,3,FALSE) -> 0
B198: Impact of saved food | C198: =HLOOKUP(C195,$B$104:$S$108,4,FALSE) -> 0
B199: Total | C199: =HLOOKUP(C195,$B$104:$S$108,5,FALSE) -> 0
B201: Impact category | C201: Freshwater eutrophication | D201: Freshwater eutrophication [kg P eq]
B202: Impact of action | C202: =HLOOKUP(C201,$B$104:$S$108,2,FALSE) -> 0
B203: Impact of avoided treatment | C203: =HLOOKUP(C201,$B$104:$S$108,3,FALSE) -> 0
B204: Impact of saved food | C204: =HLOOKUP(C201,$B$104:$S$108,4,FALSE) -> 0
B205: Total | C205: =HLOOKUP(C201,$B$104:$S$108,5,FALSE) -> 0
B207: Impact category | C207: Marine eutrophication | D207: Marine eutrophication [kg N eq]
B208: Impact of action | C208: =HLOOKUP(C207,$B$104:$S$108,2,FALSE) -> 0
B209: Impact of avoided treatment | C209: =HLOOKUP(C207,$B$104:$S$108,3,FALSE) -> 0
B210: Impact of saved food | C210: =HLOOKUP(C207,$B$104:$S$108,4,FALSE) -> 0
B211: Total | C211: =HLOOKUP(C207,$B$104:$S$108,5,FALSE) -> 0
B213: Impact category | C213: Freshwater ecotoxicity | D213: Freshwater ecotoxicity [CTUe]
B214: Impact of action | C214: =HLOOKUP(C213,$B$104:$S$108,2,FALSE) -> 0
B215: Impact of avoided treatment | C215: =HLOOKUP(C213,$B$104:$S$108,3,FALSE) -> 0
B216: Impact of saved food | C216: =HLOOKUP(C213,$B$104:$S$108,4,FALSE) -> 0
B217: Total | C217: =HLOOKUP(C213,$B$104:$S$108,5,FALSE) -> 0
B219: Impact category | C219: Land use | D219: Land use [Pt]
B220: Impact of action | C220: =HLOOKUP(C219,$B$104:$S$108,2,FALSE) -> 0
B221: Impact of avoided treatment | C221: =HLOOKUP(C219,$B$104:$S$108,3,FALSE) -> 0
B222: Impact of saved food | C222: =HLOOKUP(C219,$B$104:$S$108,4,FALSE) -> 0
B223: Total | C223: =HLOOKUP(C219,$B$104:$S$108,5,FALSE) -> 0
B225: Impact category | C225: Water use | D225: Water use [m3 world eq. deprived]
B226: Impact of action | C226: =HLOOKUP(C225,$B$104:$S$108,2,FALSE) -> 0
B227: Impact of avoided treatment | C227: =HLOOKUP(C225,$B$104:$S$108,3,FALSE) -> 0
B228: Impact of saved food | C228: =HLOOKUP(C225,$B$104:$S$108,4,FALSE) -> 0
B229: Total | C229: =HLOOKUP(C225,$B$104:$S$108,5,FALSE) -> 0
B231: Impact category | C231: Resource use, fossil | D231: Resource use, fossil [MJ]
B232: Impact of action | C232: =HLOOKUP(C231,$B$104:$S$108,2,FALSE) -> 0
B233: Impact of avoided treatment | C233: =HLOOKUP(C231,$B$104:$S$108,3,FALSE) -> 0
B234: Impact of saved food | C234: =HLOOKUP(C231,$B$104:$S$108,4,FALSE) -> 0
B235: Total | C235: =HLOOKUP(C231,$B$104:$S$108,5,FALSE) -> 0
B237: Impact category | C237: Resource use, minerals and metals | D237: Resource use, minerals and metals [kg Sb eq]
B238: Impact of action | C238: =HLOOKUP(C237,$B$104:$S$108,2,FALSE) -> 0
B239: Impact of avoided treatment | C239: =HLOOKUP(C237,$B$104:$S$108,3,FALSE) -> 0
B240: Impact of saved food | C240: =HLOOKUP(C237,$B$104:$S$108,4,FALSE) -> 0
B241: Total | C241: =HLOOKUP(C237,$B$104:$S$108,5,FALSE) -> 0

Sheet calculation_nutritional (hidden)
A1: Nutritional data:
S2: Stage
B3: Kilojoules | C3: Kilocalories | D3: Fat | E3: Saturated fat | F3: Carbohydrates | G3: Starch | H3: Sugar | I3: Proteins | J3: Salt | K3: Dietary fibre | L3: Water | M3: Edible part | N3: Details | O3: Bop weights: | S3: =Calculations!B5 -> agriculture | T3: =IF(S3="manufacturing","processsing",S3) -> agriculture
A4: Almonds | B4: 2485 | C4: 601 | D4: 52.1 | E4: 4.1 | F4: 6.6 | G4: 0 | H4: 6.6 | I4: 21.2 | J4: 0 | K4: 11 | L4: 5 | M4: 100 | O4: =IF(ISNUMBER(SEARCH("meat", A4)),SUBSTITUTE(A4,"meat", ""),A4) -> Almonds | P4: =IFERROR(VLOOKUP(TRIM(CONCATENATE(O4," ",$T$3)),bop_weights,4,FALSE),"") -> 4.330818955
A5: Apples | B5: 207 | C5: 49 | D5: 0.2 | E5: 0 | F5: 10.6 | G5: 0.1 | H5: 10.5 | I5: 0.3 | J5: 0 | K5: 2 | L5: 86 | M5: 90 | O5: Apples | P5: 70.86011542
A6: Avocado | B6: 787 | C6: 191 | D6: 19.6 | E6: 3.4 | F6: 0.4 | G6: 0 | H6: 0.4 | I6: 1.8 | J6: 0 | K6: 3 | L6: 70 | M6: 74 | O6: Avocado | P6: 2.109791687
A7: Bananas | B7: 355 | C7: 84 | D7: 0.3 | E7: 0.1 | F7: 18.3 | G7: 4.4 | H7: 13.9 | I7: 1.2 | J7: 0 | K7: 1 | L7: 76 | M7: 66 | O7: Bananas | P7: 26.55604233
A8: Beans | B8: 531 | C8: 126 | D8: 0.6 | E8: 0.1 | F8: 17.7 | G8: 15.8 | H8: 1.8 | I8: 9 | J8: 0 | K8: 7 | L8: 64 | M8: 100 | N8: Brown beans, cookes | O8: Beans | P8: 2.272953133
A9: Beef | B9: 549 | C9: 131 | D9: 4.7 | E9: 2.2 | F9: 0 | G9: 0 | H9: 0 | I9: 22 | J9: 0.1 | K9: 0 | L9: 62.15384615 | M9: 91.10769231 | N9: Average of different parts of beef meat | O9: Beef | P9: 19.36249956
A10: Beer | B10: 170 | C10: 41 | D10: 0 | E10: 0 | F10: 3.2 | G10: 2.8 | H10: 0.4 | I10: 0.4 | J10: 0 | K10: 0 | L10: 91.375 | M10: 100 | O10: Beer | P10: 78.14927438
A11: Biscuits | B11: 1879 | C11: 446 | D11: 12.8 | E11: 5.1 | F11: 74.7 | G11: 54.7 | H11: 20 | I11: 6.6 | J11: 1.1 | K11: 3 | L11: 3 | M11: 100 | O11: Biscuits | P11: 7.176543696
A12: Bread | B12: 1036 | C12: 245 | D12: 1.3 | E12: 0.3 | F12: 45.9 | G12: 44.6 | H12: 1.4 | I12: 9.6 | J12: 0.3 | K12: 5 | L12: 38.40816327 | M12: 100 | O12: Bread | P12: 54.42502353
A13: Broccoli | B13: 106.5 | C13: 25.5 | D13: 0.3 | E13: 0.05 | F13: 1.75 | G13: 0 | H13: 1.75 | I13: 2.7 | J13: 0 | K13: 2.5 | L13: =L93 -> 90.17 | M13: 88.38 | N13: Mix of fresh and frozen | O13: Broccoli | P13: 20.94592609
A14: Butter | B14: 3059 | C14: 744 | D14: 82 | E14: 52 | F14: 0.5 | G14: 0 | H14: 0.5 | I14: 1 | J14: 1.1 | K14: 0 | L14: 16 | M14: 100 | O14: Butter | P14: 4.353106285
A15: Canned tuna | B15: 447 | C15: 105 | D15: 1 | E15: 0.2 | F15: 0 | G15: 0 | H15: 0 | I15: 24.1 | J15: 1 | K15: 0 | L15: 74 | M15: 100 | O15: Canned tuna | P15: 7.035464273
A16: Carrots | B16: 151 | C16: 36 | D16: 0.1 | E16: 0 | F16: 6.7 | G16: 0.2 | H16: 6.5 | I16: 0.7 | J16: 0.1 | K16: 3 | L16: =L94 -> 89.34 | M16: 90.87 | N16: Mix of fresh and frozen | O16: Carrots | P16: 32.49657439
A17: Cashew | B17: 2458 | C17: 592 | D17: 43.9 | E17: 7.8 | F17: 29.4 | G17: 23.5 | H17: 5.9 | I17: 18.2 | J17: 0 | K17: 3 | L17: 5 | M17: 100 | O17: Cashew | P17: 1.159997363
A18: Cheese | B18: 1562 | C18: 377 | D18: 30.6 | E18: 20.3 | F18: 0 | G18: 0 | H18: 0 | I18: 25.3 | J18: 2.3 | K18: 0 | L18: 42.64516129 | M18: 100 | O18: Cheese | P18: 22.61240543
A19: Chickpeas | B19: 521 | C19: 124 | D19: 2.5 | E19: 0.3 | F19: 14.8 | G19: 14.4 | H19: 0.4 | I19: 7.5 | J19: 0.5 | K19: 6 | L19: 67 | M19: 100 | N19: Canned | O19: Chickpeas | P19: 0.6611742173
A20: Chocolate | B20: 2134 | C20: 511 | D20: 27.6 | E20: 16.4 | F20: 56.8 | G20: 1.2 | H20: 55.6 | I20: 6.2 | J20: 0 | K20: 5 | L20: 1 | M20: 100 | N20: Bar, milk chocolate | O20: Chocolate | P20: 7.904777247
A21: Cod | B21: 359 | C21: 85 | D21: 0.5 | E21: 0.1 | F21: 0 | G21: 0 | H21: 0 | I21: 20 | J21: 0.2 | K21: 0 | L21: 81 | M21: 45 | O21: Cod | P21: 15.74476615
A22: Coffee | B22: 3 | C22: 1 | D22: 0 | E22: 0 | F22: 0 | G22: 0 | H22: 0 | I22: 0.1 | J22: 0 | K22: 0 | L22: 99 | M22: 100 | O22: Coffee | P22: 7.318795769
A23: Eggs | B23: 620 | C23: 149 | D23: 10.7 | E23: 3 | F23: 0.3 | G23: 0 | H23: 0.3 | I23: 13 | J23: 0.4 | K23: 0 | L23: 76 | M23: 88 | O23: Eggs | P23: 15.39677549
A24: Lentils | B24: 387 | C24: 92 | D24: 0.6 | E24: 0.1 | F24: 13.1 | G24: 12.9 | H24: 0.2 | I24: 6.3 | J24: 0.8 | K24: 4 | L24: 74 | M24: 100 | N24: Canned | O24: Lentils | P24: 0.7360339966
A25: Milk | B25: 156 | C25: 37 | D25: 0.5 | E25: 0.3 | F25: 4.5 | G25: 0 | H25: 4.5 | I25: 3.6 | J25: 0.1 | K25: 0 | L25: 87 | M25: 100 | O25: Milk | P25: 81.48856905
A26: Mineral water | B26: 0 | C26: 0 | D26: 0 | E26: 0 | F26: 0 | G26: 0 | H26: 0 | I26: 0 | J26: 0.1 | K26: 0 | L26: 100 | M26: 100 | O26: Mineral water | P26: 158.7803761
A27: Olive oil | B27: 3656 | C27: 889 | D27: 98.8 | E27: 13.9 | F27: 0 | G27: 0 | H27: 0 | I27: 0 | J27: 0 | K27: 0 | L27: 0 | M27: 100 | O27: Olive oil | P27: 5.557898751
A28: Oranges | B28: 153 | C28: 36 | D28: 0.2 | E28: 0.1 | F28: 7.2 | G28: 0 | H28: 7.2 | I28: 0.8 | J28: 0 | K28: 1 | L28: 88 | M28: 78 | O28: Oranges | P28: 39.84464844
A29: Palm oil | B29: 3700 | C29: 900 | D29: 100 | E29: 47.8 | F29: 0 | G29: 0 | H29: 0 | I29: 0 | J29: 0 | K29: 0 | L29: 0 | M29: 100 | O29: Palm oil | P29: 3.598495366
A30: Pasta | B30: 1471 | C30: 347 | D30: 1.3 | E30: 0.1 | F30: 69.8 | G30: 69.3 | H30: 0.5 | I30: 11.9 | J30: 0 | K30: 4 | L30: 9 | M30: 100 | O30: Pasta | P30: 11.77204689
A31: Pork | B31: 1019 | C31: 245 | D31: 17.3 | E31: 7.4 | F31: 0 | G31: 0 | H31: 0 | I31: 22.4 | J31: 0.2 | K31: 0 | L31: 58.05128205 | M31: 89.56410256 | N31: Average of different parts of pork meat | O31: Pork | P31: 71.3103522
A32: Potatoes | B32: 306 | C32: 72 | D32: 0.1 | E32: 0 | F32: 15.3 | G32: 12.4 | H32: 2.9 | I32: 1.7 | J32: 0 | K32: 2 | L32: 76 | M32: 82 | N32: Raw (storage potatoes) | O32: Potatoes | P32: 119.4892895
A33: Poultry | B33: 452 | C33: 107 | D33: 3 | E33: 1 | F33: 0 | G33: 0 | H33: 0 | I33: 20 | J33: 0.2 | K33: 0 | L33: 63.15789474 | M33: 89.12765957 | N33: Average of different parts of poultry meat | O33: Poultry | P33: 36.74259465
A34: Pre-prepeared meals | B34: =B107 -> 311.82 | C34: =C107 -> 74.59 | D34: 3.014 | E34: 0.471 | F34: 4.979 | G34: 2.62 | H34: 2.359 | I34: 5.871 | J34: 0.074 | K34: 2.24 | L34: 80.5804 | M34: 94.58645532 | O34: Pre-prepeared meals
A35: Quinoa | B35: 1463 | C35: 348 | D35: 6.7 | E35: 0.5 | F35: 52.2 | G35: 49.1 | H35: 3.1 | I35: 13.9 | J35: 0 | K35: 12 | L35: 65 | M35: 100 | N35: Cooked | O35: Quinoa | P35: 0.04564778866
A36: Rapeseed oil | B36: 3666 | C36: 892 | D36: 99 | E36: 7.3 | F36: 0 | G36: 0 | H36: 0 | I36: 0.2 | J36: 0 | K36: 0 | L36: 0 | M36: 100 | O36: Rapeseed oil | P36: 1.918658164
A37: Rice | B37: 1505 | C37: 354 | D37: 1.1 | E37: 0.2 | F37: 76.8 | G37: 76.6 | H37: 0.2 | I37: 9.2 | J37: 0 | K37: 0 | L37: 69 | M37: 100 | N37: Cooked | O37: Rice | P37: 13.74048638
A38: Salmon | B38: 927 | C38: 223 | D38: 15.9 | E38: 2.3 | F38: 0 | G38: 0 | H38: 0 | I38: 19.9 | J38: 0.1 | K38: 0 | L38: 66 | M38: 65 | O38: Salmon | P38: 5.248255385
A39: Shrimp | B39: 306 | C39: 72 | D39: 0.3 | E39: 0.1 | F39: 1.2 | G39: 1.2 | H39: 0 | I39: 16.3 | J39: 2.5 | K39: 0 | L39: 82 | M39: 100 | O39: Shrimp | P39: 4.229456081
A40: Soybean oil | B40: 3700 | C40: 900 | D40: 100 | E40: 14 | F40: 0 | G40: 0 | H40: 0 | I40: 0 | J40: 0 | K40: 0 | L40: 0 | M40: 100 | O40: Soybean oil | P40: 1.68053777
A41: Soymilk | B41: 119 | C41: 28 | D41: 0.9 | E41: 0.3 | F41: 1.5 | G41: 0 | H41: 1.5 | I41: 3.5 | J41: 0.1 | K41: 0 | L41: 90 | M41: 100 | O41: Soymilk | P41: 0.4553353782
A42: Strawberries | B42: 144 | C42: 34 | D42: 0.2 | E42: 0 | F42: 6.6 | G42: 0 | H42: 6.6 | I42: 0.5 | J42: 0 | K42: 2 | L42: 88 | M42: 98 | O42: Strawberries | P42: 4.59568152
A43: Sugar | B43: 1598 | C43: 376 | D43: 0 | E43: 0 | F43: 94 | G43: 0 | H43: 94 | I43: 0 | J43: 0.1 | K43: 0 | L43: 0 | M43: 100 | O43: Sugar | P43: 32.43130629
A44: Sunflower oil | B44: 3629 | C44: 883 | D44: 98 | E44: 10 | F44: 0 | G44: 0 | H44: 0 | I44: 0.2 | J44: 0 | K44: 0 | L44: 0 | M44: 100 | O44: Sunflower oil | P44: 10.33798998
A45: Tea | B45: 2 | C45: 0 | D45: 0 | E45: 0 | F45: 0 | G45: 0 | H45: 0 | I45: 0.1 | J45: 0 | K45: 0 | L45: 99 | M45: 100 | O45: Tea | P45: 0.6682405261
A46: Tofu | B46: 281 | C46: 67 | D46: 4.2 | E46: 0.7 | F46: 0.6 | G46: 0.3 | H46: 0.3 | I46: 6.6 | J46: 0.1 | K46: 0 | L46: 85 | M46: 100 | O46: Tofu | P46: 0.06930926413
A47: Tomatoes | B47: 74 | C47: 18 | D47: 0.2 | E47: 0.1 | F47: 2.5 | G47: 0 | H47: 2.5 | I47: 0.7 | J47: 0 | K47: 2 | L47: 94 | M47: 100 | O47: Tomatoes | P47: 104.1158845
A48: Wine | B48: 289 | C48: 70 | D48: 0 | E48: 0 | F48: 0.5 | G48: 0 | H48: 0.5 | I48: 0.1 | J48: 0 | K48: 0 | L48: 88 | M48: 100 | O48: Wine | P48: 32.77387935
A49: Peas | B49: 521 | C49: 124 | D49: 2.5 | E49: 0.3 | F49: 14.8 | G49: 14.4 | H49: 0.4 | I49: 7.5 | J49: 0.5 | K49: 6 | L49: 78 | M49: 100 | O49: Peas | P49: =IFERROR(VLOOKUP(TRIM(CONCATENATE(O49," ",Calculations!$B$5)),bop_weights,4,FALSE),"") -> 
A50: Onions | B50: 135 | C50: 32 | D50: 0.1 | E50: 0 | F50: 5.7 | G50: 0 | H50: 5.7 | I50: 1.1 | J50: 0 | K50: 2 | L50: 88 | M50: 93 | O50: Onions | P50: =IFERROR(VLOOKUP(TRIM(CONCATENATE(O50," ",Calculations!$B$5)),bop_weights,4,FALSE),"") -> 
A51: Sunflower seeds | B51: 2565 | C51: 621 | D51: 54.4 | E51: 5.4 | F51: 3.6 | G51: 0.2 | H51: 3.4 | I51: 24.2 | J51: 0 | K51: 10 | L51: 5 | M51: 100 | O51: Sunflower seeds | P51: =IFERROR(VLOOKUP(TRIM(CONCATENATE(O51," ",Calculations!$B$5)),bop_weights,4,FALSE),"") -> 
A52: =dropdown!O3 -> GENERIC | B52: =SUMPRODUCT($P$4:$P$51,B4:B51)/SUM($P$4:$P$51) -> 498.0345251 | C52: 118.997766 | D52: 5.143014741 | E52: 1.75753837 | F52: 11.44607506 | G52: 5.792685939 | H52: 5.657953839 | I52: 5.25266473 | J52: 0.1431055624 | K52: 1.116374403 | L52: 74.806107 | M52: 93.17876876
A53: =TRANSPOSE(C110:O122) -> CEREAL PRODUCTS | B53: 1180.677033 | C53: 278.7571213 | D53: 1.265621951 | E53: 0.2533578687 | F53: 54.73105486 | G53: 53.73794656 | H53: 1.061192724 | I53: 9.869954627 | J53: 0.2042532661 | K53: 3.993283232 | L53: 39.33579281 | M53: 100
A54: FRUIT | B54: 219.9584205 | C54: 51.99780442 | D54: 0.2193471414 | E54: 0.04837556518 | F54: 11.10276348 | G54: 0.9028986585 | H54: 10.19986483 | I54: 0.6192663917 | J54: 0 | K54: 1.516244348 | L54: 84.64585433 | M54: 81.8732752
A55: VEGETABLES | B55: 197.9752849 | C55: 46.85631632 | D55: 0.1465623772 | E55: 0.04656237718 | F55: 9.34001572 | G55: 6.626265229 | H55: 2.713750491 | I55: 1.234376228 | J55: 0 | K55: 2 | L55: 84.38122789 | M55: 90.38122789
A56: DAIRY | B56: 565.6674765 | C56: 136.2665644 | D56: 10.04700421 | E56: 6.545073479 | F56: 3.401210091 | G56: 0 | H56: 3.401210091 | I56: 8.020037661 | J56: 0.598832297 | K56: 0 | L56: 74.90234418 | M56: 100
A57: MEAT | B57: 784.0722357 | C57: 187.8813129 | D57: 11.26159085 | E57: 4.76423163 | F57: 0 | G57: 0 | H57: 0 | I57: 21.64713032 | J57: 0.1848036481 | K57: 0 | L57: 60.14730811 | M57: 89.6728155
A58: FISH AND SEAFOOD | B58: 468.3012323 | C58: 111.5349156 | D58: 3.670871748 | E58: 0.5577727066 | F58: 0.2012231857 | G58: 0.2012231857 | H58: 0 | I58: 19.35875399 | J58: 0.5648699222 | K58: 0 | L58: 78.04650844 | M58: 58.3842994
A59: TUBERS | B59: 306 | C59: 72 | D59: 0.1 | E59: 0 | F59: 15.3 | G59: 12.4 | H59: 2.9 | I59: 1.7 | J59: 0 | K59: 2 | L59: 76 | M59: 82
A60: NUTS and SEEDS | B60: 2479.295943 | C60: 599.0986477 | D60: 50.36765679 | E60: 4.881667059 | F60: 11.41675917 | G60: 4.96464213 | H60: 6.452117043 | I60: 20.5662159 | J60: 0 | K60: 9.309909062 | L60: 5 | M60: 100
A61: OILS | B61: 3654.802191 | C61: 889.0778311 | D61: 98.73280294 | E61: 16.89545336 | F61: 0 | G61: 0 | H61: 0 | I61: 0.1061476664 | J61: 0 | K61: 0 | L61: 0 | M61: 100
A62: CONFECTIONERY PRODUCTS | B62: 2012.656608 | C62: 480.0693314 | D62: 20.55732469 | E62: 11.02282223 | F62: 65.31783028 | G62: 26.65831955 | H62: 38.65951073 | I62: 6.390342576 | J62: 0.5234420841 | K62: 4.04828712 | L62: 1.95171288 | M62: 100
A63: BEVERAGES | B63: 84.37793822 | C63: 20.38642879 | D63: 0 | E63: 0 | F63: 0.9879908427 | G63: 0.811327788 | H63: 0.1766630547 | I63: 0.1280557867 | J63: 0.05887219058 | K63: 0 | L63: 96.04260261 | M63: 100
A64: LEGUMES | B64: 500.3199761 | C64: 118.8211591 | D64: 0.9422822307 | E64: 0.1360297085 | F64: 16.25506036 | G64: 14.96621036 | H64: 1.226919391 | I64: 8.188304591 | J64: 0.2505105958 | K64: 6.21821524 | L64: 66.54589969 | M64: 100
A65: LEGUME PRODUCTS | B65: 3526.676203 | C65: 857.8777518 | D65: 95.18231106 | E65: 11.01181097 | F65: 0.04412698476 | G65: 0.001266266982 | H65: 0.04286071778 | I65: 0.2508269902 | J65: 0.003195052381 | K65: 0 | L65: 2.854442693 | M65: 100
A71: Calculations for foods mixing frozen and fresh:
A73: Fresh (=raw):
B74: Kilojoules | C74: Kilocalories | D74: Fat | E74: Saturated fat | F74: Carbohydrates | G74: Starch | H74: Sugar | I74: Proteins | J74: Salt | K74: Dietary fibre | L74: Water | M74: Edible part
A75: Broccoli | B75: 122 | C75: 29 | D75: 0.3 | E75: 0.1 | F75: 2 | G75: 0 | H75: 0 | I75: 3.2 | J75: 0 | K75: 2.8 | L75: 90 | M75: 86
A76: Carrots | B76: 151 | C76: 36 | D76: 0.1 | E76: 0 | F76: 6.7 | G76: 0.2 | H76: 0 | I76: 0.7 | J76: 0.1 | K76: 2.7 | L76: 89 | M76: 89
A77: Potato | B77: 339 | C77: 80 | D77: 0.1 | E77: 0 | F77: 17.1 | G77: 15.4 | H77: 0 | I77: 1.9 | J77: 0 | K77: 1.6 | L77: 76 | M77: 82
A79: Frozen:
B80: Kilojoules | C80: Kilocalories | D80: Fat | E80: Saturated fat | F80: Carbohydrates | G80: Starch | H80: Sugar | I80: Proteins | J80: Salt | K80: Dietary fibre | L80: Water | M80: Edible part
A81: Broccoli | B81: 113 | C81: 27 | D81: 0.3 | E81: 0 | F81: 1.9 | G81: 0 | H81: 0 | I81: 2.8 | J81: 0 | K81: 2.7 | L81: 91 | M81: 100
A82: Carrots | B82: 107 | C82: 26 | D82: 0.2 | E82: 0 | F82: 4 | G82: 0.4 | H82: 0 | I82: 0.8 | J82: 0.1 | K82: 2.3 | L82: 91 | M82: 100
A83: Potato
A85: Percentages in BoP recipe
B86: Fresh | C86: Frozen
A87: Broccoli | B87: 0.17 | C87: 0.83
A88: Carrots | B88: 0.17 | C88: 0.83
A89: Potato | B89: 0.28 | C89: 0.72
A91: Actual nutritional value of the mix: | B91: 2 | C91: 3 | D91: 4 | E91: 5 | F91: 6 | G91: 7 | H91: 8 | I91: 9 | J91: 10 | K91: 11 | L91: 12 | M91: 13
B92: Kilojoules | C92: Kilocalories | D92: Fat | E92: Saturated fat | F92: Carbohydrates | G92: Starch | H92: Sugar | I92: Proteins | J92: Salt | K92: Dietary fibre | L92: Water | M92: Edible part
A93: Broccoli | B93: =VLOOKUP($A93,$A$85:$C$89,2,FALSE)*VLOOKUP($A93,$A$79:$M$83,B$91,FALSE)+VLOOKUP($A93,$A$85:$C$89,3,FALSE)*VLOOKUP($A93,$A$73:$M$77,B$91,FALSE) -> 120.47 | C93: =VLOOKUP($A93,$A$85:$C$89,2,FALSE)*VLOOKUP($A93,$A$79:$M$83,C$91,FALSE)+VLOOKUP($A93,$A$85:$C$89,3,FALSE)*VLOOKUP($A93,$A$73:$M$77,C$91,FALSE) -> 28.66 | D93: 0.3 | E93: 0.083 | F93: 1.983 | G93: 0 | H93: 0 | I93: 3.132 | J93: 0 | K93: 2.783 | L93: 90.17 | M93: 88.38
A94: Carrots | B94: =VLOOKUP($A94,$A$85:$C$89,2,FALSE)*VLOOKUP($A94,$A$79:$M$83,B$91,FALSE)+VLOOKUP($A94,$A$85:$C$89,3,FALSE)*VLOOKUP($A94,$A$73:$M$77,B$91,FALSE) -> 143.52 | C94: 34.3 | D94: 0.117 | E94: 0 | F94: 6.241 | G94: 0.234 | H94: 0 | I94: 0.717 | J94: 0.1 | K94: 2.632 | L94: 89.34 | M94: 90.87
A95: Potato | B95: 244.08 | C95: 57.6 | D95: 0.072 | E95: 0 | F95: 12.312 | G95: 11.088 | H95: 0 | I95: 1.368 | J95: 0 | K95: 1.152 | L95: 54.72 | M95: 59.04
A97: Pre-prepeared meal calulations:
B98: 2 | C98: 3 | D98: 4 | E98: 5 | F98: 6 | G98: 7 | H98: 8 | I98: 9 | J98: 10 | K98: 11 | L98: 12 | M98: 13
B99: Kilojoules | C99: Kilocalories | D99: Fat | E99: Saturated fat | F99: Carbohydrates | G99: Starch | H99: Sugar | I99: Proteins | J99: Salt | K99: Dietary fibre | L99: Water | M99: Edible part | N99: Recipe in BoP
A100: Potatoes | B100: =VLOOKUP($A100,nutritional_data,B$98,FALSE)*$N100 -> 42.84 | C100: 10.08 | D100: 0.014 | E100: 0 | F100: 2.142 | G100: 1.736 | H100: 0.406 | I100: 0.238 | J100: 0 | K100: 0.28 | L100: 10.64 | M100: 11.48 | N100: 0.14
A101: Carrots | B101: 9.06 | C101: 2.16 | D101: 0.006 | E101: 0 | F101: 0.402 | G101: 0.012 | H101: 0.39 | I101: 0.042 | J101: 0.006 | K101: 0.18 | L101: 5.3604 | M101: 5.4522 | N101: 0.06
A102: Peas | B102: 31.26 | C102: 7.44 | D102: 0.15 | E102: 0.018 | F102: 0.888 | G102: 0.864 | H102: 0.024 | I102: 0.45 | J102: 0.03 | K102: 0.36 | L102: 4.68 | M102: 6 | N102: 0.06
A103: Tomatoes | B103: 34.78 | C103: 8.46 | D103: 0.094 | E103: 0.047 | F103: 1.175 | G103: 0 | H103: 1.175 | I103: 0.329 | J103: 0 | K103: 0.94 | L103: 44.18 | M103: 47 | N103: 0.47
A104: Onions | B104: 5.4 | C104: 1.28 | D104: 0.004 | E104: 0 | F104: 0.228 | G104: 0 | H104: 0.228 | I104: 0.044 | J104: 0 | K104: 0.08 | L104: 3.52 | M104: 3.72 | N104: 0.04
A105: Sunflower seeds | B105: 102.6 | C105: 24.84 | D105: 2.176 | E105: 0.216 | F105: 0.144 | G105: 0.008 | H105: 0.136 | I105: 0.968 | J105: 0 | K105: 0.4 | L105: 0.2 | M105: 4 | N105: 0.04
A106: Poultry | B106: 85.88 | C106: 20.33 | D106: 0.57 | E106: 0.19 | F106: 0 | G106: 0 | H106: 0 | I106: 3.8 | J106: 0.038 | K106: 0 | L106: 12 | M106: 16.93425532 | N106: 0.19
A107: Pre-prepeared meals | B107: =SUM(B100:B106) -> 311.82 | C107: =SUM(C100:C106) -> 74.59 | D107: 3.014 | E107: 0.471 | F107: 4.979 | G107: 2.62 | H107: 2.359 | I107: 5.871 | J107: 0.074 | K107: 2.24 | L107: 80.5804 | M107: 94.58645532
A109: Calculations for cereal products, fruit, vegetables, diry ,meat, fish and seafood:
B110: UNKNOWN/OTHER | C110: CEREAL PRODUCTS | D110: FRUIT | E110: VEGETABLES | F110: DAIRY | G110: MEAT | H110: FISH AND SEAFOOD | I110: TUBERS | J110: NUTS and SEEDS | K110: OILS | L110: CONFECTIONERY PRODUCTS | M110: BEVERAGES | N110: LEGUMES | O110: LEGUME PRODUCTS
A111: Kilojoules | B111: =TRANSPOSE(B52:M52) -> 498.0345251 | C111: =SUMPRODUCT($B$131:$D$131,B133:D133)/SUM($B$131:$D$131) -> 1180.677033 | D111: =SUMPRODUCT($K$131:$M$131,K133:M133)/SUM($K$131:$M$131) -> 219.9584205 | E111: =SUMPRODUCT($Q$131:$R$131,Q133:R133)/SUM($Q$131:$R$131) -> 197.9752849 | F111: =SUMPRODUCT($E$131:$G$131,E133:G133)/SUM($E$131:$G$131) -> 565.6674765 | G111: =SUMPRODUCT($N$131:$P$131,N133:P133)/SUM($N$131:$P$131) -> 784.0722357 | H111: =SUMPRODUCT($H$131:$J$131,H133:J133)/SUM($H$131:$J$131) -> 468.3012323 | I111: =R133 -> 306 | J111: =SUMPRODUCT($Z$131:$AA$131,Z133:AA133)/SUM($Z$131:$AA$131) -> 2479.295943 | K111: =SUMPRODUCT($AB$131:$AF$131,AB133:AF133)/SUM($AB$131:$AF$131) -> 3654.802191 | L111: =SUMPRODUCT($AG$131:$AH$131,AG133:AH133)/SUM($AG$131:$AH$131) -> 2012.656608 | M111: =SUMPRODUCT($AI$131:$AK$131,AI133:AK133)/SUM($AI$131:$AK$131) -> 84.37793822 | N111: =SUMPRODUCT($AL$131:$AN$131,AL133:AN133)/SUM($AL$131:$AN$131) -> 500.3199761 | O111: =SUMPRODUCT($AO$131:$AR$131,AO133:AR133)/SUM($AO$131:$AR$131) -> 3526.676203
A112: Kilocalories | B112: 118.997766 | C112: 278.7571213 | D112: 51.99780442 | E112: 46.85631632 | F112: =SUMPRODUCT($E$131:$G$131,E134:G134)/SUM($E$131:$G$131) -> 136.2665644 | G112: =SUMPRODUCT($N$131:$P$131,N134:P134)/SUM($N$131:$P$131) -> 187.8813129 | H112: =SUMPRODUCT($H$131:$J$131,H134:J134)/SUM($H$131:$J$131) -> 111.5349156 | I112: 72 | J112: =SUMPRODUCT($Z$131:$AA$131,Z134:AA134)/SUM($Z$131:$AA$131) -> 599.0986477 | K112: =SUMPRODUCT($AB$131:$AF$131,AB134:AF134)/SUM($AB$131:$AF$131) -> 889.0778311 | L112: =SUMPRODUCT($AG$131:$AH$131,AG134:AH134)/SUM($AG$131:$AH$131) -> 480.0693314 | M112: =SUMPRODUCT($AI$131:$AK$131,AI134:AK134)/SUM($AI$131:$AK$131) -> 20.38642879 | N112: =SUMPRODUCT($AL$131:$AN$131,AL134:AN134)/SUM($AL$131:$AN$131) -> 118.8211591 | O112: =SUMPRODUCT($AO$131:$AR$131,AO134:AR134)/SUM($AO$131:$AR$131) -> 857.8777518
A113: Fat | B113: 5.143014741 | C113: 1.265621951 | D113: 0.2193471414 | E113: 0.1465623772 | F113: 10.04700421 | G113: 11.26159085 | H113: 3.670871748 | I113: 0.1 | J113: 50.36765679 | K113: 98.73280294 | L113: 20.55732469 | M113: 0 | N113: 0.9422822307 | O113: 95.18231106
A114: Saturated fat | B114: 1.75753837 | C114: 0.2533578687 | D114: 0.04837556518 | E114: 0.04656237718 | F114: 6.545073479 | G114: 4.76423163 | H114: 0.5577727066 | I114: 0 | J114: 4.881667059 | K114: 16.89545336 | L114: 11.02282223 | M114: 0 | N114: 0.1360297085 | O114: 11.01181097
A115: Carbohydrates | B115: 11.44607506 | C115: 54.73105486 | D115: 11.10276348 | E115: 9.34001572 | F115: 3.401210091 | G115: 0 | H115: 0.2012231857 | I115: 15.3 | J115: 11.41675917 | K115: 0 | L115: 65.31783028 | M115: 0.9879908427 | N115: 16.25506036 | O115: 0.04412698476
A116: Starch | B116: 5.792685939 | C116: 53.73794656 | D116: 0.9028986585 | E116: 6.626265229 | F116: 0 | G116: 0 | H116: 0.2012231857 | I116: 12.4 | J116: 4.96464213 | K116: 0 | L116: 26.65831955 | M116: 0.811327788 | N116: 14.96621036 | O116: 0.001266266982
A117: Sugar | B117: 5.657953839 | C117: 1.061192724 | D117: 10.19986483 | E117: 2.713750491 | F117: 3.401210091 | G117: 0 | H117: 0 | I117: 2.9 | J117: 6.452117043 | K117: 0 | L117: 38.65951073 | M117: 0.1766630547 | N117: 1.226919391 | O117: 0.04286071778
A118: Proteins | B118: 5.25266473 | C118: 9.869954627 | D118: 0.6192663917 | E118: 1.234376228 | F118: 8.020037661 | G118: 21.64713032 | H118: 19.35875399 | I118: 1.7 | J118: 20.5662159 | K118: 0.1061476664 | L118: 6.390342576 | M118: 0.1280557867 | N118: 8.188304591 | O118: 0.2508269902
A119: Salt | B119: 0.1431055624 | C119: 0.2042532661 | D119: 0 | E119: 0 | F119: 0.598832297 | G119: 0.1848036481 | H119: 0.5648699222 | I119: 0 | J119: 0 | K119: 0 | L119: 0.5234420841 | M119: 0.05887219058 | N119: 0.2505105958 | O119: 0.003195052381
A120: Dietary fibre | B120: 1.116374403 | C120: 3.993283232 | D120: 1.516244348 | E120: 2 | F120: 0 | G120: 0 | H120: 0 | I120: 2 | J120: 9.309909062 | K120: 0 | L120: 4.04828712 | M120: 0 | N120: 6.21821524 | O120: 0
A121: Water | B121: 74.806107 | C121: 39.33579281 | D121: 84.64585433 | E121: 84.38122789 | F121: 74.90234418 | G121: 60.14730811 | H121: 78.04650844 | I121: 76 | J121: 5 | K121: 0 | L121: 1.95171288 | M121: 96.04260261 | N121: 66.54589969 | O121: 2.854442693
A122: Edible part | B122: 93.17876876 | C122: 100 | D122: 81.8732752 | E122: 90.38122789 | F122: 100 | G122: 89.6728155 | H122: 58.3842994 | I122: 82 | J122: 100 | K122: 100 | L122: 100 | M122: 100 | N122: 100 | O122: 100
A123: 1 | B123: 2 | C123: 3 | D123: 4 | E123: 5 | F123: 6 | G123: 7 | H123: 8 | I123: 9 | J123: 10 | K123: 11 | L123: 12 | M123: 13 | N123: 14 | O123: 15 | P123: 16 | Q123: 17 | R123: 18 | S123: 19 | T123: 20 | U123: 21 | V123: 22 | W123: 23 | X123: 24 | Y123: 25 | Z123: 26 | AA123: 27 | AB123: 28 | AC123: 29 | AD123: 30 | AE123: 31 | AF123: 32 | AG123: 33 | AH123: 34 | AI123: 35 | AJ123: 36 | AK123: 37 | AL123: 38 | AM123: 39 | AN123: 40 | AO123: 41 | AP123: 42 | AQ123: 43 | AR123: 44
B124: ='Impacts per FSC stage'!C421 -> Cereal products | E124: ='Impacts per FSC stage'!G421 -> Dairy | H124: ='Impacts per FSC stage'!J421 -> Fish and seafood | K124: ='Impacts per FSC stage'!C428 -> Fruit | N124: ='Impacts per FSC stage'!H428 -> Meat | Q124: ='Impacts per FSC stage'!K428 -> Vegetables | S124: Vegetables and pulses | Z124: NUTS and SEEDS | AB124: OILS | AG124: CONFECTIONERY PRODUCTS | AI124: BEVERAGES | AL124: LEGUMES | AO124: LEGUME PRODUCTS
B125: ='Impacts per FSC stage'!C422 -> BREAD | C125: ='Impacts per FSC stage'!D422 -> PASTA | D125: ='Impacts per FSC stage'!E422 -> RICE | E125: ='Impacts per FSC stage'!G422 -> MILK | F125: ='Impacts per FSC stage'!H422 -> CHEESE | G125: ='Impacts per FSC stage'!I422 -> BUTTER | H125: ='Impacts per FSC stage'!J422 -> COD | I125: ='Impacts per FSC stage'!K422 -> SALMON | J125: ='Impacts per FSC stage'!L422 -> SHRIMP | K125: ='Impacts per FSC stage'!C429 -> APPLES | L125: ='Impacts per FSC stage'!D429 -> ORANGES | M125: ='Impacts per FSC stage'!E429 -> BANANAS | N125: ='Impacts per FSC stage'!H429 -> PORK | O125: ='Impacts per FSC stage'!I429 -> BEEF | P125: ='Impacts per FSC stage'!J429 -> POULTRY | Q125: ='Impacts per FSC stage'!K429 -> TOMATOES | R125: ='Impacts per FSC stage'!L429 -> POTATOES | S125: ='Impacts per FSC stage'!E464 -> BEANS | T125: ='Impacts per FSC stage'!F464 -> CHICKPEAS | U125: ='Impacts per FSC stage'!G464 -> LENTILS | V125: ='Impacts per FSC stage'!H464 -> TOMATOES | W125: ='Impacts per FSC stage'!I464 -> POTATOES | X125: ='Impacts per FSC stage'!J464 -> BROCCOLI | Y125: ='Impacts per FSC stage'!K464 -> CARROTS | Z125: ='Impacts per FSC stage'!M436 -> ALMONDS | AA125: ='Impacts per FSC stage'!N436 -> CASHEW | AB125: ='Impacts per FSC stage'!H436 -> SUNFLOWER OIL | AC125: ='Impacts per FSC stage'!I436 -> OLIVE OIL | AD125: ='Impacts per FSC stage'!J436 -> PALM OIL | AE125: ='Impacts per FSC stage'!K436 -> RAPESEED OIL | AF125: ='Impacts per FSC stage'!L436 -> SOYBEAN OIL | AG125: ='Impacts per FSC stage'!D443 -> BISCUITS | AH125: ='Impacts per FSC stage'!E443 -> CHOCOLATE | AI125: ='Impacts per FSC stage'!F443 -> BEER | AJ125: ='Impacts per FSC stage'!G443 -> WINE | AK125: ='Impacts per FSC stage'!H443 -> MINERAL WATER | AL125: ='Impacts per FSC stage'!C436 -> BEANS | AM125: ='Impacts per FSC stage'!D436 -> CHICKPEAS | AN125: ='Impacts per FSC stage'!E436 -> LENTILS | AO125: ='Impacts per FSC stage'!F436 -> SOYMILK | AP125: ='Impacts per FSC stage'!G436 -> TOFU | AQ125: ='Impacts per FSC stage'!H436 -> SUNFLOWER OIL | AR125: ='Impacts per FSC stage'!I436 -> OLIVE OIL
A126: ='Impacts per FSC stage'!B423 -> agriculture | B126: ='Impacts per FSC stage'!C423 -> 54.42502353 | C126: ='Impacts per FSC stage'!D423 -> 11.77204689 | D126: ='Impacts per FSC stage'!E423 -> 13.74048638 | E126: ='Impacts per FSC stage'!G423 -> 81.48856905 | F126: ='Impacts per FSC stage'!H423 -> 22.61240543 | G126: ='Impacts per FSC stage'!I423 -> 4.353106285 | H126: ='Impacts per FSC stage'!J423 -> 15.74476615 | I126: ='Impacts per FSC stage'!K423 -> 5.248255385 | J126: ='Impacts per FSC stage'!L423 -> 4.229456081 | K126: ='Impacts per FSC stage'!C430 -> 70.86011542 | L126: ='Impacts per FSC stage'!D430 -> 39.84464844 | M126: ='Impacts per FSC stage'!E430 -> 26.55604233 | N126: ='Impacts per FSC stage'!H430 -> 71.3103522 | O126: ='Impacts per FSC stage'!I430 -> 19.36249956 | P126: ='Impacts per FSC stage'!J430 -> 36.74259465 | Q126: ='Impacts per FSC stage'!K430 -> 104.1158845 | R126: ='Impacts per FSC stage'!L430 -> 119.4892895 | S126: ='Impacts per FSC stage'!E465 -> 2.272953133 | T126: ='Impacts per FSC stage'!F465 -> 0.6611742173 | U126: ='Impacts per FSC stage'!G465 -> 0.7360339966 | V126: ='Impacts per FSC stage'!H465 -> 104.1158845 | W126: ='Impacts per FSC stage'!I465 -> 119.4892895 | X126: ='Impacts per FSC stage'!J465 -> 20.94592609 | Y126: ='Impacts per FSC stage'!K465 -> 32.49657439 | Z126: ='Impacts per FSC stage'!M437 -> 4.330818955 | AA126: ='Impacts per FSC stage'!N437 -> 1.159997363 | AB126: ='Impacts per FSC stage'!H437 -> 10.33798998 | AC126: ='Impacts per FSC stage'!I437 -> 5.557898751 | AD126: ='Impacts per FSC stage'!J437 -> 3.598495366 | AE126: ='Impacts per FSC stage'!K437 -> 1.918658164 | AF126: ='Impacts per FSC stage'!L437 -> 1.68053777 | AG126: ='Impacts per FSC stage'!D444 -> 7.176543696 | AH126: ='Impacts per FSC stage'!E444 -> 7.904777247 | AI126: ='Impacts per FSC stage'!F444 -> 78.14927438 | AJ126: ='Impacts per FSC stage'!G444 -> 32.77387935 | AK126: ='Impacts per FSC stage'!H444 -> 158.7803761 | AL126: ='Impacts per FSC stage'!C437 -> 2.272953133 | AM126: ='Impacts per FSC stage'!D437 -> 0.6611742173 | AN126: ='Impacts per FSC stage'!E437 -> 0.7360339966 | AO126: ='Impacts per FSC stage'!F437 -> 0.4553353782 | AP126: ='Impacts per FSC stage'!G437 -> 0.06930926413 | AQ126: ='Impacts per FSC stage'!H437 -> 10.33798998 | AR126: ='Impacts per FSC stage'!I437 -> 5.557898751
A127: manufacturing | B127: ='Impacts per FSC stage'!C424 -> 54.42502353 | C127: ='Impacts per FSC stage'!D424 -> 11.77204689 | D127: ='Impacts per FSC stage'!E424 -> 13.74048638 | E127: ='Impacts per FSC stage'!G424 -> 78.63646913 | F127: ='Impacts per FSC stage'!H424 -> 21.82097124 | G127: ='Impacts per FSC stage'!I424 -> 4.200747565 | H127: ='Impacts per FSC stage'!J424 -> 15.74476615 | I127: ='Impacts per FSC stage'!K424 -> 5.248255385 | J127: ='Impacts per FSC stage'!L424 -> 4.229456081 | K127: ='Impacts per FSC stage'!C431 -> 70.86011542 | L127: ='Impacts per FSC stage'!D431 -> 39.84464844 | M127: ='Impacts per FSC stage'!E431 -> 26.55604233 | N127: ='Impacts per FSC stage'!H431 -> 71.3103522 | O127: ='Impacts per FSC stage'!I431 -> 19.36249956 | P127: ='Impacts per FSC stage'!J431 -> 36.74259465 | Q127: ='Impacts per FSC stage'!K431 -> 104.1158845 | R127: ='Impacts per FSC stage'!L431 -> 119.4892895 | S127: ='Impacts per FSC stage'!E466 -> 2.272953133 | T127: ='Impacts per FSC stage'!F466 -> 0.6611742173 | U127: ='Impacts per FSC stage'!G466 -> 0.7360339966 | V127: ='Impacts per FSC stage'!H466 -> 104.1158845 | W127: ='Impacts per FSC stage'!I466 -> 119.4892895 | X127: ='Impacts per FSC stage'!J466 -> 20.94592609 | Y127: ='Impacts per FSC stage'!K466 -> 32.49657439 | Z127: ='Impacts per FSC stage'!M438 -> 4.330818955 | AA127: ='Impacts per FSC stage'!N438 -> 1.159997363 | AB127: ='Impacts per FSC stage'!H438 -> 9.30419098 | AC127: ='Impacts per FSC stage'!I438 -> 5.557898751 | AD127: ='Impacts per FSC stage'!J438 -> 3.598495366 | AE127: ='Impacts per FSC stage'!K438 -> 1.918658164 | AF127: ='Impacts per FSC stage'!L438 -> 1.68053777 | AG127: ='Impacts per FSC stage'!D445 -> 7.176543696 | AH127: ='Impacts per FSC stage'!E445 -> 7.904777247 | AI127: ='Impacts per FSC stage'!F445 -> 78.14927438 | AJ127: ='Impacts per FSC stage'!G445 -> 32.77387935 | AK127: ='Impacts per FSC stage'!H445 -> 158.7803761 | AL127: ='Impacts per FSC stage'!C438 -> 2.272953133 | AM127: ='Impacts per FSC stage'!D438 -> 0.6611742173 | AN127: ='Impacts per FSC stage'!E438 -> 0.7360339966 | AO127: ='Impacts per FSC stage'!F438 -> 0.4553353782 | AP127: ='Impacts per FSC stage'!G438 -> 0.06930926413 | AQ127: ='Impacts per FSC stage'!H438 -> 9.30419098 | AR127: ='Impacts per FSC stage'!I438 -> 5.557898751
A128: ='Impacts per FSC stage'!B425 -> retail | B128: ='Impacts per FSC stage'!C425 -> 51.70377236 | C128: ='Impacts per FSC stage'!D425 -> 10.94800361 | D128: ='Impacts per FSC stage'!E425 -> 12.36643774 | E128: ='Impacts per FSC stage'!G425 -> 77.29964915 | F128: ='Impacts per FSC stage'!H425 -> 21.82097124 | G128: ='Impacts per FSC stage'!I425 -> 4.200747565 | H128: ='Impacts per FSC stage'!J425 -> 14.80008018 | I128: ='Impacts per FSC stage'!K425 -> 4.933360062 | J128: ='Impacts per FSC stage'!L425 -> 3.975688716 | K128: ='Impacts per FSC stage'!C432 -> 60.23109811 | L128: ='Impacts per FSC stage'!D432 -> 31.87571875 | M128: ='Impacts per FSC stage'!E432 -> 25.22824021 | N128: ='Impacts per FSC stage'!H432 -> 67.74483459 | O128: ='Impacts per FSC stage'!I432 -> 18.39437459 | P128: ='Impacts per FSC stage'!J432 -> 34.90546492 | Q128: ='Impacts per FSC stage'!K432 -> 98.9100903 | R128: ='Impacts per FSC stage'!L432 -> 119.4892895 | S128: ='Impacts per FSC stage'!E467 -> 2.159305477 | T128: ='Impacts per FSC stage'!F467 -> 0.6281155064 | U128: ='Impacts per FSC stage'!G467 -> 0.6992322968 | V128: ='Impacts per FSC stage'!H467 -> 98.9100903 | W128: ='Impacts per FSC stage'!I467 -> 119.4892895 | X128: ='Impacts per FSC stage'!J467 -> 20.71552091 | Y128: ='Impacts per FSC stage'!K467 -> 22.50387777 | Z128: ='Impacts per FSC stage'!M439 -> 4.006007534 | AA128: ='Impacts per FSC stage'!N439 -> 1.07299756 | AB128: ='Impacts per FSC stage'!H439 -> 8.745939521 | AC128: ='Impacts per FSC stage'!I439 -> 5.557898751 | AD128: ='Impacts per FSC stage'!J439 -> 3.515729973 | AE128: ='Impacts per FSC stage'!K439 -> 1.803538674 | AF128: ='Impacts per FSC stage'!L439 -> 1.579705504 | AG128: ='Impacts per FSC stage'!D446 -> 7.011483191 | AH128: ='Impacts per FSC stage'!E446 -> 7.509538385 | AI128: ='Impacts per FSC stage'!F446 -> 78.14927438 | AJ128: ='Impacts per FSC stage'!G446 -> 32.67555771 | AK128: ='Impacts per FSC stage'!H446 -> 158.7803761 | AL128: ='Impacts per FSC stage'!C439 -> 2.159305477 | AM128: ='Impacts per FSC stage'!D439 -> 0.6281155064 | AN128: ='Impacts per FSC stage'!E439 -> 0.6992322968 | AO128: ='Impacts per FSC stage'!F439 -> 0.4475946768 | AP128: ='Impacts per FSC stage'!G439 -> 0.06584380093 | AQ128: ='Impacts per FSC stage'!H439 -> 8.745939521 | AR128: ='Impacts per FSC stage'!I439 -> 5.557898751
A129: ='Impacts per FSC stage'!B426 -> use | B129: ='Impacts per FSC stage'!C426 -> 38.00227268 | C129: ='Impacts per FSC stage'!D426 -> 8.046782653 | D129: ='Impacts per FSC stage'!E426 -> 9.08933174 | E129: ='Impacts per FSC stage'!G426 -> 71.52923034 | F129: ='Impacts per FSC stage'!H426 -> 20.36237024 | G129: ='Impacts per FSC stage'!I426 -> 3.919952795 | H129: ='Impacts per FSC stage'!J426 -> 11.98658494 | I129: ='Impacts per FSC stage'!K426 -> 3.995528314 | J129: ='Impacts per FSC stage'!L426 -> 3.219910291 | K129: ='Impacts per FSC stage'!C433 -> 43.90847052 | L129: ='Impacts per FSC stage'!D433 -> 23.23739897 | M129: ='Impacts per FSC stage'!E433 -> 18.39138711 | N129: ='Impacts per FSC stage'!H433 -> 57.88118668 | O129: ='Impacts per FSC stage'!I433 -> 15.71615365 | P129: ='Impacts per FSC stage'!J433 -> 29.82322923 | Q129: ='Impacts per FSC stage'!K433 -> 72.10545583 | R129: ='Impacts per FSC stage'!L433 -> 92.23378255 | S129: ='Impacts per FSC stage'!E468 -> 2.052203925 | T129: ='Impacts per FSC stage'!F468 -> 0.5516361624 | U129: ='Impacts per FSC stage'!G468 -> 0.6140937723 | V129: ='Impacts per FSC stage'!H468 -> 72.10545583 | W129: ='Impacts per FSC stage'!I468 -> 92.23378255 | X129: ='Impacts per FSC stage'!J468 -> 17.93798386 | Y129: ='Impacts per FSC stage'!K468 -> 19.48655784 | Z129: ='Impacts per FSC stage'!M440 -> 3.768851888 | AA129: ='Impacts per FSC stage'!N440 -> 0.9511479575 | AB129: ='Impacts per FSC stage'!H440 -> 8.312140921 | AC129: ='Impacts per FSC stage'!I440 -> 4.802024521 | AD129: ='Impacts per FSC stage'!J440 -> 3.35822527 | AE129: ='Impacts per FSC stage'!K440 -> 1.735437054 | AF129: ='Impacts per FSC stage'!L440 -> 1.520055824 | AG129: ='Impacts per FSC stage'!D447 -> 6.575789626 | AH129: ='Impacts per FSC stage'!E447 -> 7.107327509 | AI129: ='Impacts per FSC stage'!F447 -> 70.33434694 | AJ129: ='Impacts per FSC stage'!G447 -> 29.11392192 | AK129: ='Impacts per FSC stage'!H447 -> 142.9023385 | AL129: ='Impacts per FSC stage'!C440 -> 2.052203925 | AM129: ='Impacts per FSC stage'!D440 -> 0.5516361624 | AN129: ='Impacts per FSC stage'!E440 -> 0.6140937723 | AO129: ='Impacts per FSC stage'!F440 -> 0.4162630494 | AP129: ='Impacts per FSC stage'!G440 -> 0.0625779484 | AQ129: ='Impacts per FSC stage'!H440 -> 8.312140921 | AR129: ='Impacts per FSC stage'!I440 -> 4.802024521
B130: 2 | C130: 3 | D130: 4 | E130: 5 | F130: 6 | G130: 7 | H130: 8 | I130: 9 | J130: 10 | K130: 11 | L130: 12 | M130: 13
A131: weight needed based on stage of SC | B131: =VLOOKUP(Calculations!$B$5,calculation_nutritional!$A$125:$AR$129,calculation_nutritional!B$123,FALSE) -> 54.42502353 | C131: =VLOOKUP(Calculations!$B$5,calculation_nutritional!$A$125:$AR$129,calculation_nutritional!C$123,FALSE) -> 11.77204689 | D131: =VLOOKUP(Calculations!$B$5,calculation_nutritional!$A$125:$AR$129,calculation_nutritional!D$123,FALSE) -> 13.74048638 | E131: =VLOOKUP(Calculations!$B$5,calculation_nutritional!$A$125:$AR$129,calculation_nutritional!E$123,FALSE) -> 81.48856905 | F131: =VLOOKUP(Calculations!$B$5,calculation_nutritional!$A$125:$AR$129,calculation_nutritional!F$123,FALSE) -> 22.61240543 | G131: =VLOOKUP(Calculations!$B$5,calculation_nutritional!$A$125:$AR$129,calculation_nutritional!G$123,FALSE) -> 4.353106285 | H131: =VLOOKUP(Calculations!$B$5,calculation_nutritional!$A$125:$AR$129,calculation_nutritional!H$123,FALSE) -> 15.74476615 | I131: =VLOOKUP(Calculations!$B$5,calculation_nutritional!$A$125:$AR$129,calculation_nutritional!I$123,FALSE) -> 5.248255385 | J131: =VLOOKUP(Calculations!$B$5,calculation_nutritional!$A$125:$AR$129,calculation_nutritional!J$123,FALSE) -> 4.229456081 | K131: =VLOOKUP(Calculations!$B$5,calculation_nutritional!$A$125:$AR$129,calculation_nutritional!K$123,FALSE) -> 70.86011542 | L131: =VLOOKUP(Calculations!$B$5,calculation_nutritional!$A$125:$AR$129,calculation_nutritional!L$123,FALSE) -> 39.84464844 | M131: =VLOOKUP(Calculations!$B$5,calculation_nutritional!$A$125:$AR$129,calculation_nutritional!M$123,FALSE) -> 26.55604233 | N131: =VLOOKUP(Calculations!$B$5,calculation_nutritional!$A$125:$AR$129,calculation_nutritional!N$123,FALSE) -> 71.3103522 | O131: =VLOOKUP(Calculations!$B$5,calculation_nutritional!$A$125:$AR$129,calculation_nutritional!O$123,FALSE) -> 19.36249956 | P131: =VLOOKUP(Calculations!$B$5,calculation_nutritional!$A$125:$AR$129,calculation_nutritional!P$123,FALSE) -> 36.74259465 | Q131: =VLOOKUP(Calculations!$B$5,calculation_nutritional!$A$125:$AR$129,calculation_nutritional!Q$123,FALSE) -> 104.1158845 | R131: =VLOOKUP(Calculations!$B$5,calculation_nutritional!$A$125:$AR$129,calculation_nutritional!R$123,FALSE) -> 119.4892895 | S131: =VLOOKUP(Calculations!$B$5,calculation_nutritional!$A$125:$AR$129,calculation_nutritional!S$123,FALSE) -> 2.272953133 | T131: =VLOOKUP(Calculations!$B$5,calculation_nutritional!$A$125:$AR$129,calculation_nutritional!T$123,FALSE) -> 0.6611742173 | U131: =VLOOKUP(Calculations!$B$5,calculation_nutritional!$A$125:$AR$129,calculation_nutritional!U$123,FALSE) -> 0.7360339966 | V131: =VLOOKUP(Calculations!$B$5,calculation_nutritional!$A$125:$AR$129,calculation_nutritional!V$123,FALSE) -> 104.1158845 | W131: =VLOOKUP(Calculations!$B$5,calculation_nutritional!$A$125:$AR$129,calculation_nutritional!W$123,FALSE) -> 119.4892895 | X131: =VLOOKUP(Calculations!$B$5,calculation_nutritional!$A$125:$AR$129,calculation_nutritional!X$123,FALSE) -> 20.94592609 | Y131: =VLOOKUP(Calculations!$B$5,calculation_nutritional!$A$125:$AR$129,calculation_nutritional!Y$123,FALSE) -> 32.49657439 | Z131: =VLOOKUP(Calculations!$B$5,calculation_nutritional!$A$125:$AR$129,calculation_nutritional!Z$123,FALSE) -> 4.330818955 | AA131: =VLOOKUP(Calculations!$B$5,calculation_nutritional!$A$125:$AR$129,calculation_nutritional!AA$123,FALSE) -> 1.159997363 | AB131: =VLOOKUP(Calculations!$B$5,calculation_nutritional!$A$125:$AR$129,calculation_nutritional!AB$123,FALSE) -> 10.33798998 | AC131: =VLOOKUP(Calculations!$B$5,calculation_nutritional!$A$125:$AR$129,calculation_nutritional!AC$123,FALSE) -> 5.557898751 | AD131: =VLOOKUP(Calculations!$B$5,calculation_nutritional!$A$125:$AR$129,calculation_nutritional!AD$123,FALSE) -> 3.598495366 | AE131: =VLOOKUP(Calculations!$B$5,calculation_nutritional!$A$125:$AR$129,calculation_nutritional!AE$123,FALSE) -> 1.918658164 | AF131: =VLOOKUP(Calculations!$B$5,calculation_nutritional!$A$125:$AR$129,calculation_nutritional!AF$123,FALSE) -> 1.68053777 | AG131: =VLOOKUP(Calculations!$B$5,calculation_nutritional!$A$125:$AR$129,calculation_nutritional!AG$123,FALSE) -> 7.176543696 | AH131: =VLOOKUP(Calculations!$B$5,calculation_nutritional!$A$125:$AR$129,calculation_nutritional!AH$123,FALSE) -> 7.904777247 | AI131: =VLOOKUP(Calculations!$B$5,calculation_nutritional!$A$125:$AR$129,calculation_nutritional!AI$123,FALSE) -> 78.14927438 | AJ131: =VLOOKUP(Calculations!$B$5,calculation_nutritional!$A$125:$AR$129,calculation_nutritional!AJ$123,FALSE) -> 32.77387935 | AK131: =VLOOKUP(Calculations!$B$5,calculation_nutritional!$A$125:$AR$129,calculation_nutritional!AK$123,FALSE) -> 158.7803761 | AL131: =VLOOKUP(Calculations!$B$5,calculation_nutritional!$A$125:$AR$129,calculation_nutritional!AL$123,FALSE) -> 2.272953133 | AM131: =VLOOKUP(Calculations!$B$5,calculation_nutritional!$A$125:$AR$129,calculation_nutritional!AM$123,FALSE) -> 0.6611742173 | AN131: =VLOOKUP(Calculations!$B$5,calculation_nutritional!$A$125:$AR$129,calculation_nutritional!AN$123,FALSE) -> 0.7360339966 | AO131: =VLOOKUP(Calculations!$B$5,calculation_nutritional!$A$125:$AR$129,calculation_nutritional!AO$123,FALSE) -> 0.4553353782 | AP131: =VLOOKUP(Calculations!$B$5,calculation_nutritional!$A$125:$AR$129,calculation_nutritional!AP$123,FALSE) -> 0.06930926413 | AQ131: =VLOOKUP(Calculations!$B$5,calculation_nutritional!$A$125:$AR$129,calculation_nutritional!AQ$123,FALSE) -> 10.33798998 | AR131: =VLOOKUP(Calculations!$B$5,calculation_nutritional!$A$125:$AR$129,calculation_nutritional!AR$123,FALSE) -> 5.557898751
A133: Kilojoules | B133: =VLOOKUP(B$125,nutritional_data,$AS133,FALSE) -> 1036 | C133: 1471 | D133: 1505 | E133: 156 | F133: 1562 | G133: 3059 | H133: 359 | I133: 927 | J133: 306 | K133: 207 | L133: 153 | M133: 355 | N133: 1019 | O133: 549 | P133: 452 | Q133: 74 | R133: =VLOOKUP(R$125,nutritional_data,$AS133,FALSE) -> 306 | S133: 531 | T133: 521 | U133: 387 | V133: =VLOOKUP(V$125,nutritional_data,$AS133,FALSE) -> 74 | W133: 306 | X133: 106.5 | Y133: =VLOOKUP(Y$125,nutritional_data,$AS133,FALSE) -> 151 | Z133: 2485 | AA133: 2458 | AB133: 3629 | AC133: 3656 | AD133: 3700 | AE133: 3666 | AF133: =VLOOKUP(AF$125,nutritional_data,$AS133,FALSE) -> 3700 | AG133: 1879 | AH133: 2134 | AI133: 170 | AJ133: 289 | AK133: 0 | AL133: 531 | AM133: 521 | AN133: 387 | AO133: 119 | AP133: 281 | AQ133: 3629 | AR133: 3656 | AS133: 2
A134: Kilocalories | B134: 245 | C134: 347 | D134: 354 | E134: 37 | F134: 377 | G134: 744 | H134: 85 | I134: 223 | J134: 72 | K134: 49 | L134: 36 | M134: 84 | N134: 245 | O134: 131 | P134: 107 | Q134: 18 | R134: 72 | S134: 126 | T134: 124 | U134: 92 | V134: 18 | W134: 72 | X134: 25.5 | Y134: 36 | Z134: 601 | AA134: 592 | AB134: 883 | AC134: 889 | AD134: 900 | AE134: 892 | AF134: 900 | AG134: 446 | AH134: 511 | AI134: 41 | AJ134: 70 | AK134: 0 | AL134: 126 | AM134: 124 | AN134: 92 | AO134: 28 | AP134: 67 | AQ134: 883 | AR134: 889 | AS134: 3
A135: Fat | B135: 1.3 | C135: 1.3 | D135: 1.1 | E135: 0.5 | F135: 30.6 | G135: 82 | H135: 0.5 | I135: 15.9 | J135: 0.3 | K135: 0.2 | L135: 0.2 | M135: 0.3 | N135: 17.3 | O135: 4.7 | P135: 3 | Q135: 0.2 | R135: 0.1 | S135: 0.6 | T135: 2.5 | U135: 0.6 | V135: 0.2 | W135: 0.1 | X135: 0.3 | Y135: 0.1 | Z135: 52.1 | AA135: 43.9 | AB135: 98 | AC135: 98.8 | AD135: 100 | AE135: 99 | AF135: 100 | AG135: 12.8 | AH135: 27.6 | AI135: 0 | AJ135: 0 | AK135: 0 | AL135: 0.6 | AM135: 2.5 | AN135: 0.6 | AO135: 0.9 | AP135: 4.2 | AQ135: 98 | AR135: 98.8 | AS135: 4
A136: Saturated fat | B136: 0.3 | C136: 0.1 | D136: 0.2 | E136: 0.3 | F136: 20.3 | G136: 52 | H136: 0.1 | I136: 2.3 | J136: 0.1 | K136: 0 | L136: 0.1 | M136: 0.1 | N136: 7.4 | O136: 2.2 | P136: 1 | Q136: 0.1 | R136: 0 | S136: 0.1 | T136: 0.3 | U136: 0.1 | V136: 0.1 | W136: 0 | X136: 0.05 | Y136: 0 | Z136: 4.1 | AA136: 7.8 | AB136: 10 | AC136: 13.9 | AD136: 47.8 | AE136: 7.3 | AF136: 14 | AG136: 5.1 | AH136: 16.4 | AI136: 0 | AJ136: 0 | AK136: 0 | AL136: 0.1 | AM136: 0.3 | AN136: 0.1 | AO136: 0.3 | AP136: 0.7 | AQ136: 10 | AR136: 13.9 | AS136: 5
A137: Carbohydrates | B137: 45.9 | C137: 69.8 | D137: 76.8 | E137: 4.5 | F137: 0 | G137: 0.5 | H137: 0 | I137: 0 | J137: 1.2 | K137: 10.6 | L137: 7.2 | M137: 18.3 | N137: 0 | O137: 0 | P137: 0 | Q137: 2.5 | R137: 15.3 | S137: 17.7 | T137: 14.8 | U137: 13.1 | V137: 2.5 | W137: 15.3 | X137: 1.75 | Y137: 6.7 | Z137: 6.6 | AA137: 29.4 | AB137: 0 | AC137: 0 | AD137: 0 | AE137: 0 | AF137: 0 | AG137: 74.7 | AH137: 56.8 | AI137: 3.2 | AJ137: 0.5 | AK137: 0 | AL137: 17.7 | AM137: 14.8 | AN137: 13.1 | AO137: 1.5 | AP137: 0.6 | AQ137: 0 | AR137: 0 | AS137: 6
A138: Starch | B138: 44.6 | C138: 69.3 | D138: 76.6 | E138: 0 | F138: 0 | G138: 0 | H138: 0 | I138: 0 | J138: 1.2 | K138: 0.1 | L138: 0 | M138: 4.4 | N138: 0 | O138: 0 | P138: 0 | Q138: 0 | R138: 12.4 | S138: 15.8 | T138: 14.4 | U138: 12.9 | V138: 0 | W138: 12.4 | X138: 0 | Y138: 0.2 | Z138: 0 | AA138: 23.5 | AB138: 0 | AC138: 0 | AD138: 0 | AE138: 0 | AF138: 0 | AG138: 54.7 | AH138: 1.2 | AI138: 2.8 | AJ138: 0 | AK138: 0 | AL138: 15.8 | AM138: 14.4 | AN138: 12.9 | AO138: 0 | AP138: 0.3 | AQ138: 0 | AR138: 0 | AS138: 7
A139: Sugar | B139: 1.4 | C139: 0.5 | D139: 0.2 | E139: 4.5 | F139: 0 | G139: 0.5 | H139: 0 | I139: 0 | J139: 0 | K139: 10.5 | L139: 7.2 | M139: 13.9 | N139: 0 | O139: 0 | P139: 0 | Q139: 2.5 | R139: 2.9 | S139: 1.8 | T139: 0.4 | U139: 0.2 | V139: 2.5 | W139: 2.9 | X139: 1.75 | Y139: 6.5 | Z139: 6.6 | AA139: 5.9 | AB139: 0 | AC139: 0 | AD139: 0 | AE139: 0 | AF139: 0 | AG139: 20 | AH139: 55.6 | AI139: 0.4 | AJ139: 0.5 | AK139: 0 | AL139: 1.8 | AM139: 0.4 | AN139: 0.2 | AO139: 1.5 | AP139: 0.3 | AQ139: 0 | AR139: 0 | AS139: 8
A140: Proteins | B140: 9.6 | C140: 11.9 | D140: 9.2 | E140: 3.6 | F140: 25.3 | G140: 1 | H140: 20 | I140: 19.9 | J140: 16.3 | K140: 0.3 | L140: 0.8 | M140: 1.2 | N140: 22.4 | O140: 22 | P140: 20 | Q140: 0.7 | R140: 1.7 | S140: 9 | T140: 7.5 | U140: 6.3 | V140: 0.7 | W140: 1.7 | X140: 2.7 | Y140: 0.7 | Z140: 21.2 | AA140: 18.2 | AB140: 0.2 | AC140: 0 | AD140: 0 | AE140: 0.2 | AF140: 0 | AG140: 6.6 | AH140: 6.2 | AI140: 0.4 | AJ140: 0.1 | AK140: 0 | AL140: 9 | AM140: 7.5 | AN140: 6.3 | AO140: 3.5 | AP140: 6.6 | AQ140: 0.2 | AR140: 0 | AS140: 9
A141: Salt | B141: 0.3 | C141: 0 | D141: 0 | E141: 0.1 | F141: 2.3 | G141: 1.1 | H141: 0.2 | I141: 0.1 | J141: 2.5 | K141: 0 | L141: 0 | M141: 0 | N141: 0.2 | O141: 0.1 | P141: 0.2 | Q141: 0 | R141: 0 | S141: 0 | T141: 0.5 | U141: 0.8 | V141: 0 | W141: 0 | X141: 0 | Y141: 0.1 | Z141: 0 | AA141: 0 | AB141: 0 | AC141: 0 | AD141: 0 | AE141: 0 | AF141: 0 | AG141: 1.1 | AH141: 0 | AI141: 0 | AJ141: 0 | AK141: 0.1 | AL141: 0 | AM141: 0.5 | AN141: 0.8 | AO141: 0.1 | AP141: 0.1 | AQ141: 0 | AR141: 0 | AS141: 10
A142: Dietary fibre | B142: 5 | C142: 4 | D142: 0 | E142: 0 | F142: 0 | G142: 0 | H142: 0 | I142: 0 | J142: 0 | K142: 2 | L142: 1 | M142: 1 | N142: 0 | O142: 0 | P142: 0 | Q142: 2 | R142: 2 | S142: 7 | T142: 6 | U142: 4 | V142: 2 | W142: 2 | X142: 2.5 | Y142: 3 | Z142: 11 | AA142: 3 | AB142: 0 | AC142: 0 | AD142: 0 | AE142: 0 | AF142: 0 | AG142: 3 | AH142: 5 | AI142: 0 | AJ142: 0 | AK142: 0 | AL142: 7 | AM142: 6 | AN142: 4 | AO142: 0 | AP142: 0 | AQ142: 0 | AR142: 0 | AS142: 11
A143: Water | B143: 38.40816327 | C143: 9 | D143: 69 | E143: 87 | F143: 42.64516129 | G143: 16 | H143: 81 | I143: 66 | J143: 82 | K143: 86 | L143: 88 | M143: 76 | N143: 58.05128205 | O143: 62.15384615 | P143: 63.15789474 | Q143: 94 | R143: 76 | S143: 64 | T143: 67 | U143: 74 | V143: 94 | W143: 76 | X143: 90.17 | Y143: 89.34 | Z143: 5 | AA143: 5 | AB143: 0 | AC143: 0 | AD143: 0 | AE143: 0 | AF143: 0 | AG143: 3 | AH143: 1 | AI143: 91.375 | AJ143: 88 | AK143: 100 | AL143: 64 | AM143: 67 | AN143: 74 | AO143: 90 | AP143: 85 | AQ143: 0 | AR143: 0 | AS143: 12
A144: Edible part | B144: 100 | C144: 100 | D144: 100 | E144: 100 | F144: 100 | G144: 100 | H144: 45 | I144: 65 | J144: 100 | K144: 90 | L144: 78 | M144: 66 | N144: 89.56410256 | O144: 91.10769231 | P144: 89.12765957 | Q144: 100 | R144: 82 | S144: 100 | T144: 100 | U144: 100 | V144: 100 | W144: 82 | X144: 88.38 | Y144: 90.87 | Z144: 100 | AA144: 100 | AB144: 100 | AC144: 100 | AD144: 100 | AE144: 100 | AF144: 100 | AG144: 100 | AH144: 100 | AI144: 100 | AJ144: 100 | AK144: 100 | AL144: 100 | AM144: 100 | AN144: 100 | AO144: 100 | AP144: 100 | AQ144: 100 | AR144: 100 | AS144: 13

Sheet Impacts per FSC stage (hidden)
D1: 5 | E1: 6 | F1: 7 | G1: 8 | H1: 9 | I1: 10 | J1: 11 | K1: 12 | L1: 13 | M1: 14 | N1: 15 | O1: 16 | P1: 17 | Q1: 18 | R1: 19 | S1: 20
D2: Climate change | E2: Ozone depletion | F2: Particulate Matter | G2: Ionizing radiation HH | H2: Photochemical ozone formation | I2: Acidification | J2: Terrestrial eutrophication | K2: Freshwater eutrophication | L2: Marine eutrophication | M2: Water scarcity | N2: Land use global | O2: Resource use (fossil) | P2: Resource use (minerals and metals) | Q2: Humantox cancer_weight | R2: Humantox non cancer_weight | S2: Ecotoxicity_weight | T2: Single point
D3: kg CO2 eq | E3: kg CFC11 eq | F3: Disease inc | G3: kBq U235 eq | H3: kg NMVOC eq | I3: molc H+ eq | J3: molc N eq | K3: kg P eq | L3: kg N eq | M3: m3 water eq | N3: Pt | O3: MJ | P3: kg Sb eq | Q3: CTUh | R3: CTUh | S3: CTUe
A4: Meat | B4: PORK
A5: PORK | B5: agriculture | C5: =CONCATENATE(A5," ", B5) -> PORK agriculture | D5: =VLOOKUP($A5,primary,D$1,FALSE) -> 9.073745591 | E5: =VLOOKUP($A5,primary,E$1,FALSE) -> 4.220097881e-08 | F5: 1.287721181e-06 | G5: 0.07188352889 | H5: 0.01367926138 | I5: 0.1804495489 | J5: 0.8017243863 | K5: 0.001004632484 | L5: 0.06004247364 | M5: 4.070825324 | N5: 479.24121 | O5: 36.88306769 | P5: 6.865364533e-07 | Q5: 8.486592273e-09 | R5: 2.273725939e-07 | S5: 609.4183368 | T5: =(D5/$D$395)*$D$396+(E5/$E$395)*$E$396+(F5/$F$395)*$F$396+(G5/$G$395)*$G$396+(H5/$H$395)*$H$396+(I5/$I$395)*$I$396+(J5/$J$395)*$J$396+(K5/$K$395)*$K$396+(L5/$L$395)*$L$396+(M5/$M$395)*$M$396+(N5/$N$395)*$N$396+(O5/$O$395)*$O$396+(P5/$P$395)*$P$396+(Q5/$Q$395)*$Q$396+(R5/$R$395)*$R$396+(S5/$S$395)*$S$396 -> 1.907932984e-11
A6: PORK | B6: manufacturing | C6: =CONCATENATE(A6," ", B6) -> PORK manufacturing | D6: =VLOOKUP($A6,manufacturing,D$1,FALSE) -> 10.1166452 | E6: =VLOOKUP($A6,manufacturing,E$1,FALSE) -> 6.125788134e-07 | F6: 1.372315165e-06 | G6: 0.1061867439 | H6: 0.01639110204 | I6: 0.192457191 | J6: 0.851343154 | K6: 0.001077416997 | L6: 0.06370116042 | M6: 4.732308994 | N6: 506.5034175 | O6: 46.86916271 | P6: 2.121164971e-06 | Q6: 9.078108487e-09 | R6: 2.431220702e-07 | S6: 644.5680058 | T6: =(D6/$D$395)*$D$396+(E6/$E$395)*$E$396+(F6/$F$395)*$F$396+(G6/$G$395)*$G$396+(H6/$H$395)*$H$396+(I6/$I$395)*$I$396+(J6/$J$395)*$J$396+(K6/$K$395)*$K$396+(L6/$L$395)*$L$396+(M6/$M$395)*$M$396+(N6/$N$395)*$N$396+(O6/$O$395)*$O$396+(P6/$P$395)*$P$396+(Q6/$Q$395)*$Q$396+(R6/$R$395)*$R$396+(S6/$S$395)*$S$396 -> 2.072686286e-11
A7: PORK | B7: retail | C7: PORK retail | D7: =VLOOKUP($A7,retail,D$1,FALSE) -> 11.47126848 | E7: 1.360693054e-05 | F7: 1.379787109e-06 | G7: 0.1128639198 | H7: 0.01696955883 | I7: 0.1930758556 | J7: 0.8534082729 | K7: 0.001079471458 | L7: 0.06387114174 | M7: 4.758602199 | N7: 507.6030311 | O7: 48.39701298 | P7: 2.458897516e-06 | Q7: 9.137282418e-09 | R7: 2.443800965e-07 | S7: 645.6106547 | T7: =(D7/$D$395)*$D$396+(E7/$E$395)*$E$396+(F7/$F$395)*$F$396+(G7/$G$395)*$G$396+(H7/$H$395)*$H$396+(I7/$I$395)*$I$396+(J7/$J$395)*$J$396+(K7/$K$395)*$K$396+(L7/$L$395)*$L$396+(M7/$M$395)*$M$396+(N7/$N$395)*$N$396+(O7/$O$395)*$O$396+(P7/$P$395)*$P$396+(Q7/$Q$395)*$Q$396+(R7/$R$395)*$R$396+(S7/$S$395)*$S$396 -> 2.159687237e-11
A8: PORK | B8: use | C8: PORK use | D8: =VLOOKUP($A8,use,D$1,FALSE) -> 14.06186525 | E8: 1.597090179e-05 | F8: 1.634974006e-06 | G8: 0.152754751 | H8: 0.02124042556 | I8: 0.2287504207 | J8: 1.008762078 | K8: 0.002058936409 | L8: 0.09518731977 | M8: 6.552206366 | N8: 600.0609859 | O8: 63.00840786 | P8: 4.139073988e-06 | Q8: 1.09036102e-08 | R8: 2.92097333e-07 | S8: 849.4289391 | T8: =(D8/$D$395)*$D$396+(E8/$E$395)*$E$396+(F8/$F$395)*$F$396+(G8/$G$395)*$G$396+(H8/$H$395)*$H$396+(I8/$I$395)*$I$396+(J8/$J$395)*$J$396+(K8/$K$395)*$K$396+(L8/$L$395)*$L$396+(M8/$M$395)*$M$396+(N8/$N$395)*$N$396+(O8/$O$395)*$O$396+(P8/$P$395)*$P$396+(Q8/$Q$395)*$Q$396+(R8/$R$395)*$R$396+(S8/$S$395)*$S$396 -> 2.706131752e-11
A10: Meat | B10: BEEF
A11: BEEF | B11: agriculture | C11: =CONCATENATE(A11," ", B11) -> BEEF agriculture | D11: =VLOOKUP($A11,primary,D$1,FALSE) -> 47.33370964 | E11: 5.976856183e-08 | F11: 1.20432648e-05 | G11: 0.1020313606 | H11: 0.05183290761 | I11: 1.682391826 | J11: 7.489335066 | K11: 0.001965300687 | L11: 0.7289148743 | M11: 13.34835318 | N11: 1881.98746 | O11: 137.7730358 | P11: 4.907749757e-06 | Q11: 2.414205476e-08 | R11: 1.650972298e-06 | S11: 800.3000825 | T11: =(D11/$D$395)*$D$396+(E11/$E$395)*$E$396+(F11/$F$395)*$F$396+(G11/$G$395)*$G$396+(H11/$H$395)*$H$396+(I11/$I$395)*$I$396+(J11/$J$395)*$J$396+(K11/$K$395)*$K$396+(L11/$L$395)*$L$396+(M11/$M$395)*$M$396+(N11/$N$395)*$N$396+(O11/$O$395)*$O$396+(P11/$P$395)*$P$396+(Q11/$Q$395)*$Q$396+(R11/$R$395)*$R$396+(S11/$S$395)*$S$396 -> 1.273456146e-10
A12: BEEF | B12: manufacturing | C12: =CONCATENATE(A12," ", B12) -> BEEF manufacturing | D12: =VLOOKUP($A12,manufacturing,D$1,FALSE) -> 50.51426086 | E12: 1.574499363e-06 | F12: 1.269431663e-05 | G12: 0.1446747444 | H12: 0.05661684951 | I12: 1.773669535 | J12: 7.891049518 | K12: 0.002092416208 | L12: 0.7678232782 | M12: 14.48619496 | N12: 1983.270842 | O12: 153.8897382 | P12: 6.451831769e-06 | Q12: 2.557242204e-08 | R12: 1.742079434e-06 | S12: 845.2288622 | T12: =(D12/$D$395)*$D$396+(E12/$E$395)*$E$396+(F12/$F$395)*$F$396+(G12/$G$395)*$G$396+(H12/$H$395)*$H$396+(I12/$I$395)*$I$396+(J12/$J$395)*$J$396+(K12/$K$395)*$K$396+(L12/$L$395)*$L$396+(M12/$M$395)*$M$396+(N12/$N$395)*$N$396+(O12/$O$395)*$O$396+(P12/$P$395)*$P$396+(Q12/$Q$395)*$Q$396+(R12/$R$395)*$R$396+(S12/$S$395)*$S$396 -> 1.347790674e-10
A13: BEEF | B13: retail | C13: BEEF retail | D13: =VLOOKUP($A13,retail,D$1,FALSE) -> 51.8705277 | E13: 1.458237624e-05 | F13: 1.27018056e-05 | G13: 0.151361917 | H13: 0.05719757806 | I13: 1.774290564 | J13: 7.893124555 | K13: 0.002094475112 | L13: 0.7679937425 | M13: 14.51257913 | N13: 1984.372364 | O13: 155.4193563 | P13: 6.791893881e-06 | Q13: 2.56316973e-08 | R13: 1.743339987e-06 | S13: 846.276735 | T13: =(D13/$D$395)*$D$396+(E13/$E$395)*$E$396+(F13/$F$395)*$F$396+(G13/$G$395)*$G$396+(H13/$H$395)*$H$396+(I13/$I$395)*$I$396+(J13/$J$395)*$J$396+(K13/$K$395)*$K$396+(L13/$L$395)*$L$396+(M13/$M$395)*$M$396+(N13/$N$395)*$N$396+(O13/$O$395)*$O$396+(P13/$P$395)*$P$396+(Q13/$Q$395)*$Q$396+(R13/$R$395)*$R$396+(S13/$S$395)*$S$396 -> 1.356502535e-10
A14: BEEF | B14: use | C14: BEEF use | D14: =VLOOKUP($A14,use,D$1,FALSE) -> 61.33895811 | E14: 1.711293918e-05 | F14: 1.488829971e-05 | G14: 0.1980663493 | H14: 0.06836364992 | I14: 2.079691673 | J14: 9.24931941 | K14: 0.003289042428 | L14: 0.9216806075 | M14: 18.06895549 | N14: 2328.610887 | O14: 188.3174622 | P14: 9.231075437e-06 | Q14: 3.021258734e-08 | R14: 2.047671121e-06 | S14: 1094.432626 | T14: =(D14/$D$395)*$D$396+(E14/$E$395)*$E$396+(F14/$F$395)*$F$396+(G14/$G$395)*$G$396+(H14/$H$395)*$H$396+(I14/$I$395)*$I$396+(J14/$J$395)*$J$396+(K14/$K$395)*$K$396+(L14/$L$395)*$L$396+(M14/$M$395)*$M$396+(N14/$N$395)*$N$396+(O14/$O$395)*$O$396+(P14/$P$395)*$P$396+(Q14/$Q$395)*$Q$396+(R14/$R$395)*$R$396+(S14/$S$395)*$S$396 -> 1.606883442e-10
A16: Meat | B16: POULTRY
A17: POULTRY | B17: agriculture | C17: =CONCATENATE(A17," ", B17) -> POULTRY agriculture | D17: =VLOOKUP($A17,primary,D$1,FALSE) -> 7.232701439 | E17: 2.728496343e-08 | F17: 9.169826088e-07 | G17: 0.04643243495 | H17: 0.01075833938 | I17: 0.1139441995 | J17: 0.5044846569 | K17: 0.0006984180925 | L17: 0.02940415589 | M17: 3.479693637 | N17: 325.0217379 | O17: 27.31923596 | P17: 4.97483035e-07 | Q17: 3.20767504e-09 | R17: 1.114795881e-07 | S17: 509.8380741 | T17: =(D17/$D$395)*$D$396+(E17/$E$395)*$E$396+(F17/$F$395)*$F$396+(G17/$G$395)*$G$396+(H17/$H$395)*$H$396+(I17/$I$395)*$I$396+(J17/$J$395)*$J$396+(K17/$K$395)*$K$396+(L17/$L$395)*$L$396+(M17/$M$395)*$M$396+(N17/$N$395)*$N$396+(O17/$O$395)*$O$396+(P17/$P$395)*$P$396+(Q17/$Q$395)*$Q$396+(R17/$R$395)*$R$396+(S17/$S$395)*$S$396 -> 1.345602518e-11
A18: POULTRY | B18: manufacturing | C18: =CONCATENATE(A18," ", B18) -> POULTRY manufacturing | D18: =VLOOKUP($A18,manufacturing,D$1,FALSE) -> 8.055125953 | E18: 3.225022796e-07 | F18: 9.79414881e-07 | G18: 0.07486946865 | H18: 0.01289401899 | I18: 0.1219631179 | J18: 0.5366471533 | K18: 0.0007523475382 | L18: 0.03135596244 | M18: 3.989451197 | N18: 343.8396888 | O18: 35.63778352 | P18: 1.52129345e-06 | Q18: 3.49830203e-09 | R18: 1.204717689e-07 | S18: 538.7773235 | T18: =(D18/$D$395)*$D$396+(E18/$E$395)*$E$396+(F18/$F$395)*$F$396+(G18/$G$395)*$G$396+(H18/$H$395)*$H$396+(I18/$I$395)*$I$396+(J18/$J$395)*$J$396+(K18/$K$395)*$K$396+(L18/$L$395)*$L$396+(M18/$M$395)*$M$396+(N18/$N$395)*$N$396+(O18/$O$395)*$O$396+(P18/$P$395)*$P$396+(Q18/$Q$395)*$Q$396+(R18/$R$395)*$R$396+(S18/$S$395)*$S$396 -> 1.467444301e-11
A19: POULTRY | B19: retail | C19: POULTRY retail | D19: =VLOOKUP($A19,retail,D$1,FALSE) -> 9.40810909 | E19: 1.330335694e-05 | F19: 9.8686984e-07 | G19: 0.08153666863 | H19: 0.01347020874 | I19: 0.1225794236 | J19: 0.5387023751 | K19: 0.0007543975652 | L19: 0.0315254618 | M19: 4.015653626 | N19: 344.9373977 | O19: 37.1638696 | P19: 1.856701266e-06 | Q19: 3.557374843e-09 | R19: 1.217272737e-07 | S19: 539.8147595 | T19: =(D19/$D$395)*$D$396+(E19/$E$395)*$E$396+(F19/$F$395)*$F$396+(G19/$G$395)*$G$396+(H19/$H$395)*$H$396+(I19/$I$395)*$I$396+(J19/$J$395)*$J$396+(K19/$K$395)*$K$396+(L19/$L$395)*$L$396+(M19/$M$395)*$M$396+(N19/$N$395)*$N$396+(O19/$O$395)*$O$396+(P19/$P$395)*$P$396+(Q19/$Q$395)*$Q$396+(R19/$R$395)*$R$396+(S19/$S$395)*$S$396 -> 1.554327836e-11
A20: POULTRY | B20: use | C20: POULTRY use | D20: =VLOOKUP($A20,use,D$1,FALSE) -> 11.64095957 | E20: 1.561536641e-05 | F20: 1.173761743e-06 | G20: 0.1159532403 | H20: 0.01708350125 | I20: 0.1460303429 | J20: 0.6394617957 | K20: 0.001620109434 | L20: 0.05415785038 | M20: 5.644225266 | N20: 409.6259528 | O20: 49.83382236 | P20: 3.423362819e-06 | Q20: 4.370477725e-09 | R20: 1.479452517e-07 | S20: 724.1357053 | T20: =(D20/$D$395)*$D$396+(E20/$E$395)*$E$396+(F20/$F$395)*$F$396+(G20/$G$395)*$G$396+(H20/$H$395)*$H$396+(I20/$I$395)*$I$396+(J20/$J$395)*$J$396+(K20/$K$395)*$K$396+(L20/$L$395)*$L$396+(M20/$M$395)*$M$396+(N20/$N$395)*$N$396+(O20/$O$395)*$O$396+(P20/$P$395)*$P$396+(Q20/$Q$395)*$Q$396+(R20/$R$395)*$R$396+(S20/$S$395)*$S$396 -> 1.986551923e-11
A22: Fish | B22: COD
A23: COD | B23: agriculture | C23: =CONCATENATE(A23," ", B23) -> COD agriculture | D23: =VLOOKUP($A23,primary,D$1,FALSE) -> 2.464179069 | E23: 4.408523949e-07 | F23: 9.467481428e-08 | G23: 0.01693359224 | H23: 0.04098937523 | I23: 0.03427699543 | J23: 0.1610776995 | K23: 8.732881931e-06 | L23: 0.01471215825 | M23: 19.11317389 | N23: 6.734904997 | O23: 33.71733151 | P23: 3.33950216e-07 | Q23: 1.549343031e-10 | R23: 4.355175516e-09 | S23: 8.998453367 | T23: =(D23/$D$395)*$D$396+(E23/$E$395)*$E$396+(F23/$F$395)*$F$396+(G23/$G$395)*$G$396+(H23/$H$395)*$H$396+(I23/$I$395)*$I$396+(J23/$J$395)*$J$396+(K23/$K$395)*$K$396+(L23/$L$395)*$L$396+(M23/$M$395)*$M$396+(N23/$N$395)*$N$396+(O23/$O$395)*$O$396+(P23/$P$395)*$P$396+(Q23/$Q$395)*$Q$396+(R23/$R$395)*$R$396+(S23/$S$395)*$S$396 -> 6.032782589e-12
A24: COD | B24: manufacturing | C24: =CONCATENATE(A24," ", B24) -> COD manufacturing | D24: =VLOOKUP($A24,manufacturing,D$1,FALSE) -> 3.423191682 | E24: 2.204025106e-06 | F24: =VLOOKUP($A24,manufacturing,F$1,FALSE) -> 1.253827967e-07 | G24: 0.08563823486 | H24: 0.04605924948 | I24: 0.04058627854 | J24: 0.1805781786 | K24: 5.086720044e-05 | L24: 0.01647013089 | M24: 20.44473529 | N24: 5.133962595 | O24: 47.56289372 | P24: 1.826024924e-06 | Q24: 4.115582681e-10 | R24: 1.26241606e-08 | S24: 12.50140865 | T24: =(D24/$D$395)*$D$396+(E24/$E$395)*$E$396+(F24/$F$395)*$F$396+(G24/$G$395)*$G$396+(H24/$H$395)*$H$396+(I24/$I$395)*$I$396+(J24/$J$395)*$J$396+(K24/$K$395)*$K$396+(L24/$L$395)*$L$396+(M24/$M$395)*$M$396+(N24/$N$395)*$N$396+(O24/$O$395)*$O$396+(P24/$P$395)*$P$396+(Q24/$Q$395)*$Q$396+(R24/$R$395)*$R$396+(S24/$S$395)*$S$396 -> 7.289529864e-12
A25: COD | B25: retail | C25: COD retail | D25: =VLOOKUP($A25,retail,D$1,FALSE) -> 3.842889285 | E25: 5.302424327e-06 | F25: 1.328963115e-07 | G25: 0.09244487514 | H25: 0.04666552143 | I25: 0.04122143463 | J25: 0.182890419 | K25: 5.288929015e-05 | L25: 0.01666095736 | M25: 20.47390657 | N25: 6.341652512 | O25: 48.98406193 | P25: 2.169453878e-06 | Q25: 4.537530633e-10 | R25: 1.386393771e-08 | S25: 13.39401358 | T25: =(D25/$D$395)*$D$396+(E25/$E$395)*$E$396+(F25/$F$395)*$F$396+(G25/$G$395)*$G$396+(H25/$H$395)*$H$396+(I25/$I$395)*$I$396+(J25/$J$395)*$J$396+(K25/$K$395)*$K$396+(L25/$L$395)*$L$396+(M25/$M$395)*$M$396+(N25/$N$395)*$N$396+(O25/$O$395)*$O$396+(P25/$P$395)*$P$396+(Q25/$Q$395)*$Q$396+(R25/$R$395)*$R$396+(S25/$S$395)*$S$396 -> 7.608089612e-12
A26: COD | B26: use | C26: COD use | D26: =VLOOKUP($A26,use,D$1,FALSE) -> 5.498961122 | E26: 6.621419103e-06 | F26: 1.841074118e-07 | G26: 0.1284018024 | H26: 0.05900503594 | I26: 0.05376760341 | J26: 0.2358600082 | K26: 0.0008552811067 | L26: 0.03799560651 | M26: 26.44006611 | N26: 14.72664283 | O26: 72.66160552 | P26: 3.657296791e-06 | Q26: 7.796825e-10 | R26: 2.22710634e-08 | S26: 89.36799247 | T26: =(D26/$D$395)*$D$396+(E26/$E$395)*$E$396+(F26/$F$395)*$F$396+(G26/$G$395)*$G$396+(H26/$H$395)*$H$396+(I26/$I$395)*$I$396+(J26/$J$395)*$J$396+(K26/$K$395)*$K$396+(L26/$L$395)*$L$396+(M26/$M$395)*$M$396+(N26/$N$395)*$N$396+(O26/$O$395)*$O$396+(P26/$P$395)*$P$396+(Q26/$Q$395)*$Q$396+(R26/$R$395)*$R$396+(S26/$S$395)*$S$396 -> 1.117861736e-11
A28: Fish | B28: SALMON
A29: SALMON | B29: agriculture | C29: =CONCATENATE(A29," ", B29) -> SALMON agriculture | D29: =VLOOKUP($A29,primary,D$1,FALSE) -> 5.827421742 | E29: 1.093667903e-07 | F29: 2.46676459e-07 | G29: 0.107593002 | H29: 0.01791156394 | I29: 0.02239999535 | J29: 0.09287488828 | K29: 0.01187426076 | L29: 0.1052466272 | M29: 1.311273548 | N29: 177.1825101 | O29: 39.96876352 | P29: 2.489940588e-06 | Q29: 1.622341938e-09 | R29: 6.116879315e-08 | S29: 264.1439253 | T29: =(D29/$D$395)*$D$396+(E29/$E$395)*$E$396+(F29/$F$395)*$F$396+(G29/$G$395)*$G$396+(H29/$H$395)*$H$396+(I29/$I$395)*$I$396+(J29/$J$395)*$J$396+(K29/$K$395)*$K$396+(L29/$L$395)*$L$396+(M29/$M$395)*$M$396+(N29/$N$395)*$N$396+(O29/$O$395)*$O$396+(P29/$P$395)*$P$396+(Q29/$Q$395)*$Q$396+(R29/$R$395)*$R$396+(S29/$S$395)*$S$396 -> 1.180317117e-11
A30: SALMON | B30: manufacturing | C30: =CONCATENATE(A30," ", B30) -> SALMON manufacturing | D30: =VLOOKUP($A30,manufacturing,D$1,FALSE) -> 6.649071175 | E30: 4.385529119e-07 | F30: 2.783308507e-07 | G30: 0.1544306355 | H30: 0.02089055752 | I30: 0.02649684434 | J30: 0.1053256587 | K30: 0.01265503176 | L30: 0.1125201234 | M30: 1.528598068 | N30: 190.9484972 | O30: 50.38740611 | P30: 3.349143595e-06 | Q30: 1.871451235e-09 | R30: 6.907854381e-08 | S30: 282.68962 | T30: =(D30/$D$395)*$D$396+(E30/$E$395)*$E$396+(F30/$F$395)*$F$396+(G30/$G$395)*$G$396+(H30/$H$395)*$H$396+(I30/$I$395)*$I$396+(J30/$J$395)*$J$396+(K30/$K$395)*$K$396+(L30/$L$395)*$L$396+(M30/$M$395)*$M$396+(N30/$N$395)*$N$396+(O30/$O$395)*$O$396+(P30/$P$395)*$P$396+(Q30/$Q$395)*$Q$396+(R30/$R$395)*$R$396+(S30/$S$395)*$S$396 -> 1.309283048e-11
A31: SALMON | B31: retail | C31: SALMON retail | D31: =VLOOKUP($A31,retail,D$1,FALSE) -> 7.411884556 | E31: 6.944941787e-06 | F31: 2.866087668e-07 | G31: 0.1617268974 | H31: 0.02154835641 | I31: 0.027187882 | J31: 0.1077934715 | K31: 0.01265718178 | L31: 0.1127250653 | M31: 1.56053743 | N31: 192.247998 | O31: 51.95978328 | P31: 3.723586638e-06 | Q31: 1.923229728e-09 | R31: 7.044863593e-08 | S31: 283.7146066 | T31: =(D31/$D$395)*$D$396+(E31/$E$395)*$E$396+(F31/$F$395)*$F$396+(G31/$G$395)*$G$396+(H31/$H$395)*$H$396+(I31/$I$395)*$I$396+(J31/$J$395)*$J$396+(K31/$K$395)*$K$396+(L31/$L$395)*$L$396+(M31/$M$395)*$M$396+(N31/$N$395)*$N$396+(O31/$O$395)*$O$396+(P31/$P$395)*$P$396+(Q31/$Q$395)*$Q$396+(R31/$R$395)*$R$396+(S31/$S$395)*$S$396 -> 1.361890091e-11
A32: SALMON | B32: use | C32: SALMON use | D32: =VLOOKUP($A32,use,D$1,FALSE) -> 9.906129657 | E32: 8.649219567e-06 | F32: 3.725051989e-07 | G32: 0.2102943375 | H32: 0.02796872944 | I32: 0.03618186047 | J32: 0.1422627831 | K32: 0.01654723232 | L32: 0.159051543 | M32: 3.08561744 | N32: 243.1567945 | O32: 76.06503714 | P32: 5.532536924e-06 | Q32: 2.605698257e-09 | R32: 9.143388897e-08 | S32: 460.4361515 | T32: =(D32/$D$395)*$D$396+(E32/$E$395)*$E$396+(F32/$F$395)*$F$396+(G32/$G$395)*$G$396+(H32/$H$395)*$H$396+(I32/$I$395)*$I$396+(J32/$J$395)*$J$396+(K32/$K$395)*$K$396+(L32/$L$395)*$L$396+(M32/$M$395)*$M$396+(N32/$N$395)*$N$396+(O32/$O$395)*$O$396+(P32/$P$395)*$P$396+(Q32/$Q$395)*$Q$396+(R32/$R$395)*$R$396+(S32/$S$395)*$S$396 -> 1.885019034e-11
A34: Seafood | B34: SHRIMP
A35: SHRIMP | B35: agriculture | C35: =CONCATENATE(A35," ", B35) -> SHRIMP agriculture | D35: =VLOOKUP($A35,primary,D$1,FALSE) -> 6.771848409 | E35: 1.625016794e-07 | F35: 5.292369258e-07 | G35: 0.07983965909 | H35: 0.02695126612 | I35: 0.04301039722 | J35: 0.1349368484 | K35: 0.01216274918 | L35: 0.1048499671 | M35: 1.374394728 | N35: 162.7095871 | O35: 80.76865069 | P35: 1.596771139e-05 | Q35: 2.91415759e-09 | R35: 8.157076512e-08 | S35: 54.49604405 | T35: =(D35/$D$395)*$D$396+(E35/$E$395)*$E$396+(F35/$F$395)*$F$396+(G35/$G$395)*$G$396+(H35/$H$395)*$H$396+(I35/$I$395)*$I$396+(J35/$J$395)*$J$396+(K35/$K$395)*$K$396+(L35/$L$395)*$L$396+(M35/$M$395)*$M$396+(N35/$N$395)*$N$396+(O35/$O$395)*$O$396+(P35/$P$395)*$P$396+(Q35/$Q$395)*$Q$396+(R35/$R$395)*$R$396+(S35/$S$395)*$S$396 -> 1.348877729e-11
A36: SHRIMP | B36: manufacturing | C36: =CONCATENATE(A36," ", B36) -> SHRIMP manufacturing | D36: =VLOOKUP($A36,manufacturing,D$1,FALSE) -> 8.559461524 | E36: 1.907464226e-06 | F36: 6.383962e-07 | G36: 0.1182979988 | H36: 0.03370591334 | I36: 0.05376558115 | J36: 0.1625615564 | K36: 0.01297446877 | L36: 0.1132907777 | M36: 2.292237964 | N36: 169.1143472 | O36: 102.6158551 | P36: 1.874266416e-05 | Q36: 3.463977548e-09 | R36: 1.000799388e-07 | S36: 62.26273457 | T36: =(D36/$D$395)*$D$396+(E36/$E$395)*$E$396+(F36/$F$395)*$F$396+(G36/$G$395)*$G$396+(H36/$H$395)*$H$396+(I36/$I$395)*$I$396+(J36/$J$395)*$J$396+(K36/$K$395)*$K$396+(L36/$L$395)*$L$396+(M36/$M$395)*$M$396+(N36/$N$395)*$N$396+(O36/$O$395)*$O$396+(P36/$P$395)*$P$396+(Q36/$Q$395)*$Q$396+(R36/$R$395)*$R$396+(S36/$S$395)*$S$396 -> 1.58974476e-11
A37: SHRIMP | B37: retail | C37: SHRIMP retail | D37: =VLOOKUP($A37,retail,D$1,FALSE) -> 8.982147176 | E37: 5.006556068e-06 | F37: 6.461506352e-07 | G37: 0.1253064306 | H37: 0.03432858488 | I37: 0.05441591417 | J37: 0.1649302225 | K37: 0.01297651526 | L37: 0.1134867274 | M37: 2.321559592 | N37: 170.3622895 | O37: 104.0838502 | P37: 1.90913183e-05 | Q37: 3.507084829e-09 | R37: 1.013522353e-07 | S37: 63.17126149 | T37: =(D37/$D$395)*$D$396+(E37/$E$395)*$E$396+(F37/$F$395)*$F$396+(G37/$G$395)*$G$396+(H37/$H$395)*$H$396+(I37/$I$395)*$I$396+(J37/$J$395)*$J$396+(K37/$K$395)*$K$396+(L37/$L$395)*$L$396+(M37/$M$395)*$M$396+(N37/$N$395)*$N$396+(O37/$O$395)*$O$396+(P37/$P$395)*$P$396+(Q37/$Q$395)*$Q$396+(R37/$R$395)*$R$396+(S37/$S$395)*$S$396 -> 1.621979604e-11
A38: SHRIMP | B38: use | C38: SHRIMP use | D38: =VLOOKUP($A38,use,D$1,FALSE) -> 11.34149612 | E38: 6.197593644e-06 | F38: 8.095683987e-07 | G38: 0.1639466848 | H38: 0.04305640562 | I38: 0.06862533413 | J38: 0.2090164433 | K38: 0.01641514471 | L38: 0.1514971483 | M38: 3.801173513 | N38: 212.2019231 | O38: 130.2459606 | P38: 2.425919006e-05 | Q38: 4.44101532e-09 | R38: 1.28203974e-07 | S38: 117.8955561 | T38: =(D38/$D$395)*$D$396+(E38/$E$395)*$E$396+(F38/$F$395)*$F$396+(G38/$G$395)*$G$396+(H38/$H$395)*$H$396+(I38/$I$395)*$I$396+(J38/$J$395)*$J$396+(K38/$K$395)*$K$396+(L38/$L$395)*$L$396+(M38/$M$395)*$M$396+(N38/$N$395)*$N$396+(O38/$O$395)*$O$396+(P38/$P$395)*$P$396+(Q38/$Q$395)*$Q$396+(R38/$R$395)*$R$396+(S38/$S$395)*$S$396 -> 2.090725012e-11
A40: Dairy | B40: MILK
A41: MILK | B41: agriculture | C41: =CONCATENATE(A41," ", B41) -> MILK agriculture | D41: =VLOOKUP($A41,primary,D$1,FALSE) -> 1.625710696 | E41: 4.390638136e-09 | F41: 3.263454215e-07 | G41: 0.007192710757 | H41: 0.001541787782 | I41: 0.04638660821 | J41: 0.2066631745 | K41: 4.784841621e-05 | L41: 0.0150574248 | M41: 0.3754117414 | N41: 46.20133072 | O41: 4.099250405 | P41: 1.329344462e-07 | Q41: 5.948588063e-10 | R41: 4.553712337e-08 | S41: 34.52686327 | T41: =(D41/$D$395)*$D$396+(E41/$E$395)*$E$396+(F41/$F$395)*$F$396+(G41/$G$395)*$G$396+(H41/$H$395)*$H$396+(I41/$I$395)*$I$396+(J41/$J$395)*$J$396+(K41/$K$395)*$K$396+(L41/$L$395)*$L$396+(M41/$M$395)*$M$396+(N41/$N$395)*$N$396+(O41/$O$395)*$O$396+(P41/$P$395)*$P$396+(Q41/$Q$395)*$Q$396+(R41/$R$395)*$R$396+(S41/$S$395)*$S$396 -> 3.577551323e-12
A42: MILK | B42: manufacturing | C42: =CONCATENATE(A42," ", B42) -> MILK manufacturing | D42: =VLOOKUP($A42,manufacturing,D$1,FALSE) -> 1.918064786 | E42: 1.790063732e-08 | F42: 3.505365916e-07 | G42: 0.01714389802 | H42: 0.002204406643 | I42: 0.04976063001 | J42: 0.219907559 | K42: 5.816415726e-05 | L42: 0.01605027228 | M42: 0.6851453495 | N42: 49.88526335 | O42: 7.920727676 | P42: 1.0067061e-05 | Q42: 7.034247692e-10 | R42: 4.976096347e-08 | S42: 37.22653889 | T42: =(D42/$D$395)*$D$396+(E42/$E$395)*$E$396+(F42/$F$395)*$F$396+(G42/$G$395)*$G$396+(H42/$H$395)*$H$396+(I42/$I$395)*$I$396+(J42/$J$395)*$J$396+(K42/$K$395)*$K$396+(L42/$L$395)*$L$396+(M42/$M$395)*$M$396+(N42/$N$395)*$N$396+(O42/$O$395)*$O$396+(P42/$P$395)*$P$396+(Q42/$Q$395)*$Q$396+(R42/$R$395)*$R$396+(S42/$S$395)*$S$396 -> 4.185396575e-12
A43: MILK | B43: retail | C43: MILK retail | D43: =VLOOKUP($A43,retail,D$1,FALSE) -> 2.056275462 | E43: 6.375042168e-07 | F43: 3.561760606e-07 | G43: 0.02271836895 | H43: 0.002606532868 | I43: 0.05015874256 | J43: 0.2213144669 | K43: 5.939141734e-05 | L43: 0.01617447138 | M43: 0.6922952872 | N43: 50.8284227 | O43: 9.146206904 | P43: 1.021843216e-05 | Q43: 7.284418261e-10 | R43: 5.059945196e-08 | S43: 37.67078701 | T43: =(D43/$D$395)*$D$396+(E43/$E$395)*$E$396+(F43/$F$395)*$F$396+(G43/$G$395)*$G$396+(H43/$H$395)*$H$396+(I43/$I$395)*$I$396+(J43/$J$395)*$J$396+(K43/$K$395)*$K$396+(L43/$L$395)*$L$396+(M43/$M$395)*$M$396+(N43/$N$395)*$N$396+(O43/$O$395)*$O$396+(P43/$P$395)*$P$396+(Q43/$Q$395)*$Q$396+(R43/$R$395)*$R$396+(S43/$S$395)*$S$396 -> 4.31777293e-12
A44: MILK | B44: use | C44: MILK use | D44: =VLOOKUP($A44,use,D$1,FALSE) -> 2.357294219 | E44: 7.034064822e-07 | F44: 3.930606089e-07 | G44: 0.03180958864 | H44: 0.003251695879 | I44: 0.05498623052 | J44: 0.2416335811 | K44: 0.0005124335124 | L44: 0.02117380811 | M44: 1.872332852 | N44: 56.83513732 | O44: 11.36100837 | P44: 1.171526724e-05 | Q44: 8.910545087e-10 | R44: 5.69464658e-08 | S44: 90.89736187 | T44: =(D44/$D$395)*$D$396+(E44/$E$395)*$E$396+(F44/$F$395)*$F$396+(G44/$G$395)*$G$396+(H44/$H$395)*$H$396+(I44/$I$395)*$I$396+(J44/$J$395)*$J$396+(K44/$K$395)*$K$396+(L44/$L$395)*$L$396+(M44/$M$395)*$M$396+(N44/$N$395)*$N$396+(O44/$O$395)*$O$396+(P44/$P$395)*$P$396+(Q44/$Q$395)*$Q$396+(R44/$R$395)*$R$396+(S44/$S$395)*$S$396 -> 5.377512895e-12
A46: Dairy | B46: CHEESE
A47: CHEESE | B47: agriculture | C47: =CONCATENATE(A47," ", B47) -> CHEESE agriculture | D47: =VLOOKUP($A47,primary,D$1,FALSE) -> 14.31708763 | E47: 3.730964023e-08 | F47: 2.887916309e-06 | G47: 0.06292823629 | H47: 0.0133287378 | I47: 0.4104737646 | J47: 1.828881655 | K47: 0.0004226154598 | L47: 0.1332360259 | M47: 3.269624399 | N47: 408.7983753 | O47: 36.33498914 | P47: 8.377756361e-07 | Q47: 5.244972776e-09 | R47: 4.026479008e-07 | S47: 305.1296422 | T47: =(D47/$D$395)*$D$396+(E47/$E$395)*$E$396+(F47/$F$395)*$F$396+(G47/$G$395)*$G$396+(H47/$H$395)*$H$396+(I47/$I$395)*$I$396+(J47/$J$395)*$J$396+(K47/$K$395)*$K$396+(L47/$L$395)*$L$396+(M47/$M$395)*$M$396+(N47/$N$395)*$N$396+(O47/$O$395)*$O$396+(P47/$P$395)*$P$396+(Q47/$Q$395)*$Q$396+(R47/$R$395)*$R$396+(S47/$S$395)*$S$396 -> 3.161127895e-11
A48: CHEESE | B48: manufacturing | C48: =CONCATENATE(A48," ", B48) -> CHEESE manufacturing | D48: =VLOOKUP($A48,manufacturing,D$1,FALSE) -> 17.16065547 | E48: 4.917037427e-07 | F48: 3.043656521e-06 | G48: 0.204825223 | H48: 0.01892041994 | I48: 0.4340159755 | J48: 1.914928407 | K48: 0.0004965266544 | L48: 0.1400261448 | M48: 3.743316554 | N48: 419.6895817 | O48: 69.81799111 | P48: 5.252618032e-06 | Q48: 6.301871759e-09 | R48: 4.321310483e-07 | S48: 328.2348305 | T48: =(D48/$D$395)*$D$396+(E48/$E$395)*$E$396+(F48/$F$395)*$F$396+(G48/$G$395)*$G$396+(H48/$H$395)*$H$396+(I48/$I$395)*$I$396+(J48/$J$395)*$J$396+(K48/$K$395)*$K$396+(L48/$L$395)*$L$396+(M48/$M$395)*$M$396+(N48/$N$395)*$N$396+(O48/$O$395)*$O$396+(P48/$P$395)*$P$396+(Q48/$Q$395)*$Q$396+(R48/$R$395)*$R$396+(S48/$S$395)*$S$396 -> 3.499592933e-11
A49: CHEESE | B49: retail | C49: CHEESE retail | D49: =VLOOKUP($A49,retail,D$1,FALSE) -> 17.28479047 | E49: 5.143415139e-07 | F49: 3.054635563e-06 | G49: 0.2125036266 | H49: 0.01979772071 | I49: 0.434827033 | J49: 1.91820812 | K49: 0.0004985149955 | L49: 0.1403091556 | M49: 3.760100659 | N49: 421.0720209 | O49: 71.5385743 | P49: 5.536098983e-06 | Q49: 6.358438482e-09 | R49: 4.336351927e-07 | S49: 329.014804 | T49: =(D49/$D$395)*$D$396+(E49/$E$395)*$E$396+(F49/$F$395)*$F$396+(G49/$G$395)*$G$396+(H49/$H$395)*$H$396+(I49/$I$395)*$I$396+(J49/$J$395)*$J$396+(K49/$K$395)*$K$396+(L49/$L$395)*$L$396+(M49/$M$395)*$M$396+(N49/$N$395)*$N$396+(O49/$O$395)*$O$396+(P49/$P$395)*$P$396+(Q49/$Q$395)*$Q$396+(R49/$R$395)*$R$396+(S49/$S$395)*$S$396 -> 3.516502701e-11
A50: CHEESE | B50: use | C50: CHEESE use | D50: =VLOOKUP($A50,use,D$1,FALSE) -> 20.08367154 | E50: 5.796948212e-07 | F50: 3.291163163e-06 | G50: 0.2378891531 | H50: 0.02213519468 | I50: 0.4680699579 | J50: 2.06350185 | K50: 0.00237407684 | L50: 0.3413567545 | M50: 5.187422039 | N50: 453.523729 | O50: 79.02655335 | P50: 7.257497995e-06 | Q50: 6.97457527e-09 | R50: 4.691431839e-07 | S50: 618.9248661 | T50: =(D50/$D$395)*$D$396+(E50/$E$395)*$E$396+(F50/$F$395)*$F$396+(G50/$G$395)*$G$396+(H50/$H$395)*$H$396+(I50/$I$395)*$I$396+(J50/$J$395)*$J$396+(K50/$K$395)*$K$396+(L50/$L$395)*$L$396+(M50/$M$395)*$M$396+(N50/$N$395)*$N$396+(O50/$O$395)*$O$396+(P50/$P$395)*$P$396+(Q50/$Q$395)*$Q$396+(R50/$R$395)*$R$396+(S50/$S$395)*$S$396 -> 4.46030254e-11
A52: Dairy | B52: BUTTER
A53: BUTTER | B53: agriculture | C53: =CONCATENATE(A53," ", B53) -> BUTTER agriculture | D53: =VLOOKUP($A53,primary,D$1,FALSE) -> 34.31128195 | E53: 8.917075254e-08 | F53: 6.923455269e-06 | G53: 0.1507348576 | H53: 0.03189808376 | I53: 0.9840623822 | J53: 4.384550098 | K53: 0.001013029339 | L53: 0.3194164478 | M53: 7.829212422 | N53: 980.0394474 | O53: 87.11967762 | P53: 1.948193504e-06 | Q53: 1.257083527e-08 | R53: 9.652458215e-07 | S53: 731.4415051 | T53: =(D53/$D$395)*$D$396+(E53/$E$395)*$E$396+(F53/$F$395)*$F$396+(G53/$G$395)*$G$396+(H53/$H$395)*$H$396+(I53/$I$395)*$I$396+(J53/$J$395)*$J$396+(K53/$K$395)*$K$396+(L53/$L$395)*$L$396+(M53/$M$395)*$M$396+(N53/$N$395)*$N$396+(O53/$O$395)*$O$396+(P53/$P$395)*$P$396+(Q53/$Q$395)*$Q$396+(R53/$R$395)*$R$396+(S53/$S$395)*$S$396 -> 7.577605323e-11
A54: BUTTER | B54: manufacturing | C54: =CONCATENATE(A54," ", B54) -> BUTTER manufacturing | D54: =VLOOKUP($A54,manufacturing,D$1,FALSE) -> 36.18499519 | E54: 2.037590979e-07 | F54: 7.208305651e-06 | G54: 0.2071836656 | H54: 0.03515715306 | I54: 1.023122048 | J54: 4.551812877 | K54: 0.001092813431 | L54: 0.3321634477 | M54: 7.73040032 | N54: 1020.962871 | O54: 100.6915851 | P54: 7.233338975e-06 | Q54: 1.340443084e-08 | R54: 1.00871093e-06 | S54: 762.7335053 | T54: =(D54/$D$395)*$D$396+(E54/$E$395)*$E$396+(F54/$F$395)*$F$396+(G54/$G$395)*$G$396+(H54/$H$395)*$H$396+(I54/$I$395)*$I$396+(J54/$J$395)*$J$396+(K54/$K$395)*$K$396+(L54/$L$395)*$L$396+(M54/$M$395)*$M$396+(N54/$N$395)*$N$396+(O54/$O$395)*$O$396+(P54/$P$395)*$P$396+(Q54/$Q$395)*$Q$396+(R54/$R$395)*$R$396+(S54/$S$395)*$S$396 -> 7.931185546e-11
A55: BUTTER | B55: retail | C55: BUTTER retail | D55: =VLOOKUP($A55,retail,D$1,FALSE) -> 37.23573721 | E55: 8.881879006e-06 | F55: 7.214750091e-06 | G55: 0.2134229219 | H55: 0.03562602564 | I55: 1.023620872 | J55: 4.553443815 | K55: 0.001094644266 | L55: 0.3323083856 | M55: 7.74970897 | N55: 1021.964614 | O55: 102.0902881 | P55: 7.460728165e-06 | Q55: 1.345077808e-08 | R55: 1.009789642e-06 | S55: 763.4668816 | T55: =(D55/$D$395)*$D$396+(E55/$E$395)*$E$396+(F55/$F$395)*$F$396+(G55/$G$395)*$G$396+(H55/$H$395)*$H$396+(I55/$I$395)*$I$396+(J55/$J$395)*$J$396+(K55/$K$395)*$K$396+(L55/$L$395)*$L$396+(M55/$M$395)*$M$396+(N55/$N$395)*$N$396+(O55/$O$395)*$O$396+(P55/$P$395)*$P$396+(Q55/$Q$395)*$Q$396+(R55/$R$395)*$R$396+(S55/$S$395)*$S$396 -> 7.996819927e-11
A56: BUTTER | B56: use | C56: BUTTER use | D56: =VLOOKUP($A56,use,D$1,FALSE) -> 40.17425657 | E56: 9.555813834e-06 | F56: 7.745309711e-06 | G56: 0.2430105072 | H56: 0.03901684751 | I56: 1.098055321 | J56: 4.882495296 | K56: 0.001331860693 | L56: 0.3570587266 | M56: 9.514843289 | N56: 1097.91022 | O56: 112.7481721 | P56: 9.800681996e-06 | Q56: 1.46209352e-08 | R56: 1.08589028e-06 | S56: 831.8514942 | T56: =(D56/$D$395)*$D$396+(E56/$E$395)*$E$396+(F56/$F$395)*$F$396+(G56/$G$395)*$G$396+(H56/$H$395)*$H$396+(I56/$I$395)*$I$396+(J56/$J$395)*$J$396+(K56/$K$395)*$K$396+(L56/$L$395)*$L$396+(M56/$M$395)*$M$396+(N56/$N$395)*$N$396+(O56/$O$395)*$O$396+(P56/$P$395)*$P$396+(Q56/$Q$395)*$Q$396+(R56/$R$395)*$R$396+(S56/$S$395)*$S$396 -> 8.624711488e-11
A58: Eggs | B58: EGGS
A59: EGGS | B59: agriculture | C59: =CONCATENATE(A59," ", B59) -> EGGS agriculture | D59: =VLOOKUP($A59,primary,D$1,FALSE) -> 3.248183664 | E59: 1.994307251e-08 | F59: 6.757795803e-07 | G59: 0.03398301075 | H59: 0.006732005853 | I59: 0.08503658463 | J59: 0.377118252 | K59: 0.0003810101697 | L59: 0.01999418349 | M59: 2.741869642 | N59: 189.0148319 | O59: 16.21683678 | P59: 2.776834388e-07 | Q59: 2.173663896e-09 | R59: 6.843990095e-08 | S59: 321.4357385 | T59: =(D59/$D$395)*$D$396+(E59/$E$395)*$E$396+(F59/$F$395)*$F$396+(G59/$G$395)*$G$396+(H59/$H$395)*$H$396+(I59/$I$395)*$I$396+(J59/$J$395)*$J$396+(K59/$K$395)*$K$396+(L59/$L$395)*$L$396+(M59/$M$395)*$M$396+(N59/$N$395)*$N$396+(O59/$O$395)*$O$396+(P59/$P$395)*$P$396+(Q59/$Q$395)*$Q$396+(R59/$R$395)*$R$396+(S59/$S$395)*$S$396 -> 8.592774504e-12
A60: EGGS | B60: manufacturing | C60: =CONCATENATE(A60," ", B60) -> EGGS manufacturing | D60: =VLOOKUP($A60,manufacturing,D$1,FALSE) -> 3.533042179 | E60: 5.243403648e-07 | F60: 6.916393561e-07 | G60: 0.04746124023 | H60: 0.007456280881 | I60: 0.08716129972 | J60: 0.3837785435 | K60: 0.0003963029538 | L60: 0.02045432167 | M60: 2.799307021 | N60: 186.6029908 | O60: 19.57761544 | P60: 9.745272192e-07 | Q60: 2.279304036e-09 | R60: 7.180518981e-08 | S60: 325.9627465 | T60: =(D60/$D$395)*$D$396+(E60/$E$395)*$E$396+(F60/$F$395)*$F$396+(G60/$G$395)*$G$396+(H60/$H$395)*$H$396+(I60/$I$395)*$I$396+(J60/$J$395)*$J$396+(K60/$K$395)*$K$396+(L60/$L$395)*$L$396+(M60/$M$395)*$M$396+(N60/$N$395)*$N$396+(O60/$O$395)*$O$396+(P60/$P$395)*$P$396+(Q60/$Q$395)*$Q$396+(R60/$R$395)*$R$396+(S60/$S$395)*$S$396 -> 8.942860113e-12
A61: EGGS | B61: retail | C61: EGGS retail | D61: =VLOOKUP($A61,retail,D$1,FALSE) -> 3.62902805 | E61: 5.638360487e-07 | F61: 6.979501441e-07 | G61: 0.05332260818 | H61: 0.007928304919 | I61: 0.08763372745 | J61: 0.3855067948 | K61: 0.0003976616091 | L61: 0.02060362111 | M61: 2.813580392 | N61: 187.6560771 | O61: 20.84276505 | P61: 1.183895189e-06 | Q61: 2.307345186e-09 | R61: 7.276664197e-08 | S61: 326.5231922 | T61: =(D61/$D$395)*$D$396+(E61/$E$395)*$E$396+(F61/$F$395)*$F$396+(G61/$G$395)*$G$396+(H61/$H$395)*$H$396+(I61/$I$395)*$I$396+(J61/$J$395)*$J$396+(K61/$K$395)*$K$396+(L61/$L$395)*$L$396+(M61/$M$395)*$M$396+(N61/$N$395)*$N$396+(O61/$O$395)*$O$396+(P61/$P$395)*$P$396+(Q61/$Q$395)*$Q$396+(R61/$R$395)*$R$396+(S61/$S$395)*$S$396 -> 9.05702317e-12
A62: EGGS | B62: use | C62: EGGS use | D62: =VLOOKUP($A62,use,D$1,FALSE) -> 4.647372969 | E62: 6.68678014e-07 | F62: 7.941172278e-07 | G62: 0.0961184069 | H62: 0.01020956572 | I62: 0.100347414 | J62: 0.4371410597 | K62: 0.001256887878 | L62: 0.03425818539 | M62: 4.199836829 | N62: 211.8519551 | O62: 30.52597986 | P62: 2.332859315e-06 | Q62: 2.765040576e-09 | R62: 8.599529234e-08 | S62: 440.5635732 | T62: =(D62/$D$395)*$D$396+(E62/$E$395)*$E$396+(F62/$F$395)*$F$396+(G62/$G$395)*$G$396+(H62/$H$395)*$H$396+(I62/$I$395)*$I$396+(J62/$J$395)*$J$396+(K62/$K$395)*$K$396+(L62/$L$395)*$L$396+(M62/$M$395)*$M$396+(N62/$N$395)*$N$396+(O62/$O$395)*$O$396+(P62/$P$395)*$P$396+(Q62/$Q$395)*$Q$396+(R62/$R$395)*$R$396+(S62/$S$395)*$S$396 -> 1.158451787e-11
A64: Legumes | B64: BEANS
A65: BEANS | B65: agriculture | C65: =CONCATENATE(A65," ", B65) -> BEANS agriculture | D65: =VLOOKUP($A65,primary,D$1,FALSE) -> 0.8352812665 | E65: 6.40009755e-09 | F65: 3.550553814e-07 | G65: 0.01033817387 | H65: 0.002123282239 | I65: 0.05027317262 | J65: 0.2245737764 | K65: 0.001314755583 | L65: 0.02605359725 | M65: 0.2374559647 | N65: 168.6648621 | O65: 4.709123904 | P65: 2.096782253e-07 | Q65: 2.001184104e-08 | R65: 3.081248317e-07 | S65: 241.3598784 | T65: =(D65/$D$395)*$D$396+(E65/$E$395)*$E$396+(F65/$F$395)*$F$396+(G65/$G$395)*$G$396+(H65/$H$395)*$H$396+(I65/$I$395)*$I$396+(J65/$J$395)*$J$396+(K65/$K$395)*$K$396+(L65/$L$395)*$L$396+(M65/$M$395)*$M$396+(N65/$N$395)*$N$396+(O65/$O$395)*$O$396+(P65/$P$395)*$P$396+(Q65/$Q$395)*$Q$396+(R65/$R$395)*$R$396+(S65/$S$395)*$S$396 -> 6.087177361e-12
A66: BEANS | B66: manufacturing | C66: =CONCATENATE(A66," ", B66) -> BEANS manufacturing | D66: =VLOOKUP($A66,manufacturing,D$1,FALSE) -> 1.217539579 | E66: 4.507304225e-08 | F66: 3.892365656e-07 | G66: 0.03184162132 | H66: 0.004314581867 | I66: 0.05552756861 | J66: 0.2436850728 | K66: 0.001393737702 | L66: 0.02805759941 | M66: 0.358576049 | N66: 179.8282026 | O66: 10.92892433 | P66: 1.816341644e-06 | Q66: 2.11720086e-08 | R66: 3.271969838e-07 | S66: 255.5890227 | T66: =(D66/$D$395)*$D$396+(E66/$E$395)*$E$396+(F66/$F$395)*$F$396+(G66/$G$395)*$G$396+(H66/$H$395)*$H$396+(I66/$I$395)*$I$396+(J66/$J$395)*$J$396+(K66/$K$395)*$K$396+(L66/$L$395)*$L$396+(M66/$M$395)*$M$396+(N66/$N$395)*$N$396+(O66/$O$395)*$O$396+(P66/$P$395)*$P$396+(Q66/$Q$395)*$Q$396+(R66/$R$395)*$R$396+(S66/$S$395)*$S$396 -> 6.86700294e-12
A67: BEANS | B67: retail | C67: BEANS retail | D67: =VLOOKUP($A67,retail,D$1,FALSE) -> 1.294704084 | E67: 6.127580573e-08 | F67: 3.948367102e-07 | G67: 0.03731642657 | H67: 0.004709938357 | I67: 0.05591641997 | J67: 0.2450692208 | K67: 0.001394897986 | L67: 0.02818184345 | M67: 0.3657174187 | N67: 180.7739212 | O67: 12.1340137 | P67: 1.958100372e-06 | Q67: 2.119570437e-08 | R67: 3.280248825e-07 | S67: 256.0033604 | T67: =(D67/$D$395)*$D$396+(E67/$E$395)*$E$396+(F67/$F$395)*$F$396+(G67/$G$395)*$G$396+(H67/$H$395)*$H$396+(I67/$I$395)*$I$396+(J67/$J$395)*$J$396+(K67/$K$395)*$K$396+(L67/$L$395)*$L$396+(M67/$M$395)*$M$396+(N67/$N$395)*$N$396+(O67/$O$395)*$O$396+(P67/$P$395)*$P$396+(Q67/$Q$395)*$Q$396+(R67/$R$395)*$R$396+(S67/$S$395)*$S$396 -> 6.962962232e-12
A68: BEANS | B68: use | C68: BEANS use | D68: =VLOOKUP($A68,use,D$1,FALSE) -> 2.478136022 | E68: 1.236698136e-07 | F68: 4.344522352e-07 | G68: 0.05150524483 | H68: 0.007136223251 | I68: 0.06198597846 | J68: 0.2676297125 | K68: 0.002094688491 | L68: 0.03844556256 | M68: 1.542393384 | N68: 192.2882569 | O68: 23.43839934 | P68: 2.858384169e-06 | Q68: 2.248806314e-08 | R68: 3.487641317e-07 | S68: 328.1424419 | T68: =(D68/$D$395)*$D$396+(E68/$E$395)*$E$396+(F68/$F$395)*$F$396+(G68/$G$395)*$G$396+(H68/$H$395)*$H$396+(I68/$I$395)*$I$396+(J68/$J$395)*$J$396+(K68/$K$395)*$K$396+(L68/$L$395)*$L$396+(M68/$M$395)*$M$396+(N68/$N$395)*$N$396+(O68/$O$395)*$O$396+(P68/$P$395)*$P$396+(Q68/$Q$395)*$Q$396+(R68/$R$395)*$R$396+(S68/$S$395)*$S$396 -> 8.930088729e-12
A70: Legumes | B70: TOFU
A71: TOFU | B71: agriculture | C71: =CONCATENATE(A71," ", B71) -> TOFU agriculture | D71: =VLOOKUP($A71,primary,D$1,FALSE) -> 2.326022559 | E71: 1.477903511e-09 | F71: 1.556404323e-08 | G71: 0.002423700312 | H71: 0.0004869751567 | I71: 0.001881845989 | J71: 0.008287414864 | K71: 0.0002882947764 | L71: 0.002270221447 | M71: 0.1000001283 | N71: 81.45170115 | O71: 1.28220113 | P71: 8.33571903e-08 | Q71: 4.787182207e-10 | R71: 2.918050626e-08 | S71: 133.8087819 | T71: =(D71/$D$395)*$D$396+(E71/$E$395)*$E$396+(F71/$F$395)*$F$396+(G71/$G$395)*$G$396+(H71/$H$395)*$H$396+(I71/$I$395)*$I$396+(J71/$J$395)*$J$396+(K71/$K$395)*$K$396+(L71/$L$395)*$L$396+(M71/$M$395)*$M$396+(N71/$N$395)*$N$396+(O71/$O$395)*$O$396+(P71/$P$395)*$P$396+(Q71/$Q$395)*$Q$396+(R71/$R$395)*$R$396+(S71/$S$395)*$S$396 -> 2.037914076e-12
A72: TOFU | B72: manufacturing | C72: =CONCATENATE(A72," ", B72) -> TOFU manufacturing | D72: =VLOOKUP($A72,manufacturing,D$1,FALSE) -> 2.873493932 | E72: 4.32977762e-08 | F72: 3.638882229e-08 | G72: 0.02067537489 | H72: 0.002479307513 | I72: 0.004655785363 | J72: 0.01547102687 | K72: 0.0003165095228 | L72: 0.003018766513 | M72: 0.1958409264 | N72: 82.74280369 | O72: 8.364897249 | P72: 1.980744053e-06 | Q72: 6.460670985e-10 | R72: 3.50011712e-08 | S72: 142.6605483 | T72: =(D72/$D$395)*$D$396+(E72/$E$395)*$E$396+(F72/$F$395)*$F$396+(G72/$G$395)*$G$396+(H72/$H$395)*$H$396+(I72/$I$395)*$I$396+(J72/$J$395)*$J$396+(K72/$K$395)*$K$396+(L72/$L$395)*$L$396+(M72/$M$395)*$M$396+(N72/$N$395)*$N$396+(O72/$O$395)*$O$396+(P72/$P$395)*$P$396+(Q72/$Q$395)*$Q$396+(R72/$R$395)*$R$396+(S72/$S$395)*$S$396 -> 2.667464021e-12
A73: TOFU | B73: retail | C73: TOFU retail | D73: =VLOOKUP($A73,retail,D$1,FALSE) -> 3.922922381 | E73: 8.714289102e-06 | F73: 4.318170197e-08 | G73: 0.02728546484 | H73: 0.002957910826 | I73: 0.005154093984 | J73: 0.01708859135 | K73: 0.0003182572692 | L73: 0.00316407431 | M73: 0.2104931344 | N73: 83.8044676 | O73: 9.873935699 | P73: 2.188933748e-06 | Q73: 6.923926659e-10 | R73: 3.609396621e-08 | S73: 143.367716 | T73: =(D73/$D$395)*$D$396+(E73/$E$395)*$E$396+(F73/$F$395)*$F$396+(G73/$G$395)*$G$396+(H73/$H$395)*$H$396+(I73/$I$395)*$I$396+(J73/$J$395)*$J$396+(K73/$K$395)*$K$396+(L73/$L$395)*$L$396+(M73/$M$395)*$M$396+(N73/$N$395)*$N$396+(O73/$O$395)*$O$396+(P73/$P$395)*$P$396+(Q73/$Q$395)*$Q$396+(R73/$R$395)*$R$396+(S73/$S$395)*$S$396 -> 3.325280317e-12
A74: TOFU | B74: use | C74: TOFU use | D74: =VLOOKUP($A74,use,D$1,FALSE) -> 4.821527784 | E74: 9.240084028e-06 | F74: 5.854884902e-08 | G74: 0.03859947825 | H74: 0.004187107638 | I74: 0.007176150652 | J74: 0.023329546 | K74: 0.0007779542498 | L74: 0.01138413679 | M74: 1.302163473 | N74: 93.77869771 | O74: 22.12463452 | P74: 3.081934816e-06 | Q74: 9.425085129e-10 | R74: 4.235073219e-08 | S74: 175.0140227 | T74: =(D74/$D$395)*$D$396+(E74/$E$395)*$E$396+(F74/$F$395)*$F$396+(G74/$G$395)*$G$396+(H74/$H$395)*$H$396+(I74/$I$395)*$I$396+(J74/$J$395)*$J$396+(K74/$K$395)*$K$396+(L74/$L$395)*$L$396+(M74/$M$395)*$M$396+(N74/$N$395)*$N$396+(O74/$O$395)*$O$396+(P74/$P$395)*$P$396+(Q74/$Q$395)*$Q$396+(R74/$R$395)*$R$396+(S74/$S$395)*$S$396 -> 4.649576092e-12
A76: Cereal products | B76: BREAD
A77: BREAD | B77: agriculture | C77: =CONCATENATE(A77," ", B77) -> BREAD agriculture | D77: =VLOOKUP($A77,primary,D$1,FALSE) -> 0.2833869575 | E77: 1.136983811e-09 | F77: 3.970327235e-08 | G77: 0.001889150103 | H77: 0.0004825845512 | I77: 0.005542421678 | J77: 0.02478744327 | K77: 7.878670922e-05 | L77: 0.006917718758 | M77: 0.1008685512 | N77: 41.16620566 | O77: 1.856504084 | P77: 5.515929614e-08 | Q77: 7.364410847e-10 | R77: 2.295720538e-08 | S77: 73.7070411 | T77: =(D77/$D$395)*$D$396+(E77/$E$395)*$E$396+(F77/$F$395)*$F$396+(G77/$G$395)*$G$396+(H77/$H$395)*$H$396+(I77/$I$395)*$I$396+(J77/$J$395)*$J$396+(K77/$K$395)*$K$396+(L77/$L$395)*$L$396+(M77/$M$395)*$M$396+(N77/$N$395)*$N$396+(O77/$O$395)*$O$396+(P77/$P$395)*$P$396+(Q77/$Q$395)*$Q$396+(R77/$R$395)*$R$396+(S77/$S$395)*$S$396 -> 1.073418652e-12
A78: BREAD | B78: manufacturing | C78: =CONCATENATE(A78," ", B78) -> BREAD manufacturing | D78: =VLOOKUP($A78,manufacturing,D$1,FALSE) -> 0.8286072656 | E78: 5.376911723e-08 | F78: 5.675253396e-08 | G78: 0.07929699342 | H78: 0.002124729191 | I78: 0.008890884999 | J78: 0.03227625449 | K78: 0.0001297479456 | L78: 0.007860422275 | M78: 0.3264544938 | N78: 47.02882103 | O78: 13.70824304 | P78: 1.263618718e-06 | Q78: 9.822287068e-10 | R78: 3.087362338e-08 | S78: 80.58056514 | T78: =(D78/$D$395)*$D$396+(E78/$E$395)*$E$396+(F78/$F$395)*$F$396+(G78/$G$395)*$G$396+(H78/$H$395)*$H$396+(I78/$I$395)*$I$396+(J78/$J$395)*$J$396+(K78/$K$395)*$K$396+(L78/$L$395)*$L$396+(M78/$M$395)*$M$396+(N78/$N$395)*$N$396+(O78/$O$395)*$O$396+(P78/$P$395)*$P$396+(Q78/$Q$395)*$Q$396+(R78/$R$395)*$R$396+(S78/$S$395)*$S$396 -> 1.811568646e-12
A79: BREAD | B79: retail | C79: BREAD retail | D79: =VLOOKUP($A79,retail,D$1,FALSE) -> 0.9214629128 | E79: 7.043807726e-08 | F79: 6.297573497e-08 | G79: 0.08505222235 | H79: 0.002617511635 | I79: 0.009382984048 | J79: 0.03411203151 | K79: 0.0001311022737 | L79: 0.008006496017 | M79: 0.3390908445 | N79: 48.04208804 | O79: 14.94203991 | P79: 1.514127201e-06 | Q79: 1.009198904e-09 | R79: 3.180161044e-08 | S79: 81.2234522 | T79: =(D79/$D$395)*$D$396+(E79/$E$395)*$E$396+(F79/$F$395)*$F$396+(G79/$G$395)*$G$396+(H79/$H$395)*$H$396+(I79/$I$395)*$I$396+(J79/$J$395)*$J$396+(K79/$K$395)*$K$396+(L79/$L$395)*$L$396+(M79/$M$395)*$M$396+(N79/$N$395)*$N$396+(O79/$O$395)*$O$396+(P79/$P$395)*$P$396+(Q79/$Q$395)*$Q$396+(R79/$R$395)*$R$396+(S79/$S$395)*$S$396 -> 1.924993518e-12
A80: BREAD | B80: use | C80: BREAD use | D80: =VLOOKUP($A80,use,D$1,FALSE) -> 1.443982418 | E80: 1.088338838e-07 | F80: 9.432486702e-08 | G80: 0.1209633226 | H80: 0.00408918423 | I80: 0.01371281635 | J80: 0.0499221392 | K80: 0.0005274044321 | L80: 0.01773490942 | M80: 1.191486319 | N80: 66.82194324 | O80: 21.45588274 | P80: 2.727355254e-06 | Q80: 1.463280821e-09 | R80: 4.520173881e-08 | S80: 142.5632657 | T80: =(D80/$D$395)*$D$396+(E80/$E$395)*$E$396+(F80/$F$395)*$F$396+(G80/$G$395)*$G$396+(H80/$H$395)*$H$396+(I80/$I$395)*$I$396+(J80/$J$395)*$J$396+(K80/$K$395)*$K$396+(L80/$L$395)*$L$396+(M80/$M$395)*$M$396+(N80/$N$395)*$N$396+(O80/$O$395)*$O$396+(P80/$P$395)*$P$396+(Q80/$Q$395)*$Q$396+(R80/$R$395)*$R$396+(S80/$S$395)*$S$396 -> 3.26538446e-12
A82: Cereal products | B82: PASTA
A83: PASTA | B83: agriculture | C83: =CONCATENATE(A83," ", B83) -> PASTA agriculture | D83: =VLOOKUP($A83,primary,D$1,FALSE) -> 0.6303196514 | E83: 7.627617445e-08 | F83: 1.177203889e-07 | G83: 0.01969138963 | H83: 0.001767598424 | I83: 0.01599645352 | J83: 0.06695339237 | K83: 0.0002449055433 | L83: 0.01472171075 | M83: 1.449321977 | N83: 204.1654148 | O83: 6.192943686 | P83: 2.734105428e-06 | Q83: 2.965829197e-10 | R83: 6.878093035e-09 | S83: 10.55644329 | T83: =(D83/$D$395)*$D$396+(E83/$E$395)*$E$396+(F83/$F$395)*$F$396+(G83/$G$395)*$G$396+(H83/$H$395)*$H$396+(I83/$I$395)*$I$396+(J83/$J$395)*$J$396+(K83/$K$395)*$K$396+(L83/$L$395)*$L$396+(M83/$M$395)*$M$396+(N83/$N$395)*$N$396+(O83/$O$395)*$O$396+(P83/$P$395)*$P$396+(Q83/$Q$395)*$Q$396+(R83/$R$395)*$R$396+(S83/$S$395)*$S$396 -> 2.070476349e-12
A84: PASTA | B84: manufacturing | C84: =CONCATENATE(A84," ", B84) -> PASTA manufacturing | D84: =VLOOKUP($A84,manufacturing,D$1,FALSE) -> 1.28901282 | E84: 1.339422072e-07 | F84: 1.421097533e-07 | G84: 0.05735230005 | H84: 0.003672312288 | I84: 0.01960467446 | J84: 0.0785507939 | K84: 0.0002815298117 | L84: 0.01642984278 | M84: 1.619591839 | N84: 205.8188815 | O84: 16.60328511 | P84: 4.671965842e-06 | Q84: 4.77496234e-10 | R84: 1.231667413e-08 | S84: 13.57452226 | T84: =(D84/$D$395)*$D$396+(E84/$E$395)*$E$396+(F84/$F$395)*$F$396+(G84/$G$395)*$G$396+(H84/$H$395)*$H$396+(I84/$I$395)*$I$396+(J84/$J$395)*$J$396+(K84/$K$395)*$K$396+(L84/$L$395)*$L$396+(M84/$M$395)*$M$396+(N84/$N$395)*$N$396+(O84/$O$395)*$O$396+(P84/$P$395)*$P$396+(Q84/$Q$395)*$Q$396+(R84/$R$395)*$R$396+(S84/$S$395)*$S$396 -> 2.846830708e-12
A85: PASTA | B85: retail | C85: PASTA retail | D85: =VLOOKUP($A85,retail,D$1,FALSE) -> 1.483514335 | E85: 1.736276213e-07 | F85: 1.546899238e-07 | G85: 0.06937656262 | H85: 0.004827769784 | I85: 0.02084730042 | J85: 0.08273759846 | K85: 0.0002838994147 | L85: 0.01680602619 | M85: 1.634302819 | N85: 207.5207161 | O85: 19.48684211 | P85: 5.06787023e-06 | Q85: 5.405672236e-10 | R85: 1.424591004e-08 | S85: 14.63808564 | T85: =(D85/$D$395)*$D$396+(E85/$E$395)*$E$396+(F85/$F$395)*$F$396+(G85/$G$395)*$G$396+(H85/$H$395)*$H$396+(I85/$I$395)*$I$396+(J85/$J$395)*$J$396+(K85/$K$395)*$K$396+(L85/$L$395)*$L$396+(M85/$M$395)*$M$396+(N85/$N$395)*$N$396+(O85/$O$395)*$O$396+(P85/$P$395)*$P$396+(Q85/$Q$395)*$Q$396+(R85/$R$395)*$R$396+(S85/$S$395)*$S$396 -> 3.091661058e-12
A86: PASTA | B86: use | C86: PASTA use | D86: =VLOOKUP($A86,use,D$1,FALSE) -> 2.903610665 | E86: 2.917352721e-07 | F86: 2.28750918e-07 | G86: 0.1429240922 | H86: 0.008457682218 | I86: 0.03162537099 | J86: 0.1207674486 | K86: 0.001005786194 | L86: 0.0263352134 | M86: 3.43947953 | N86: 285.6985928 | O86: 37.32784375 | P86: 8.070935184e-06 | Q86: 9.850440853e-10 | R86: 2.550034492e-08 | S86: 64.91420708 | T86: =(D86/$D$395)*$D$396+(E86/$E$395)*$E$396+(F86/$F$395)*$F$396+(G86/$G$395)*$G$396+(H86/$H$395)*$H$396+(I86/$I$395)*$I$396+(J86/$J$395)*$J$396+(K86/$K$395)*$K$396+(L86/$L$395)*$L$396+(M86/$M$395)*$M$396+(N86/$N$395)*$N$396+(O86/$O$395)*$O$396+(P86/$P$395)*$P$396+(Q86/$Q$395)*$Q$396+(R86/$R$395)*$R$396+(S86/$S$395)*$S$396 -> 5.550619649e-12
A88: Cereal products | B88: RICE
A89: RICE | B89: agriculture | C89: =CONCATENATE(A89," ", B89) -> RICE agriculture | D89: =VLOOKUP($A89,primary,D$1,FALSE) -> 3.518036127 | E89: 7.331686579e-09 | F89: 1.086186055e-07 | G89: 0.01185922724 | H89: 0.002823054037 | I89: 0.01455149548 | J89: 0.06299832948 | K89: 0.0001695585702 | L89: 0.01334395239 | M89: 28.16571061 | N89: 103.4981049 | O89: 5.211940805 | P89: 1.894973662e-07 | Q89: 1.094923851e-09 | R89: 5.694656898e-08 | S89: 268.2495453 | T89: =(D89/$D$395)*$D$396+(E89/$E$395)*$E$396+(F89/$F$395)*$F$396+(G89/$G$395)*$G$396+(H89/$H$395)*$H$396+(I89/$I$395)*$I$396+(J89/$J$395)*$J$396+(K89/$K$395)*$K$396+(L89/$L$395)*$L$396+(M89/$M$395)*$M$396+(N89/$N$395)*$N$396+(O89/$O$395)*$O$396+(P89/$P$395)*$P$396+(Q89/$Q$395)*$Q$396+(R89/$R$395)*$R$396+(S89/$S$395)*$S$396 -> 7.203297811e-12
A90: RICE | B90: manufacturing | C90: =CONCATENATE(A90," ", B90) -> RICE manufacturing | D90: =VLOOKUP($A90,manufacturing,D$1,FALSE) -> 4.276021214 | E90: 4.661760725e-08 | F90: 1.365193805e-07 | G90: 0.03610946776 | H90: 0.005350733592 | I90: 0.01923581574 | J90: 0.07855753143 | K90: 0.0002018888182 | L90: 0.01553461208 | M90: 31.37178971 | N90: 114.1859654 | O90: 10.90584417 | P90: 1.525636816e-06 | Q90: 1.343376474e-09 | R90: 6.694486525e-08 | S90: 300.2814461 | T90: =(D90/$D$395)*$D$396+(E90/$E$395)*$E$396+(F90/$F$395)*$F$396+(G90/$G$395)*$G$396+(H90/$H$395)*$H$396+(I90/$I$395)*$I$396+(J90/$J$395)*$J$396+(K90/$K$395)*$K$396+(L90/$L$395)*$L$396+(M90/$M$395)*$M$396+(N90/$N$395)*$N$396+(O90/$O$395)*$O$396+(P90/$P$395)*$P$396+(Q90/$Q$395)*$Q$396+(R90/$R$395)*$R$396+(S90/$S$395)*$S$396 -> 8.468935634e-12
A91: RICE | B91: retail | C91: RICE retail | D91: =VLOOKUP($A91,retail,D$1,FALSE) -> 4.357851543 | E91: 6.321011997e-08 | F91: 1.42340902e-07 | G91: 0.04171224872 | H91: 0.00576744619 | I91: 0.01964800551 | J91: 0.08003579569 | K91: 0.0002031073454 | L91: 0.01566651967 | M91: 31.38109476 | N91: 115.167225 | O91: 12.13250043 | P91: 1.684191179e-06 | Q91: 1.368421146e-09 | R91: 6.781488152e-08 | S91: 300.7326232 | T91: =(D91/$D$395)*$D$396+(E91/$E$395)*$E$396+(F91/$F$395)*$F$396+(G91/$G$395)*$G$396+(H91/$H$395)*$H$396+(I91/$I$395)*$I$396+(J91/$J$395)*$J$396+(K91/$K$395)*$K$396+(L91/$L$395)*$L$396+(M91/$M$395)*$M$396+(N91/$N$395)*$N$396+(O91/$O$395)*$O$396+(P91/$P$395)*$P$396+(Q91/$Q$395)*$Q$396+(R91/$R$395)*$R$396+(S91/$S$395)*$S$396 -> 8.569767234e-12
A92: RICE | B92: use | C92: RICE use | D92: =VLOOKUP($A92,use,D$1,FALSE) -> 6.246867443 | E92: 1.124440058e-07 | F92: 2.024105711e-07 | G92: 0.06416266334 | H92: 0.008483478264 | I92: 0.02764362812 | J92: 0.1116683683 | K92: 0.00051846183 | L92: 0.02438295489 | M92: 44.17834704 | N92: 158.6458103 | O92: 20.14007108 | P92: 3.011142522e-06 | Q92: 1.990640932e-09 | R92: 9.490848677e-08 | S92: 429.7170055 | T92: =(D92/$D$395)*$D$396+(E92/$E$395)*$E$396+(F92/$F$395)*$F$396+(G92/$G$395)*$G$396+(H92/$H$395)*$H$396+(I92/$I$395)*$I$396+(J92/$J$395)*$J$396+(K92/$K$395)*$K$396+(L92/$L$395)*$L$396+(M92/$M$395)*$M$396+(N92/$N$395)*$N$396+(O92/$O$395)*$O$396+(P92/$P$395)*$P$396+(Q92/$Q$395)*$Q$396+(R92/$R$395)*$R$396+(S92/$S$395)*$S$396 -> 1.232228931e-11
A94: Vegetables | B94: TOMATOES
A95: TOMATOES | B95: agriculture | C95: =CONCATENATE(A95," ", B95) -> TOMATOES agriculture | D95: =VLOOKUP($A95,primary,D$1,FALSE) -> 0.3595153196 | E95: 2.646347708e-08 | F95: 7.106513651e-08 | G95: 0.009421480438 | H95: 0.001377090978 | I95: 0.004123341352 | J95: 0.01414694798 | K95: 1.54562736e-05 | L95: 0.001001963334 | M95: 2.306910594 | N95: 5.124360958 | O95: 5.350514441 | P95: 3.95785923e-06 | Q95: 1.78707743e-09 | R95: 1.724930842e-08 | S95: 13.41698732 | T95: =(D95/$D$395)*$D$396+(E95/$E$395)*$E$396+(F95/$F$395)*$F$396+(G95/$G$395)*$G$396+(H95/$H$395)*$H$396+(I95/$I$395)*$I$396+(J95/$J$395)*$J$396+(K95/$K$395)*$K$396+(L95/$L$395)*$L$396+(M95/$M$395)*$M$396+(N95/$N$395)*$N$396+(O95/$O$395)*$O$396+(P95/$P$395)*$P$396+(Q95/$Q$395)*$Q$396+(R95/$R$395)*$R$396+(S95/$S$395)*$S$396 -> 1.018047619e-12
A96: TOMATOES | B96: manufacturing | C96: =CONCATENATE(A96," ", B96) -> TOMATOES manufacturing | D96: =VLOOKUP($A96,manufacturing,D$1,FALSE) -> 0.5866718209 | E96: 8.988101514e-07 | F96: 7.999744068e-08 | G96: 0.01514246655 | H96: 0.001959155785 | I96: 0.0051066165 | J96: 0.01710087438 | K96: 2.104920563e-05 | L96: 0.001258685953 | M96: 2.41358459 | N96: -1.519528962 | O96: 7.173417542 | P96: 5.577160852e-06 | Q96: 1.953378512e-09 | R96: 2.011418866e-08 | S96: 15.26348626 | T96: =(D96/$D$395)*$D$396+(E96/$E$395)*$E$396+(F96/$F$395)*$F$396+(G96/$G$395)*$G$396+(H96/$H$395)*$H$396+(I96/$I$395)*$I$396+(J96/$J$395)*$J$396+(K96/$K$395)*$K$396+(L96/$L$395)*$L$396+(M96/$M$395)*$M$396+(N96/$N$395)*$N$396+(O96/$O$395)*$O$396+(P96/$P$395)*$P$396+(Q96/$Q$395)*$Q$396+(R96/$R$395)*$R$396+(S96/$S$395)*$S$396 -> 1.269271963e-12
A97: TOMATOES | B97: retail | C97: TOMATOES retail | D97: =VLOOKUP($A97,retail,D$1,FALSE) -> 0.7026657851 | E97: 9.38947531e-07 | F97: 8.700011013e-08 | G97: 0.02124200319 | H97: 0.002515112891 | I97: 0.005677994323 | J97: 0.01923999319 | K97: 2.269114976e-05 | L97: 0.00144033178 | M97: 2.440387076 | N97: -0.3588848224 | O97: 8.445565846 | P97: 5.871989506e-06 | Q97: 1.987095694e-09 | R97: 2.124238018e-08 | S97: 15.99991501 | T97: =(D97/$D$395)*$D$396+(E97/$E$395)*$E$396+(F97/$F$395)*$F$396+(G97/$G$395)*$G$396+(H97/$H$395)*$H$396+(I97/$I$395)*$I$396+(J97/$J$395)*$J$396+(K97/$K$395)*$K$396+(L97/$L$395)*$L$396+(M97/$M$395)*$M$396+(N97/$N$395)*$N$396+(O97/$O$395)*$O$396+(P97/$P$395)*$P$396+(Q97/$Q$395)*$Q$396+(R97/$R$395)*$R$396+(S97/$S$395)*$S$396 -> 1.402555605e-12
A98: TOMATOES | B98: use | C98: TOMATOES use | D98: =VLOOKUP($A98,use,D$1,FALSE) -> 1.125141936 | E98: 1.300806175e-06 | F98: 1.263320621e-07 | G98: 0.03514435983 | H98: 0.003869182502 | I98: 0.008374370826 | J98: 0.02812708998 | K98: 0.0001686712664 | L98: 0.002853385567 | M98: 4.415896755 | N98: 1.366986549 | O98: 12.83277036 | P98: 8.699044355e-06 | Q98: 2.825712927e-09 | R98: 3.1165072e-08 | S98: 33.647412 | T98: =(D98/$D$395)*$D$396+(E98/$E$395)*$E$396+(F98/$F$395)*$F$396+(G98/$G$395)*$G$396+(H98/$H$395)*$H$396+(I98/$I$395)*$I$396+(J98/$J$395)*$J$396+(K98/$K$395)*$K$396+(L98/$L$395)*$L$396+(M98/$M$395)*$M$396+(N98/$N$395)*$N$396+(O98/$O$395)*$O$396+(P98/$P$395)*$P$396+(Q98/$Q$395)*$Q$396+(R98/$R$395)*$R$396+(S98/$S$395)*$S$396 -> 2.296791176e-12
A100: Tubers | B100: POTATOES
A101: POTATOES | B101: agriculture | C101: =CONCATENATE(A101," ", B101) -> POTATOES agriculture | D101: =VLOOKUP($A101,primary,D$1,FALSE) -> 0.0943769716 | E101: 1.06572683e-09 | F101: 1.362083814e-08 | G101: 0.001724437179 | H101: 0.0002737487952 | I101: 0.00178828869 | J101: 0.007941743236 | K101: 5.475383471e-05 | L101: 0.002081783203 | M101: 0.05596322218 | N101: 13.86779791 | O101: 0.7580449549 | P101: 3.385831928e-08 | Q101: 2.574402801e-10 | R101: 1.885248844e-08 | S101: 280.8437187 | T101: =(D101/$D$395)*$D$396+(E101/$E$395)*$E$396+(F101/$F$395)*$F$396+(G101/$G$395)*$G$396+(H101/$H$395)*$H$396+(I101/$I$395)*$I$396+(J101/$J$395)*$J$396+(K101/$K$395)*$K$396+(L101/$L$395)*$L$396+(M101/$M$395)*$M$396+(N101/$N$395)*$N$396+(O101/$O$395)*$O$396+(P101/$P$395)*$P$396+(Q101/$Q$395)*$Q$396+(R101/$R$395)*$R$396+(S101/$S$395)*$S$396 -> 1.648036371e-12
A102: POTATOES | B102: manufacturing | C102: =CONCATENATE(A102," ", B102) -> POTATOES manufacturing | D102: =VLOOKUP($A102,manufacturing,D$1,FALSE) -> 0.3226971385 | E102: 8.505348563e-07 | F102: 1.968112582e-08 | G102: 0.01367536935 | H102: 0.0008292724101 | I102: 0.002679709561 | J102: 0.01012575578 | K102: 6.424663703e-05 | L102: 0.002239612637 | M102: 0.1038345032 | N102: 14.76980644 | O102: 3.369169108 | P102: 2.813106458e-06 | Q102: 3.295498351e-10 | R102: 2.040209968e-08 | S102: 282.4020037 | T102: =(D102/$D$395)*$D$396+(E102/$E$395)*$E$396+(F102/$F$395)*$F$396+(G102/$G$395)*$G$396+(H102/$H$395)*$H$396+(I102/$I$395)*$I$396+(J102/$J$395)*$J$396+(K102/$K$395)*$K$396+(L102/$L$395)*$L$396+(M102/$M$395)*$M$396+(N102/$N$395)*$N$396+(O102/$O$395)*$O$396+(P102/$P$395)*$P$396+(Q102/$Q$395)*$Q$396+(R102/$R$395)*$R$396+(S102/$S$395)*$S$396 -> 1.921708095e-12
A103: POTATOES | B103: retail | C103: POTATOES retail | D103: =VLOOKUP($A103,retail,D$1,FALSE) -> 0.4384710436 | E103: 1.036137485e-06 | F103: 2.617544068e-08 | G103: 0.01954868614 | H103: 0.001332137605 | I103: 0.003192383518 | J103: 0.01201984262 | K103: 6.575453272e-05 | L103: 0.002401583712 | M103: 0.1244151075 | N103: 15.84870915 | O103: 4.611086832 | P103: 3.062099811e-06 | Q103: 3.601694745e-10 | R103: 2.1428457e-08 | S103: 283.0427101 | T103: =(D103/$D$395)*$D$396+(E103/$E$395)*$E$396+(F103/$F$395)*$F$396+(G103/$G$395)*$G$396+(H103/$H$395)*$H$396+(I103/$I$395)*$I$396+(J103/$J$395)*$J$396+(K103/$K$395)*$K$396+(L103/$L$395)*$L$396+(M103/$M$395)*$M$396+(N103/$N$395)*$N$396+(O103/$O$395)*$O$396+(P103/$P$395)*$P$396+(Q103/$Q$395)*$Q$396+(R103/$R$395)*$R$396+(S103/$S$395)*$S$396 -> 2.050364181e-12
A104: POTATOES | B104: use | C104: POTATOES use | D104: =VLOOKUP($A104,use,D$1,FALSE) -> 1.128185806 | E104: 1.377322916e-06 | F104: 4.520235797e-08 | G104: 0.05121591124 | H104: 0.002786389441 | I104: 0.005878129994 | J104: 0.02005668252 | K104: 0.0004369047443 | L104: 0.00604459208 | M104: 0.9825905535 | N104: 22.78971559 | O104: 12.0430803 | P104: 4.797495746e-06 | Q104: 6.276081094e-10 | R104: 3.196378853e-08 | S104: 405.0458234 | T104: =(D104/$D$395)*$D$396+(E104/$E$395)*$E$396+(F104/$F$395)*$F$396+(G104/$G$395)*$G$396+(H104/$H$395)*$H$396+(I104/$I$395)*$I$396+(J104/$J$395)*$J$396+(K104/$K$395)*$K$396+(L104/$L$395)*$L$396+(M104/$M$395)*$M$396+(N104/$N$395)*$N$396+(O104/$O$395)*$O$396+(P104/$P$395)*$P$396+(Q104/$Q$395)*$Q$396+(R104/$R$395)*$R$396+(S104/$S$395)*$S$396 -> 3.54400987e-12
A106: Oils | B106: SUNFLOWER OIL
A107: SUNFLOWER OIL | B107: agriculture | C107: =CONCATENATE(A107," ", B107) -> SUNFLOWER OIL agriculture | D107: =VLOOKUP($A107,primary,D$1,FALSE) -> 2.660741816 | E107: 2.534838017e-08 | F107: 4.800380504e-07 | G107: 0.04025669829 | H107: 0.006836545447 | I107: 0.06494583828 | J107: 0.2889588762 | K107: 0.001563297421 | L107: 0.06355000359 | M107: 0.9005113419 | N107: 816.707715 | O107: 17.31337454 | P107: 9.108597888e-07 | Q107: 1.556653349e-08 | R107: 4.150861066e-07 | S107: 2379.240255 | T107: =(D107/$D$395)*$D$396+(E107/$E$395)*$E$396+(F107/$F$395)*$F$396+(G107/$G$395)*$G$396+(H107/$H$395)*$H$396+(I107/$I$395)*$I$396+(J107/$J$395)*$J$396+(K107/$K$395)*$K$396+(L107/$L$395)*$L$396+(M107/$M$395)*$M$396+(N107/$N$395)*$N$396+(O107/$O$395)*$O$396+(P107/$P$395)*$P$396+(Q107/$Q$395)*$Q$396+(R107/$R$395)*$R$396+(S107/$S$395)*$S$396 -> 2.036815506e-11
A108: SUNFLOWER OIL | B108: manufacturing | C108: =CONCATENATE(A108," ", B108) -> SUNFLOWER OIL manufacturing | D108: =VLOOKUP($A108,manufacturing,D$1,FALSE) -> 3.098688345 | E108: 4.374463255e-08 | F108: 5.846037173e-07 | G108: 0.05938429809 | H108: 0.01239918241 | I108: 0.07890345536 | J108: 0.3484283293 | K108: 0.001736759703 | L108: 0.07522634413 | M108: 1.758600833 | N108: 965.0839364 | O108: 29.54479248 | P108: 1.692916759e-05 | Q108: 1.854515499e-08 | R108: 4.959820099e-07 | S108: 2812.293151 | T108: =(D108/$D$395)*$D$396+(E108/$E$395)*$E$396+(F108/$F$395)*$F$396+(G108/$G$395)*$G$396+(H108/$H$395)*$H$396+(I108/$I$395)*$I$396+(J108/$J$395)*$J$396+(K108/$K$395)*$K$396+(L108/$L$395)*$L$396+(M108/$M$395)*$M$396+(N108/$N$395)*$N$396+(O108/$O$395)*$O$396+(P108/$P$395)*$P$396+(Q108/$Q$395)*$Q$396+(R108/$R$395)*$R$396+(S108/$S$395)*$S$396 -> 2.472889108e-11
A109: SUNFLOWER OIL | B109: retail | C109: SUNFLOWER OIL retail | D109: =VLOOKUP($A109,retail,D$1,FALSE) -> 3.177540419 | E109: 6.002165762e-08 | F109: 5.9027764e-07 | G109: 0.06489737926 | H109: 0.01280578977 | I109: 0.07930393453 | J109: 0.3498634314 | K109: 0.001737939618 | L109: 0.07535287603 | M109: 1.766182037 | N109: 966.0374943 | O109: 30.75515465 | P109: 1.708316721e-05 | Q109: 1.856918185e-08 | R109: 4.968203468e-07 | S109: 2812.733477 | T109: =(D109/$D$395)*$D$396+(E109/$E$395)*$E$396+(F109/$F$395)*$F$396+(G109/$G$395)*$G$396+(H109/$H$395)*$H$396+(I109/$I$395)*$I$396+(J109/$J$395)*$J$396+(K109/$K$395)*$K$396+(L109/$L$395)*$L$396+(M109/$M$395)*$M$396+(N109/$N$395)*$N$396+(O109/$O$395)*$O$396+(P109/$P$395)*$P$396+(Q109/$Q$395)*$Q$396+(R109/$R$395)*$R$396+(S109/$S$395)*$S$396 -> 2.482681292e-11
A110: SUNFLOWER OIL | B110: use | C110: SUNFLOWER OIL use | D110: =VLOOKUP($A110,use,D$1,FALSE) -> 3.830300318 | E110: 9.484577566e-08 | F110: 6.265207285e-07 | G110: 0.0733941983 | H110: 0.01403004817 | I110: 0.0841442755 | J110: 0.3700945209 | K110: 0.001835369716 | L110: 0.07985993994 | M110: 2.447010241 | N110: 1017.720445 | O110: 37.69437537 | P110: 1.823351912e-05 | Q110: 1.963335027e-08 | R110: 5.249528048e-07 | S110: 2962.685479 | T110: =(D110/$D$395)*$D$396+(E110/$E$395)*$E$396+(F110/$F$395)*$F$396+(G110/$G$395)*$G$396+(H110/$H$395)*$H$396+(I110/$I$395)*$I$396+(J110/$J$395)*$J$396+(K110/$K$395)*$K$396+(L110/$L$395)*$L$396+(M110/$M$395)*$M$396+(N110/$N$395)*$N$396+(O110/$O$395)*$O$396+(P110/$P$395)*$P$396+(Q110/$Q$395)*$Q$396+(R110/$R$395)*$R$396+(S110/$S$395)*$S$396 -> 2.656413539e-11
A112: Oils | B112: OLIVE OIL
A113: OLIVE OIL | B113: agriculture | C113: =CONCATENATE(A113," ", B113) -> OLIVE OIL agriculture | D113: =VLOOKUP($A113,primary,D$1,FALSE) -> 2.482390451 | E113: 1.986597259e-07 | F113: 4.85051211e-07 | G113: 0.06669551069 | H113: 0.01402205736 | I113: 0.06974778769 | J113: 0.2956562237 | K113: 0.0008860755447 | L113: 0.0255030357 | M113: 11.06837323 | N113: 652.5764134 | O113: 21.83846477 | P113: 1.354599136e-05 | Q113: 6.330944294e-09 | R113: 3.186963075e-07 | S113: 45.51486249 | T113: =(D113/$D$395)*$D$396+(E113/$E$395)*$E$396+(F113/$F$395)*$F$396+(G113/$G$395)*$G$396+(H113/$H$395)*$H$396+(I113/$I$395)*$I$396+(J113/$J$395)*$J$396+(K113/$K$395)*$K$396+(L113/$L$395)*$L$396+(M113/$M$395)*$M$396+(N113/$N$395)*$N$396+(O113/$O$395)*$O$396+(P113/$P$395)*$P$396+(Q113/$Q$395)*$Q$396+(R113/$R$395)*$R$396+(S113/$S$395)*$S$396 -> 8.871157736e-12
A114: OLIVE OIL | B114: manufacturing | C114: =CONCATENATE(A114," ", B114) -> OLIVE OIL manufacturing | D114: =VLOOKUP($A114,manufacturing,D$1,FALSE) -> 3.878897238 | E114: 3.556123114e-07 | F114: 5.552417437e-07 | G114: 0.1501685061 | H114: 0.0178325749 | I114: 0.0760781444 | J114: 0.3089467637 | K114: 0.001862198457 | L114: 0.02733068439 | M114: 11.81293267 | N114: 661.968406 | O114: 42.29188464 | P114: 4.644562692e-05 | Q114: 8.611020307e-09 | R114: 3.350055224e-07 | S114: 55.46485567 | T114: =(D114/$D$395)*$D$396+(E114/$E$395)*$E$396+(F114/$F$395)*$F$396+(G114/$G$395)*$G$396+(H114/$H$395)*$H$396+(I114/$I$395)*$I$396+(J114/$J$395)*$J$396+(K114/$K$395)*$K$396+(L114/$L$395)*$L$396+(M114/$M$395)*$M$396+(N114/$N$395)*$N$396+(O114/$O$395)*$O$396+(P114/$P$395)*$P$396+(Q114/$Q$395)*$Q$396+(R114/$R$395)*$R$396+(S114/$S$395)*$S$396 -> 1.126299633e-11
A115: OLIVE OIL | B115: retail | C115: OLIVE OIL retail | D115: =VLOOKUP($A115,retail,D$1,FALSE) -> 4.008183249 | E115: 3.846331046e-07 | F115: 5.65205746e-07 | G115: 0.1593665594 | H115: 0.01851772331 | I115: 0.07673156214 | J115: 0.3113053466 | K115: 0.001863767301 | L115: 0.02754466861 | M115: 11.82071941 | N115: 663.6455109 | O115: 44.36924331 | P115: 4.666833536e-05 | Q115: 8.650741088e-09 | R115: 3.364106212e-07 | S115: 56.14205326 | T115: =(D115/$D$395)*$D$396+(E115/$E$395)*$E$396+(F115/$F$395)*$F$396+(G115/$G$395)*$G$396+(H115/$H$395)*$H$396+(I115/$I$395)*$I$396+(J115/$J$395)*$J$396+(K115/$K$395)*$K$396+(L115/$L$395)*$L$396+(M115/$M$395)*$M$396+(N115/$N$395)*$N$396+(O115/$O$395)*$O$396+(P115/$P$395)*$P$396+(Q115/$Q$395)*$Q$396+(R115/$R$395)*$R$396+(S115/$S$395)*$S$396 -> 1.142610935e-11
A116: OLIVE OIL | B116: use | C116: OLIVE OIL use | D116: =VLOOKUP($A116,use,D$1,FALSE) -> 4.817552811 | E116: 4.617295248e-07 | F116: 6.613498799e-07 | G116: 0.1910831779 | H116: 0.02186624337 | I116: 0.08939961339 | J116: 0.3619179187 | K116: 0.002165693304 | L116: 0.0321983719 | M116: 14.85346638 | N116: 770.1139636 | O116: 53.29588179 | P116: 5.467329013e-05 | Q116: 1.012081563e-08 | R116: 3.914674824e-07 | S116: 66.67472834 | T116: =(D116/$D$395)*$D$396+(E116/$E$395)*$E$396+(F116/$F$395)*$F$396+(G116/$G$395)*$G$396+(H116/$H$395)*$H$396+(I116/$I$395)*$I$396+(J116/$J$395)*$J$396+(K116/$K$395)*$K$396+(L116/$L$395)*$L$396+(M116/$M$395)*$M$396+(N116/$N$395)*$N$396+(O116/$O$395)*$O$396+(P116/$P$395)*$P$396+(Q116/$Q$395)*$Q$396+(R116/$R$395)*$R$396+(S116/$S$395)*$S$396 -> 1.353581837e-11
A118: Fruits | B118: APPLES
A119: APPLES | B119: agriculture | C119: =CONCATENATE(A119," ", B119) -> APPLES agriculture | D119: =VLOOKUP($A119,primary,D$1,FALSE) -> 0.07670992184 | E119: 7.192712209e-09 | F119: 7.137232048e-09 | G119: 0.003432925036 | H119: 0.000551058086 | I119: 0.0008906224701 | J119: 0.003110640269 | K119: 2.159415045e-05 | L119: 0.0001704005705 | M119: 2.264709203 | N119: 19.08453525 | O119: 1.022181754 | P119: 1.438074374e-06 | Q119: 5.743547079e-10 | R119: -6.937353738e-10 | S119: 7.325065736 | T119: =(D119/$D$395)*$D$396+(E119/$E$395)*$E$396+(F119/$F$395)*$F$396+(G119/$G$395)*$G$396+(H119/$H$395)*$H$396+(I119/$I$395)*$I$396+(J119/$J$395)*$J$396+(K119/$K$395)*$K$396+(L119/$L$395)*$L$396+(M119/$M$395)*$M$396+(N119/$N$395)*$N$396+(O119/$O$395)*$O$396+(P119/$P$395)*$P$396+(Q119/$Q$395)*$Q$396+(R119/$R$395)*$R$396+(S119/$S$395)*$S$396 -> 4.48762626e-13
A120: APPLES | B120: manufacturing | C120: =CONCATENATE(A120," ", B120) -> APPLES manufacturing | D120: =VLOOKUP($A120,manufacturing,D$1,FALSE) -> 1.193226897 | E120: 7.887663449e-06 | F120: 2.066996815e-08 | G120: 0.03623292416 | H120: 0.002510892663 | I120: 0.0037334983 | J120: 0.01109256512 | K120: 4.347322427e-05 | L120: 0.0007776278048 | M120: 2.775811578 | N120: 24.42885961 | O120: 6.218147221 | P120: 2.71711128e-06 | Q120: 8.092759338e-10 | R120: 2.693713827e-09 | S120: 10.99076388 | T120: =(D120/$D$395)*$D$396+(E120/$E$395)*$E$396+(F120/$F$395)*$F$396+(G120/$G$395)*$G$396+(H120/$H$395)*$H$396+(I120/$I$395)*$I$396+(J120/$J$395)*$J$396+(K120/$K$395)*$K$396+(L120/$L$395)*$L$396+(M120/$M$395)*$M$396+(N120/$N$395)*$N$396+(O120/$O$395)*$O$396+(P120/$P$395)*$P$396+(Q120/$Q$395)*$Q$396+(R120/$R$395)*$R$396+(S120/$S$395)*$S$396 -> 1.405722861e-12
A121: APPLES | B121: retail | C121: APPLES retail | D121: =VLOOKUP($A121,retail,D$1,FALSE) -> 1.303466895 | E121: 7.904367435e-06 | F121: 2.735133784e-08 | G121: 0.0420519949 | H121: 0.003054575229 | I121: 0.004295825083 | J121: 0.01320811314 | K121: 4.511588617e-05 | L121: 0.0009535979476 | M121: 2.803035829 | N121: 25.52961678 | O121: 7.417973903 | P121: 3.021123921e-06 | Q121: 8.418642958e-10 | R121: 3.780719359e-09 | S121: 11.73781322 | T121: =(D121/$D$395)*$D$396+(E121/$E$395)*$E$396+(F121/$F$395)*$F$396+(G121/$G$395)*$G$396+(H121/$H$395)*$H$396+(I121/$I$395)*$I$396+(J121/$J$395)*$J$396+(K121/$K$395)*$K$396+(L121/$L$395)*$L$396+(M121/$M$395)*$M$396+(N121/$N$395)*$N$396+(O121/$O$395)*$O$396+(P121/$P$395)*$P$396+(Q121/$Q$395)*$Q$396+(R121/$R$395)*$R$396+(S121/$S$395)*$S$396 -> 1.533693495e-12
A122: APPLES | B122: use | C122: APPLES use | D122: =VLOOKUP($A122,use,D$1,FALSE) -> 2.012533338 | E122: 1.085550443e-05 | F122: 4.462149186e-08 | G122: 0.0635984141 | H122: 0.00464409873 | I122: 0.006511189663 | J122: 0.0200435994 | K122: 0.0001026781035 | L122: 0.002285304285 | M122: 4.800157667 | N122: 36.81173672 | O122: 11.40074744 | P122: 4.763773727e-06 | Q122: 1.255712686e-09 | R122: 7.387869238e-09 | S122: 25.23344286 | T122: =(D122/$D$395)*$D$396+(E122/$E$395)*$E$396+(F122/$F$395)*$F$396+(G122/$G$395)*$G$396+(H122/$H$395)*$H$396+(I122/$I$395)*$I$396+(J122/$J$395)*$J$396+(K122/$K$395)*$K$396+(L122/$L$395)*$L$396+(M122/$M$395)*$M$396+(N122/$N$395)*$N$396+(O122/$O$395)*$O$396+(P122/$P$395)*$P$396+(Q122/$Q$395)*$Q$396+(R122/$R$395)*$R$396+(S122/$S$395)*$S$396 -> 2.45658306e-12
A124: Fruits | B124: ORANGES
A125: ORANGES | B125: agriculture | C125: =CONCATENATE(A125," ", B125) -> ORANGES agriculture | D125: =VLOOKUP($A125,primary,D$1,FALSE) -> 0.2698997136 | E125: 1.81532271e-08 | F125: 3.293513327e-08 | G125: 0.007492046324 | H125: 0.001534873784 | I125: 0.004838045836 | J125: 0.02005699214 | K125: 3.490411097e-05 | L125: 0.001223024506 | M125: 10.09150074 | N125: 26.54343732 | O125: 2.170045665 | P125: 1.542748936e-06 | Q125: 3.508256214e-10 | R125: 1.991237752e-08 | S125: 9.489846449 | T125: =(D125/$D$395)*$D$396+(E125/$E$395)*$E$396+(F125/$F$395)*$F$396+(G125/$G$395)*$G$396+(H125/$H$395)*$H$396+(I125/$I$395)*$I$396+(J125/$J$395)*$J$396+(K125/$K$395)*$K$396+(L125/$L$395)*$L$396+(M125/$M$395)*$M$396+(N125/$N$395)*$N$396+(O125/$O$395)*$O$396+(P125/$P$395)*$P$396+(Q125/$Q$395)*$Q$396+(R125/$R$395)*$R$396+(S125/$S$395)*$S$396 -> 1.667794795e-12
A126: ORANGES | B126: manufacturing | C126: =CONCATENATE(A126," ", B126) -> ORANGES manufacturing | D126: =VLOOKUP($A126,manufacturing,D$1,FALSE) -> 1.163420453 | E126: 4.181295444e-06 | F126: 5.729233519e-08 | G126: 0.03179416643 | H126: 0.004254801735 | I126: 0.009186854938 | J126: 0.03478192676 | K126: 5.680205345e-05 | L126: 0.002296263152 | M126: 12.68350613 | N126: 28.25164719 | O126: 6.937426402 | P126: 4.271180241e-06 | Q126: 6.000928312e-10 | R126: 2.918077382e-08 | S126: 15.22613527 | T126: =(D126/$D$395)*$D$396+(E126/$E$395)*$E$396+(F126/$F$395)*$F$396+(G126/$G$395)*$G$396+(H126/$H$395)*$H$396+(I126/$I$395)*$I$396+(J126/$J$395)*$J$396+(K126/$K$395)*$K$396+(L126/$L$395)*$L$396+(M126/$M$395)*$M$396+(N126/$N$395)*$N$396+(O126/$O$395)*$O$396+(P126/$P$395)*$P$396+(Q126/$Q$395)*$Q$396+(R126/$R$395)*$R$396+(S126/$S$395)*$S$396 -> 2.818195651e-12
A127: ORANGES | B127: retail | C127: ORANGES retail | D127: =VLOOKUP($A127,retail,D$1,FALSE) -> 1.278570524 | E127: 4.19920391e-06 | F127: 6.439017253e-08 | G127: 0.03794159022 | H127: 0.004825852358 | I127: 0.009773822219 | J127: 0.03699005052 | K127: 5.846993391e-05 | L127: 0.002480940397 | M127: 12.71089706 | N127: 29.42221698 | O127: 8.215479672 | P127: 4.582691624e-06 | Q127: 6.341974385e-10 | R127: 3.03222773e-08 | S127: 15.9975111 | T127: =(D127/$D$395)*$D$396+(E127/$E$395)*$E$396+(F127/$F$395)*$F$396+(G127/$G$395)*$G$396+(H127/$H$395)*$H$396+(I127/$I$395)*$I$396+(J127/$J$395)*$J$396+(K127/$K$395)*$K$396+(L127/$L$395)*$L$396+(M127/$M$395)*$M$396+(N127/$N$395)*$N$396+(O127/$O$395)*$O$396+(P127/$P$395)*$P$396+(Q127/$Q$395)*$Q$396+(R127/$R$395)*$R$396+(S127/$S$395)*$S$396 -> 2.952436943e-12
A128: ORANGES | B128: use | C128: ORANGES use | D128: =VLOOKUP($A128,use,D$1,FALSE) -> 1.98986354 | E128: 5.773098373e-06 | F128: 9.54737822e-08 | G128: 0.05791685905 | H128: 0.007083039669 | I128: 0.01404198327 | J128: 0.05274622494 | K128: 0.0001511992361 | L128: 0.004548355097 | M128: 18.35436415 | N128: 42.11332102 | O128: 12.49011256 | P128: 6.907133889e-06 | Q128: 9.708495427e-10 | R128: 4.382916897e-08 | S128: 36.44910707 | T128: =(D128/$D$395)*$D$396+(E128/$E$395)*$E$396+(F128/$F$395)*$F$396+(G128/$G$395)*$G$396+(H128/$H$395)*$H$396+(I128/$I$395)*$I$396+(J128/$J$395)*$J$396+(K128/$K$395)*$K$396+(L128/$L$395)*$L$396+(M128/$M$395)*$M$396+(N128/$N$395)*$N$396+(O128/$O$395)*$O$396+(P128/$P$395)*$P$396+(Q128/$Q$395)*$Q$396+(R128/$R$395)*$R$396+(S128/$S$395)*$S$396 -> 4.441815815e-12
A130: Fruits | B130: BANANAS
A131: BANANAS | B131: agriculture | C131: =CONCATENATE(A131," ", B131) -> BANANAS agriculture | D131: =VLOOKUP($A131,primary,D$1,FALSE) -> 0.1953092035 | E131: 1.713725952e-08 | F131: 2.311898919e-08 | G131: 0.006221513945 | H131: 0.0009802781888 | I131: 0.003387962669 | J131: 0.01418075915 | K131: 4.248919402e-05 | L131: 0.005716362885 | M131: 12.54895108 | N131: 17.74803495 | O131: 1.972789163 | P131: 8.06082796e-07 | Q131: 1.896084289e-10 | R131: -3.598487387e-09 | S131: 1.695997191 | T131: =(D131/$D$395)*$D$396+(E131/$E$395)*$E$396+(F131/$F$395)*$F$396+(G131/$G$395)*$G$396+(H131/$H$395)*$H$396+(I131/$I$395)*$I$396+(J131/$J$395)*$J$396+(K131/$K$395)*$K$396+(L131/$L$395)*$L$396+(M131/$M$395)*$M$396+(N131/$N$395)*$N$396+(O131/$O$395)*$O$396+(P131/$P$395)*$P$396+(Q131/$Q$395)*$Q$396+(R131/$R$395)*$R$396+(S131/$S$395)*$S$396 -> 1.811673224e-12
A132: BANANAS | B132: manufacturing | C132: =CONCATENATE(A132," ", B132) -> BANANAS manufacturing | D132: =VLOOKUP($A132,manufacturing,D$1,FALSE) -> 0.840810474 | E132: 1.923858125e-06 | F132: 4.444135655e-08 | G132: 0.03062921467 | H132: 0.004080496221 | I132: 0.007661874492 | J132: 0.02629708375 | K132: 5.607390824e-05 | L132: 0.007054335816 | M132: 13.6379251 | N132: 11.63766914 | O132: 10.40977 | P132: 2.991095257e-06 | Q132: 3.781250641e-10 | R132: 6.848429765e-10 | S132: 4.122605804 | T132: =(D132/$D$395)*$D$396+(E132/$E$395)*$E$396+(F132/$F$395)*$F$396+(G132/$G$395)*$G$396+(H132/$H$395)*$H$396+(I132/$I$395)*$I$396+(J132/$J$395)*$J$396+(K132/$K$395)*$K$396+(L132/$L$395)*$L$396+(M132/$M$395)*$M$396+(N132/$N$395)*$N$396+(O132/$O$395)*$O$396+(P132/$P$395)*$P$396+(Q132/$Q$395)*$Q$396+(R132/$R$395)*$R$396+(S132/$S$395)*$S$396 -> 2.675131598e-12
A133: BANANAS | B133: retail | C133: BANANAS retail | D133: =VLOOKUP($A133,retail,D$1,FALSE) -> 0.9611952362 | E133: 1.964752567e-06 | F133: 5.170985861e-08 | G133: 0.03691887731 | H133: 0.004663162599 | I133: 0.008259652074 | J133: 0.02854503132 | K133: 5.77595923e-05 | L133: 0.007242628759 | M133: 13.66543819 | N133: 12.83652036 | O133: 11.72104842 | P133: 3.306405591e-06 | Q133: 4.129209003e-10 | R133: 1.849581514e-09 | S133: 4.905804643 | T133: =(D133/$D$395)*$D$396+(E133/$E$395)*$E$396+(F133/$F$395)*$F$396+(G133/$G$395)*$G$396+(H133/$H$395)*$H$396+(I133/$I$395)*$I$396+(J133/$J$395)*$J$396+(K133/$K$395)*$K$396+(L133/$L$395)*$L$396+(M133/$M$395)*$M$396+(N133/$N$395)*$N$396+(O133/$O$395)*$O$396+(P133/$P$395)*$P$396+(Q133/$Q$395)*$Q$396+(R133/$R$395)*$R$396+(S133/$S$395)*$S$396 -> 2.813718795e-12
A134: BANANAS | B134: use | C134: BANANAS use | D134: =VLOOKUP($A134,use,D$1,FALSE) -> 1.608392147 | E134: 2.707713234e-06 | F134: 7.780316355e-08 | G134: 0.0557190309 | H134: 0.006878368929 | I134: 0.01196901964 | J134: 0.04129221321 | K134: 0.0001733968783 | L134: 0.01126961383 | M134: 19.44315125 | N134: 19.10614831 | O134: 17.17630019 | P134: 5.128405151e-06 | Q134: 6.623584278e-10 | R134: 4.818477452e-09 | S134: 15.62411541 | T134: =(D134/$D$395)*$D$396+(E134/$E$395)*$E$396+(F134/$F$395)*$F$396+(G134/$G$395)*$G$396+(H134/$H$395)*$H$396+(I134/$I$395)*$I$396+(J134/$J$395)*$J$396+(K134/$K$395)*$K$396+(L134/$L$395)*$L$396+(M134/$M$395)*$M$396+(N134/$N$395)*$N$396+(O134/$O$395)*$O$396+(P134/$P$395)*$P$396+(Q134/$Q$395)*$Q$396+(R134/$R$395)*$R$396+(S134/$S$395)*$S$396 -> 4.228980393e-12
A136: Sugar | B136: SUGAR
A137: SUGAR | B137: agriculture | C137: =CONCATENATE(A137," ", B137) -> SUGAR agriculture | D137: =VLOOKUP($A137,primary,D$1,FALSE) -> 0.2632314775 | E137: 1.926275256e-09 | F137: 3.547560691e-08 | G137: 0.003136608749 | H137: 0.0006263720703 | I137: 0.004723246232 | J137: 0.02107088318 | K137: 0.0001423112641 | L137: 0.007176627463 | M137: 0.1217512684 | N137: 38.26353471 | O137: 1.737601856 | P137: 7.914563586e-08 | Q137: 7.07159491e-10 | R137: 1.924358376e-08 | S137: 88.56946296 | T137: =(D137/$D$395)*$D$396+(E137/$E$395)*$E$396+(F137/$F$395)*$F$396+(G137/$G$395)*$G$396+(H137/$H$395)*$H$396+(I137/$I$395)*$I$396+(J137/$J$395)*$J$396+(K137/$K$395)*$K$396+(L137/$L$395)*$L$396+(M137/$M$395)*$M$396+(N137/$N$395)*$N$396+(O137/$O$395)*$O$396+(P137/$P$395)*$P$396+(Q137/$Q$395)*$Q$396+(R137/$R$395)*$R$396+(S137/$S$395)*$S$396 -> 1.116996722e-12
A138: SUGAR | B138: manufacturing | C138: =CONCATENATE(A138," ", B138) -> SUGAR manufacturing | D138: =VLOOKUP($A138,manufacturing,D$1,FALSE) -> 0.590447651 | E138: 7.021429758e-09 | F138: 4.263978518e-08 | G138: 0.006431316092 | H138: 0.001668532666 | I138: 0.005767628245 | J138: 0.0251094044 | K138: 0.0001441437914 | L138: 0.007547552 | M138: 0.4060643159 | N138: 39.02158384 | O138: 6.999601237 | P138: 1.99488257e-07 | Q138: 7.594591364e-10 | R138: 1.985310961e-08 | S138: 88.8510487 | T138: =(D138/$D$395)*$D$396+(E138/$E$395)*$E$396+(F138/$F$395)*$F$396+(G138/$G$395)*$G$396+(H138/$H$395)*$H$396+(I138/$I$395)*$I$396+(J138/$J$395)*$J$396+(K138/$K$395)*$K$396+(L138/$L$395)*$L$396+(M138/$M$395)*$M$396+(N138/$N$395)*$N$396+(O138/$O$395)*$O$396+(P138/$P$395)*$P$396+(Q138/$Q$395)*$Q$396+(R138/$R$395)*$R$396+(S138/$S$395)*$S$396 -> 1.456049427e-12
A139: SUGAR | B139: retail | C139: SUGAR retail | D139: =VLOOKUP($A139,retail,D$1,FALSE) -> 0.6651534567 | E139: 2.333305491e-08 | F139: 4.817509485e-08 | G139: 0.01197183375 | H139: 0.002052636895 | I139: 0.006143623849 | J139: 0.02643226526 | K139: 0.0001452982317 | L139: 0.007667487393 | M139: 0.4111828027 | N139: 39.95950581 | O139: 8.224732999 | P139: 3.265473495e-07 | Q139: 7.825268755e-10 | R139: 2.066408433e-08 | S139: 89.23669986 | T139: =(D139/$D$395)*$D$396+(E139/$E$395)*$E$396+(F139/$F$395)*$F$396+(G139/$G$395)*$G$396+(H139/$H$395)*$H$396+(I139/$I$395)*$I$396+(J139/$J$395)*$J$396+(K139/$K$395)*$K$396+(L139/$L$395)*$L$396+(M139/$M$395)*$M$396+(N139/$N$395)*$N$396+(O139/$O$395)*$O$396+(P139/$P$395)*$P$396+(Q139/$Q$395)*$Q$396+(R139/$R$395)*$R$396+(S139/$S$395)*$S$396 -> 1.549908028e-12
A140: SUGAR | B140: use | C140: SUGAR use | D140: =VLOOKUP($A140,use,D$1,FALSE) -> 0.9532948636 | E140: 3.923892667e-08 | F140: 6.348889209e-08 | G140: 0.01918586774 | H140: 0.002830270973 | I140: 0.007859300402 | J140: 0.03319765329 | K140: 0.0001852724806 | L140: 0.009520575516 | M140: 1.168845874 | N140: 49.56052583 | O140: 10.95040677 | P140: 9.574450822e-07 | Q140: 1.022950921e-09 | R140: 2.660045842e-08 | S140: 109.3454695 | T140: =(D140/$D$395)*$D$396+(E140/$E$395)*$E$396+(F140/$F$395)*$F$396+(G140/$G$395)*$G$396+(H140/$H$395)*$H$396+(I140/$I$395)*$I$396+(J140/$J$395)*$J$396+(K140/$K$395)*$K$396+(L140/$L$395)*$L$396+(M140/$M$395)*$M$396+(N140/$N$395)*$N$396+(O140/$O$395)*$O$396+(P140/$P$395)*$P$396+(Q140/$Q$395)*$Q$396+(R140/$R$395)*$R$396+(S140/$S$395)*$S$396 -> 2.085483805e-12
A142: Confectionery | B142: BISCUITS
A143: BISCUITS | B143: agriculture | C143: =CONCATENATE(A143," ", B143) -> BISCUITS agriculture | D143: =VLOOKUP($A143,primary,D$1,FALSE) -> 0.6113654056 | E143: 2.308814604e-09 | F143: 8.669996904e-08 | G143: 0.003885078258 | H143: 0.000852399803 | I143: 0.01164435142 | J143: 0.0518569823 | K143: 9.720767266e-05 | L143: 0.007697032548 | M143: 0.2539565183 | N143: 49.38988787 | O143: 2.658068403 | P143: 6.758327026e-08 | Q143: 7.513319791e-10 | R143: 2.517503784e-08 | S143: 85.4167976 | T143: =(D143/$D$395)*$D$396+(E143/$E$395)*$E$396+(F143/$F$395)*$F$396+(G143/$G$395)*$G$396+(H143/$H$395)*$H$396+(I143/$I$395)*$I$396+(J143/$J$395)*$J$396+(K143/$K$395)*$K$396+(L143/$L$395)*$L$396+(M143/$M$395)*$M$396+(N143/$N$395)*$N$396+(O143/$O$395)*$O$396+(P143/$P$395)*$P$396+(Q143/$Q$395)*$Q$396+(R143/$R$395)*$R$396+(S143/$S$395)*$S$396 -> 1.623591159e-12
A144: BISCUITS | B144: manufacturing | C144: =CONCATENATE(A144," ", B144) -> BISCUITS manufacturing | D144: =VLOOKUP($A144,manufacturing,D$1,FALSE) -> 1.598982528 | E144: 1.133596452e-07 | F144: 1.129855531e-07 | G144: 0.08446583012 | H144: 0.003188994017 | I144: 0.01639651153 | J144: 0.06136161238 | K144: 0.0001370961814 | L144: 0.008568282213 | M144: 1.277726973 | N144: 44.25068011 | O144: 23.13113844 | P144: 1.955908102e-06 | Q144: 1.168772114e-09 | R144: 3.57963335e-08 | S144: 90.22456309 | T144: =(D144/$D$395)*$D$396+(E144/$E$395)*$E$396+(F144/$F$395)*$F$396+(G144/$G$395)*$G$396+(H144/$H$395)*$H$396+(I144/$I$395)*$I$396+(J144/$J$395)*$J$396+(K144/$K$395)*$K$396+(L144/$L$395)*$L$396+(M144/$M$395)*$M$396+(N144/$N$395)*$N$396+(O144/$O$395)*$O$396+(P144/$P$395)*$P$396+(Q144/$Q$395)*$Q$396+(R144/$R$395)*$R$396+(S144/$S$395)*$S$396 -> 2.839288175e-12
A145: BISCUITS | B145: retail | C145: BISCUITS retail | D145: =VLOOKUP($A145,retail,D$1,FALSE) -> 1.697600128 | E145: 1.32816251e-07 | F145: 1.220662488e-07 | G145: 0.09077790984 | H145: 0.003895813466 | I145: 0.01703929133 | J145: 0.06395645772 | K145: 0.0001385758806 | L145: 0.008801115377 | M145: 1.288204248 | N145: 45.35380978 | O145: 24.5972368 | P145: 2.149063742e-06 | Q145: 1.216413982e-09 | R145: 3.703182885e-08 | S145: 90.77965959 | T145: =(D145/$D$395)*$D$396+(E145/$E$395)*$E$396+(F145/$F$395)*$F$396+(G145/$G$395)*$G$396+(H145/$H$395)*$H$396+(I145/$I$395)*$I$396+(J145/$J$395)*$J$396+(K145/$K$395)*$K$396+(L145/$L$395)*$L$396+(M145/$M$395)*$M$396+(N145/$N$395)*$N$396+(O145/$O$395)*$O$396+(P145/$P$395)*$P$396+(Q145/$Q$395)*$Q$396+(R145/$R$395)*$R$396+(S145/$S$395)*$S$396 -> 2.975535186e-12
A146: BISCUITS | B146: use | C146: BISCUITS use | D146: =VLOOKUP($A146,use,D$1,FALSE) -> 1.943137776 | E146: 1.544154145e-07 | F146: 1.389186595e-07 | G146: 0.1022333207 | H146: 0.004607200242 | I146: 0.01910709221 | J146: 0.07165356944 | K146: 0.0004899267676 | L146: 0.01711834239 | M146: 2.289881804 | N146: 49.91613059 | O146: 27.42792255 | P146: 2.896278046e-06 | Q146: 1.385324005e-09 | R146: 4.120766809e-08 | S146: 128.0470371 | T146: =(D146/$D$395)*$D$396+(E146/$E$395)*$E$396+(F146/$F$395)*$F$396+(G146/$G$395)*$G$396+(H146/$H$395)*$H$396+(I146/$I$395)*$I$396+(J146/$J$395)*$J$396+(K146/$K$395)*$K$396+(L146/$L$395)*$L$396+(M146/$M$395)*$M$396+(N146/$N$395)*$N$396+(O146/$O$395)*$O$396+(P146/$P$395)*$P$396+(Q146/$Q$395)*$Q$396+(R146/$R$395)*$R$396+(S146/$S$395)*$S$396 -> 3.828557835e-12
A148: Confectionery | B148: CHOCOLATE
A149: CHOCOLATE | B149: agriculture | C149: =CONCATENATE(A149," ", B149) -> CHOCOLATE agriculture | D149: =VLOOKUP($A149,primary,D$1,FALSE) -> 13.66961474 | E149: 8.139315583e-07 | F149: 3.746760486e-07 | G149: 0.04820232176 | H149: 0.02513607636 | I149: 0.03500273932 | J149: 0.1168137588 | K149: 0.0008173761687 | L149: 0.0538816257 | M149: 75.50250701 | N149: 1063.346593 | O149: 14.19071422 | P149: 2.837469332e-05 | Q149: 1.651747534e-08 | R149: 1.013218738e-07 | S149: 72.47216646 | T149: =(D149/$D$395)*$D$396+(E149/$E$395)*$E$396+(F149/$F$395)*$F$396+(G149/$G$395)*$G$396+(H149/$H$395)*$H$396+(I149/$I$395)*$I$396+(J149/$J$395)*$J$396+(K149/$K$395)*$K$396+(L149/$L$395)*$L$396+(M149/$M$395)*$M$396+(N149/$N$395)*$N$396+(O149/$O$395)*$O$396+(P149/$P$395)*$P$396+(Q149/$Q$395)*$Q$396+(R149/$R$395)*$R$396+(S149/$S$395)*$S$396 -> 2.033701875e-11
A150: CHOCOLATE | B150: manufacturing | C150: =CONCATENATE(A150," ", B150) -> CHOCOLATE manufacturing | D150: =VLOOKUP($A150,manufacturing,D$1,FALSE) -> 15.80170093 | E150: 1.006895214e-06 | F150: 4.684467752e-07 | G150: 0.1369240599 | H150: 0.03338131875 | I150: 0.04601245062 | J150: 0.1491051863 | K150: 0.0009127770991 | L150: 0.05911301676 | M150: 80.12049048 | N150: 1119.264874 | O150: 39.71517754 | P150: 3.744596754e-05 | Q150: 1.798639166e-08 | R150: 1.187315449e-07 | S150: 81.5126142 | T150: =(D150/$D$395)*$D$396+(E150/$E$395)*$E$396+(F150/$F$395)*$F$396+(G150/$G$395)*$G$396+(H150/$H$395)*$H$396+(I150/$I$395)*$I$396+(J150/$J$395)*$J$396+(K150/$K$395)*$K$396+(L150/$L$395)*$L$396+(M150/$M$395)*$M$396+(N150/$N$395)*$N$396+(O150/$O$395)*$O$396+(P150/$P$395)*$P$396+(Q150/$Q$395)*$Q$396+(R150/$R$395)*$R$396+(S150/$S$395)*$S$396 -> 2.328977689e-11
A151: CHOCOLATE | B151: retail | C151: CHOCOLATE retail | D151: =VLOOKUP($A151,retail,D$1,FALSE) -> 15.88765045 | E151: 1.024710914e-06 | F151: 4.746720207e-07 | G151: 0.1428910181 | H151: 0.03382754801 | I151: 0.04645000621 | J151: 0.1506807288 | K151: 0.0009140169306 | L151: 0.05925151419 | M151: 80.12854807 | N151: 1120.309038 | O151: 41.02965158 | P151: 3.761550007e-05 | Q151: 1.801252402e-08 | R151: 1.196444606e-07 | S151: 81.99647084 | T151: =(D151/$D$395)*$D$396+(E151/$E$395)*$E$396+(F151/$F$395)*$F$396+(G151/$G$395)*$G$396+(H151/$H$395)*$H$396+(I151/$I$395)*$I$396+(J151/$J$395)*$J$396+(K151/$K$395)*$K$396+(L151/$L$395)*$L$396+(M151/$M$395)*$M$396+(N151/$N$395)*$N$396+(O151/$O$395)*$O$396+(P151/$P$395)*$P$396+(Q151/$Q$395)*$Q$396+(R151/$R$395)*$R$396+(S151/$S$395)*$S$396 -> 2.339663837e-11
A152: CHOCOLATE | B152: use | C152: CHOCOLATE use | D152: =VLOOKUP($A152,use,D$1,FALSE) -> 16.93492079 | E152: 1.098355037e-06 | F152: 5.101385832e-07 | G152: 0.1570683558 | H152: 0.03620330085 | I152: 0.0499334208 | J152: 0.1620494006 | K152: 0.001932230197 | L152: 0.06754469818 | M152: 85.67543367 | N152: 1185.439531 | O152: 44.72671035 | P152: 4.047471465e-05 | Q152: 1.91345789e-08 | R152: 1.284897622e-07 | S152: 173.1244763 | T152: =(D152/$D$395)*$D$396+(E152/$E$395)*$E$396+(F152/$F$395)*$F$396+(G152/$G$395)*$G$396+(H152/$H$395)*$H$396+(I152/$I$395)*$I$396+(J152/$J$395)*$J$396+(K152/$K$395)*$K$396+(L152/$L$395)*$L$396+(M152/$M$395)*$M$396+(N152/$N$395)*$N$396+(O152/$O$395)*$O$396+(P152/$P$395)*$P$396+(Q152/$Q$395)*$Q$396+(R152/$R$395)*$R$396+(S152/$S$395)*$S$396 -> 2.576388283e-11
A154: Nuts | B154: ALMONDS
A155: ALMONDS | B155: agriculture | C155: =CONCATENATE(A155," ", B155) -> ALMONDS agriculture | D155: =VLOOKUP($A155,primary,D$1,FALSE) -> 3.159872002 | E155: 2.27818235e-07 | F155: 3.477463818e-07 | G155: 0.1222085575 | H155: 0.0155557474 | I155: 0.04904763458 | J155: 0.194205558 | K155: 0.000279233487 | L155: 0.01997424024 | M155: 125.8907901 | N155: 283.7811079 | O155: 28.62983855 | P155: 2.501931327e-05 | Q155: 3.129060783e-09 | R155: 6.549199584e-07 | S155: 41.91982921 | T155: =(D155/$D$395)*$D$396+(E155/$E$395)*$E$396+(F155/$F$395)*$F$396+(G155/$G$395)*$G$396+(H155/$H$395)*$H$396+(I155/$I$395)*$I$396+(J155/$J$395)*$J$396+(K155/$K$395)*$K$396+(L155/$L$395)*$L$396+(M155/$M$395)*$M$396+(N155/$N$395)*$N$396+(O155/$O$395)*$O$396+(P155/$P$395)*$P$396+(Q155/$Q$395)*$Q$396+(R155/$R$395)*$R$396+(S155/$S$395)*$S$396 -> 2.074552646e-11
A156: ALMONDS | B156: manufacturing | C156: =CONCATENATE(A156," ", B156) -> ALMONDS manufacturing | D156: =VLOOKUP($A156,manufacturing,D$1,FALSE) -> 3.735877484 | E156: 2.884517396e-07 | F156: 3.91748229e-07 | G156: 0.1562936542 | H156: 0.01898999437 | I156: 0.0557705617 | J156: 0.2184332253 | K156: 0.0003122132534 | L156: 0.02225715079 | M156: 136.1687562 | N156: 309.1439093 | O156: 35.29993922 | P156: 2.810129225e-05 | Q156: 3.486664705e-09 | R156: 7.10996472e-07 | S156: 47.56223423 | T156: =(D156/$D$395)*$D$396+(E156/$E$395)*$E$396+(F156/$F$395)*$F$396+(G156/$G$395)*$G$396+(H156/$H$395)*$H$396+(I156/$I$395)*$I$396+(J156/$J$395)*$J$396+(K156/$K$395)*$K$396+(L156/$L$395)*$L$396+(M156/$M$395)*$M$396+(N156/$N$395)*$N$396+(O156/$O$395)*$O$396+(P156/$P$395)*$P$396+(Q156/$Q$395)*$Q$396+(R156/$R$395)*$R$396+(S156/$S$395)*$S$396 -> 2.284937457e-11
A157: ALMONDS | B157: retail | C157: ALMONDS retail | D157: =VLOOKUP($A157,retail,D$1,FALSE) -> 3.814422753 | E157: 3.042301269e-07 | F157: 3.972945328e-07 | G157: 0.1616620086 | H157: 0.01938900774 | I157: 0.05616657381 | J157: 0.2198526266 | K157: 0.000313405931 | L157: 0.02238332532 | M157: 136.177955 | N157: 310.0784406 | O157: 36.47159575 | P157: 2.825564568e-05 | Q157: 3.510675574e-09 | R157: 7.118294191e-07 | S157: 47.99873095 | T157: =(D157/$D$395)*$D$396+(E157/$E$395)*$E$396+(F157/$F$395)*$F$396+(G157/$G$395)*$G$396+(H157/$H$395)*$H$396+(I157/$I$395)*$I$396+(J157/$J$395)*$J$396+(K157/$K$395)*$K$396+(L157/$L$395)*$L$396+(M157/$M$395)*$M$396+(N157/$N$395)*$N$396+(O157/$O$395)*$O$396+(P157/$P$395)*$P$396+(Q157/$Q$395)*$Q$396+(R157/$R$395)*$R$396+(S157/$S$395)*$S$396 -> 2.294601144e-11
A158: ALMONDS | B158: use | C158: ALMONDS use | D158: =VLOOKUP($A158,use,D$1,FALSE) -> 4.263675562 | E158: 3.45078994e-07 | F158: 4.394949882e-07 | G158: 0.1793134733 | H158: 0.02147195682 | I158: 0.06185199219 | J158: 0.2421863313 | K158: 0.002577843952 | L158: 0.04668613959 | M158: 145.965926 | N158: 331.7201668 | O158: 40.51192159 | P158: 3.102587056e-05 | Q158: 3.864778265e-09 | R158: 7.610374267e-07 | S158: 251.1970898 | T158: =(D158/$D$395)*$D$396+(E158/$E$395)*$E$396+(F158/$F$395)*$F$396+(G158/$G$395)*$G$396+(H158/$H$395)*$H$396+(I158/$I$395)*$I$396+(J158/$J$395)*$J$396+(K158/$K$395)*$K$396+(L158/$L$395)*$L$396+(M158/$M$395)*$M$396+(N158/$N$395)*$N$396+(O158/$O$395)*$O$396+(P158/$P$395)*$P$396+(Q158/$Q$395)*$Q$396+(R158/$R$395)*$R$396+(S158/$S$395)*$S$396 -> 2.683688156e-11
A160: Drinks | B160: COFFEE
A161: COFFEE | B161: agriculture | C161: =CONCATENATE(A161," ", B161) -> COFFEE agriculture | D161: =VLOOKUP($A161,primary,D$1,FALSE) -> 6.345786766 | E161: 5.164788897e-07 | F161: 1.014959558e-06 | G161: 0.1968499187 | H161: 0.03357771509 | I161: 0.1341937194 | J161: 0.5387129305 | K161: 0.0008720327673 | L161: 0.04462610372 | M161: 4.023906708 | N161: 574.5758047 | O161: 63.5649557 | P161: 8.622304384e-05 | Q161: 2.093675927e-08 | R161: 6.363043714e-07 | S161: 1039.336138 | T161: =(D161/$D$395)*$D$396+(E161/$E$395)*$E$396+(F161/$F$395)*$F$396+(G161/$G$395)*$G$396+(H161/$H$395)*$H$396+(I161/$I$395)*$I$396+(J161/$J$395)*$J$396+(K161/$K$395)*$K$396+(L161/$L$395)*$L$396+(M161/$M$395)*$M$396+(N161/$N$395)*$N$396+(O161/$O$395)*$O$396+(P161/$P$395)*$P$396+(Q161/$Q$395)*$Q$396+(R161/$R$395)*$R$396+(S161/$S$395)*$S$396 -> 2.11044717e-11
A162: COFFEE | B162: manufacturing | C162: =CONCATENATE(A162," ", B162) -> COFFEE manufacturing | D162: =VLOOKUP($A162,manufacturing,D$1,FALSE) -> 7.95355615 | E162: 7.34161224e-07 | F162: 1.08549787e-06 | G162: 0.282867288 | H162: 0.04023579192 | I162: 0.1436704925 | J162: 0.5629528756 | K162: 0.001290570898 | L162: 0.04702585494 | M162: 4.552870805 | N162: 585.2760778 | O162: 89.76465779 | P162: 9.681360622e-05 | Q162: 2.224171028e-08 | R162: 6.509997042e-07 | S162: 1049.21522 | T162: =(D162/$D$395)*$D$396+(E162/$E$395)*$E$396+(F162/$F$395)*$F$396+(G162/$G$395)*$G$396+(H162/$H$395)*$H$396+(I162/$I$395)*$I$396+(J162/$J$395)*$J$396+(K162/$K$395)*$K$396+(L162/$L$395)*$L$396+(M162/$M$395)*$M$396+(N162/$N$395)*$N$396+(O162/$O$395)*$O$396+(P162/$P$395)*$P$396+(Q162/$Q$395)*$Q$396+(R162/$R$395)*$R$396+(S162/$S$395)*$S$396 -> 2.326843538e-11
A163: COFFEE | B163: retail | C163: COFFEE retail | D163: =VLOOKUP($A163,retail,D$1,FALSE) -> 8.047086661 | E163: 7.549015864e-07 | F163: 1.092582659e-06 | G163: 0.2896469338 | H163: 0.04072489544 | I163: 0.1441423266 | J163: 0.5646369218 | K163: 0.001291843697 | L163: 0.04717859563 | M163: 4.558848224 | N163: 586.4720325 | O163: 91.28126826 | P163: 9.697381624e-05 | Q163: 2.227051018e-08 | R163: 6.520156852e-07 | S163: 1049.701987 | T163: =(D163/$D$395)*$D$396+(E163/$E$395)*$E$396+(F163/$F$395)*$F$396+(G163/$G$395)*$G$396+(H163/$H$395)*$H$396+(I163/$I$395)*$I$396+(J163/$J$395)*$J$396+(K163/$K$395)*$K$396+(L163/$L$395)*$L$396+(M163/$M$395)*$M$396+(N163/$N$395)*$N$396+(O163/$O$395)*$O$396+(P163/$P$395)*$P$396+(Q163/$Q$395)*$Q$396+(R163/$R$395)*$R$396+(S163/$S$395)*$S$396 -> 2.338621882e-11
A164: COFFEE | B164: use | C164: COFFEE use | D164: =VLOOKUP($A164,use,D$1,FALSE) -> 16.42460841 | E164: 1.530259906e-06 | F164: 1.742358508e-06 | G164: 1.125976342 | H164: 0.07116672732 | I164: 0.2377198486 | J164: 0.8752764565 | K164: 0.0028951047 | L164: 0.07812032203 | M164: 26.21626706 | N164: 907.0499298 | O164: 232.1915585 | P164: 0.0001518363854 | Q164: 3.519951338e-08 | R164: 1.026925684e-06 | S164: 1620.193383 | T164: =(D164/$D$395)*$D$396+(E164/$E$395)*$E$396+(F164/$F$395)*$F$396+(G164/$G$395)*$G$396+(H164/$H$395)*$H$396+(I164/$I$395)*$I$396+(J164/$J$395)*$J$396+(K164/$K$395)*$K$396+(L164/$L$395)*$L$396+(M164/$M$395)*$M$396+(N164/$N$395)*$N$396+(O164/$O$395)*$O$396+(P164/$P$395)*$P$396+(Q164/$Q$395)*$Q$396+(R164/$R$395)*$R$396+(S164/$S$395)*$S$396 -> 4.255923794e-11
A166: Drinks | B166: TEA
A167: TEA | B167: agriculture | C167: =CONCATENATE(A167," ", B167) -> TEA agriculture | D167: =VLOOKUP($A167,primary,D$1,FALSE) -> 8.030880453 | E167: 9.73151697e-08 | F167: 4.833878482e-07 | G167: 0.03833753103 | H167: 0.01450514964 | I167: 0.05785278745 | J167: 0.248867645 | K167: 0.0003895313752 | L167: 0.01953393072 | M167: 99.20215675 | N167: 380.4344876 | O167: 11.24227858 | P167: 1.356087296e-05 | Q167: 1.052952459e-08 | R167: 1.728251602e-07 | S167: 91.486691 | T167: =(D167/$D$395)*$D$396+(E167/$E$395)*$E$396+(F167/$F$395)*$F$396+(G167/$G$395)*$G$396+(H167/$H$395)*$H$396+(I167/$I$395)*$I$396+(J167/$J$395)*$J$396+(K167/$K$395)*$K$396+(L167/$L$395)*$L$396+(M167/$M$395)*$M$396+(N167/$N$395)*$N$396+(O167/$O$395)*$O$396+(P167/$P$395)*$P$396+(Q167/$Q$395)*$Q$396+(R167/$R$395)*$R$396+(S167/$S$395)*$S$396 -> 1.942429354e-11
A168: TEA | B168: manufacturing | C168: =CONCATENATE(A168," ", B168) -> TEA manufacturing | D168: =VLOOKUP($A168,manufacturing,D$1,FALSE) -> 11.77513251 | E168: 3.663044375e-07 | F168: 6.60900785e-07 | G168: 0.3624310872 | H168: 0.02647008862 | I168: 0.08322880206 | J168: 0.316801459 | K168: 0.0006481131828 | L168: 0.02548788108 | M168: 111.9988137 | N168: 454.4095819 | O168: 64.94338245 | P168: 8.19992642e-05 | Q168: 1.313028394e-08 | R168: 2.356069427e-07 | S168: 115.6848131 | T168: =(D168/$D$395)*$D$396+(E168/$E$395)*$E$396+(F168/$F$395)*$F$396+(G168/$G$395)*$G$396+(H168/$H$395)*$H$396+(I168/$I$395)*$I$396+(J168/$J$395)*$J$396+(K168/$K$395)*$K$396+(L168/$L$395)*$L$396+(M168/$M$395)*$M$396+(N168/$N$395)*$N$396+(O168/$O$395)*$O$396+(P168/$P$395)*$P$396+(Q168/$Q$395)*$Q$396+(R168/$R$395)*$R$396+(S168/$S$395)*$S$396 -> 2.63533858e-11
A169: TEA | B169: retail | C169: TEA retail | D169: =VLOOKUP($A169,retail,D$1,FALSE) -> 11.92587494 | E169: 3.979607309e-07 | F169: 6.720997305e-07 | G169: 0.3724704004 | H169: 0.02727072776 | I169: 0.08399978505 | J169: 0.3196358404 | K169: 0.0006499111698 | L169: 0.02573620416 | M169: 112.0126051 | N169: 456.2764047 | O169: 67.1891988 | P169: 8.2304995e-05 | Q169: 1.317584393e-08 | R169: 2.372041812e-07 | S169: 116.5519869 | T169: =(D169/$D$395)*$D$396+(E169/$E$395)*$E$396+(F169/$F$395)*$F$396+(G169/$G$395)*$G$396+(H169/$H$395)*$H$396+(I169/$I$395)*$I$396+(J169/$J$395)*$J$396+(K169/$K$395)*$K$396+(L169/$L$395)*$L$396+(M169/$M$395)*$M$396+(N169/$N$395)*$N$396+(O169/$O$395)*$O$396+(P169/$P$395)*$P$396+(Q169/$Q$395)*$Q$396+(R169/$R$395)*$R$396+(S169/$S$395)*$S$396 -> 2.654108558e-11
A170: TEA | B170: use | C170: TEA use | D170: =VLOOKUP($A170,use,D$1,FALSE) -> 24.9593698 | E170: 1.200706046e-06 | F170: 1.270338182e-06 | G170: 0.7985491937 | H170: 0.05440610956 | I170: 0.1486661371 | J170: 0.5396489223 | K170: 0.001781424891 | L170: 0.0502595014 | M170: 241.1979731 | N170: 789.1079063 | O170: 205.7508749 | P170: 0.0001359967229 | Q170: 2.404704231e-08 | R170: 4.378084334e-07 | S170: 282.9640495 | T170: =(D170/$D$395)*$D$396+(E170/$E$395)*$E$396+(F170/$F$395)*$F$396+(G170/$G$395)*$G$396+(H170/$H$395)*$H$396+(I170/$I$395)*$I$396+(J170/$J$395)*$J$396+(K170/$K$395)*$K$396+(L170/$L$395)*$L$396+(M170/$M$395)*$M$396+(N170/$N$395)*$N$396+(O170/$O$395)*$O$396+(P170/$P$395)*$P$396+(Q170/$Q$395)*$Q$396+(R170/$R$395)*$R$396+(S170/$S$395)*$S$396 -> 5.549623131e-11
A172: Drinks | B172: BEER
A173: BEER | B173: agriculture | C173: =CONCATENATE(A173," ", B173) -> BEER agriculture | D173: =VLOOKUP($A173,primary,D$1,FALSE) -> 0.1125337256 | E173: 5.143648741e-10 | F173: 1.692170759e-08 | G173: 0.000850126523 | H173: 0.000204274355 | I173: 0.002359528766 | J173: 0.01054868037 | K173: 3.337645071e-05 | L173: 0.002791292455 | M173: 0.04065929352 | N173: 17.87049007 | O173: 0.7551517371 | P173: 2.294807926e-08 | Q173: 3.262230419e-10 | R173: 9.285427139e-09 | S173: 29.26714319 | T173: =(D173/$D$395)*$D$396+(E173/$E$395)*$E$396+(F173/$F$395)*$F$396+(G173/$G$395)*$G$396+(H173/$H$395)*$H$396+(I173/$I$395)*$I$396+(J173/$J$395)*$J$396+(K173/$K$395)*$K$396+(L173/$L$395)*$L$396+(M173/$M$395)*$M$396+(N173/$N$395)*$N$396+(O173/$O$395)*$O$396+(P173/$P$395)*$P$396+(Q173/$Q$395)*$Q$396+(R173/$R$395)*$R$396+(S173/$S$395)*$S$396 -> 4.387261847e-13
A174: BEER | B174: manufacturing | C174: =CONCATENATE(A174," ", B174) -> BEER manufacturing | D174: =VLOOKUP($A174,manufacturing,D$1,FALSE) -> 1.157958827 | E174: 1.143293771e-07 | F174: 6.201436401e-08 | G174: 0.0462582524 | H174: 0.002740185327 | I174: 0.006631959848 | J174: 0.01917323953 | K174: 0.0007858974532 | L174: 0.004145792456 | M174: 0.7873333489 | N174: 24.19413481 | O174: 16.46548335 | P174: 5.846058393e-06 | Q174: 1.905888807e-09 | R174: 2.039123659e-08 | S174: 36.20886177 | T174: =(D174/$D$395)*$D$396+(E174/$E$395)*$E$396+(F174/$F$395)*$F$396+(G174/$G$395)*$G$396+(H174/$H$395)*$H$396+(I174/$I$395)*$I$396+(J174/$J$395)*$J$396+(K174/$K$395)*$K$396+(L174/$L$395)*$L$396+(M174/$M$395)*$M$396+(N174/$N$395)*$N$396+(O174/$O$395)*$O$396+(P174/$P$395)*$P$396+(Q174/$Q$395)*$Q$396+(R174/$R$395)*$R$396+(S174/$S$395)*$S$396 -> 1.894354644e-12
A175: BEER | B175: retail | C175: BEER retail | D175: =VLOOKUP($A175,retail,D$1,FALSE) -> 1.265518828 | E175: 1.383170076e-07 | F175: 7.022802892e-08 | G175: 0.05398767785 | H175: 0.003306166468 | I175: 0.007175036486 | J175: 0.02112180276 | K175: 0.00078728736 | L175: 0.00432254926 | M175: 0.7940230644 | N175: 25.57876075 | O175: 18.20221086 | P175: 6.030784873e-06 | Q175: 1.938974208e-09 | R175: 2.155989336e-08 | S175: 36.77032639 | T175: =(D175/$D$395)*$D$396+(E175/$E$395)*$E$396+(F175/$F$395)*$F$396+(G175/$G$395)*$G$396+(H175/$H$395)*$H$396+(I175/$I$395)*$I$396+(J175/$J$395)*$J$396+(K175/$K$395)*$K$396+(L175/$L$395)*$L$396+(M175/$M$395)*$M$396+(N175/$N$395)*$N$396+(O175/$O$395)*$O$396+(P175/$P$395)*$P$396+(Q175/$Q$395)*$Q$396+(R175/$R$395)*$R$396+(S175/$S$395)*$S$396 -> 2.029922677e-12
A176: BEER | B176: use | C176: BEER use | D176: =VLOOKUP($A176,use,D$1,FALSE) -> 1.809449924 | E176: 1.649238014e-07 | F176: 8.383554464e-08 | G176: 0.06756596037 | H176: 0.003969975231 | I176: 0.008467845546 | J176: 0.02469368047 | K176: 0.0009498921843 | L176: 0.005299806966 | M176: 1.970820188 | N176: 30.18589367 | O176: 21.62924587 | P176: 7.1847836e-06 | Q176: 2.24160373e-09 | R176: 2.572535428e-08 | S176: 50.63601561 | T176: =(D176/$D$395)*$D$396+(E176/$E$395)*$E$396+(F176/$F$395)*$F$396+(G176/$G$395)*$G$396+(H176/$H$395)*$H$396+(I176/$I$395)*$I$396+(J176/$J$395)*$J$396+(K176/$K$395)*$K$396+(L176/$L$395)*$L$396+(M176/$M$395)*$M$396+(N176/$N$395)*$N$396+(O176/$O$395)*$O$396+(P176/$P$395)*$P$396+(Q176/$Q$395)*$Q$396+(R176/$R$395)*$R$396+(S176/$S$395)*$S$396 -> 2.686641258e-12
A178: Drinks | B178: WINE
A179: WINE | B179: agriculture | C179: =CONCATENATE(A179," ", B179) -> WINE agriculture | D179: =VLOOKUP($A179,primary,D$1,FALSE) -> 0.4667607918 | E179: 4.487716746e-08 | F179: 3.986891618e-08 | G179: 0.01743226461 | H179: 0.002696837731 | I179: 0.005895912534 | J179: 0.02311661996 | K179: 6.563398229e-05 | L179: 0.005485227622 | M179: 68.64787608 | N179: 81.25125705 | O179: 6.004169506 | P179: 6.353957609e-06 | Q179: 1.314082452e-09 | R179: 4.313454653e-08 | S179: 14.33020272 | T179: =(D179/$D$395)*$D$396+(E179/$E$395)*$E$396+(F179/$F$395)*$F$396+(G179/$G$395)*$G$396+(H179/$H$395)*$H$396+(I179/$I$395)*$I$396+(J179/$J$395)*$J$396+(K179/$K$395)*$K$396+(L179/$L$395)*$L$396+(M179/$M$395)*$M$396+(N179/$N$395)*$N$396+(O179/$O$395)*$O$396+(P179/$P$395)*$P$396+(Q179/$Q$395)*$Q$396+(R179/$R$395)*$R$396+(S179/$S$395)*$S$396 -> 8.533023454e-12
A180: WINE | B180: manufacturing | C180: =CONCATENATE(A180," ", B180) -> WINE manufacturing | D180: =VLOOKUP($A180,manufacturing,D$1,FALSE) -> 1.783184657 | E180: 1.757478583e-07 | F180: 9.30830346e-08 | G180: 0.1059720072 | H180: 0.006635177292 | I180: 0.01220021765 | J180: 0.03643240147 | K180: 0.0007479646022 | L180: 0.007152268142 | M180: 69.3690755 | N180: 89.80207425 | O180: 25.4920132 | P180: 1.585111069e-05 | Q180: 2.953523069e-09 | R180: 5.767822163e-08 | S180: 21.93976475 | T180: =(D180/$D$395)*$D$396+(E180/$E$395)*$E$396+(F180/$F$395)*$F$396+(G180/$G$395)*$G$396+(H180/$H$395)*$H$396+(I180/$I$395)*$I$396+(J180/$J$395)*$J$396+(K180/$K$395)*$K$396+(L180/$L$395)*$L$396+(M180/$M$395)*$M$396+(N180/$N$395)*$N$396+(O180/$O$395)*$O$396+(P180/$P$395)*$P$396+(Q180/$Q$395)*$Q$396+(R180/$R$395)*$R$396+(S180/$S$395)*$S$396 -> 1.032894743e-11
A181: WINE | B181: retail | C181: WINE retail | D181: =VLOOKUP($A181,retail,D$1,FALSE) -> 1.957188999 | E181: 2.132716044e-07 | F181: 1.04661981e-07 | G181: 0.1175222804 | H181: 0.008295031634 | I181: 0.01422449297 | J181: 0.04256998013 | K181: 0.000749727805 | L181: 0.007702443312 | M181: 69.37799242 | N181: 91.56749237 | O181: 28.11344129 | P181: 1.61268339e-05 | Q181: 3.015319815e-09 | R181: 5.928539072e-08 | S181: 22.81983174 | T181: =(D181/$D$395)*$D$396+(E181/$E$395)*$E$396+(F181/$F$395)*$F$396+(G181/$G$395)*$G$396+(H181/$H$395)*$H$396+(I181/$I$395)*$I$396+(J181/$J$395)*$J$396+(K181/$K$395)*$K$396+(L181/$L$395)*$L$396+(M181/$M$395)*$M$396+(N181/$N$395)*$N$396+(O181/$O$395)*$O$396+(P181/$P$395)*$P$396+(Q181/$Q$395)*$Q$396+(R181/$R$395)*$R$396+(S181/$S$395)*$S$396 -> 1.058493613e-11
A182: WINE | B182: use | C182: WINE use | D182: =VLOOKUP($A182,use,D$1,FALSE) -> 2.29757035 | E182: 2.53626139e-07 | F182: 1.237891962e-07 | G182: 0.1384172484 | H182: 0.009645892 | I182: 0.01645234194 | J182: 0.0490153403 | K182: 0.0008917428 | L182: 0.008944040476 | M182: 78.84283572 | N182: 104.4324995 | O182: 32.9696927 | P182: 1.876914526e-05 | Q182: 3.48002191e-09 | R182: 6.827795268e-08 | S182: 31.20259633 | T182: =(D182/$D$395)*$D$396+(E182/$E$395)*$E$396+(F182/$F$395)*$F$396+(G182/$G$395)*$G$396+(H182/$H$395)*$H$396+(I182/$I$395)*$I$396+(J182/$J$395)*$J$396+(K182/$K$395)*$K$396+(L182/$L$395)*$L$396+(M182/$M$395)*$M$396+(N182/$N$395)*$N$396+(O182/$O$395)*$O$396+(P182/$P$395)*$P$396+(Q182/$Q$395)*$Q$396+(R182/$R$395)*$R$396+(S182/$S$395)*$S$396 -> 1.215058189e-11
A184: Drinks | B184: MINERAL WATER
A185: MINERAL WATER | B185: agriculture | C185: =CONCATENATE(A185," ", B185) -> MINERAL WATER agriculture | D185: =VLOOKUP($A185,primary,D$1,FALSE) -> 0 | E185: =VLOOKUP($A185,primary,E$1,FALSE) -> 0 | F185: 0 | G185: 0 | H185: 0 | I185: 0 | J185: 0 | K185: 0 | L185: 0 | M185: 0 | N185: 0 | O185: 0 | P185: 0 | Q185: 0 | R185: 0 | S185: 0 | T185: =(D185/$D$395)*$D$396+(E185/$E$395)*$E$396+(F185/$F$395)*$F$396+(G185/$G$395)*$G$396+(H185/$H$395)*$H$396+(I185/$I$395)*$I$396+(J185/$J$395)*$J$396+(K185/$K$395)*$K$396+(L185/$L$395)*$L$396+(M185/$M$395)*$M$396+(N185/$N$395)*$N$396+(O185/$O$395)*$O$396+(P185/$P$395)*$P$396+(Q185/$Q$395)*$Q$396+(R185/$R$395)*$R$396+(S185/$S$395)*$S$396 -> 0
A186: MINERAL WATER | B186: manufacturing | C186: =CONCATENATE(A186," ", B186) -> MINERAL WATER manufacturing | D186: =VLOOKUP($A186,manufacturing,D$1,FALSE) -> 0.1349862639 | E186: =VLOOKUP($A186,manufacturing,E$1,FALSE) -> 6.294427797e-09 | F186: 5.133637727e-09 | G186: 0.005655520177 | H186: 0.0003904445279 | I186: 0.0005649775075 | J186: 0.00116125364 | K186: 5.047423365e-06 | L186: 0.000106812873 | M186: 0.09673186114 | N186: 0.6480980346 | O186: 2.784734106 | P186: 5.867082086e-06 | Q186: 4.824912867e-11 | R186: 1.153705798e-09 | S186: 0.437554957 | T186: =(D186/$D$395)*$D$396+(E186/$E$395)*$E$396+(F186/$F$395)*$F$396+(G186/$G$395)*$G$396+(H186/$H$395)*$H$396+(I186/$I$395)*$I$396+(J186/$J$395)*$J$396+(K186/$K$395)*$K$396+(L186/$L$395)*$L$396+(M186/$M$395)*$M$396+(N186/$N$395)*$N$396+(O186/$O$395)*$O$396+(P186/$P$395)*$P$396+(Q186/$Q$395)*$Q$396+(R186/$R$395)*$R$396+(S186/$S$395)*$S$396 -> 2.591606107e-13
A187: MINERAL WATER | B187: retail | C187: MINERAL WATER retail | D187: =VLOOKUP($A187,retail,D$1,FALSE) -> 0.2082926953 | E187: =VLOOKUP($A187,retail,E$1,FALSE) -> 2.234691407e-08 | F187: 1.058779971e-08 | G187: 0.01106937585 | H187: 0.0007685503277 | I187: 0.0009340893843 | J187: 0.002463392599 | K187: 6.155095426e-06 | L187: 0.0002248781268 | M187: 0.1016916848 | N187: 1.571611927 | O187: 3.98440532 | P187: 5.991926384e-06 | Q187: 7.087302929e-11 | R187: 1.949584701e-09 | S187: 0.8165558565 | T187: =(D187/$D$395)*$D$396+(E187/$E$395)*$E$396+(F187/$F$395)*$F$396+(G187/$G$395)*$G$396+(H187/$H$395)*$H$396+(I187/$I$395)*$I$396+(J187/$J$395)*$J$396+(K187/$K$395)*$K$396+(L187/$L$395)*$L$396+(M187/$M$395)*$M$396+(N187/$N$395)*$N$396+(O187/$O$395)*$O$396+(P187/$P$395)*$P$396+(Q187/$Q$395)*$Q$396+(R187/$R$395)*$R$396+(S187/$S$395)*$S$396 -> 3.513009889e-13
A188: MINERAL WATER | B188: use | C188: MINERAL WATER use | D188: =VLOOKUP($A188,use,D$1,FALSE) -> 0.3070105125 | E188: 3.382552228e-08 | F188: 1.704552906e-08 | G188: 0.01724413728 | H188: 0.001098824312 | I188: 0.001418423804 | J188: 0.003717744688 | K188: 1.543901409e-05 | L188: 0.0004377043211 | M188: 1.229620088 | N188: 3.455222315 | O188: 5.441581062 | P188: 7.074729406e-06 | Q188: 1.577097496e-10 | R188: 3.629060015e-09 | S188: 1.983725607 | T188: =(D188/$D$395)*$D$396+(E188/$E$395)*$E$396+(F188/$F$395)*$F$396+(G188/$G$395)*$G$396+(H188/$H$395)*$H$396+(I188/$I$395)*$I$396+(J188/$J$395)*$J$396+(K188/$K$395)*$K$396+(L188/$L$395)*$L$396+(M188/$M$395)*$M$396+(N188/$N$395)*$N$396+(O188/$O$395)*$O$396+(P188/$P$395)*$P$396+(Q188/$Q$395)*$Q$396+(R188/$R$395)*$R$396+(S188/$S$395)*$S$396 -> 6.113104502e-13
A190: Pre-prepared | B190: MEAT BASED DISHES
A191: MEAT BASED DISHES | B191: agriculture | C191: =CONCATENATE(A191," ", B191) -> MEAT BASED DISHES agriculture | D191: =VLOOKUP($A191,primary,D$1,FALSE) -> 2.421850523 | E191: =VLOOKUP($A191,primary,E$1,FALSE) -> 3.726966185e-08 | F191: 3.431695803e-07 | G191: 0.02501842558 | H191: 0.004710053433 | I191: 0.03791819874 | J191: 0.1635557672 | K191: 0.0003418405854 | L191: 0.01273870181 | M191: 3.47098927 | N191: 139.2496581 | O191: 13.99840493 | P191: 4.437514309e-06 | Q191: 3.807354905e-09 | R191: 7.984919972e-08 | S191: 377.4634986 | T191: =(D191/$D$395)*$D$396+(E191/$E$395)*$E$396+(F191/$F$395)*$F$396+(G191/$G$395)*$G$396+(H191/$H$395)*$H$396+(I191/$I$395)*$I$396+(J191/$J$395)*$J$396+(K191/$K$395)*$K$396+(L191/$L$395)*$L$396+(M191/$M$395)*$M$396+(N191/$N$395)*$N$396+(O191/$O$395)*$O$396+(P191/$P$395)*$P$396+(Q191/$Q$395)*$Q$396+(R191/$R$395)*$R$396+(S191/$S$395)*$S$396 -> 6.282488352e-12
A192: MEAT BASED DISHES | B192: manufacturing | C192: =CONCATENATE(A192," ", B192) -> MEAT BASED DISHES manufacturing | D192: =VLOOKUP($A192,manufacturing,D$1,FALSE) -> 3.982744791 | E192: 2.014195861e-07 | F192: 3.920891603e-07 | G192: 0.1450863384 | H192: 0.008563052598 | I192: 0.04542373774 | J192: 0.1813041166 | K192: 0.0004146810344 | L192: 0.01415521751 | M192: 6.106984409 | N192: 145.4098939 | O192: 41.50334922 | P192: 8.293438082e-06 | Q192: 4.457922533e-09 | R192: 9.569551558e-08 | S192: 395.9793708 | T192: =(D192/$D$395)*$D$396+(E192/$E$395)*$E$396+(F192/$F$395)*$F$396+(G192/$G$395)*$G$396+(H192/$H$395)*$H$396+(I192/$I$395)*$I$396+(J192/$J$395)*$J$396+(K192/$K$395)*$K$396+(L192/$L$395)*$L$396+(M192/$M$395)*$M$396+(N192/$N$395)*$N$396+(O192/$O$395)*$O$396+(P192/$P$395)*$P$396+(Q192/$Q$395)*$Q$396+(R192/$R$395)*$R$396+(S192/$S$395)*$S$396 -> 8.338801488e-12
A193: MEAT BASED DISHES | B193: retail | C193: MEAT BASED DISHES retail | D193: =VLOOKUP($A193,retail,D$1,FALSE) -> 4.35152432 | E193: 1.388864146e-06 | F193: 4.018334514e-07 | G193: 0.1807122327 | H193: 0.009439939966 | I193: 0.04686591777 | J193: 0.1845015992 | K193: 0.000433827113 | L193: 0.01442864677 | M193: 6.16814427 | N193: 147.4233267 | O193: 46.85857193 | P193: 8.77707946e-06 | Q193: 4.555266819e-09 | R193: 9.89016123e-08 | S193: 397.0989153 | T193: =(D193/$D$395)*$D$396+(E193/$E$395)*$E$396+(F193/$F$395)*$F$396+(G193/$G$395)*$G$396+(H193/$H$395)*$H$396+(I193/$I$395)*$I$396+(J193/$J$395)*$J$396+(K193/$K$395)*$K$396+(L193/$L$395)*$L$396+(M193/$M$395)*$M$396+(N193/$N$395)*$N$396+(O193/$O$395)*$O$396+(P193/$P$395)*$P$396+(Q193/$Q$395)*$Q$396+(R193/$R$395)*$R$396+(S193/$S$395)*$S$396 -> 8.725865932e-12
A194: MEAT BASED DISHES | B194: use | C194: =CONCATENATE(A194," ", B194) -> MEAT BASED DISHES use | D194: =VLOOKUP($A194,use,D$1,FALSE) -> 6.539159271 | E194: =VLOOKUP($A194,use,E$1,FALSE) -> 1.919299539e-06 | F194: 5.577861681e-07 | G194: 0.3376572719 | H194: 0.01457183998 | I194: 0.06661889576 | J194: 0.2548420388 | K194: 0.0006388451638 | L194: 0.02966913892 | M194: 9.283895836 | N194: 200.8988861 | O194: 76.46156714 | P194: 1.380677985e-05 | Q194: 6.412006455e-09 | R194: 1.410956171e-07 | S194: 562.0084851 | T194: =(D194/$D$395)*$D$396+(E194/$E$395)*$E$396+(F194/$F$395)*$F$396+(G194/$G$395)*$G$396+(H194/$H$395)*$H$396+(I194/$I$395)*$I$396+(J194/$J$395)*$J$396+(K194/$K$395)*$K$396+(L194/$L$395)*$L$396+(M194/$M$395)*$M$396+(N194/$N$395)*$N$396+(O194/$O$395)*$O$396+(P194/$P$395)*$P$396+(Q194/$Q$395)*$Q$396+(R194/$R$395)*$R$396+(S194/$S$395)*$S$396 -> 1.297096632e-11
A195: MEAT BASED DISHES
A196: Oils | B196: RAPESEED OIL
A197: RAPESEED OIL | B197: agriculture | C197: =CONCATENATE(A197," ", B197) -> RAPESEED OIL agriculture | D197: =VLOOKUP($A197,primary,D$1,FALSE) -> 1.924116481 | E197: =VLOOKUP($A197,primary,E$1,FALSE) -> 9.945794296e-09 | F197: 2.896165964e-07 | G197: 0.01640141245 | H197: 0.003366372007 | I197: 0.040472703 | J197: 0.1806524109 | K197: 0.0006924601448 | L197: 0.04693319827 | M197: 0.7469427594 | N197: 285.8002596 | O197: 12.1560928 | P197: 3.464571601e-07 | Q197: 5.648203706e-09 | R197: 1.880592904e-07 | S197: 802.607031 | T197: =(D197/$D$395)*$D$396+(E197/$E$395)*$E$396+(F197/$F$395)*$F$396+(G197/$G$395)*$G$396+(H197/$H$395)*$H$396+(I197/$I$395)*$I$396+(J197/$J$395)*$J$396+(K197/$K$395)*$K$396+(L197/$L$395)*$L$396+(M197/$M$395)*$M$396+(N197/$N$395)*$N$396+(O197/$O$395)*$O$396+(P197/$P$395)*$P$396+(Q197/$Q$395)*$Q$396+(R197/$R$395)*$R$396+(S197/$S$395)*$S$396 -> 9.025037489e-12
A198: RAPESEED OIL | B198: manufacturing | C198: =CONCATENATE(A198," ", B198) -> RAPESEED OIL manufacturing | D198: =VLOOKUP($A198,manufacturing,D$1,FALSE) -> 2.454014157 | E198: =VLOOKUP($A198,manufacturing,E$1,FALSE) -> 3.919807423e-08 | F198: 3.219843241e-07 | G198: 0.05125877388 | H198: 0.00453564122 | I198: 0.0446066991 | J198: 0.1957225428 | K198: 0.0007467459403 | L198: 0.05023155327 | M198: 2.44679788 | N198: 303.7028234 | O198: 19.27770206 | P198: 1.620342483e-05 | Q198: 6.130833107e-09 | R198: 2.031535429e-07 | S198: 855.5617887 | T198: =(D198/$D$395)*$D$396+(E198/$E$395)*$E$396+(F198/$F$395)*$F$396+(G198/$G$395)*$G$396+(H198/$H$395)*$H$396+(I198/$I$395)*$I$396+(J198/$J$395)*$J$396+(K198/$K$395)*$K$396+(L198/$L$395)*$L$396+(M198/$M$395)*$M$396+(N198/$N$395)*$N$396+(O198/$O$395)*$O$396+(P198/$P$395)*$P$396+(Q198/$Q$395)*$Q$396+(R198/$R$395)*$R$396+(S198/$S$395)*$S$396 -> 1.044819854e-11
A199: RAPESEED OIL | B199: retail | C199: =CONCATENATE(A199," ", B199) -> RAPESEED OIL retail | D199: =VLOOKUP($A199,retail,D$1,FALSE) -> 2.53226511 | E199: =VLOOKUP($A199,retail,E$1,FALSE) -> 5.546360549e-08 | F199: 3.276386777e-07 | G199: 0.05676617344 | H199: 0.004939865711 | I199: 0.04500429848 | J199: 0.197145725 | K199: 0.0007479171121 | L199: 0.05035710169 | M199: 2.453974826 | N199: 304.6532522 | O199: 20.48825218 | P199: 1.635495408e-05 | Q199: 6.154685479e-09 | R199: 2.039868071e-07 | S199: 855.9970801 | T199: =(D199/$D$395)*$D$396+(E199/$E$395)*$E$396+(F199/$F$395)*$F$396+(G199/$G$395)*$G$396+(H199/$H$395)*$H$396+(I199/$I$395)*$I$396+(J199/$J$395)*$J$396+(K199/$K$395)*$K$396+(L199/$L$395)*$L$396+(M199/$M$395)*$M$396+(N199/$N$395)*$N$396+(O199/$O$395)*$O$396+(P199/$P$395)*$P$396+(Q199/$Q$395)*$Q$396+(R199/$R$395)*$R$396+(S199/$S$395)*$S$396 -> 1.054556105e-11
A200: RAPESEED OIL | B200: use | C200: =CONCATENATE(A200," ", B200) -> RAPESEED OIL use | D200: =VLOOKUP($A200,use,D$1,FALSE) -> 3.134041832 | E200: =VLOOKUP($A200,use,E$1,FALSE) -> 8.955392239e-08 | F200: 3.461260821e-07 | G200: 0.06427781498 | H200: 0.005702850883 | I200: 0.04748274309 | J200: 0.2068773518 | K200: 0.0007843196607 | L200: 0.05290848477 | M200: 3.210152294 | N200: 317.9537132 | O200: 26.66235697 | P200: 1.725993059e-05 | Q200: 6.494122061e-09 | R200: 2.142690403e-07 | S200: 892.7745789 | T200: =(D200/$D$395)*$D$396+(E200/$E$395)*$E$396+(F200/$F$395)*$F$396+(G200/$G$395)*$G$396+(H200/$H$395)*$H$396+(I200/$I$395)*$I$396+(J200/$J$395)*$J$396+(K200/$K$395)*$K$396+(L200/$L$395)*$L$396+(M200/$M$395)*$M$396+(N200/$N$395)*$N$396+(O200/$O$395)*$O$396+(P200/$P$395)*$P$396+(Q200/$Q$395)*$Q$396+(R200/$R$395)*$R$396+(S200/$S$395)*$S$396 -> 1.14171684e-11
A201: RAPESEED OIL
A202: Oils | B202: SOYBEAN OIL
A203: SOYBEAN OIL | B203: agriculture | C203: =CONCATENATE(A203," ", B203) -> SOYBEAN OIL agriculture | D203: =VLOOKUP($A203,primary,D$1,FALSE) -> 14.6049721 | E203: =VLOOKUP($A203,primary,E$1,FALSE) -> 9.279677641e-09 | F203: 9.772580074e-08 | G203: 0.01521828552 | H203: 0.003057691139 | I203: 0.01181601101 | J203: 0.05203623773 | K203: 0.001810187588 | L203: 0.01425459988 | M203: 0.6278954931 | N203: 511.4309052 | O203: 8.050872785 | P203: 5.233953698e-07 | Q203: 3.005846281e-09 | R203: 1.832228489e-07 | S203: 840.1782341 | T203: =(D203/$D$395)*$D$396+(E203/$E$395)*$E$396+(F203/$F$395)*$F$396+(G203/$G$395)*$G$396+(H203/$H$395)*$H$396+(I203/$I$395)*$I$396+(J203/$J$395)*$J$396+(K203/$K$395)*$K$396+(L203/$L$395)*$L$396+(M203/$M$395)*$M$396+(N203/$N$395)*$N$396+(O203/$O$395)*$O$396+(P203/$P$395)*$P$396+(Q203/$Q$395)*$Q$396+(R203/$R$395)*$R$396+(S203/$S$395)*$S$396 -> 1.279595424e-11
A204: SOYBEAN OIL | B204: manufacturing | C204: =CONCATENATE(A204," ", B204) -> SOYBEAN OIL manufacturing | D204: =VLOOKUP($A204,manufacturing,D$1,FALSE) -> 16.67622143 | E204: =VLOOKUP($A204,manufacturing,E$1,FALSE) -> 1.979338303e-07 | F204: 1.708958487e-07 | G204: 0.07835484063 | H204: 0.01103314467 | I204: 0.02208736526 | J204: 0.08386293218 | K204: 0.001943819596 | L204: 0.01772053647 | M204: 1.528479608 | N204: 552.3722529 | O204: 26.07109468 | P204: 1.758789824e-05 | Q204: 3.591888215e-09 | R204: 2.051659903e-07 | S204: 899.0756023 | T204: =(D204/$D$395)*$D$396+(E204/$E$395)*$E$396+(F204/$F$395)*$F$396+(G204/$G$395)*$G$396+(H204/$H$395)*$H$396+(I204/$I$395)*$I$396+(J204/$J$395)*$J$396+(K204/$K$395)*$K$396+(L204/$L$395)*$L$396+(M204/$M$395)*$M$396+(N204/$N$395)*$N$396+(O204/$O$395)*$O$396+(P204/$P$395)*$P$396+(Q204/$Q$395)*$Q$396+(R204/$R$395)*$R$396+(S204/$S$395)*$S$396 -> 1.54431909e-11
A205: SOYBEAN OIL | B205: retail | C205: SOYBEAN OIL retail | D205: =VLOOKUP($A205,retail,D$1,FALSE) -> 16.75447238 | E205: =VLOOKUP($A205,retail,E$1,FALSE) -> 2.141993616e-07 | F205: 1.765502023e-07 | G205: 0.08386224019 | H205: 0.01143736916 | I205: 0.02248496464 | J205: 0.08528611438 | K205: 0.001944990768 | L205: 0.01784608489 | M205: 1.535656553 | N205: 553.3226816 | O205: 27.28164481 | P205: 1.773942749e-05 | Q205: 3.615740587e-09 | R205: 2.059992545e-07 | S205: 899.5108938 | T205: =(D205/$D$395)*$D$396+(E205/$E$395)*$E$396+(F205/$F$395)*$F$396+(G205/$G$395)*$G$396+(H205/$H$395)*$H$396+(I205/$I$395)*$I$396+(J205/$J$395)*$J$396+(K205/$K$395)*$K$396+(L205/$L$395)*$L$396+(M205/$M$395)*$M$396+(N205/$N$395)*$N$396+(O205/$O$395)*$O$396+(P205/$P$395)*$P$396+(Q205/$Q$395)*$Q$396+(R205/$R$395)*$R$396+(S205/$S$395)*$S$396 -> 1.554055341e-11
A206: SOYBEAN OIL | B206: use | C206: =CONCATENATE(A206," ", B206) -> SOYBEAN OIL use | D206: =VLOOKUP($A206,use,D$1,FALSE) -> 17.91435368 | E206: =VLOOKUP($A206,use,E$1,FALSE) -> 2.545187504e-07 | F206: 1.891086276e-07 | G206: 0.09243717933 | H206: 0.01245532786 | I206: 0.02407971075 | J206: 0.09062817218 | K206: 0.002028375225 | L206: 0.01912167646 | M206: 2.255797588 | N206: 576.381371 | O206: 33.72233434 | P206: 1.869873319e-05 | Q206: 3.855544479e-09 | R206: 2.163604597e-07 | S206: 937.9959515 | T206: =(D206/$D$395)*$D$396+(E206/$E$395)*$E$396+(F206/$F$395)*$F$396+(G206/$G$395)*$G$396+(H206/$H$395)*$H$396+(I206/$I$395)*$I$396+(J206/$J$395)*$J$396+(K206/$K$395)*$K$396+(L206/$L$395)*$L$396+(M206/$M$395)*$M$396+(N206/$N$395)*$N$396+(O206/$O$395)*$O$396+(P206/$P$395)*$P$396+(Q206/$Q$395)*$Q$396+(R206/$R$395)*$R$396+(S206/$S$395)*$S$396 -> 1.660817473e-11
A207: SOYBEAN OIL
A208: Fish | B208: CANNED TUNA
A209: CANNED TUNA | B209: agriculture | C209: =CONCATENATE(A209," ", B209) -> CANNED TUNA agriculture | D209: =VLOOKUP($A209,primary,D$1,FALSE) -> 4.112764333 | E209: =VLOOKUP($A209,primary,E$1,FALSE) -> 9.29120212e-07 | F209: 8.994111678e-07 | G209: 0.2460214976 | H209: 0.09005707717 | I209: 0.1291966582 | J209: 0.3444700263 | K209: 1.058910293e-05 | L209: 0.03144016785 | M209: 0.04559060041 | N209: 9.238363271 | O209: 56.66985114 | P209: 1.845152654e-06 | Q209: 2.183989099e-09 | R209: 1.364884189e-08 | S209: 16.56442314 | T209: =(D209/$D$395)*$D$396+(E209/$E$395)*$E$396+(F209/$F$395)*$F$396+(G209/$G$395)*$G$396+(H209/$H$395)*$H$396+(I209/$I$395)*$I$396+(J209/$J$395)*$J$396+(K209/$K$395)*$K$396+(L209/$L$395)*$L$396+(M209/$M$395)*$M$396+(N209/$N$395)*$N$396+(O209/$O$395)*$O$396+(P209/$P$395)*$P$396+(Q209/$Q$395)*$Q$396+(R209/$R$395)*$R$396+(S209/$S$395)*$S$396 -> 1.029434499e-11
A210: CANNED TUNA | B210: manufacturing | C210: =CONCATENATE(A210," ", B210) -> CANNED TUNA manufacturing | D210: =VLOOKUP($A210,manufacturing,D$1,FALSE) -> 8.29900429 | E210: =VLOOKUP($A210,manufacturing,E$1,FALSE) -> 1.685512445e-06 | F210: 1.438709065e-06 | G210: 0.4986582936 | H210: 0.1303130904 | I210: 0.1909474714 | J210: 0.5014922868 | K210: 0.0001403491597 | L210: 0.0461612945 | M210: 1.307575566 | N210: 48.94060657 | O210: 122.5895412 | P210: 8.134431693e-05 | Q210: 5.37625001e-09 | R210: 5.841447841e-08 | S210: 47.56965105 | T210: =(D210/$D$395)*$D$396+(E210/$E$395)*$E$396+(F210/$F$395)*$F$396+(G210/$G$395)*$G$396+(H210/$H$395)*$H$396+(I210/$I$395)*$I$396+(J210/$J$395)*$J$396+(K210/$K$395)*$K$396+(L210/$L$395)*$L$396+(M210/$M$395)*$M$396+(N210/$N$395)*$N$396+(O210/$O$395)*$O$396+(P210/$P$395)*$P$396+(Q210/$Q$395)*$Q$396+(R210/$R$395)*$R$396+(S210/$S$395)*$S$396 -> 1.882202304e-11
A211: CANNED TUNA | B211: retail | C211: CANNED TUNA retail | D211: =VLOOKUP($A211,retail,D$1,FALSE) -> 8.399003295 | E211: 1.703498208e-06 | F211: 1.445411423e-06 | G211: 0.5047799285 | H211: 0.1308334569 | I211: 0.1914678716 | J211: 0.503426326 | K211: 0.0001417798688 | L211: 0.04632054513 | M211: 1.322797683 | N211: 50.04248846 | O211: 123.9041007 | P211: 8.159862734e-05 | Q211: 5.405726547e-09 | R211: 5.942555779e-08 | S211: 48.22858604 | T211: =(D211/$D$395)*$D$396+(E211/$E$395)*$E$396+(F211/$F$395)*$F$396+(G211/$G$395)*$G$396+(H211/$H$395)*$H$396+(I211/$I$395)*$I$396+(J211/$J$395)*$J$396+(K211/$K$395)*$K$396+(L211/$L$395)*$L$396+(M211/$M$395)*$M$396+(N211/$N$395)*$N$396+(O211/$O$395)*$O$396+(P211/$P$395)*$P$396+(Q211/$Q$395)*$Q$396+(R211/$R$395)*$R$396+(S211/$S$395)*$S$396 -> 1.894326471e-11
A212: CANNED TUNA | B212: use | C212: =CONCATENATE(A212," ", B212) -> CANNED TUNA use | D212: =VLOOKUP($A212,use,D$1,FALSE) -> 9.837824468 | E212: =VLOOKUP($A212,use,E$1,FALSE) -> 1.975625337e-06 | F212: 1.681612229e-06 | G212: 0.5877191809 | H212: 0.1515672453 | I212: 0.2227082755 | J212: 0.5888116417 | K212: 0.0001712378415 | L212: 0.07743148788 | M212: 2.653910276 | N212: 59.53729664 | O212: 144.0527943 | P212: 9.464263303e-05 | Q212: 6.3268106e-09 | R212: 7.036797931e-08 | S212: 57.01954867 | T212: =(D212/$D$395)*$D$396+(E212/$E$395)*$E$396+(F212/$F$395)*$F$396+(G212/$G$395)*$G$396+(H212/$H$395)*$H$396+(I212/$I$395)*$I$396+(J212/$J$395)*$J$396+(K212/$K$395)*$K$396+(L212/$L$395)*$L$396+(M212/$M$395)*$M$396+(N212/$N$395)*$N$396+(O212/$O$395)*$O$396+(P212/$P$395)*$P$396+(Q212/$Q$395)*$Q$396+(R212/$R$395)*$R$396+(S212/$S$395)*$S$396 -> 2.27046672e-11
A213: CANNED TUNA
A214: Legumes | B214: CHICKPEAS
A215: CHICKPEAS | B215: agriculture | C215: =CONCATENATE(A215," ", B215) -> CHICKPEAS agriculture | D215: =VLOOKUP($A215,primary,D$1,FALSE) -> 0.9459084902 | E215: =VLOOKUP($A215,primary,E$1,FALSE) -> 7.189911164e-09 | F215: 8.928756714e-08 | G215: 0.0116024146 | H215: 0.003659357439 | I215: 0.01004333859 | J215: 0.04488723 | K215: 0.0003916363895 | L215: 0.0139213428 | M215: 6.608997316 | N215: 431.9574977 | O215: 8.043086532 | P215: 4.902832873e-07 | Q215: 5.77778802e-10 | R215: 7.881055878e-08 | S215: 800.0963794 | T215: =(D215/$D$395)*$D$396+(E215/$E$395)*$E$396+(F215/$F$395)*$F$396+(G215/$G$395)*$G$396+(H215/$H$395)*$H$396+(I215/$I$395)*$I$396+(J215/$J$395)*$J$396+(K215/$K$395)*$K$396+(L215/$L$395)*$L$396+(M215/$M$395)*$M$396+(N215/$N$395)*$N$396+(O215/$O$395)*$O$396+(P215/$P$395)*$P$396+(Q215/$Q$395)*$Q$396+(R215/$R$395)*$R$396+(S215/$S$395)*$S$396 -> 6.922563506e-12
A216: CHICKPEAS | B216: manufacturing | C216: =CONCATENATE(A216," ", B216) -> CHICKPEAS manufacturing | D216: =VLOOKUP($A216,manufacturing,D$1,FALSE) -> 0.7391461804 | E216: 1.46774727e-07 | F216: 1.37447864e-07 | G216: 0.05734176642 | H216: 0.005475860284 | I216: 0.01348359965 | J216: 0.052005502 | K216: 0.001131080961 | L216: 0.01509114754 | M216: 8.69016117 | N216: 464.4848963 | O216: 19.30052408 | P216: 6.179053918e-06 | Q216: 2.18285871e-09 | R216: 9.477784217e-08 | S216: 849.2014612 | T216: =(D216/$D$395)*$D$396+(E216/$E$395)*$E$396+(F216/$F$395)*$F$396+(G216/$G$395)*$G$396+(H216/$H$395)*$H$396+(I216/$I$395)*$I$396+(J216/$J$395)*$J$396+(K216/$K$395)*$K$396+(L216/$L$395)*$L$396+(M216/$M$395)*$M$396+(N216/$N$395)*$N$396+(O216/$O$395)*$O$396+(P216/$P$395)*$P$396+(Q216/$Q$395)*$Q$396+(R216/$R$395)*$R$396+(S216/$S$395)*$S$396 -> 8.15444102e-12
A217: CHICKPEAS | B217: retail | C217: CHICKPEAS retail | D217: =VLOOKUP($A217,retail,D$1,FALSE) -> 0.8139062039 | E217: 1.629315153e-07 | F217: 1.42969732e-07 | G217: 0.06279384525 | H217: 0.005861685294 | I217: 0.01386093183 | J217: 0.05334197009 | K217: 0.001132206272 | L217: 0.01521145765 | M217: 8.695685506 | N217: 465.4180981 | O217: 20.50636529 | P217: 6.310931147e-06 | Q217: 2.205856505e-09 | R217: 9.558544992e-08 | S217: 849.5956595 | T217: =(D217/$D$395)*$D$396+(E217/$E$395)*$E$396+(F217/$F$395)*$F$396+(G217/$G$395)*$G$396+(H217/$H$395)*$H$396+(I217/$I$395)*$I$396+(J217/$J$395)*$J$396+(K217/$K$395)*$K$396+(L217/$L$395)*$L$396+(M217/$M$395)*$M$396+(N217/$N$395)*$N$396+(O217/$O$395)*$O$396+(P217/$P$395)*$P$396+(Q217/$Q$395)*$Q$396+(R217/$R$395)*$R$396+(S217/$S$395)*$S$396 -> 8.248163016e-12
A218: CHICKPEAS | B218: use | C218: =CONCATENATE(A218," ", B218) -> CHICKPEAS use | D218: =VLOOKUP($A218,use,D$1,FALSE) -> 1.127091382 | E218: =VLOOKUP($A218,use,E$1,FALSE) -> 2.024575386e-07 | F218: 1.732530199e-07 | G218: 0.080808111 | H218: 0.007296617672 | I218: 0.01699534386 | J218: 0.06488115852 | K218: 0.002048242182 | L218: 0.025165771 | M218: 10.90384207 | N218: 531.8572295 | O218: 25.17992441 | P218: 7.944233298e-06 | Q218: 2.623853198e-09 | R218: 1.119588863e-07 | S218: 1034.632038 | T218: =(D218/$D$395)*$D$396+(E218/$E$395)*$E$396+(F218/$F$395)*$F$396+(G218/$G$395)*$G$396+(H218/$H$395)*$H$396+(I218/$I$395)*$I$396+(J218/$J$395)*$J$396+(K218/$K$395)*$K$396+(L218/$L$395)*$L$396+(M218/$M$395)*$M$396+(N218/$N$395)*$N$396+(O218/$O$395)*$O$396+(P218/$P$395)*$P$396+(Q218/$Q$395)*$Q$396+(R218/$R$395)*$R$396+(S218/$S$395)*$S$396 -> 1.040052692e-11
A219: CHICKPEAS
A220: Legumes | B220: LENTILS
A221: LENTILS | B221: agriculture | C221: =CONCATENATE(A221," ", B221) -> LENTILS agriculture | D221: =VLOOKUP($A221,primary,D$1,FALSE) -> 2.205107223 | E221: =VLOOKUP($A221,primary,E$1,FALSE) -> 5.805762191e-09 | F221: 4.752772921e-08 | G221: 0.009327061114 | H221: 0.00142279918 | I221: 0.005787297633 | J221: 0.02543251243 | K221: 0.0003433579877 | L221: 0.00817873504 | M221: 0.169198535 | N221: 336.7273911 | O221: 3.429262069 | P221: 1.921160642e-07 | Q221: 8.879483784e-10 | R221: 5.214704443e-08 | S221: 360.8496523 | T221: =(D221/$D$395)*$D$396+(E221/$E$395)*$E$396+(F221/$F$395)*$F$396+(G221/$G$395)*$G$396+(H221/$H$395)*$H$396+(I221/$I$395)*$I$396+(J221/$J$395)*$J$396+(K221/$K$395)*$K$396+(L221/$L$395)*$L$396+(M221/$M$395)*$M$396+(N221/$N$395)*$N$396+(O221/$O$395)*$O$396+(P221/$P$395)*$P$396+(Q221/$Q$395)*$Q$396+(R221/$R$395)*$R$396+(S221/$S$395)*$S$396 -> 3.912296258e-12
A222: LENTILS | B222: manufacturing | C222: =CONCATENATE(A222," ", B222) -> LENTILS manufacturing | D222: =VLOOKUP($A222,manufacturing,D$1,FALSE) -> 2.914587038 | E222: 3.088005978e-07 | F222: 1.95280713e-07 | G222: 0.1273336849 | H222: 0.006652302993 | I222: 0.01610184084 | J222: 0.04726409831 | K222: 0.0004451249911 | L222: 0.01028909231 | M222: 2.235148984 | N222: 376.8971713 | O222: 32.38456193 | P222: 4.783910483e-05 | Q222: 2.46930958e-09 | R222: 8.19573505e-08 | S222: 395.8482138 | T222: =(D222/$D$395)*$D$396+(E222/$E$395)*$E$396+(F222/$F$395)*$F$396+(G222/$G$395)*$G$396+(H222/$H$395)*$H$396+(I222/$I$395)*$I$396+(J222/$J$395)*$J$396+(K222/$K$395)*$K$396+(L222/$L$395)*$L$396+(M222/$M$395)*$M$396+(N222/$N$395)*$N$396+(O222/$O$395)*$O$396+(P222/$P$395)*$P$396+(Q222/$Q$395)*$Q$396+(R222/$R$395)*$R$396+(S222/$S$395)*$S$396 -> 6.839361182e-12
A223: LENTILS | B223: retail | C223: LENTILS retail | D223: =VLOOKUP($A223,retail,D$1,FALSE) -> 2.989347061 | E223: 3.24957386e-07 | F223: 2.008025809e-07 | G223: 0.1327857637 | H223: 0.007038128003 | I223: 0.01647917301 | J223: 0.0486005664 | K223: 0.000446250302 | L223: 0.01040940242 | M223: 2.24067332 | N223: 377.8303731 | O223: 33.59040314 | P223: 4.797098206e-05 | Q223: 2.492307375e-09 | R223: 8.276495825e-08 | S223: 396.2424121 | T223: =(D223/$D$395)*$D$396+(E223/$E$395)*$E$396+(F223/$F$395)*$F$396+(G223/$G$395)*$G$396+(H223/$H$395)*$H$396+(I223/$I$395)*$I$396+(J223/$J$395)*$J$396+(K223/$K$395)*$K$396+(L223/$L$395)*$L$396+(M223/$M$395)*$M$396+(N223/$N$395)*$N$396+(O223/$O$395)*$O$396+(P223/$P$395)*$P$396+(Q223/$Q$395)*$Q$396+(R223/$R$395)*$R$396+(S223/$S$395)*$S$396 -> 6.933083178e-12
A224: LENTILS | B224: use | C224: =CONCATENATE(A224," ", B224) -> LENTILS use | D224: =VLOOKUP($A224,use,D$1,FALSE) -> 3.737895757 | E224: =VLOOKUP($A224,use,E$1,FALSE) -> 4.02725688e-07 | F224: 2.478804001e-07 | G224: 0.1696388174 | H224: 0.009089889051 | I224: 0.0208912615 | J224: 0.0623786588 | K224: 0.001415722465 | L224: 0.02492330704 | M224: 4.665696124 | N224: 434.0232977 | O224: 41.82730255 | P224: 5.605936115e-05 | Q224: 3.055730472e-09 | R224: 9.98469124e-08 | S224: 569.1622243 | T224: =(D224/$D$395)*$D$396+(E224/$E$395)*$E$396+(F224/$F$395)*$F$396+(G224/$G$395)*$G$396+(H224/$H$395)*$H$396+(I224/$I$395)*$I$396+(J224/$J$395)*$J$396+(K224/$K$395)*$K$396+(L224/$L$395)*$L$396+(M224/$M$395)*$M$396+(N224/$N$395)*$N$396+(O224/$O$395)*$O$396+(P224/$P$395)*$P$396+(Q224/$Q$395)*$Q$396+(R224/$R$395)*$R$396+(S224/$S$395)*$S$396 -> 9.584384786e-12
A225: LENTILS
A226: Vegetables | B226: BROCCOLI
A227: BROCCOLI | B227: agriculture | C227: =CONCATENATE(A227," ", B227) -> BROCCOLI agriculture | D227: =VLOOKUP($A227,primary,D$1,FALSE) -> 0.4639612092 | E227: =VLOOKUP($A227,primary,E$1,FALSE) -> 2.067405916e-09 | F227: 1.027695557e-07 | G227: 0.003380550541 | H227: 0.000646672995 | I227: 0.01475317714 | J227: 0.06595201167 | K227: 0.0002167394304 | L227: 0.01203812155 | M227: 0.1342447798 | N227: 40.20177127 | O227: 2.098831786 | P227: 3.852755068e-08 | Q227: 4.79147282e-09 | R227: 7.683665261e-08 | S227: 72.97162969 | T227: =(D227/$D$395)*$D$396+(E227/$E$395)*$E$396+(F227/$F$395)*$F$396+(G227/$G$395)*$G$396+(H227/$H$395)*$H$396+(I227/$I$395)*$I$396+(J227/$J$395)*$J$396+(K227/$K$395)*$K$396+(L227/$L$395)*$L$396+(M227/$M$395)*$M$396+(N227/$N$395)*$N$396+(O227/$O$395)*$O$396+(P227/$P$395)*$P$396+(Q227/$Q$395)*$Q$396+(R227/$R$395)*$R$396+(S227/$S$395)*$S$396 -> 1.895864784e-12
A228: BROCCOLI | B228: manufacturing | C228: =CONCATENATE(A228," ", B228) -> BROCCOLI manufacturing | D228: =VLOOKUP($A228,manufacturing,D$1,FALSE) -> 0.5730163132 | E228: 1.388746548e-08 | F228: 1.08343688e-07 | G228: 0.01177837474 | H228: 0.001071904729 | I228: 0.01544568675 | J228: 0.06812733458 | K228: 0.0002235976184 | L228: 0.01228693809 | M228: 0.1701962724 | N228: 41.37910172 | O228: 4.029986113 | P228: 5.043807402e-07 | Q228: 4.876529054e-09 | R228: 7.868303858e-08 | S228: 74.30611125 | T228: =(D228/$D$395)*$D$396+(E228/$E$395)*$E$396+(F228/$F$395)*$F$396+(G228/$G$395)*$G$396+(H228/$H$395)*$H$396+(I228/$I$395)*$I$396+(J228/$J$395)*$J$396+(K228/$K$395)*$K$396+(L228/$L$395)*$L$396+(M228/$M$395)*$M$396+(N228/$N$395)*$N$396+(O228/$O$395)*$O$396+(P228/$P$395)*$P$396+(Q228/$Q$395)*$Q$396+(R228/$R$395)*$R$396+(S228/$S$395)*$S$396 -> 2.047297546e-12
A229: BROCCOLI | B229: retail | C229: BROCCOLI retail | D229: =VLOOKUP($A229,retail,D$1,FALSE) -> 0.679379155 | E229: 3.082283264e-07 | F229: 1.140722354e-07 | G229: 0.01731565679 | H229: 0.001494796465 | I229: 0.01586698134 | J229: 0.06964595412 | K229: 0.0002248625097 | L229: 0.01241733277 | M229: 0.179853703 | N229: 42.33275281 | O229: 5.233190169 | P229: 6.828343625e-07 | Q229: 4.901803453e-09 | R229: 7.954281149e-08 | S229: 74.79942651 | T229: =(D229/$D$395)*$D$396+(E229/$E$395)*$E$396+(F229/$F$395)*$F$396+(G229/$G$395)*$G$396+(H229/$H$395)*$H$396+(I229/$I$395)*$I$396+(J229/$J$395)*$J$396+(K229/$K$395)*$K$396+(L229/$L$395)*$L$396+(M229/$M$395)*$M$396+(N229/$N$395)*$N$396+(O229/$O$395)*$O$396+(P229/$P$395)*$P$396+(Q229/$Q$395)*$Q$396+(R229/$R$395)*$R$396+(S229/$S$395)*$S$396 -> 2.163138833e-12
A230: BROCCOLI | B230: use | C230: =CONCATENATE(A230," ", B230) -> BROCCOLI use | D230: =VLOOKUP($A230,use,D$1,FALSE) -> 1.877244722 | E230: =VLOOKUP($A230,use,E$1,FALSE) -> 4.344368681e-07 | F230: 1.511538947e-07 | G230: 0.08835215822 | H230: 0.003793938188 | I230: 0.02208818281 | J230: 0.08904116761 | K230: 0.000683910271 | L230: 0.01749725021 | M230: 1.265414665 | N230: 52.77111181 | O230: 21.72218943 | P230: 2.040330726e-06 | Q230: 5.957395898e-09 | R230: 9.980740696e-08 | S230: 111.5046399 | T230: =(D230/$D$395)*$D$396+(E230/$E$395)*$E$396+(F230/$F$395)*$F$396+(G230/$G$395)*$G$396+(H230/$H$395)*$H$396+(I230/$I$395)*$I$396+(J230/$J$395)*$J$396+(K230/$K$395)*$K$396+(L230/$L$395)*$L$396+(M230/$M$395)*$M$396+(N230/$N$395)*$N$396+(O230/$O$395)*$O$396+(P230/$P$395)*$P$396+(Q230/$Q$395)*$Q$396+(R230/$R$395)*$R$396+(S230/$S$395)*$S$396 -> 3.871068593e-12
A231: BROCCOLI
... 608 more rows

Sheet Food cost (hidden)
B1: Food cost | D1: Cost in Euros for 1 kg
D4: Austria | E4: Belgium | F4: Bulgaria | G4: Croatia | H4: Cyprus | I4: Czech Republic | J4: Denmark | K4: Estonia | L4: Finland | M4: France | N4: Germany | O4: Greece | P4: Hungary | Q4: Iceland | R4: Ireland | S4: Italy | T4: Latvia | U4: Lithuania | V4: Luxembourg | W4: Malta | X4: Netherlands | Y4: Norway | Z4: Poland | AA4: Portugal | AB4: Romania | AC4: Slovakia | AD4: Slovenia | AE4: Spain | AF4: Sweden | AG4: Switzerland | AH4: United Kingdom | AI4: Unknown
A5: Agriculture | B5: =dropdown!O3 -> GENERIC | C5: =CONCATENATE(B5," ","agriculture") -> GENERIC agriculture | D5: 1.252863655 | E5: 1.140175139 | F5: 1.097249622 | G5: 1.331337857 | H5: 1.291511902 | I5: 1.154730934 | J5: 1.273816464 | K5: 1.107968403 | L5: 1.287997161 | M5: 1.253210493 | N5: 1.215018054 | O5: 1.260993149 | P5: 1.127593081 | Q5: 1.218175794 | R5: 1.10048816 | S5: 1.594024357 | T5: 1.094369344 | U5: 1.142020652 | V5: 1.274855899 | W5: 1.326844446 | X5: 1.139005234 | Y5: 1.218175794 | Z5: 1.043360057 | AA5: 1.21263504 | AB5: 1.147487459 | AC5: 1.189599583 | AD5: 1.273883581 | AE5: 1.318158233 | AF5: 1.283207328 | AG5: 1.218175794 | AH5: 1.270886545 | AI5: 1.218175794
B6: ALMONDS | C6: =CONCATENATE(B6," ","agriculture") -> ALMONDS agriculture | D6: 1.957171429 | E6: 1.957171429 | F6: 1.957171429 | G6: 2.8055 | H6: 1.165 | I6: 1.957171429 | J6: 1.957171429 | K6: 1.957171429 | L6: 1.957171429 | M6: 1.957171429 | N6: 1.957171429 | O6: 3.6736 | P6: 1.6048 | Q6: 1.957171429 | R6: 1.957171429 | S6: 1.5809 | T6: 1.957171429 | U6: 1.957171429 | V6: 1.957171429 | W6: 1.957171429 | X6: 1.957171429 | Y6: 1.957171429 | Z6: 1.957171429 | AA6: 1.0156 | AB6: 1.957171429 | AC6: 1.957171429 | AD6: 1.957171429 | AE6: 1.8548 | AF6: 1.957171429 | AG6: 1.957171429 | AH6: 1.957171429 | AI6: 1.957171429
B7: APPLES | C7: APPLES agriculture | D7: 0.3904 | E7: 0.3942 | F7: 0.2392 | G7: 0.2982 | H7: 0.703 | I7: 0.3461 | J7: 0.4371 | K7: 0.533296 | L7: 1.637 | M7: 0.533296 | N7: 0.4168 | O7: 0.6033 | P7: 0.258 | Q7: 0.533296 | R7: 0.533296 | S7: 0.4418 | T7: 0.3335 | U7: 0.4007 | V7: 1.38 | W7: 0.4483 | X7: 0.4821 | Y7: 0.533296 | Z7: 0.1859 | AA7: 0.5759 | AB7: 0.6006 | AC7: 0.3333 | AD7: 0.4611 | AE7: 0.3773 | AF7: 0.6719 | AG7: 0.533296 | AH7: 0.9167 | AI7: 0.533296
B8: BANANAS | C8: BANANAS agriculture | D8: 0.6570509756 | E8: 0.6570509756 | F8: 0.6570509756 | G8: 0.6570509756 | H8: 0.6570509756 | I8: 0.6570509756 | J8: 0.6570509756 | K8: 0.6570509756 | L8: 0.6570509756 | M8: 0.6570509756 | N8: 0.6570509756 | O8: 0.6570509756 | P8: 0.6570509756 | Q8: 0.6570509756 | R8: 0.6570509756 | S8: 0.6570509756 | T8: 0.6570509756 | U8: 0.6570509756 | V8: 0.6570509756 | W8: 0.6570509756 | X8: 0.6570509756 | Y8: 0.6570509756 | Z8: 0.6570509756 | AA8: 0.6570509756 | AB8: 0.6570509756 | AC8: 0.6570509756 | AD8: 0.6570509756 | AE8: 0.6570509756 | AF8: 0.6570509756 | AG8: 0.6570509756 | AH8: 0.6570509756 | AI8: 0.6570509756
B9: BEANS | C9: BEANS agriculture | D9: 2.454593625 | E9: 2.454593625 | F9: 2.454593625 | G9: 2.454593625 | H9: 2.454593625 | I9: 2.454593625 | J9: 2.454593625 | K9: 2.454593625 | L9: 2.454593625 | M9: 2.454593625 | N9: 2.454593625 | O9: 2.454593625 | P9: 2.454593625 | Q9: 2.454593625 | R9: 2.454593625 | S9: 2.454593625 | T9: 2.454593625 | U9: 2.454593625 | V9: 2.454593625 | W9: 2.454593625 | X9: 2.454593625 | Y9: 2.454593625 | Z9: 2.454593625 | AA9: 2.454593625 | AB9: 2.454593625 | AC9: 2.454593625 | AD9: 2.454593625 | AE9: 2.454593625 | AF9: 2.454593625 | AG9: 2.454593625 | AH9: 2.454593625 | AI9: 2.454593625
B10: BEEF | C10: BEEF agriculture | D10: 3.400939333 | E10: 2.925911278 | F10: 2.068586333 | G10: 3.125733778 | H10: 3.505084472 | I10: 2.852172444 | J10: 3.486202361 | K10: 2.925106833 | L10: 3.335973 | M10: 3.624629917 | N10: 3.530478806 | O10: 3.546955639 | P10: 2.197604417 | Q10: 3.505084472 | R10: 3.643113222 | S10: 3.633751667 | T10: 2.279983972 | U10: 2.708076518 | V10: 3.5303245 | W10: 2.701038917 | X10: 2.941353528 | Y10: 3.505084472 | Z10: 3.076499333 | AA10: 3.162008639 | AB10: 2.475967361 | AC10: 2.661443022 | AD10: 3.005938889 | AE10: 3.303294833 | AF10: 4.455433278 | AG10: 3.505084472 | AH10: 3.800331694 | AI10: 3.505084472
B11: BEER | C11: BEER agriculture
B12: BISCUITS | C12: BISCUITS agriculture
B13: BREAD | C13: BREAD agriculture
B14: BUTTER | C14: BUTTER agriculture | D14: 5.082395563 | E14: 4.560356667 | F14: 5.082395563 | G14: 4.392941429 | H14: 5.082395563 | I14: 4.565449 | J14: 5.082395563 | K14: 5.28762625 | L14: 5.082395563 | M14: 5.082395563 | N14: 5.472 | O14: 5.082395563 | P14: 5.082395563 | Q14: 5.082395563 | R14: 5.00487 | S14: 4.776708333 | T14: 4.902657083 | U14: 5.082395563 | V14: 5.082395563 | W14: 5.082395563 | X14: 5.201791667 | Y14: 5.082395563 | Z14: 4.621411818 | AA14: 5.082395563 | AB14: 5.082395563 | AC14: 5.316029091 | AD14: 5.082395563 | AE14: 5.772346667 | AF14: 5.082395563 | AG14: 5.082395563 | AH14: 5.139379583 | AI14: 5.082395563
B15: CHEESE | C15: CHEESE agriculture | D15: 4.723234167 | E15: 4.420248974 | F15: 4.420248974 | G15: 3.772312857 | H15: 4.420248974 | I15: 4.2599915 | J15: 4.420248974 | K15: 3.13865425 | L15: 4.420248974 | M15: 4.420248974 | N15: 3.512549167 | O15: 4.420248974 | P15: 4.420248974 | Q15: 4.420248974 | R15: 4.06280327 | S15: 4.420248974 | T15: 3.987678333 | U15: 3.637901667 | V15: 4.420248974 | W15: 4.420248974 | X15: 4.420248974 | Y15: 4.420248974 | Z15: 3.477306061 | AA15: 4.420248974 | AB15: 4.420248974 | AC15: 5.023746818 | AD15: 4.420248974 | AE15: 8.8890125 | AF15: 4.420248974 | AG15: 4.420248974 | AH15: 4.557797097 | AI15: 4.420248974
B16: CHOCOLATE | C16: CHOCOLATE agriculture
B17: COD | C17: COD agriculture | D17: 2.78726 | E17: 2.78726 | F17: 2.78726 | G17: 5.66355 | H17: 2.78726 | I17: 2.78726 | J17: 3.15902 | K17: 2.78726 | L17: 2.8 | M17: 2.78726 | N17: 2.78726 | O17: 1.01623 | P17: 2.78726 | Q17: 2.78726 | R17: 1.58306 | S17: 3.65436 | T17: 2.78726 | U17: 2.78726 | V17: 2.78726 | W17: 2.78726 | X17: 2.93127 | Y17: 2.78726 | Z17: 1.26318 | AA17: 2.78726 | AB17: 2.78726 | AC17: 2.78726 | AD17: 2.78726 | AE17: 2.40539 | AF17: 1.60926 | AG17: 2.78726 | AH17: 3.05615 | AI17: 2.78726
B18: COFFEE | C18: COFFEE agriculture
B19: EGGS | C19: EGGS agriculture | D19: 1.753009167 | E19: 1.289624 | F19: 1.2626075 | G19: 1.605611833 | H19: 1.7641 | I19: 1.28843175 | J19: 1.720754667 | K19: 1.149768333 | L19: 1.3492125 | M19: 1.364483083 | N19: 1.524000417 | O19: 1.375834417 | P19: 1.588432417 | Q19: 1.394990333 | R19: 1.362178 | S19: 1.83930975 | T19: 1.21707925 | U19: 1.111126583 | V19: 1.394990333 | W19: 1.664727167 | X19: 1.267668583 | Y19: 1.394990333 | Z19: 1.47872025 | AA19: 1.296752833 | AB19: 1.273519583 | AC19: 1.290734333 | AD19: 1.410507 | AE19: 1.141066 | AF19: 1.917074583 | AG19: 1.394990333 | AH19: 1.047303917 | AI19: 1.394990333
B20: MILK | C20: MILK agriculture | D20: 0.373425 | E20: 0.3505416667 | F20: 0.3051916667 | G20: 0.3137833333 | H20: 0.5588416667 | I20: 0.3158916667 | J20: 0.3678916667 | K20: 0.3267833333 | L20: 0.3763166667 | M20: 0.3439916667 | N20: 0.3640833333 | O20: 0.3878833333 | P20: 0.3047666667 | Q20: 0.3485958333 | R20: 0.364175 | S20: 0.3702416667 | T20: 0.3061416667 | U20: 0.2975666667 | V20: 0.3542416667 | W20: 0.480875 | X20: 0.3795833333 | Y20: 0.3485958333 | Z20: 0.32365 | AA20: 0.2968166667 | AB20: 0.2918916667 | AC20: 0.3098583333 | AD20: 0.3032 | AE20: 0.30955 | AF20: 0.379425 | AG20: 0.3485958333 | AH20: 0.3157272727 | AI20: 0.3485958333
B21: MINERAL WATER | C21: MINERAL WATER agriculture
B22: OLIVE OIL | C22: OLIVE OIL agriculture | D22: 3.66306575 | E22: 3.66306575 | F22: 3.66306575 | G22: 3.66306575 | H22: 3.66306575 | I22: 3.66306575 | J22: 3.66306575 | K22: 3.66306575 | L22: 3.66306575 | M22: 3.66306575 | N22: 3.66306575 | O22: 3.488879639 | P22: 3.66306575 | Q22: 3.66306575 | R22: 3.66306575 | S22: 3.710451389 | T22: 3.66306575 | U22: 3.66306575 | V22: 3.66306575 | W22: 3.66306575 | X22: 3.66306575 | Y22: 3.66306575 | Z22: 3.66306575 | AA22: 3.627651515 | AB22: 3.66306575 | AC22: 3.66306575 | AD22: 3.66306575 | AE22: 3.683251131 | AF22: 3.66306575 | AG22: 3.66306575 | AH22: 3.66306575 | AI22: 3.66306575
B23: ORANGES | C23: ORANGES agriculture | D23: 0.511007 | E23: 0.511007 | F23: 0.511007 | G23: 0.511007 | H23: 0.511007 | I23: 0.511007 | J23: 0.511007 | K23: 0.511007 | L23: 0.511007 | M23: 0.511007 | N23: 0.511007 | O23: 0.385 | P23: 0.511007 | Q23: 0.511007 | R23: 0.511007 | S23: 0.802404 | T23: 0.511007 | U23: 0.511007 | V23: 0.511007 | W23: 0.511007 | X23: 0.511007 | Y23: 0.511007 | Z23: 0.511007 | AA23: 0.44 | AB23: 0.511007 | AC23: 0.511007 | AD23: 0.511007 | AE23: 0.416624 | AF23: 0.511007 | AG23: 0.511007 | AH23: 0.511007 | AI23: 0.511007
B24: PASTA | C24: PASTA agriculture
B25: PORK | C25: PORK agriculture | D25: 1.786784583 | E25: 1.5111035 | F25: 1.62028125 | G25: 1.676572417 | H25: 1.62028125 | I25: 1.654405417 | J25: 1.545974 | K25: 1.6084175 | L25: 1.590794333 | M25: 1.570452667 | N25: 1.705847083 | O25: 1.88723875 | P25: 1.7266705 | Q25: 1.62028125 | R25: 1.601527167 | S25: 1.62028125 | T25: 1.571469667 | U25: 1.655127667 | V25: 1.708996 | W25: 2.18 | X25: 1.471285083 | Y25: 1.62028125 | Z25: 1.62281825 | AA25: 1.744677833 | AB25: 1.7194815 | AC25: 1.727413917 | AD25: 1.796390333 | AE25: 1.6011755 | AF25: 1.811472083 | AG25: 1.62028125 | AH25: 1.805974333 | AI25: 1.62028125
B26: POTATOES | C26: POTATOES agriculture | D26: 0.1885 | E26: 0.0996 | F26: 0.1976 | G26: 0.1439 | H26: 0.359 | I26: 0.1657 | J26: 0.2558 | K26: 0.2249692308 | L26: 0.1774 | M26: 0.437 | N26: 0.1284 | O26: 0.4789 | P26: 0.216 | Q26: 0.2249692308 | R26: 0.2249692308 | S26: 0.3634 | T26: 0.1362 | U26: 0.1152 | V26: 0.312 | W26: 0.3271 | X26: 0.115 | Y26: 0.2249692308 | Z26: 0.1222 | AA26: 0.1956 | AB26: 0.2699 | AC26: 0.2472 | AD26: 0.1311 | AE26: 0.1983 | AF26: 0.2722 | AG26: 0.2249692308 | AH26: 0.196 | AI26: 0.2249692308
B27: POULTRY | C27: POULTRY agriculture | D27: 1.825374417 | E27: 1.66199625 | F27: 1.466636833 | G27: 1.848677167 | H27: 2.5395 | I27: 1.807649333 | J27: 2.41045325 | K27: 1.614195571 | L27: 2.556461833 | M27: 2.3 | N27: 2.688396083 | O27: 2.0440085 | P27: 1.44906275 | Q27: 1.82050725 | R27: 0.9739085 | S27: 2.0620075 | T27: 1.586813833 | U27: 1.435305083 | V27: 1.82050725 | W27: 2.227522833 | X27: 1.71 | Y27: 1.82050725 | Z27: 1.234289833 | AA27: 1.526114667 | AB27: 1.4803255 | AC27: 1.510239 | AD27: 1.92437325 | AE27: 1.654531 | AF27: 2.47963275 | AG27: 1.82050725 | AH27: 1.491107667 | AI27: 1.82050725
B28: RICE | C28: RICE agriculture | D28: 0.3206333333 | E28: 0.3206333333 | F28: 0.3357 | G28: 0.3206333333 | H28: 0.3206333333 | I28: 0.3206333333 | J28: 0.3206333333 | K28: 0.3206333333 | L28: 0.3206333333 | M28: 0.3206333333 | N28: 0.3206333333 | O28: 0.2293 | P28: 0.243 | Q28: 0.3206333333 | R28: 0.3206333333 | S28: 0.5646 | T28: 0.3206333333 | U28: 0.3206333333 | V28: 0.3206333333 | W28: 0.3206333333 | X28: 0.3206333333 | Y28: 0.3206333333 | Z28: 0.3206333333 | AA28: 0.2744 | AB28: 0.3206333333 | AC28: 0.3206333333 | AD28: 0.3206333333 | AE28: 0.2768 | AF28: 0.3206333333 | AG28: 0.3206333333 | AH28: 0.3206333333 | AI28: 0.3206333333
B29: SALMON | C29: SALMON agriculture | D29: 6.14233 | E29: 6.14233 | F29: 6.14233 | G29: 12.53919 | H29: 6.14233 | I29: 6.14233 | J29: 6.14233 | K29: 6.14233 | L29: 5.35038 | M29: 6.14233 | N29: 6.14233 | O29: 5.92577 | P29: 6.14233 | Q29: 6.14233 | R29: 4.01244 | S29: 38.07066 | T29: 6.14233 | U29: 6.14233 | V29: 6.14233 | W29: 6.14233 | X29: 6.14233 | Y29: 6.14233 | Z29: 6.70625 | AA29: 9.7299 | AB29: 6.14233 | AC29: 6.14233 | AD29: 6.14233 | AE29: 6.14233 | AF29: 3.97111 | AG29: 6.14233 | AH29: 12.9705 | AI29: 6.14233
B30: SHRIMP | C30: SHRIMP agriculture | D30: 9.785798125 | E30: 9.785798125 | F30: 6.89143 | G30: 20.87294 | H30: 3.0585 | I30: 9.785798125 | J30: 9.785798125 | K30: 6.89143 | L30: 9.785798125 | M30: 3.05962 | N30: 2.21009 | O30: 9.785798125 | P30: 9.785798125 | Q30: 9.785798125 | R30: 8.27167 | S30: 11.39146 | T30: 9.56697 | U30: 24 | V30: 9.785798125 | W30: 9.785798125 | X30: 6.1046 | Y30: 9.785798125 | Z30: 9.785798125 | AA30: 21.35156 | AB30: 9.785798125 | AC30: 9.785798125 | AD30: 14.715 | AE30: 10.85502 | AF30: 2.29408 | AG30: 9.785798125 | AH30: 5.0384 | AI30: 9.785798125
B31: SUGAR | C31: SUGAR agriculture | D31: 0.47375 | E31: 0.47375 | F31: 0.47375 | G31: 0.47375 | H31: 0.47375 | I31: 0.47375 | J31: 0.47375 | K31: 0.47375 | L31: 0.47375 | M31: 0.47375 | N31: 0.47375 | O31: 0.47375 | P31: 0.47375 | Q31: 0.47375 | R31: 0.47375 | S31: 0.47375 | T31: 0.47375 | U31: 0.47375 | V31: 0.47375 | W31: 0.47375 | X31: 0.47375 | Y31: 0.47375 | Z31: 0.47375 | AA31: 0.47375 | AB31: 0.47375 | AC31: 0.47375 | AD31: 0.47375 | AE31: 0.47375 | AF31: 0.47375 | AG31: 0.47375 | AH31: 0.47375 | AI31: 0.47375
B32: SUNFLOWER OIL | C32: SUNFLOWER OIL agriculture
B33: TEA | C33: TEA agriculture
B34: TOFU | C34: TOFU agriculture
B35: TOMATOES | C35: TOMATOES agriculture | D35: 1.037204417 | E35: 1.047347167 | F35: 0.8780529091 | G35: 0.7529822 | H35: 1.037204417 | I35: 0.9614458571 | J35: 1.037204417 | K35: 1.037204417 | L35: 1.037204417 | M35: 1.1105 | N35: 1.037204417 | O35: 0.70696725 | P35: 0.610696 | Q35: 1.037204417 | R35: 1.037204417 | S35: 1.642488583 | T35: 1.037204417 | U35: 1.037204417 | V35: 1.037204417 | W35: 1.037204417 | X35: 0.7335515556 | Y35: 1.037204417 | Z35: 0.6017707143 | AA35: 0.5811110833 | AB35: 0.6052756667 | AC35: 1.037204417 | AD35: 1.037204417 | AE35: 0.7787305 | AF35: 1.037204417 | AG35: 1.037204417 | AH35: 1.037204417 | AI35: 1.037204417
B36: WINE | C36: WINE agriculture | D36: 0.7262 | E36: 0.7262 | F36: 0.7262 | G36: 1.0318 | H36: 0.233 | I36: 0.7262 | J36: 0.7262 | K36: 0.7262 | L36: 0.7262 | M36: 0.663 | N36: 0.7262 | O36: 0.8397 | P36: 0.7262 | Q36: 0.7262 | R36: 0.7262 | S36: 0.7262 | T36: 0.7262 | U36: 0.7262 | V36: 0.7262 | W36: 0.7262 | X36: 0.7262 | Y36: 0.7262 | Z36: 0.7262 | AA36: 0.4126 | AB36: 0.7176 | AC36: 0.7262 | AD36: 1.5732 | AE36: 0.3387 | AF36: 0.7262 | AG36: 0.7262 | AH36: 0.7262 | AI36: 0.7262
B37: quinoa | C37: quinoa agriculture | D37: =D6 -> 1.957171429 | E37: 1.957171429 | F37: 1.957171429 | G37: 2.8055 | H37: 1.165 | I37: 1.957171429 | J37: 1.957171429 | K37: 1.957171429 | L37: 1.957171429 | M37: 1.957171429 | N37: 1.957171429 | O37: 3.6736 | P37: 1.6048 | Q37: 1.957171429 | R37: 1.957171429 | S37: 1.5809 | T37: 1.957171429 | U37: 1.957171429 | V37: 1.957171429 | W37: 1.957171429 | X37: 1.957171429 | Y37: 1.957171429 | Z37: 1.957171429 | AA37: 1.0156 | AB37: 1.957171429 | AC37: 1.957171429 | AD37: 1.957171429 | AE37: 1.8548 | AF37: 1.957171429 | AG37: 1.957171429 | AH37: 1.957171429 | AI37: 1.957171429
B38: avocado | C38: avocado agriculture | D38: =D8 -> 0.6570509756 | E38: 0.6570509756 | F38: 0.6570509756 | G38: 0.6570509756 | H38: 0.6570509756 | I38: 0.6570509756 | J38: 0.6570509756 | K38: 0.6570509756 | L38: 0.6570509756 | M38: 0.6570509756 | N38: 0.6570509756 | O38: 0.6570509756 | P38: 0.6570509756 | Q38: 0.6570509756 | R38: 0.6570509756 | S38: 0.6570509756 | T38: 0.6570509756 | U38: 0.6570509756 | V38: 0.6570509756 | W38: 0.6570509756 | X38: 0.6570509756 | Y38: 0.6570509756 | Z38: 0.6570509756 | AA38: 0.6570509756 | AB38: 0.6570509756 | AC38: 0.6570509756 | AD38: 0.6570509756 | AE38: 0.6570509756 | AF38: 0.6570509756 | AG38: 0.6570509756 | AH38: 0.6570509756 | AI38: 0.6570509756
B39: strawberries | C39: strawberries agriculture | D39: =D8 -> 0.6570509756 | E39: 0.6570509756 | F39: 0.6570509756 | G39: 0.6570509756 | H39: 0.6570509756 | I39: 0.6570509756 | J39: 0.6570509756 | K39: 0.6570509756 | L39: 0.6570509756 | M39: 0.6570509756 | N39: 0.6570509756 | O39: 0.6570509756 | P39: 0.6570509756 | Q39: 0.6570509756 | R39: 0.6570509756 | S39: 0.6570509756 | T39: 0.6570509756 | U39: 0.6570509756 | V39: 0.6570509756 | W39: 0.6570509756 | X39: 0.6570509756 | Y39: 0.6570509756 | Z39: 0.6570509756 | AA39: 0.6570509756 | AB39: 0.6570509756 | AC39: 0.6570509756 | AD39: 0.6570509756 | AE39: 0.6570509756 | AF39: 0.6570509756 | AG39: 0.6570509756 | AH39: 0.6570509756 | AI39: 0.6570509756
B40: broccoli | C40: broccoli agriculture | D40: =D35 -> 1.037204417 | E40: =E35 -> 1.047347167 | F40: 0.8780529091 | G40: 0.7529822 | H40: 1.037204417 | I40: 0.9614458571 | J40: 1.037204417 | K40: 1.037204417 | L40: 1.037204417 | M40: 1.1105 | N40: 1.037204417 | O40: 0.70696725 | P40: 0.610696 | Q40: 1.037204417 | R40: 1.037204417 | S40: 1.642488583 | T40: 1.037204417 | U40: 1.037204417 | V40: 1.037204417 | W40: 1.037204417 | X40: 0.7335515556 | Y40: 1.037204417 | Z40: 0.6017707143 | AA40: 0.5811110833 | AB40: 0.6052756667 | AC40: 1.037204417 | AD40: 1.037204417 | AE40: 0.7787305 | AF40: 1.037204417 | AG40: 1.037204417 | AH40: 1.037204417 | AI40: 1.037204417
B41: carrots | C41: carrots agriculture | D41: =D26 -> 0.1885 | E41: =E26 -> 0.0996 | F41: 0.1976 | G41: 0.1439 | H41: 0.359 | I41: 0.1657 | J41: 0.2558 | K41: 0.2249692308 | L41: 0.1774 | M41: 0.437 | N41: 0.1284 | O41: 0.4789 | P41: 0.216 | Q41: 0.2249692308 | R41: 0.2249692308 | S41: 0.3634 | T41: 0.1362 | U41: 0.1152 | V41: 0.312 | W41: 0.3271 | X41: 0.115 | Y41: 0.2249692308 | Z41: 0.1222 | AA41: 0.1956 | AB41: 0.2699 | AC41: 0.2472 | AD41: 0.1311 | AE41: 0.1983 | AF41: 0.2722 | AG41: 0.2249692308 | AH41: 0.196 | AI41: 0.2249692308
B42: canned tuna | C42: canned tuna agriculture | D42: =D29 -> 6.14233 | E42: =E29 -> 6.14233 | F42: 6.14233 | G42: 12.53919 | H42: 6.14233 | I42: 6.14233 | J42: 6.14233 | K42: 6.14233 | L42: 5.35038 | M42: 6.14233 | N42: 6.14233 | O42: 5.92577 | P42: 6.14233 | Q42: 6.14233 | R42: 4.01244 | S42: 38.07066 | T42: 6.14233 | U42: 6.14233 | V42: 6.14233 | W42: 6.14233 | X42: 6.14233 | Y42: 6.14233 | Z42: 6.70625 | AA42: 9.7299 | AB42: 6.14233 | AC42: 6.14233 | AD42: 6.14233 | AE42: 6.14233 | AF42: 3.97111 | AG42: 6.14233 | AH42: 12.9705 | AI42: 6.14233
B43: Cashew | C43: Cashew agriculture | D43: =D6 -> 1.957171429 | E43: 1.957171429 | F43: 1.957171429 | G43: 2.8055 | H43: 1.165 | I43: 1.957171429 | J43: 1.957171429 | K43: 1.957171429 | L43: 1.957171429 | M43: 1.957171429 | N43: 1.957171429 | O43: 3.6736 | P43: 1.6048 | Q43: 1.957171429 | R43: 1.957171429 | S43: 1.5809 | T43: 1.957171429 | U43: 1.957171429 | V43: 1.957171429 | W43: 1.957171429 | X43: 1.957171429 | Y43: 1.957171429 | Z43: 1.957171429 | AA43: 1.0156 | AB43: 1.957171429 | AC43: 1.957171429 | AD43: 1.957171429 | AE43: 1.8548 | AF43: 1.957171429 | AG43: 1.957171429 | AH43: 1.957171429 | AI43: 1.957171429
B44: palm oil | C44: palm oil agriculture
B45: rapeseed oil | C45: rapeseed oil agriculture
B46: soybean oil | C46: soybean oil agriculture
B47: pre-prepared meals | C47: pre-prepared meals agriculture
B48: chickpeas | C48: chickpeas agriculture | D48: =D9 -> 2.454593625 | E48: 2.454593625 | F48: 2.454593625 | G48: 2.454593625 | H48: 2.454593625 | I48: 2.454593625 | J48: 2.454593625 | K48: 2.454593625 | L48: 2.454593625 | M48: 2.454593625 | N48: 2.454593625 | O48: 2.454593625 | P48: 2.454593625 | Q48: 2.454593625 | R48: 2.454593625 | S48: 2.454593625 | T48: 2.454593625 | U48: 2.454593625 | V48: 2.454593625 | W48: 2.454593625 | X48: 2.454593625 | Y48: 2.454593625 | Z48: 2.454593625 | AA48: 2.454593625 | AB48: 2.454593625 | AC48: 2.454593625 | AD48: 2.454593625 | AE48: 2.454593625 | AF48: 2.454593625 | AG48: 2.454593625 | AH48: 2.454593625 | AI48: 2.454593625
B49: lentils | C49: lentils agriculture | D49: =D9 -> 2.454593625 | E49: 2.454593625 | F49: 2.454593625 | G49: 2.454593625 | H49: 2.454593625 | I49: 2.454593625 | J49: 2.454593625 | K49: 2.454593625 | L49: 2.454593625 | M49: 2.454593625 | N49: 2.454593625 | O49: 2.454593625 | P49: 2.454593625 | Q49: 2.454593625 | R49: 2.454593625 | S49: 2.454593625 | T49: 2.454593625 | U49: 2.454593625 | V49: 2.454593625 | W49: 2.454593625 | X49: 2.454593625 | Y49: 2.454593625 | Z49: 2.454593625 | AA49: 2.454593625 | AB49: 2.454593625 | AC49: 2.454593625 | AD49: 2.454593625 | AE49: 2.454593625 | AF49: 2.454593625 | AG49: 2.454593625 | AH49: 2.454593625 | AI49: 2.454593625
B50: soymilk | C50: soymilk agriculture
A51: Manufacturing | B51: GENERIC | C51: =CONCATENATE(B51," ","manufacturing") -> GENERIC manufacturing | D51: 1.252863655 | E51: 1.140175139 | F51: 1.097249622 | G51: 1.331337857 | H51: 1.291511902 | I51: 1.154730934 | J51: 1.273816464 | K51: 1.107968403 | L51: 1.287997161 | M51: 1.253210493 | N51: 1.215018054 | O51: 1.260993149 | P51: 1.127593081 | Q51: 1.218175794 | R51: 1.10048816 | S51: 1.594024357 | T51: 1.094369344 | U51: 1.142020652 | V51: 1.274855899 | W51: 1.326844446 | X51: 1.139005234 | Y51: 1.218175794 | Z51: 1.043360057 | AA51: 1.21263504 | AB51: 1.147487459 | AC51: 1.189599583 | AD51: 1.273883581 | AE51: 1.318158233 | AF51: 1.283207328 | AG51: 1.218175794 | AH51: 1.270886545 | AI51: 1.218175794
B52: ALMONDS | C52: =CONCATENATE(B52," ","manufacturing") -> ALMONDS manufacturing | D52: 1.957171429 | E52: 1.957171429 | F52: 1.957171429 | G52: 2.8055 | H52: 1.165 | I52: 1.957171429 | J52: 1.957171429 | K52: 1.957171429 | L52: 1.957171429 | M52: 1.957171429 | N52: 1.957171429 | O52: 3.6736 | P52: 1.6048 | Q52: 1.957171429 | R52: 1.957171429 | S52: 1.5809 | T52: 1.957171429 | U52: 1.957171429 | V52: 1.957171429 | W52: 1.957171429 | X52: 1.957171429 | Y52: 1.957171429 | Z52: 1.957171429 | AA52: 1.0156 | AB52: 1.957171429 | AC52: 1.957171429 | AD52: 1.957171429 | AE52: 1.8548 | AF52: 1.957171429 | AG52: 1.957171429 | AH52: 1.957171429 | AI52: 1.957171429
B53: APPLES | C53: APPLES manufacturing | D53: 0.3904 | E53: 0.3942 | F53: 0.2392 | G53: 0.2982 | H53: 0.703 | I53: 0.3461 | J53: 0.4371 | K53: 0.533296 | L53: 1.637 | M53: 0.533296 | N53: 0.4168 | O53: 0.6033 | P53: 0.258 | Q53: 0.533296 | R53: 0.533296 | S53: 0.4418 | T53: 0.3335 | U53: 0.4007 | V53: 1.38 | W53: 0.4483 | X53: 0.4821 | Y53: 0.533296 | Z53: 0.1859 | AA53: 0.5759 | AB53: 0.6006 | AC53: 0.3333 | AD53: 0.4611 | AE53: 0.3773 | AF53: 0.6719 | AG53: 0.533296 | AH53: 0.9167 | AI53: 0.533296
B54: BANANAS | C54: BANANAS manufacturing | D54: 0.6570509756 | E54: 0.6570509756 | F54: 0.6570509756 | G54: 0.6570509756 | H54: 0.6570509756 | I54: 0.6570509756 | J54: 0.6570509756 | K54: 0.6570509756 | L54: 0.6570509756 | M54: 0.6570509756 | N54: 0.6570509756 | O54: 0.6570509756 | P54: 0.6570509756 | Q54: 0.6570509756 | R54: 0.6570509756 | S54: 0.6570509756 | T54: 0.6570509756 | U54: 0.6570509756 | V54: 0.6570509756 | W54: 0.6570509756 | X54: 0.6570509756 | Y54: 0.6570509756 | Z54: 0.6570509756 | AA54: 0.6570509756 | AB54: 0.6570509756 | AC54: 0.6570509756 | AD54: 0.6570509756 | AE54: 0.6570509756 | AF54: 0.6570509756 | AG54: 0.6570509756 | AH54: 0.6570509756 | AI54: 0.6570509756
B55: BEANS | C55: BEANS manufacturing | D55: 2.454593625 | E55: 2.454593625 | F55: 2.454593625 | G55: 2.454593625 | H55: 2.454593625 | I55: 2.454593625 | J55: 2.454593625 | K55: 2.454593625 | L55: 2.454593625 | M55: 2.454593625 | N55: 2.454593625 | O55: 2.454593625 | P55: 2.454593625 | Q55: 2.454593625 | R55: 2.454593625 | S55: 2.454593625 | T55: 2.454593625 | U55: 2.454593625 | V55: 2.454593625 | W55: 2.454593625 | X55: 2.454593625 | Y55: 2.454593625 | Z55: 2.454593625 | AA55: 2.454593625 | AB55: 2.454593625 | AC55: 2.454593625 | AD55: 2.454593625 | AE55: 2.454593625 | AF55: 2.454593625 | AG55: 2.454593625 | AH55: 2.454593625 | AI55: 2.454593625
B56: BEEF | C56: BEEF manufacturing | D56: 3.400939333 | E56: 2.925911278 | F56: 2.068586333 | G56: 3.125733778 | H56: 3.505084472 | I56: 2.852172444 | J56: 3.486202361 | K56: 2.925106833 | L56: 3.335973 | M56: 3.624629917 | N56: 3.530478806 | O56: 3.546955639 | P56: 2.197604417 | Q56: 3.505084472 | R56: 3.643113222 | S56: 3.633751667 | T56: 2.279983972 | U56: 2.708076518 | V56: 3.5303245 | W56: 2.701038917 | X56: 2.941353528 | Y56: 3.505084472 | Z56: 3.076499333 | AA56: 3.162008639 | AB56: 2.475967361 | AC56: 2.661443022 | AD56: 3.005938889 | AE56: 3.303294833 | AF56: 4.455433278 | AG56: 3.505084472 | AH56: 3.800331694 | AI56: 3.505084472
B57: BEER | C57: BEER manufacturing
B58: BISCUITS | C58: BISCUITS manufacturing
B59: BREAD | C59: BREAD manufacturing
B60: BUTTER | C60: BUTTER manufacturing | D60: 5.082395563 | E60: 4.560356667 | F60: 5.082395563 | G60: 4.392941429 | H60: 5.082395563 | I60: 4.565449 | J60: 5.082395563 | K60: 5.28762625 | L60: 5.082395563 | M60: 5.082395563 | N60: 5.472 | O60: 5.082395563 | P60: 5.082395563 | Q60: 5.082395563 | R60: 5.00487 | S60: 4.776708333 | T60: 4.902657083 | U60: 5.082395563 | V60: 5.082395563 | W60: 5.082395563 | X60: 5.201791667 | Y60: 5.082395563 | Z60: 4.621411818 | AA60: 5.082395563 | AB60: 5.082395563 | AC60: 5.316029091 | AD60: 5.082395563 | AE60: 5.772346667 | AF60: 5.082395563 | AG60: 5.082395563 | AH60: 5.139379583 | AI60: 5.082395563
B61: CHEESE | C61: CHEESE manufacturing | D61: 4.723234167 | E61: 4.420248974 | F61: 4.420248974 | G61: 3.772312857 | H61: 4.420248974 | I61: 4.2599915 | J61: 4.420248974 | K61: 3.13865425 | L61: 4.420248974 | M61: 4.420248974 | N61: 3.512549167 | O61: 4.420248974 | P61: 4.420248974 | Q61: 4.420248974 | R61: 4.06280327 | S61: 4.420248974 | T61: 3.987678333 | U61: 3.637901667 | V61: 4.420248974 | W61: 4.420248974 | X61: 4.420248974 | Y61: 4.420248974 | Z61: 3.477306061 | AA61: 4.420248974 | AB61: 4.420248974 | AC61: 5.023746818 | AD61: 4.420248974 | AE61: 8.8890125 | AF61: 4.420248974 | AG61: 4.420248974 | AH61: 4.557797097 | AI61: 4.420248974
B62: CHOCOLATE | C62: CHOCOLATE manufacturing
B63: COD | C63: COD manufacturing | D63: 2.78726 | E63: 2.78726 | F63: 2.78726 | G63: 5.66355 | H63: 2.78726 | I63: 2.78726 | J63: 3.15902 | K63: 2.78726 | L63: 2.8 | M63: 2.78726 | N63: 2.78726 | O63: 1.01623 | P63: 2.78726 | Q63: 2.78726 | R63: 1.58306 | S63: 3.65436 | T63: 2.78726 | U63: 2.78726 | V63: 2.78726 | W63: 2.78726 | X63: 2.93127 | Y63: 2.78726 | Z63: 1.26318 | AA63: 2.78726 | AB63: 2.78726 | AC63: 2.78726 | AD63: 2.78726 | AE63: 2.40539 | AF63: 1.60926 | AG63: 2.78726 | AH63: 3.05615 | AI63: 2.78726
B64: COFFEE | C64: COFFEE manufacturing
B65: EGGS | C65: EGGS manufacturing | D65: 1.753009167 | E65: 1.289624 | F65: 1.2626075 | G65: 1.605611833 | H65: 1.7641 | I65: 1.28843175 | J65: 1.720754667 | K65: 1.149768333 | L65: 1.3492125 | M65: 1.364483083 | N65: 1.524000417 | O65: 1.375834417 | P65: 1.588432417 | Q65: 1.394990333 | R65: 1.362178 | S65: 1.83930975 | T65: 1.21707925 | U65: 1.111126583 | V65: 1.394990333 | W65: 1.664727167 | X65: 1.267668583 | Y65: 1.394990333 | Z65: 1.47872025 | AA65: 1.296752833 | AB65: 1.273519583 | AC65: 1.290734333 | AD65: 1.410507 | AE65: 1.141066 | AF65: 1.917074583 | AG65: 1.394990333 | AH65: 1.047303917 | AI65: 1.394990333
B66: MILK | C66: MILK manufacturing | D66: 0.373425 | E66: 0.3505416667 | F66: 0.3051916667 | G66: 0.3137833333 | H66: 0.5588416667 | I66: 0.3158916667 | J66: 0.3678916667 | K66: 0.3267833333 | L66: 0.3763166667 | M66: 0.3439916667 | N66: 0.3640833333 | O66: 0.3878833333 | P66: 0.3047666667 | Q66: 0.3485958333 | R66: 0.364175 | S66: 0.3702416667 | T66: 0.3061416667 | U66: 0.2975666667 | V66: 0.3542416667 | W66: 0.480875 | X66: 0.3795833333 | Y66: 0.3485958333 | Z66: 0.32365 | AA66: 0.2968166667 | AB66: 0.2918916667 | AC66: 0.3098583333 | AD66: 0.3032 | AE66: 0.30955 | AF66: 0.379425 | AG66: 0.3485958333 | AH66: 0.3157272727 | AI66: 0.3485958333
B67: MINERAL WATER | C67: MINERAL WATER manufacturing
B68: OLIVE OIL | C68: OLIVE OIL manufacturing | D68: 3.66306575 | E68: 3.66306575 | F68: 3.66306575 | G68: 3.66306575 | H68: 3.66306575 | I68: 3.66306575 | J68: 3.66306575 | K68: 3.66306575 | L68: 3.66306575 | M68: 3.66306575 | N68: 3.66306575 | O68: 3.488879639 | P68: 3.66306575 | Q68: 3.66306575 | R68: 3.66306575 | S68: 3.710451389 | T68: 3.66306575 | U68: 3.66306575 | V68: 3.66306575 | W68: 3.66306575 | X68: 3.66306575 | Y68: 3.66306575 | Z68: 3.66306575 | AA68: 3.627651515 | AB68: 3.66306575 | AC68: 3.66306575 | AD68: 3.66306575 | AE68: 3.683251131 | AF68: 3.66306575 | AG68: 3.66306575 | AH68: 3.66306575 | AI68: 3.66306575
B69: ORANGES | C69: ORANGES manufacturing | D69: 0.511007 | E69: 0.511007 | F69: 0.511007 | G69: 0.511007 | H69: 0.511007 | I69: 0.511007 | J69: 0.511007 | K69: 0.511007 | L69: 0.511007 | M69: 0.511007 | N69: 0.511007 | O69: 0.385 | P69: 0.511007 | Q69: 0.511007 | R69: 0.511007 | S69: 0.802404 | T69: 0.511007 | U69: 0.511007 | V69: 0.511007 | W69: 0.511007 | X69: 0.511007 | Y69: 0.511007 | Z69: 0.511007 | AA69: 0.44 | AB69: 0.511007 | AC69: 0.511007 | AD69: 0.511007 | AE69: 0.416624 | AF69: 0.511007 | AG69: 0.511007 | AH69: 0.511007 | AI69: 0.511007
B70: PASTA | C70: PASTA manufacturing
B71: PORK | C71: PORK manufacturing | D71: 1.786784583 | E71: 1.5111035 | F71: 1.62028125 | G71: 1.676572417 | H71: 1.62028125 | I71: 1.654405417 | J71: 1.545974 | K71: 1.6084175 | L71: 1.590794333 | M71: 1.570452667 | N71: 1.705847083 | O71: 1.88723875 | P71: 1.7266705 | Q71: 1.62028125 | R71: 1.601527167 | S71: 1.62028125 | T71: 1.571469667 | U71: 1.655127667 | V71: 1.708996 | W71: 2.18 | X71: 1.471285083 | Y71: 1.62028125 | Z71: 1.62281825 | AA71: 1.744677833 | AB71: 1.7194815 | AC71: 1.727413917 | AD71: 1.796390333 | AE71: 1.6011755 | AF71: 1.811472083 | AG71: 1.62028125 | AH71: 1.805974333 | AI71: 1.62028125
B72: POTATOES | C72: POTATOES manufacturing | D72: 0.1885 | E72: 0.0996 | F72: 0.1976 | G72: 0.1439 | H72: 0.359 | I72: 0.1657 | J72: 0.2558 | K72: 0.2249692308 | L72: 0.1774 | M72: 0.437 | N72: 0.1284 | O72: 0.4789 | P72: 0.216 | Q72: 0.2249692308 | R72: 0.2249692308 | S72: 0.3634 | T72: 0.1362 | U72: 0.1152 | V72: 0.312 | W72: 0.3271 | X72: 0.115 | Y72: 0.2249692308 | Z72: 0.1222 | AA72: 0.1956 | AB72: 0.2699 | AC72: 0.2472 | AD72: 0.1311 | AE72: 0.1983 | AF72: 0.2722 | AG72: 0.2249692308 | AH72: 0.196 | AI72: 0.2249692308
B73: POULTRY | C73: POULTRY manufacturing | D73: 1.825374417 | E73: 1.66199625 | F73: 1.466636833 | G73: 1.848677167 | H73: 2.5395 | I73: 1.807649333 | J73: 2.41045325 | K73: 1.614195571 | L73: 2.556461833 | M73: 2.3 | N73: 2.688396083 | O73: 2.0440085 | P73: 1.44906275 | Q73: 1.82050725 | R73: 0.9739085 | S73: 2.0620075 | T73: 1.586813833 | U73: 1.435305083 | V73: 1.82050725 | W73: 2.227522833 | X73: 1.71 | Y73: 1.82050725 | Z73: 1.234289833 | AA73: 1.526114667 | AB73: 1.4803255 | AC73: 1.510239 | AD73: 1.92437325 | AE73: 1.654531 | AF73: 2.47963275 | AG73: 1.82050725 | AH73: 1.491107667 | AI73: 1.82050725
B74: RICE | C74: RICE manufacturing | D74: 0.3206333333 | E74: 0.3206333333 | F74: 0.3357 | G74: 0.3206333333 | H74: 0.3206333333 | I74: 0.3206333333 | J74: 0.3206333333 | K74: 0.3206333333 | L74: 0.3206333333 | M74: 0.3206333333 | N74: 0.3206333333 | O74: 0.2293 | P74: 0.243 | Q74: 0.3206333333 | R74: 0.3206333333 | S74: 0.5646 | T74: 0.3206333333 | U74: 0.3206333333 | V74: 0.3206333333 | W74: 0.3206333333 | X74: 0.3206333333 | Y74: 0.3206333333 | Z74: 0.3206333333 | AA74: 0.2744 | AB74: 0.3206333333 | AC74: 0.3206333333 | AD74: 0.3206333333 | AE74: 0.2768 | AF74: 0.3206333333 | AG74: 0.3206333333 | AH74: 0.3206333333 | AI74: 0.3206333333
B75: SALMON | C75: SALMON manufacturing | D75: 6.14233 | E75: 6.14233 | F75: 6.14233 | G75: 12.53919 | H75: 6.14233 | I75: 6.14233 | J75: 6.14233 | K75: 6.14233 | L75: 5.35038 | M75: 6.14233 | N75: 6.14233 | O75: 5.92577 | P75: 6.14233 | Q75: 6.14233 | R75: 4.01244 | S75: 38.07066 | T75: 6.14233 | U75: 6.14233 | V75: 6.14233 | W75: 6.14233 | X75: 6.14233 | Y75: 6.14233 | Z75: 6.70625 | AA75: 9.7299 | AB75: 6.14233 | AC75: 6.14233 | AD75: 6.14233 | AE75: 6.14233 | AF75: 3.97111 | AG75: 6.14233 | AH75: 12.9705 | AI75: 6.14233
B76: SHRIMP | C76: SHRIMP manufacturing | D76: 9.785798125 | E76: 9.785798125 | F76: 6.89143 | G76: 20.87294 | H76: 3.0585 | I76: 9.785798125 | J76: 9.785798125 | K76: 6.89143 | L76: 9.785798125 | M76: 3.05962 | N76: 2.21009 | O76: 9.785798125 | P76: 9.785798125 | Q76: 9.785798125 | R76: 8.27167 | S76: 11.39146 | T76: 9.56697 | U76: 24 | V76: 9.785798125 | W76: 9.785798125 | X76: 6.1046 | Y76: 9.785798125 | Z76: 9.785798125 | AA76: 21.35156 | AB76: 9.785798125 | AC76: 9.785798125 | AD76: 14.715 | AE76: 10.85502 | AF76: 2.29408 | AG76: 9.785798125 | AH76: 5.0384 | AI76: 9.785798125
B77: SUGAR | C77: SUGAR manufacturing | D77: 0.47375 | E77: 0.47375 | F77: 0.47375 | G77: 0.47375 | H77: 0.47375 | I77: 0.47375 | J77: 0.47375 | K77: 0.47375 | L77: 0.47375 | M77: 0.47375 | N77: 0.47375 | O77: 0.47375 | P77: 0.47375 | Q77: 0.47375 | R77: 0.47375 | S77: 0.47375 | T77: 0.47375 | U77: 0.47375 | V77: 0.47375 | W77: 0.47375 | X77: 0.47375 | Y77: 0.47375 | Z77: 0.47375 | AA77: 0.47375 | AB77: 0.47375 | AC77: 0.47375 | AD77: 0.47375 | AE77: 0.47375 | AF77: 0.47375 | AG77: 0.47375 | AH77: 0.47375 | AI77: 0.47375
B78: SUNFLOWER OIL | C78: SUNFLOWER OIL manufacturing
B79: TEA | C79: TEA manufacturing
B80: TOFU | C80: TOFU manufacturing
B81: TOMATOES | C81: TOMATOES manufacturing | D81: 1.037204417 | E81: 1.047347167 | F81: 0.8780529091 | G81: 0.7529822 | H81: 1.037204417 | I81: 0.9614458571 | J81: 1.037204417 | K81: 1.037204417 | L81: 1.037204417 | M81: 1.1105 | N81: 1.037204417 | O81: 0.70696725 | P81: 0.610696 | Q81: 1.037204417 | R81: 1.037204417 | S81: 1.642488583 | T81: 1.037204417 | U81: 1.037204417 | V81: 1.037204417 | W81: 1.037204417 | X81: 0.7335515556 | Y81: 1.037204417 | Z81: 0.6017707143 | AA81: 0.5811110833 | AB81: 0.6052756667 | AC81: 1.037204417 | AD81: 1.037204417 | AE81: 0.7787305 | AF81: 1.037204417 | AG81: 1.037204417 | AH81: 1.037204417 | AI81: 1.037204417
B82: WINE | C82: WINE manufacturing | D82: 0.7262 | E82: 0.7262 | F82: 0.7262 | G82: 1.0318 | H82: 0.233 | I82: 0.7262 | J82: 0.7262 | K82: 0.7262 | L82: 0.7262 | M82: 0.663 | N82: 0.7262 | O82: 0.8397 | P82: 0.7262 | Q82: 0.7262 | R82: 0.7262 | S82: 0.7262 | T82: 0.7262 | U82: 0.7262 | V82: 0.7262 | W82: 0.7262 | X82: 0.7262 | Y82: 0.7262 | Z82: 0.7262 | AA82: 0.4126 | AB82: 0.7176 | AC82: 0.7262 | AD82: 1.5732 | AE82: 0.3387 | AF82: 0.7262 | AG82: 0.7262 | AH82: 0.7262 | AI82: 0.7262
B83: quinoa | C83: quinoa manufacturing | D83: =D52 -> 1.957171429 | E83: 1.957171429 | F83: 1.957171429 | G83: 2.8055 | H83: 1.165 | I83: 1.957171429 | J83: 1.957171429 | K83: 1.957171429 | L83: 1.957171429 | M83: 1.957171429 | N83: 1.957171429 | O83: 3.6736 | P83: 1.6048 | Q83: 1.957171429 | R83: 1.957171429 | S83: 1.5809 | T83: 1.957171429 | U83: 1.957171429 | V83: 1.957171429 | W83: 1.957171429 | X83: 1.957171429 | Y83: 1.957171429 | Z83: 1.957171429 | AA83: 1.0156 | AB83: 1.957171429 | AC83: 1.957171429 | AD83: 1.957171429 | AE83: 1.8548 | AF83: 1.957171429 | AG83: 1.957171429 | AH83: 1.957171429 | AI83: 1.957171429
B84: avocado | C84: avocado manufacturing | D84: =D54 -> 0.6570509756 | E84: 0.6570509756 | F84: 0.6570509756 | G84: 0.6570509756 | H84: 0.6570509756 | I84: 0.6570509756 | J84: 0.6570509756 | K84: 0.6570509756 | L84: 0.6570509756 | M84: 0.6570509756 | N84: 0.6570509756 | O84: 0.6570509756 | P84: 0.6570509756 | Q84: 0.6570509756 | R84: 0.6570509756 | S84: 0.6570509756 | T84: 0.6570509756 | U84: 0.6570509756 | V84: 0.6570509756 | W84: 0.6570509756 | X84: 0.6570509756 | Y84: 0.6570509756 | Z84: 0.6570509756 | AA84: 0.6570509756 | AB84: 0.6570509756 | AC84: 0.6570509756 | AD84: 0.6570509756 | AE84: 0.6570509756 | AF84: 0.6570509756 | AG84: 0.6570509756 | AH84: 0.6570509756 | AI84: 0.6570509756
B85: strawberries | C85: strawberries manufacturing | D85: =D54 -> 0.6570509756 | E85: 0.6570509756 | F85: 0.6570509756 | G85: 0.6570509756 | H85: 0.6570509756 | I85: 0.6570509756 | J85: 0.6570509756 | K85: 0.6570509756 | L85: 0.6570509756 | M85: 0.6570509756 | N85: 0.6570509756 | O85: 0.6570509756 | P85: 0.6570509756 | Q85: 0.6570509756 | R85: 0.6570509756 | S85: 0.6570509756 | T85: 0.6570509756 | U85: 0.6570509756 | V85: 0.6570509756 | W85: 0.6570509756 | X85: 0.6570509756 | Y85: 0.6570509756 | Z85: 0.6570509756 | AA85: 0.6570509756 | AB85: 0.6570509756 | AC85: 0.6570509756 | AD85: 0.6570509756 | AE85: 0.6570509756 | AF85: 0.6570509756 | AG85: 0.6570509756 | AH85: 0.6570509756 | AI85: 0.6570509756
B86: broccoli | C86: broccoli manufacturing | D86: =D81 -> 1.037204417 | E86: =E81 -> 1.047347167 | F86: 0.8780529091 | G86: 0.7529822 | H86: 1.037204417 | I86: 0.9614458571 | J86: 1.037204417 | K86: 1.037204417 | L86: 1.037204417 | M86: 1.1105 | N86: 1.037204417 | O86: 0.70696725 | P86: 0.610696 | Q86: 1.037204417 | R86: 1.037204417 | S86: 1.642488583 | T86: 1.037204417 | U86: 1.037204417 | V86: 1.037204417 | W86: 1.037204417 | X86: 0.7335515556 | Y86: 1.037204417 | Z86: 0.6017707143 | AA86: 0.5811110833 | AB86: 0.6052756667 | AC86: 1.037204417 | AD86: 1.037204417 | AE86: 0.7787305 | AF86: 1.037204417 | AG86: 1.037204417 | AH86: 1.037204417 | AI86: 1.037204417
B87: carrots | C87: carrots manufacturing | D87: =D72 -> 0.1885 | E87: =E72 -> 0.0996 | F87: 0.1976 | G87: 0.1439 | H87: 0.359 | I87: 0.1657 | J87: 0.2558 | K87: 0.2249692308 | L87: 0.1774 | M87: 0.437 | N87: 0.1284 | O87: 0.4789 | P87: 0.216 | Q87: 0.2249692308 | R87: 0.2249692308 | S87: 0.3634 | T87: 0.1362 | U87: 0.1152 | V87: 0.312 | W87: 0.3271 | X87: 0.115 | Y87: 0.2249692308 | Z87: 0.1222 | AA87: 0.1956 | AB87: 0.2699 | AC87: 0.2472 | AD87: 0.1311 | AE87: 0.1983 | AF87: 0.2722 | AG87: 0.2249692308 | AH87: 0.196 | AI87: 0.2249692308
B88: canned tuna | C88: canned tuna manufacturing | D88: =D75 -> 6.14233 | E88: =E75 -> 6.14233 | F88: 6.14233 | G88: 12.53919 | H88: 6.14233 | I88: 6.14233 | J88: 6.14233 | K88: 6.14233 | L88: 5.35038 | M88: 6.14233 | N88: 6.14233 | O88: 5.92577 | P88: 6.14233 | Q88: 6.14233 | R88: 4.01244 | S88: 38.07066 | T88: 6.14233 | U88: 6.14233 | V88: 6.14233 | W88: 6.14233 | X88: 6.14233 | Y88: 6.14233 | Z88: 6.70625 | AA88: 9.7299 | AB88: 6.14233 | AC88: 6.14233 | AD88: 6.14233 | AE88: 6.14233 | AF88: 3.97111 | AG88: 6.14233 | AH88: 12.9705 | AI88: 6.14233
B89: Cashew | C89: Cashew manufacturing | D89: =D52 -> 1.957171429 | E89: =E52 -> 1.957171429 | F89: 1.957171429 | G89: 2.8055 | H89: 1.165 | I89: 1.957171429 | J89: 1.957171429 | K89: 1.957171429 | L89: 1.957171429 | M89: 1.957171429 | N89: 1.957171429 | O89: 3.6736 | P89: 1.6048 | Q89: 1.957171429 | R89: 1.957171429 | S89: 1.5809 | T89: 1.957171429 | U89: 1.957171429 | V89: 1.957171429 | W89: 1.957171429 | X89: 1.957171429 | Y89: 1.957171429 | Z89: 1.957171429 | AA89: 1.0156 | AB89: 1.957171429 | AC89: 1.957171429 | AD89: 1.957171429 | AE89: 1.8548 | AF89: 1.957171429 | AG89: 1.957171429 | AH89: 1.957171429 | AI89: 1.957171429
B90: palm oil | C90: palm oil manufacturing
B91: rapeseed oil | C91: rapeseed oil manufacturing
B92: soybean oil | C92: soybean oil manufacturing
B93: pre-prepared meals | C93: pre-prepared meals manufacturing
B94: chickpeas | C94: chickpeas manufacturing | D94: =D55 -> 2.454593625 | E94: =E55 -> 2.454593625 | F94: 2.454593625 | G94: 2.454593625 | H94: 2.454593625 | I94: 2.454593625 | J94: 2.454593625 | K94: 2.454593625 | L94: 2.454593625 | M94: 2.454593625 | N94: 2.454593625 | O94: 2.454593625 | P94: 2.454593625 | Q94: 2.454593625 | R94: 2.454593625 | S94: 2.454593625 | T94: 2.454593625 | U94: 2.454593625 | V94: 2.454593625 | W94: 2.454593625 | X94: 2.454593625 | Y94: 2.454593625 | Z94: 2.454593625 | AA94: 2.454593625 | AB94: 2.454593625 | AC94: 2.454593625 | AD94: 2.454593625 | AE94: 2.454593625 | AF94: 2.454593625 | AG94: 2.454593625 | AH94: 2.454593625 | AI94: 2.454593625
B95: lentils | C95: lentils manufacturing | D95: =D55 -> 2.454593625 | E95: =E55 -> 2.454593625 | F95: 2.454593625 | G95: 2.454593625 | H95: 2.454593625 | I95: 2.454593625 | J95: 2.454593625 | K95: 2.454593625 | L95: 2.454593625 | M95: 2.454593625 | N95: 2.454593625 | O95: 2.454593625 | P95: 2.454593625 | Q95: 2.454593625 | R95: 2.454593625 | S95: 2.454593625 | T95: 2.454593625 | U95: 2.454593625 | V95: 2.454593625 | W95: 2.454593625 | X95: 2.454593625 | Y95: 2.454593625 | Z95: 2.454593625 | AA95: 2.454593625 | AB95: 2.454593625 | AC95: 2.454593625 | AD95: 2.454593625 | AE95: 2.454593625 | AF95: 2.454593625 | AG95: 2.454593625 | AH95: 2.454593625 | AI95: 2.454593625
B96: soymilk | C96: soymilk manufacturing
A97: Retail | B97: GENERIC | C97: =CONCATENATE(B97," ","retail") -> GENERIC retail | D97: 1.484169822 | E97: 1.325872901 | F97: 1.07379465 | G97: 1.322498062 | H97: 1.412711282 | I97: 1.147242692 | J97: 1.445606393 | K97: 1.332594044 | L97: 1.765764645 | M97: 1.63322702 | N97: 1.196823867 | O97: 1.486405612 | P97: 1.086249645 | Q97: 1.850564992 | R97: 1.323412489 | S97: 1.434072362 | T97: 1.233108952 | U97: 1.152600901 | V97: 1.39056925 | W97: 1.39312567 | X97: 1.15132534 | Y97: 1.810421729 | Z97: 1.072266131 | AA97: 1.33625132 | AB97: 1.0956854 | AC97: 1.191835108 | AD97: 1.327533208 | AE97: 1.141819471 | AF97: 1.527822153 | AG97: 1.363394447 | AH97: 1.727880977 | AI97: 1.363394447
B98: ALMONDS | C98: =CONCATENATE(B98," ","retail") -> ALMONDS retail | D98: 19.7294526 | E98: 19.9677553 | F98: 10.3290776 | G98: 12.87532554 | H98: 12.87532554 | I98: 11.2318383 | J98: 9.92067046 | K98: 12.87532554 | L98: 9.79474094 | M98: 23.4569569 | N98: 15.7455595 | O98: 15.361658 | P98: 9.44226657 | Q98: 3.149026632 | R98: 5.96504054 | S98: 17.3444713 | T98: 12.87532554 | U98: 12.87532554 | V98: 12.87532554 | W98: 12.87532554 | X98: 10.312715 | Y98: 3.149026632 | Z98: 9.94928197 | AA98: 15.0444306 | AB98: 10.4407532 | AC98: 10.2105369 | AD98: 12.87532554 | AE98: 14.3418368 | AF98: 6.04214279 | AG98: 3.149026632 | AH98: 16.6500449 | AI98: 3.149026632
B99: APPLES | C99: APPLES retail | D99: 2.77221332 | E99: 2.70844299 | F99: 0.83259604 | G99: 1.744342146 | H99: 1.744342146 | I99: 0.93858597 | J99: 1.96335282 | K99: 1.744342146 | L99: 1.91816488 | M99: 1.98222532 | N99: 2.13075243 | O99: 1.85340718 | P99: 0.76038243 | Q99: 3.149026632 | R99: 2.59734832 | S99: 2.23436446 | T99: 1.744342146 | U99: 1.744342146 | V99: 1.744342146 | W99: 1.744342146 | X99: 2.00636635 | Y99: 3.149026632 | Z99: 0.84543015 | AA99: 1.57576369 | AB99: 0.8618968 | AC99: 0.84735758 | AD99: 1.744342146 | AE99: 1.68291944 | AF99: 2.63093061 | AG99: 3.149026632 | AH99: 3.35297539 | AI99: 3.149026632
B100: BANANAS | C100: BANANAS retail | D100: 2.0380566 | E100: 2.0103307 | F100: 1.00594118 | G100: 1.454561766 | H100: 1.454561766 | I100: 1.09042722 | J100: 1.2915949 | K100: 1.454561766 | L100: 1.26961879 | M100: 2.15755604 | N100: 1.47142266 | O100: 1.71468542 | P100: 0.92286959 | Q100: 3.149026632 | R100: 0.71194769 | S100: 2.05304506 | T100: 1.454561766 | U100: 1.454561766 | V100: 1.454561766 | W100: 1.454561766 | X100: 1.35076418 | Y100: 3.149026632 | Z100: 0.97022895 | AA100: 1.66278403 | AB100: 1.01342743 | AC100: 0.98895217 | AD100: 1.454561766 | AE100: 1.77127907 | AF100: 2.14174187 | AG100: 3.149026632 | AH100: 1.06533572 | AI100: 3.149026632
B101: BEANS | C101: BEANS retail | D101: 0.85719852 | E101: 1.20134551 | F101: 1.04448046 | G101: 1.86874071 | H101: 0.72074958 | I101: 1.12509252 | J101: 2.25531915 | K101: 0.47058824 | L101: 2.25108225 | M101: 2.22464995 | N101: 2.1709942 | O101: 0.04693834 | P101: 1.41937023 | Q101: 1.291824788 | R101: 1.99855978 | S101: 0.73265174 | T101: 0.71266431 | U101: 0.52810051 | V101: 1.02145046 | W101: 2.13827512 | X101: 2.37593052 | Y101: 1.291824788 | Z101: 0.65012668 | AA101: 1.12359551 | AB101: 0.63996833 | AC101: 0.20080321 | AD101: 1.04239794 | AE101: 1.16675701 | AF101: 1.03756599 | AG101: 1.291824788 | AH101: 1.44736659 | AI101: 1.291824788
B102: BEEF | C102: BEEF retail | D102: 13.0115424 | E102: 13.1975204 | F102: 5.27510468 | G102: 11.0737066 | H102: 11.0737066 | I102: 5.75725458 | J102: 12.7914541 | K102: 11.0737066 | L102: 12.6413594 | M102: 17.3223918 | N102: 16.522119 | O102: 16.2123519 | P102: 4.8697414 | Q102: 6.878861036 | R102: 15.256688 | S102: 21.2355939 | T102: 11.0737066 | U102: 11.0737066 | V102: 11.0737066 | W102: 11.0737066 | X102: 13.3300523 | Y102: 6.878861036 | Z102: 5.09976247 | AA102: 8.46164252 | AB102: 5.40781798 | AC102: 5.21395056 | AD102: 11.0737066 | AE102: 10.8931216 | AF102: 7.9009564 | AG102: 6.878861036 | AH102: 21.1595027 | AI102: 6.878861036
B103: BEER | C103: BEER retail | D103: 1.57325897 | E103: 2.06193742 | F103: 0.91847946 | G103: 1.13905683 | H103: 2.10606061 | I103: 1.18579613 | J103: 2.80900574 | K103: 1.8853211 | L103: 3.93616446 | M103: 1.99607223 | N103: 0.79294588 | O103: 2.02176279 | P103: 1.02496556 | Q103: 1.823670338 | R103: 3.03042715 | S103: 1.71342461 | T103: 1.45332278 | U103: 1.57937585 | V103: 2.19917012 | W103: 2.77 | X103: 1.77265625 | Y103: 1.823670338 | Z103: 0.79108981 | AA103: 1.57226739 | AB103: 0.8141331 | AC103: 1.16368456 | AD103: 1.24021838 | AE103: 1.03145973 | AF103: 2.00932345 | AG103: 1.823670338 | AH103: 3.33584906 | AI103: 1.823670338
B104: BISCUITS | C104: BISCUITS retail | D104: 6.50657895 | E104: 5.98426023 | F104: 4.31300813 | G104: 3.57954545 | H104: 4.18 | I104: 5.73647059 | J104: 5.18015666 | K104: 4.43243243 | L104: 6.12158809 | M104: 5.86537606 | N104: 4.41668322 | O104: 4.72404372 | P104: 4.29137529 | Q104: 4.645722843 | R104: 5.51446281 | S104: 3.80731839 | T104: 3.90909091 | U104: 3.44329897 | V104: 6.19565217 | W104: 4.61538462 | X104: 4.32963648 | Y104: 4.645722843 | Z104: 3.06476559 | AA104: 3.30179028 | AB104: 3.70432946 | AC104: 3.42901235 | AD104: 4.16666667 | AE104: 3.34893732 | AF104: 6.04159445 | AG104: 4.645722843 | AH104: 4.07189027 | AI104: 4.645722843
B105: BREAD | C105: BREAD retail | D105: 3.60558874 | E105: 2.39676644 | F105: 1.02319882 | G105: 2.28504945 | H105: 1.42831216 | I105: 1.57174745 | J105: 3.30621786 | K105: 1.76878613 | L105: 3.85330579 | M105: 2.42896691 | N105: 1.87121054 | O105: 1.51541032 | P105: 1.2147558 | Q105: 2.22991962 | R105: 2.62256267 | S105: 2.84528583 | T105: 1.808 | U105: 1.76287263 | V105: 3.05970149 | W105: 2.09701493 | X105: 2.03922611 | Y105: 2.22991962 | Z105: 1.09645526 | AA105: 1.97353308 | AB105: 1.2583471 | AC105: 1.26403061 | AD105: 2.18755803 | AE105: 2.01609248 | AF105: 2.73373342 | AG105: 2.22991962 | AH105: 1.90047258 | AI105: 2.22991962
B106: BUTTER | C106: BUTTER retail | D106: 6.89719626 | E106: 6.390625 | F106: 8.275 | G106: 8.86486486 | H106: 7.83333333 | I106: 4.7748538 | J106: 7.109375 | K106: 8.46153846 | L106: 8.85798817 | M106: 6.56551724 | N106: 5.10582596 | O106: 10.483871 | P106: 8.2244898 | Q106: 7.196738342 | R106: 8.68032787 | S106: 7.6496945 | T106: 6.22916667 | U106: 13.962963 | V106: 6.75 | W106: 7.83333333 | X106: 8.14965986 | Y106: 7.196738342 | Z106: 7.41470889 | AA106: 4.69354839 | AB106: 8.42372881 | AC106: 6.36507937 | AD106: 5.70588235 | AE106: 6.06530612 | AF106: 6.75662252 | AG106: 7.196738342 | AH106: 6.17758485 | AI106: 7.196738342
B107: CHEESE | C107: CHEESE retail | D107: 7.96337403 | E107: 9.60468876 | F107: 6.21657754 | G107: 4.87820513 | H107: 7.94029851 | I107: 7.3314978 | J107: 12.5906149 | K107: 7.10227273 | L107: 10.9148311 | M107: 8.28120202 | N107: 8.23643458 | O107: 7.52265372 | P107: 6.55 | Q107: 8.276928128 | R107: 11.79941 | S107: 9.8197065 | T107: 6.65486726 | U107: 8.51282051 | V107: 11.4 | W107: 12.1212121 | X107: 11.3322684 | Y107: 8.276928128 | Z107: 5.2992126 | AA107: 7.70278044 | AB107: 6.59402242 | AC107: 9.61755486 | AD107: 7.14457831 | AE107: 7.00726817 | AF107: 11.5202885 | AG107: 8.276928128 | AH107: 9.70366864 | AI107: 8.276928128
B108: CHOCOLATE | C108: CHOCOLATE retail | D108: 10.9626998 | E108: 11.1229236 | F108: 7.95899772 | G108: 8.00529101 | H108: 6.89655172 | I108: 8.37132988 | J108: 14.1041667 | K108: 8.46902655 | L108: 10.9731343 | M108: 14.9559939 | N108: 9.32465278 | O108: 5.53881279 | P108: 8.63247863 | Q108: 8.422735966 | R108: 11.6536458 | S108: 12.6725664 | T108: 9.89393939 | U108: 8.75609756 | V108: 10.5384615 | W108: 11.25 | X108: 8.2954796 | Y108: 8.422735966 | Z108: 7.70854271 | AA108: 9.91814947 | AB108: 6.54597701 | AC108: 6.66371681 | AD108: 7.38202247 | AE108: 8.91148325 | AF108: 8.2681638 | AG108: 8.422735966 | AH108: 11.2565845 | AI108: 8.422735966
B109: COD | C109: COD retail | D109: 11.59 | E109: 11.73 | F109: 4 | G109: 10.23789474 | H109: 10.23789474 | I109: 4.26 | J109: 12.2 | K109: 10.23789474 | L109: 11.96 | M109: 16.55 | N109: 19.11 | O109: 12.76 | P109: 3.57 | Q109: 8.335907995 | R109: 15.24 | S109: 16.72 | T109: 10.23789474 | U109: 10.23789474 | V109: 10.23789474 | W109: 10.23789474 | X109: 12.59 | Y109: 8.335907995 | Z109: 3.77 | AA109: 6.34 | AB109: 3.95 | AC109: 3.86 | AD109: 10.23789474 | AE109: 8.88 | AF109: 15.44 | AG109: 8.335907995 | AH109: 19.8 | AI109: 8.335907995
B110: COFFEE | C110: COFFEE retail | D110: 3.699421965 | E110: 8.184337349 | F110: 4 | G110: 4.333333333 | H110: 4.537161888 | I110: 2.797114493 | J110: 5.615384615 | K110: 4.537161888 | L110: 5.357142857 | M110: 7.612244898 | N110: 2.499615376 | O110: 5.333333333 | P110: 2.197368422 | Q110: 4.537161888 | R110: 7.25 | S110: 9.428571429 | T110: 4.25 | U110: 4 | V110: 4.537161888 | W110: 4.537161888 | X110: 3.295881498 | Y110: 4.537161888 | Z110: 2.794761948 | AA110: 1.5 | AB110: 4.571428571 | AC110: 2.428571429 | AD110: 3.5 | AE110: 3.331211918 | AF110: 6.375 | AG110: 4.537161888 | AH110: 4.33408578 | AI110: 4.537161888
B111: EGGS | C111: EGGS retail | D111: 2.938123484 | E111: 3.285572741 | F111: 1.175416248 | G111: 2.701354157 | H111: 2.701354157 | I111: 1.284744836 | J111: 4.151523615 | K111: 2.701354157 | L111: 2.153917763 | M111: 4.159965823 | N111: 3.296731521 | O111: 4.354469477 | P111: 1.886669138 | Q111: 2.701354157 | R111: 2.695471329 | S111: 5.476516123 | T111: 2.701354157 | U111: 2.701354157 | V111: 2.701354157 | W111: 2.701354157 | X111: 2.284547187 | Y111: 2.701354157 | Z111: 1.145388287 | AA111: 2.264473346 | AB111: 1.212689177 | AC111: 1.179858189 | AD111: 2.701354157 | AE111: 3.646465976 | AF111: 2.733184728 | AG111: 2.701354157 | AH111: 4.36199053 | AI111: 2.701354157
B112: MILK | C112: MILK retail | D112: 0.9165492 | E112: 0.88205253 | F112: 1.00521739 | G112: 0.93074324 | H112: 0.9664311 | I112: 0.54583996 | J112: 0.95492876 | K112: 0.80937973 | L112: 0.86768343 | M112: 0.79134092 | N112: 0.80264993 | O112: 1.22267588 | P112: 0.81092723 | Q112: 0.9424728779 | R112: 1.08299412 | S112: 0.94830859 | T112: 0.74782609 | U112: 0.87807377 | V112: 0.88284519 | W112: 0.93069307 | X112: 1.05254636 | Y112: 0.9424728779 | Z112: 0.53102444 | AA112: 0.62393162 | AB112: 0.9917979 | AC112: 0.66570048 | AD112: 0.88405797 | AE112: 0.71742217 | AF112: 1.01350182 | AG112: 0.9424728779 | AH112: 0.8472212 | AI112: 0.9424728779
B113: MINERAL WATER | C113: MINERAL WATER retail | D113: 0.47957817 | E113: 0.49686645 | F113: 0.22887324 | G113: 0.40931721 | H113: 0.4827159621 | I113: 0.29043969 | J113: 1.19066774 | K113: 0.60352941 | L113: 1.25367647 | M113: 0.25535371 | N113: 0.33507314 | O113: 0.49610063 | P113: 0.20873591 | Q113: 0.4920947692 | R113: 0.74625 | S113: 0.16968505 | T113: 0.34135241 | U113: 0.51194319 | V113: 0.4827159621 | W113: 0.4827159621 | X113: 0.76196542 | Y113: 0.4920947692 | Z113: 0.2423864 | AA113: 0.25900419 | AB113: 0.22867206 | AC113: 0.33515412 | AD113: 0.46994135 | AE113: 0.30219003 | AF113: 0.9684271 | AG113: 0.4920947692 | AH113: 0.6468804 | AI113: 0.4920947692
B114: OLIVE OIL | C114: OLIVE OIL retail | D114: 6.00952381 | E114: 6 | F114: 6.51020408 | G114: 4.88888889 | H114: 4.90909091 | I114: 6.64285714 | J114: 9.14705882 | K114: 8.5 | L114: 7 | M114: 6.59727385 | N114: 6.20228385 | O114: 5.26190476 | P114: 6.96428571 | Q114: 6.144247185 | R114: 6.59090909 | S114: 3.48322756 | T114: 4.47058824 | U114: 7.33333333 | V114: 5.83333333 | W114: 5 | X114: 6.42857143 | Y114: 6.144247185 | Z114: 6.17647059 | AA114: 3.37236534 | AB114: 5.24390244 | AC114: 7.18181818 | AD114: 7.9 | AE114: 3.75746965 | AF114: 7.41772152 | AG114: 6.144247185 | AH114: 5.15697674 | AI114: 6.144247185
B115: ORANGES | C115: ORANGES retail | D115: 2.53059842 | E115: 2.55311181 | F115: 1.24240557 | G115: 1.945272552 | H115: 1.945272552 | I115: 1.3497885 | J115: 2.22689851 | K115: 1.945272552 | L115: 2.21534133 | M115: 2.78539615 | N115: 2.50534629 | O115: 1.85046292 | P115: 1.14692229 | Q115: 3.149026632 | R115: 2.95709382 | S115: 2.29668514 | T115: 1.945272552 | U115: 1.945272552 | V115: 1.945272552 | W115: 1.945272552 | X115: 2.32318381 | Y115: 3.149026632 | Z115: 1.18428222 | AA115: 1.04588111 | AB115: 1.24471574 | AC115: 1.2380169 | AD115: 1.945272552 | AE115: 1.26872293 | AF115: 2.99532503 | AG115: 3.149026632 | AH115: 3.76461975 | AI115: 3.149026632
B116: PASTA | C116: PASTA retail | D116: 2.6242515 | E116: 2.47154472 | F116: 1.16551724 | G116: 2.015625 | H116: 1.80882353 | I116: 1.60332542 | J116: 3.98130841 | K116: 1.70967742 | L116: 2.16956522 | M116: 2.3282367 | N116: 1.90725806 | O116: 1.37025641 | P116: 1.90268456 | Q116: 2.19941818 | R116: 2.74683544 | S116: 2.09931687 | T116: 1.91071429 | U116: 2.0877193 | V116: 2.8 | W116: 2.34615385 | X116: 3.36672968 | Y116: 2.19941818 | Z116: 1.43398876 | AA116: 1.67842031 | AB116: 1.34791667 | AC116: 2.11934156 | AD116: 1.35074627 | AE116: 2.03875969 | AF116: 2.52532833 | AG116: 2.19941818 | AH116: 3.48412698 | AI116: 2.19941818
B117: PORK | C117: PORK retail | D117: 6.90341649 | E117: 6.84233337 | F117: 3.79837282 | G117: 6.473561121 | H117: 6.473561121 | I117: 4.13205529 | J117: 9.24166975 | K117: 6.473561121 | L117: 9.16551406 | M117: 8.79188322 | N117: 11.47 | O117: 5.12580322 | P117: 3.46418165 | Q117: 6.878861036 | R117: 6.83353091 | S117: 6.6870108 | T117: 6.473561121 | U117: 6.473561121 | V117: 6.473561121 | W117: 6.473561121 | X117: 9.56482738 | Y117: 6.878861036 | Z117: 3.62110402 | AA117: 5.30913104 | AB117: 3.84419537 | AC117: 3.75764742 | AD117: 6.473561121 | AE117: 6.89092557 | AF117: 7.55405892 | AG117: 6.878861036 | AH117: 8.92136898 | AI117: 6.878861036
B118: POTATOES | C118: POTATOES retail | D118: 1.341359946 | E118: 1.316699754 | F118: 0.3752587848 | G118: 0.116248373 | H118: 0.9368656639 | I118: 0.3861515367 | J118: 0.7323825419 | K118: 0.4233469812 | L118: 0.9581689796 | M118: 1.587593234 | N118: 1.351389277 | O118: 1.738396852 | P118: 0.4184426296 | Q118: 1.705767066 | R118: 1.235992825 | S118: 2.148614912 | T118: 0.1955464767 | U118: 0.28684657 | V118: 0.1967949421 | W118: 0.2262665269 | X118: 0.6944517624 | Y118: 1.705767066 | Z118: 0.3296811666 | AA118: 0.8217493681 | AB118: 0.3151622667 | AC118: 0.3823383973 | AD118: 0.2221818813 | AE118: 0.9472963333 | AF118: 1.535145578 | AG118: 1.705767066 | AH118: 1.32774355 | AI118: 1.705767066
B119: POULTRY | C119: POULTRY retail | D119: 6.572258895 | E119: 6.449571122 | F119: 2.653891966 | G119: 1.355164861 | H119: 0.4513448123 | I119: 3.283647786 | J119: 6.595197466 | K119: 2.954514986 | L119: 4.767292433 | M119: 9.457637157 | N119: 6.225775832 | O119: 7.854926265 | P119: 2.216927755 | Q119: 7.069714765 | R119: 8.314686581 | S119: 1.133612586 | T119: 2.885258732 | U119: 2.91498992 | V119: 1.338792987 | W119: 3.368137427 | X119: 5.326342922 | Y119: 7.069714765 | Z119: 2.128997339 | AA119: 4.518956699 | AB119: 2.131249454 | AC119: 2.419485695 | AD119: 2.781457484 | AE119: 6.133619286 | AF119: 6.337228443 | AG119: 7.069714765 | AH119: 10.976831 | AI119: 7.069714765
B120: RICE | C120: RICE retail | D120: 2.20876289 | E120: 2.49302326 | F120: 1.43894389 | G120: 2.6 | H120: 1.86666667 | I120: 1.4454023 | J120: 2.36363636 | K120: 2.34482759 | L120: 1.81632653 | M120: 1.73903428 | N120: 2.55472013 | O120: 2.26785714 | P120: 1.48387097 | Q120: 2.058501874 | R120: 3.2 | S120: 1.76147279 | T120: 3.39285714 | U120: 2.28571429 | V120: 2.6 | W120: 2.5 | X120: 2.31843575 | Y120: 2.058501874 | Z120: 1.36353712 | AA120: 0.89516129 | AB120: 1.11275626 | AC120: 0.96186441 | AD120: 1.7037037 | AE120: 1.08893957 | AF120: 2.85849057 | AG120: 2.058501874 | AH120: 2.97780737 | AI120: 2.058501874
B121: SALMON | C121: SALMON retail | D121: 11.5854496 | E121: 11.7250078 | F121: 3.90973342 | G121: 10.22810652 | H121: 10.22810652 | I121: 4.25096758 | J121: 12.1099721 | K121: 10.22810652 | L121: 11.956486 | M121: 16.5524737 | N121: 19.1131759 | O121: 12.7560882 | P121: 3.57373911 | Q121: 8.335907995 | R121: 15.2430265 | S121: 16.7200125 | T121: 10.22810652 | U121: 10.22810652 | V121: 10.22810652 | W121: 10.22810652 | X121: 12.5889896 | Y121: 8.335907995 | Z121: 3.76550792 | AA121: 6.34340819 | AB121: 3.95161196 | AC121: 3.86448746 | AD121: 10.22810652 | AE121: 8.88378111 | AF121: 15.4401052 | AG121: 8.335907995 | AH121: 19.7994624 | AI121: 8.335907995
B122: SHRIMP | C122: SHRIMP retail | D122: 11.1699081 | E122: 11.3046497 | F122: 8.440151 | G122: 16.55360816 | H122: 16.55360816 | I122: 9.17688217 | J122: 28.3580984 | K122: 16.55360816 | L122: 27.9987629 | M122: 17.5059188 | N122: 40.0477931 | O122: 18.3593044 | P122: 7.71491267 | Q122: 8.335907995 | R122: 17.2065371 | S122: 23.6864546 | T122: 16.55360816 | U122: 16.55360816 | V122: 16.55360816 | W122: 16.55360816 | X122: 29.4797303 | Y122: 8.335907995 | Z122: 8.12888761 | AA122: 8.99172587 | AB122: 8.53063759 | AC122: 8.34262304 | AD122: 16.55360816 | AE122: 12.6466245 | AF122: 17.4289532 | AG122: 8.335907995 | AH122: 22.9279096 | AI122: 8.335907995
B123: SUGAR | C123: SUGAR retail | D123: 1.789634778 | E123: 1.816113563 | F123: 0.4826197248 | G123: 1.115455408 | H123: 1.115455408 | I123: 0.5247418211 | J123: 1.233893995 | K123: 1.115455408 | L123: 0.7531132544 | M123: 1.843787332 | N123: 1.719331625 | O123: 1.411697528 | P123: 0.4189289311 | Q123: 1.115455408 | R123: 0.7891554638 | S123: 2.149285395 | T123: 1.115455408 | U123: 1.115455408 | V123: 1.115455408 | W123: 1.115455408 | X123: 1.422274326 | Y123: 1.115455408 | Z123: 0.4648163969 | AA123: 1.141299581 | AB123: 0.4877892287 | AC123: 0.4773341944 | AD123: 1.115455408 | AE123: 1.568246226 | AF123: 0.6995893939 | AG123: 1.115455408 | AH123: 1.80542995 | AI123: 1.115455408
B124: SUNFLOWER OIL | C124: SUNFLOWER OIL retail | D124: 4.29411765 | E124: 3.03333333 | F124: 1.83370288 | G124: 1.12867647 | H124: 1.38461538 | I124: 1.46488294 | J124: 2.3 | K124: 3.5625 | L124: 5 | M124: 2.35721393 | N124: 2.13665254 | O124: 1.73626374 | P124: 1.12907609 | Q124: 2.288813515 | R124: 2.05263158 | S124: 2.3785822 | T124: 2.36986301 | U124: 2.42028986 | V124: 2.6 | W124: 1.6 | X124: 1.40645161 | Y124: 2.288813515 | Z124: 4.21875 | AA124: 0.97440273 | AB124: 1.0174446 | AC124: 1.81862745 | AD124: 1.74626866 | AE124: 1.84151593 | AF124: 3 | AG124: 2.288813515 | AH124: 1.41499331 | AI124: 2.288813515
B125: TEA | C125: TEA retail | D125: 0.9896743447 | E125: 1.166339144 | F125: 0.899999991 | G125: 1.441176476 | H125: 0.9942476199 | I125: 0.638613861 | J125: 1.963855422 | K125: 0.9787234426 | L125: 2.571428571 | M125: 0.8812552313 | N125: 0.6127346623 | O125: 1.568862275 | P125: 0.5137867648 | Q125: 0.9942476199 | R125: 1.6 | S125: 0.7754833442 | T125: 0.688516383 | U125: 0.7631578947 | V125: 0.9942476199 | W125: 0.9942476199 | X125: 0.9697146185 | Y125: 0.9942476199 | Z125: 0.6441893837 | AA125: 0.1686836519 | AB125: 0.5153531218 | AC125: 0.7177419355 | AD125: 0.5625 | AE125: 0.9172271812 | AF125: 1.312925177 | AG125: 0.9942476199 | AH125: 1.93406593 | AI125: 0.9942476199
B126: TOFU | C126: TOFU retail | D126: 5 | E126: 14 | F126: 6.5 | G126: 7.221907165 | H126: 4 | I126: 5.25 | J126: 9.5 | K126: 7.221907165 | L126: 9 | M126: 10.5 | N126: 21.1785714 | O126: 7.221907165 | P126: 7.221907165 | Q126: 6.768624334 | R126: 5.4 | S126: 7.08333333 | T126: 7.221907165 | U126: 7.221907165 | V126: 7.221907165 | W126: 7.221907165 | X126: 5.64 | Y126: 6.768624334 | Z126: 4 | AA126: 7.221907165 | AB126: 4.2 | AC126: 3.33333333 | AD126: 3.5 | AE126: 6.90909091 | AF126: 5 | AG126: 6.768624334 | AH126: 8.04878049 | AI126: 6.768624334
B127: TOMATOES | C127: TOMATOES retail | D127: 3.277744217 | E127: 3.164641856 | F127: 1.442127477 | G127: 0.4576984179 | H127: 0.5375594154 | I127: 1.562193977 | J127: 2.912235695 | K127: 0.6127676263 | L127: 2.293362928 | M127: 4.412191598 | N127: 2.773648973 | O127: 1.494764483 | P127: 1.326667453 | Q127: 1.613770117 | R127: 3.85925147 | S127: 3.211295765 | T127: 0.8539119712 | U127: 0.2392321646 | V127: 0.4359789727 | W127: 0.345914367 | X127: 2.386237664 | Y127: 1.613770117 | Z127: 1.377226346 | AA127: 1.468699946 | AB127: 1.364745267 | AC127: 1.424233546 | AD127: 0.8582954253 | AE127: 1.872373372 | AF127: 3.539627725 | AG127: 1.613770117 | AH127: 4.45517964 | AI127: 1.613770117
B128: WINE | C128: WINE retail | D128: 4.85832643 | E128: 4.34408194 | F128: 3.58067729 | G128: 2.65075377 | H128: 6.45360825 | I128: 3.62189559 | J128: 5.03941909 | K128: 6.88505747 | L128: 8.78518519 | M128: 4.4859543 | N128: 2.33552715 | O128: 4.41795231 | P128: 2.66747338 | Q128: 4.502611623 | R128: 7.99828767 | S128: 2.99315111 | T128: 4.88235294 | U128: 6.07734807 | V128: 4.33823529 | W128: 5.10416667 | X128: 2.94262295 | Y128: 4.502611623 | Z128: 2.91990375 | AA128: 3.13236089 | AB128: 3.19318182 | AC128: 3.7426087 | AD128: 4.56287425 | AE128: 2.85540266 | AF128: 5.59093034 | AG128: 4.502611623 | AH128: 6.53507918 | AI128: 4.502611623
B129: quinoa | C129: quinoa retail | D129: 19.7294526 | E129: 19.9677553 | F129: 10.3290776 | G129: 12.87532554 | H129: 12.87532554 | I129: 11.2318383 | J129: 9.92067046 | K129: 12.87532554 | L129: 9.79474094 | M129: 23.4569569 | N129: 15.7455595 | O129: 15.361658 | P129: 9.44226657 | Q129: 3.149026632 | R129: 5.96504054 | S129: 17.3444713 | T129: 12.87532554 | U129: 12.87532554 | V129: 12.87532554 | W129: 12.87532554 | X129: 10.312715 | Y129: 3.149026632 | Z129: 9.94928197 | AA129: 15.0444306 | AB129: 10.4407532 | AC129: 10.2105369 | AD129: 12.87532554 | AE129: 14.3418368 | AF129: 6.04214279 | AG129: 3.149026632 | AH129: 16.6500449 | AI129: 3.149026632
B130: avocado | C130: avocado retail | D130: 7.27120387 | E130: 7.6072326 | F130: 4.22475888 | G130: 7.224965823 | H130: 7.224965823 | I130: 4.58555723 | J130: 13.7387596 | K130: 7.224965823 | L130: 13.5553218 | M130: 9.63209187 | N130: 15.7841704 | O130: 7.98569837 | P130: 3.84043795 | Q130: 3.149026632 | R130: 5.196268 | S130: 8.92881339 | T130: 7.224965823 | U130: 7.224965823 | V130: 7.224965823 | W130: 7.224965823 | X130: 14.302122 | Y130: 3.149026632 | Z130: 4.14513136 | AA130: 1.23028656 | AB130: 4.28800275 | AC130: 4.35544868 | AD130: 7.224965823 | AE130: 1.33960841 | AF130: 5.26343692 | AG130: 3.149026632 | AH130: 6.54323748 | AI130: 3.149026632
B131: strawberries | C131: strawberries retail | D131: 10.0848024 | E131: 10.2365943 | F131: 4.4813686 | G131: 5.288234365 | H131: 5.288234365 | I131: 4.84841003 | J131: 3.86217411 | K131: 5.288234365 | L131: 3.80131319 | M131: 8.84070997 | N131: 4.69810961 | O131: 3.09774089 | P131: 4.14076177 | Q131: 3.149026632 | R131: 9.53273834 | S131: 3.73967059 | T131: 5.288234365 | U131: 5.288234365 | V131: 5.288234365 | W131: 5.288234365 | X131: 4.0294586 | Y131: 3.149026632 | Z131: 4.30679595 | AA131: 3.0071462 | AB131: 4.59376131 | AC131: 4.44871795 | AD131: 5.288234365 | AE131: 3.37809413 | AF131: 5.34808499 | AG131: 3.149026632 | AH131: 12.3065401 | AI131: 3.149026632
B132: broccoli | C132: broccoli retail | D132: 0.38125852 | E132: 0.3043976 | F132: 0.07443676 | G132: 0.20143789 | H132: 0.0879489 | I132: 0.13709487 | J132: 0.32634997 | K132: 0.15407288 | L132: 0.41113888 | M132: 0.72735643 | N132: 0.31771168 | O132: 0.1824299 | P132: 0.33814506 | Q132: 2.480038078 | R132: 0.32237486 | S132: 0.54103313 | T132: 0.07518703 | U132: 0.09865876 | V132: 0.15901383 | W132: 0.60487419 | X132: 0.30682843 | Y132: 2.480038078 | Z132: 0.09230567 | AA132: 0.20832041 | AB132: 0.0634276 | AC132: 0.27836715 | AD132: 0.18523224 | AE132: 0.38603354 | AF132: 0.38006828 | AG132: 2.480038078 | AH132: 0.41480976 | AI132: 2.480038078
B133: carrots | C133: carrots retail | D133: 0.38125852 | E133: 0.3043976 | F133: 0.07443676 | G133: 0.20143789 | H133: 0.0879489 | I133: 0.13709487 | J133: 0.32634997 | K133: 0.15407288 | L133: 0.41113888 | M133: 0.72735643 | N133: 0.31771168 | O133: 0.1824299 | P133: 0.33814506 | Q133: 2.480038078 | R133: 0.32237486 | S133: 0.54103313 | T133: 0.07518703 | U133: 0.09865876 | V133: 0.15901383 | W133: 0.60487419 | X133: 0.30682843 | Y133: 2.480038078 | Z133: 0.09230567 | AA133: 0.20832041 | AB133: 0.0634276 | AC133: 0.27836715 | AD133: 0.18523224 | AE133: 0.38603354 | AF133: 0.38006828 | AG133: 2.480038078 | AH133: 0.41480976 | AI133: 2.480038078
B134: canned tuna | C134: canned tuna retail | D134: 7.35869565 | E134: 13.2481203 | F134: 4.375 | G134: 9.89473684 | H134: 8.16666667 | I134: 5.98901099 | J134: 8.29787234 | K134: 9.5 | L134: 8.30434783 | M134: 10.1336842 | N134: 8.41821248 | O134: 11.94 | P134: 11.6285714 | Q134: 8.265001579 | R134: 6.8974359 | S134: 9.76971389 | T134: 6.43478261 | U134: 6.48387097 | V134: 14.75 | W134: 9.5 | X134: 12.9684211 | Y134: 8.265001579 | Z134: 4.47928994 | AA134: 7.56302521 | AB134: 7.26153846 | AC134: 6.32786885 | AD134: 8.75 | AE134: 7.29961089 | AF134: 6.375 | AG134: 8.265001579 | AH134: 7.30512515 | AI134: 8.265001579
B135: Cashew | C135: Cashew retail | D135: 11.1007317 | E135: 11.3224756 | F135: 12.1897924 | G135: 10.44234561 | H135: 10.44234561 | I135: 13.265648 | J135: 7.41560125 | K135: 10.44234561 | L135: 7.46404602 | M135: 12.6610026 | N135: 11.5255932 | O135: 16.38124 | P135: 11.1581571 | Q135: 3.149026632 | R135: 5.33488372 | S135: 16.5799279 | T135: 10.44234561 | U135: 10.44234561 | V135: 10.44234561 | W135: 10.44234561 | X135: 8.38688349 | Y135: 3.149026632 | Z135: 11.7469663 | AA135: 5.51783859 | AB135: 12.3450685 | AC135: 12.0520607 | AD135: 10.44234561 | AE135: 6.55348674 | AF135: 5.40316283 | AG135: 3.149026632 | AH135: 25.027905 | AI135: 3.149026632
B136: palm oil | C136: palm oil retail | D136: 5 | E136: 5.5 | F136: 2.78571429 | G136: 1 | H136: 3.487644789 | I136: 3.487644789 | J136: 3.487644789 | K136: 3.487644789 | L136: 3.487644789 | M136: 5.25 | N136: 3.487644789 | O136: 3.487644789 | P136: 3.487644789 | Q136: 3.494787645 | R136: 3.487644789 | S136: 0.94594595 | T136: 3.487644789 | U136: 3.487644789 | V136: 3.487644789 | W136: 3.487644789 | X136: 3.487644789 | Y136: 3.494787645 | Z136: 1.3 | AA136: 8 | AB136: 1.60714286 | AC136: 3.487644789 | AD136: 3.487644789 | AE136: 3.487644789 | AF136: 3.487644789 | AG136: 3.494787645 | AH136: 3.487644789 | AI136: 3.494787645
B137: rapeseed oil | C137: rapeseed oil retail | D137: 3.33333333 | E137: 2.72413793 | F137: 2.07692308 | G137: 1.2 | H137: 1.33333333 | I137: 1.31428571 | J137: 3.3255814 | K137: 2.90909091 | L137: 4 | M137: 1.72710952 | N137: 2.49122807 | O137: 2.554989185 | P137: 2 | Q137: 2.594053711 | R137: 1.94285714 | S137: 4.41176471 | T137: 1.66666667 | U137: 2.19736842 | V137: 5 | W137: 2 | X137: 5.5 | Y137: 2.594053711 | Z137: 1.42109315 | AA137: 2.25 | AB137: 1.62857143 | AC137: 1.90551181 | AD137: 1.5 | AE137: 2.554989185 | AF137: 4.01587302 | AG137: 2.594053711 | AH137: 1.953125 | AI137: 2.594053711
B138: soybean oil | C138: soybean oil retail | D138: 4.5 | E138: 2.375 | F138: 2.5 | G138: 1.28571429 | H138: 3.318072979 | I138: 3.318072979 | J138: 3.318072979 | K138: 4 | L138: 3.318072979 | M138: 8 | N138: 1.75 | O138: 1 | P138: 3.318072979 | Q138: 3.318072979 | R138: 3.318072979 | S138: 1.42553191 | T138: 3.318072979 | U138: 3.318072979 | V138: 2 | W138: 3.318072979 | X138: 3.45 | Y138: 3.318072979 | Z138: 5.81818182 | AA138: 5.66666667 | AB138: 4 | AC138: 3.318072979 | AD138: 3.318072979 | AE138: 2 | AF138: 3.318072979 | AG138: 3.318072979 | AH138: 3.318072979 | AI138: 3.318072979
B139: pre-prepared meals | C139: pre-prepared meals retail | D139: 6.24223602 | E139: 7.17010309 | F139: 3.73333333 | G139: 5.09230769 | H139: 3.70833333 | I139: 4.75641026 | J139: 7.17061611 | K139: 3.91304348 | L139: 5.2049505 | M139: 6.40503928 | N139: 2.84572014 | O139: 4.21304348 | P139: 3.60638298 | Q139: 4.856777905 | R139: 5.59677419 | S139: 7.53860294 | T139: 2.90217391 | U139: 2.93413174 | V139: 8.87096774 | W139: 4.17391304 | X139: 7.26408451 | Y139: 4.856777905 | Z139: 2.57823129 | AA139: 4.67768595 | AB139: 3.675 | AC139: 4.18867925 | AD139: 4.64444444 | AE139: 4.38794801 | AF139: 3.63884674 | AG139: 4.856777905 | AH139: 4.42673445 | AI139: 4.856777905
B140: chickpeas | C140: chickpeas retail | D140: 0.85719852 | E140: 1.20134551 | F140: 1.04448046 | G140: 1.86874071 | H140: 0.72074958 | I140: 1.12509252 | J140: 2.25531915 | K140: 0.47058824 | L140: 2.25108225 | M140: 2.22464995 | N140: 2.1709942 | O140: 0.04693834 | P140: 1.41937023 | Q140: 1.291824788 | R140: 1.99855978 | S140: 0.73265174 | T140: 0.71266431 | U140: 0.52810051 | V140: 1.02145046 | W140: 2.13827512 | X140: 2.37593052 | Y140: 1.291824788 | Z140: 0.65012668 | AA140: 1.12359551 | AB140: 0.63996833 | AC140: 0.20080321 | AD140: 1.04239794 | AE140: 1.16675701 | AF140: 1.03756599 | AG140: 1.291824788 | AH140: 1.44736659 | AI140: 1.291824788
B141: lentils | C141: lentils retail | D141: 0.85719852 | E141: 1.20134551 | F141: 1.04448046 | G141: 1.86874071 | H141: 0.72074958 | I141: 1.12509252 | J141: 2.25531915 | K141: 0.47058824 | L141: 2.25108225 | M141: 2.22464995 | N141: 2.1709942 | O141: 0.04693834 | P141: 1.41937023 | Q141: 1.291824788 | R141: 1.99855978 | S141: 0.73265174 | T141: 0.71266431 | U141: 0.52810051 | V141: 1.02145046 | W141: 2.13827512 | X141: 2.37593052 | Y141: 1.291824788 | Z141: 0.65012668 | AA141: 1.12359551 | AB141: 0.63996833 | AC141: 0.20080321 | AD141: 1.04239794 | AE141: 1.16675701 | AF141: 1.03756599 | AG141: 1.291824788 | AH141: 1.44736659 | AI141: 1.291824788
B142: soymilk | C142: soymilk retail | D142: 1.48148148 | E142: 1.63732394 | F142: 1.85714286 | G142: 2 | H142: 2 | I142: 1.64285714 | J142: 1.82608696 | K142: 1.85714286 | L142: 1.79120879 | M142: 2.13377193 | N142: 1.40046838 | O142: 2.15384615 | P142: 1.62162162 | Q142: 1.806949958 | R142: 2.86111111 | S142: 2 | T142: 1.46938776 | U142: 1.35714286 | V142: 1.30769231 | W142: 2.16666667 | X142: 1.22168675 | Y142: 1.806949958 | Z142: 1.86764706 | AA142: 1.5 | AB142: 1.58823529 | AC142: 2.375 | AD142: 2 | AE142: 1.09789157 | AF142: 1.57407407 | AG142: 1.806949958 | AH142: 1.66144814 | AI142: 1.806949958
A143: Use | B143: GENERIC | C143: =CONCATENATE(B143," ","use") -> GENERIC use | D143: 2.859140159 | E143: 2.859140159 | F143: 2.391240446 | G143: 2.863872093 | H143: 3.465348513 | I143: 2.625225349 | J143: 2.859140159 | K143: 2.859140159 | L143: 3.345139202 | M143: 2.859140159 | N143: 2.799401931 | O143: 2.859140159 | P143: 2.859140159 | Q143: 2.859140159 | R143: 2.859140159 | S143: 3.518385603 | T143: 2.859140159 | U143: 2.57419022 | V143: 2.859140159 | W143: 3.219147388 | X143: 3.175950244 | Y143: 5.866867556 | Z143: 2.263824133 | AA143: 2.859140159 | AB143: 2.46213944 | AC143: 2.657487511 | AD143: 2.88007471 | AE143: 2.858322895 | AF143: 2.859140159 | AG143: 2.859140159 | AH143: 2.859140159 | AI143: 2.859140159
B144: ALMONDS | C144: =CONCATENATE(B144," ","use") -> ALMONDS use | D144: 19.72945265 | E144: 19.96775533 | F144: 1.329776447 | G144: 11.02258979 | H144: 11.02258979 | I144: 11.23183828 | J144: 9.926745867 | K144: 11.02258979 | L144: 9.794749394 | M144: 23.45695686 | N144: 15.74555948 | O144: 15.36165798 | P144: 9.442266572 | Q144: 11.02258979 | R144: 5.965454234 | S144: 17.34447127 | T144: 11.02258979 | U144: 11.02258979 | V144: 11.02258979 | W144: 11.02258979 | X144: 1.312715137 | Y144: 11.02258979 | Z144: 9.949281969 | AA144: 15.44435828 | AB144: 1.447532149 | AC144: 1.215369398 | AD144: 11.02258979 | AE144: 14.34183677 | AF144: 6.421427942 | AG144: 11.02258979 | AH144: 16.6500449 | AI144: 11.02258979
B145: APPLES | C145: APPLES use | D145: 2.772213317 | E145: 2.784429868 | F145: 0.8325963939 | G145: 1.782498541 | H145: 1.782498541 | I145: 0.9385859669 | J145: 1.963352824 | K145: 1.782498541 | L145: 1.918164882 | M145: 1.98222533 | N145: 2.137524318 | O145: 1.853471789 | P145: 0.7638242686 | Q145: 1.782498541 | R145: 2.597348318 | S145: 2.234364455 | T145: 1.782498541 | U145: 1.782498541 | V145: 1.782498541 | W145: 1.782498541 | X145: 2.636634598 | Y145: 1.782498541 | Z145: 0.8454314665 | AA145: 1.57576369 | AB145: 0.8618968481 | AC145: 0.8473575863 | AD145: 1.782498541 | AE145: 1.682919437 | AF145: 2.639366923 | AG145: 1.782498541 | AH145: 3.35297539 | AI145: 1.782498541
B146: BANANAS | C146: BANANAS use | D146: 2.385663476 | E146: 2.133699123 | F146: 1.594117648 | G146: 1.58733819 | H146: 1.58733819 | I146: 1.942721519 | J146: 1.291594914 | K146: 1.58733819 | L146: 1.26961879 | M146: 2.157556361 | N146: 1.471422658 | O146: 1.714685425 | P146: 0.9228695894 | Q146: 1.58733819 | R146: 0.7119476943 | S146: 2.534564785 | T146: 1.58733819 | U146: 1.58733819 | V146: 1.58733819 | W146: 1.58733819 | X146: 1.357641822 | Y146: 1.58733819 | Z146: 0.9722894825 | AA146: 1.662784255 | AB146: 1.134274266 | AC146: 0.9889521732 | AD146: 1.58733819 | AE146: 1.771279755 | AF146: 2.141741877 | AG146: 1.58733819 | AH146: 1.06533572 | AI146: 1.58733819
B147: BEANS | C147: BEANS use | D147: 2.223664329 | E147: 3.817395483 | F147: 2.484267599 | G147: 2.71993777 | H147: 1.212492993 | I147: 2.377986677 | J147: 3.584141844 | K147: 0.7843137255 | L147: 2.952389524 | M147: 3.472727515 | N147: 3.183959616 | O147: 3.383656923 | P147: 2.853111454 | Q147: 2.375644845 | R147: 2.941613876 | S147: 2.641547941 | T147: 1.187773848 | U147: 0.7782533776 | V147: 1.361933946 | W147: 2.423378475 | X147: 3.175248139 | Y147: 2.375644845 | Z147: 2.67632296 | AA147: 2.226611167 | AB147: 1.898752128 | AC147: 1.959673738 | AD147: 1.595575214 | AE147: 1.959391854 | AF147: 2.266288687 | AG147: 2.375644845 | AH147: 1.84090106 | AI147: 2.375644845
B148: BEEF | C148: BEEF use | D148: 13.11542493 | E148: 13.19752383 | F148: 5.275146845 | G148: 10.66170754 | H148: 10.66170754 | I148: 5.757254584 | J148: 12.79145499 | K148: 10.66170754 | L148: 12.64135936 | M148: 17.32239182 | N148: 16.52211899 | O148: 16.21235193 | P148: 4.869741399 | Q148: 10.66170754 | R148: 15.25668826 | S148: 21.23559386 | T148: 10.66170754 | U148: 10.66170754 | V148: 10.66170754 | W148: 10.66170754 | X148: 13.33522838 | Y148: 10.66170754 | Z148: 5.997624745 | AA148: 8.461642516 | AB148: 5.478179778 | AC148: 5.213955677 | AD148: 10.66170754 | AE148: 1.893121595 | AF148: 7.995639782 | AG148: 10.66170754 | AH148: 21.1595027 | AI148: 10.66170754
B149: BEER | C149: BEER use | D149: 2.533313235 | E149: 2.668452637 | F149: 1.433311361 | G149: 1.898249899 | H149: 3.172727273 | I149: 1.654346183 | J149: 4.782713818 | K149: 3.396332752 | L149: 5.743846362 | M149: 3.379684687 | N149: 1.388354618 | O149: 2.848245718 | P149: 1.667493113 | Q149: 2.628167586 | R149: 4.195435927 | S149: 2.618875398 | T149: 2.348112658 | U149: 2.389416554 | V149: 2.863753942 | W149: 3.69 | X149: 2.542417143 | Y149: 2.628167586 | Z149: 1.365157514 | AA149: 2.292231256 | AB149: 1.362566768 | AC149: 1.741219356 | AD149: 2.317561419 | AE149: 1.497926846 | AF149: 3.168778389 | AG149: 2.628167586 | AH149: 4.45437934 | AI149: 2.628167586
B150: BISCUITS | C150: BISCUITS use | D150: 9.333333333 | E150: 7.3749234 | F150: 6.697569757 | G150: 6.122727273 | H150: 6.22 | I150: 8.558823529 | J150: 7.723237598 | K150: 6.945945946 | L150: 8.263272953 | M150: 7.346169114 | N150: 5.425422457 | O150: 7.628415355 | P150: 6.818648186 | Q150: 6.738692527 | R150: 8.32644629 | S150: 4.679179442 | T150: 6.757575758 | U150: 5.144329897 | V150: 7.634347827 | W150: 6.461538462 | X150: 5.74676525 | Y150: 6.738692527 | Z150: 5.1947887 | AA150: 4.789255754 | AB150: 5.824796929 | AC150: 6.788641975 | AD150: 7.719298246 | AE150: 4.264998655 | AF150: 8.154246152 | AG150: 6.738692527 | AH150: 5.70329497 | AI150: 6.738692527
B151: BREAD | C151: BREAD use | D151: 4.874786689 | E151: 2.9413546 | F151: 1.416371579 | G151: 3.153577661 | H151: 1.97277677 | I151: 2.333753571 | J151: 4.758181393 | K151: 2.369942197 | L151: 5.134297527 | M151: 2.958815633 | N151: 2.272364432 | O151: 2.186223543 | P151: 1.69574884 | Q151: 2.826535712 | R151: 3.263927577 | S151: 3.284597985 | T151: 2.6416 | U151: 2.567756776 | V151: 3.753731343 | W151: 2.417914478 | X151: 2.529953726 | Y151: 2.826535712 | Z151: 1.491994832 | AA151: 2.46142323 | AB151: 1.856293536 | AC151: 1.74744898 | AD151: 3.369545325 | AE151: 2.429359324 | AF151: 4.432722678 | AG151: 2.826535712 | AH151: 2.24922431 | AI151: 2.826535712
B152: BUTTER | C152: BUTTER use | D152: 9.425674766 | E152: 7.859375 | F152: 12.2 | G152: 11.83783784 | H152: 12.33333333 | I152: 7.368421526 | J152: 11.878125 | K152: 14.25641256 | L152: 11.19526627 | M152: 7.97586269 | N152: 6.519174413 | O152: 16.51612932 | P152: 12.91836735 | Q152: 9.03023215 | R152: 1.557377492 | S152: 9.252545825 | T152: 11.58333333 | U152: 2.185185185 | V152: 8.3125 | W152: 11 | X152: 1.476194762 | Y152: 9.03023215 | Z152: 9.758937692 | AA152: 5.959677419 | AB152: 12.92372881 | AC152: 1.111111111 | AD152: 9.235294118 | AE152: 7.759183673 | AF152: 9.417218543 | AG152: 9.03023215 | AH152: 8.6961326 | AI152: 9.03023215
B153: CHEESE | C153: CHEESE use | D153: 1.596443951 | E153: 12.17865844 | F153: 9.526737968 | G153: 8.266256413 | H153: 12.74626866 | I153: 11.53854626 | J153: 19.89614887 | K153: 11.18181818 | L153: 15.8763583 | M153: 1.425531915 | N153: 1.588342885 | O153: 11.44661942 | P153: 9.415999999 | Q153: 10.73726505 | R153: 13.97514749 | S153: 12.49266247 | T153: 11.54867257 | U153: 12.66666667 | V153: 14.45 | W153: 14.9999991 | X153: 15.35782748 | Y153: 10.73726505 | Z153: 6.832299738 | AA153: 9.735848514 | AB153: 1.311332531 | AC153: 13.59561129 | AD153: 11.96385542 | AE153: 8.743358396 | AF153: 15.54914337 | AG153: 10.73726505 | AH153: 11.2707692 | AI153: 10.73726505
B154: CHOCOLATE | C154: CHOCOLATE use | D154: 14.47779751 | E154: 14.98549834 | F154: 12.3523918 | G154: 13.53968254 | H154: 15.34482759 | I154: 12.879119 | J154: 24.22321429 | K154: 14.95575221 | L154: 18.14298575 | M154: 18.89946889 | N154: 11.81785393 | O154: 12.35616438 | P154: 13.48433484 | Q154: 13.99376227 | R154: 19.25528333 | S154: 16.93644487 | T154: 17.31818182 | U154: 14.48784878 | V154: 14.17948718 | W154: 17.625 | X154: 11.17199559 | Y154: 13.99376227 | Z154: 1.459575817 | AA154: 14.48398577 | AB154: 1.992337165 | AC154: 13.5 | AD154: 12.68539326 | AE154: 11.79346925 | AF154: 13.48348745 | AG154: 13.99376227 | AH154: 17.0635089 | AI154: 13.99376227
B155: COD | C155: COD use | D155: 11.58544962 | E155: 11.72577894 | F155: 3.99733417 | G155: 10.23814131 | H155: 10.23814131 | I155: 4.25967584 | J155: 12.19972143 | K155: 10.23814131 | L155: 11.95648626 | M155: 16.55247367 | N155: 19.11317599 | O155: 12.75688292 | P155: 3.573739112 | Q155: 10.23814131 | R155: 15.24326534 | S155: 16.72125252 | T155: 10.23814131 | U155: 10.23814131 | V155: 10.23814131 | W155: 10.23814131 | X155: 12.58898965 | Y155: 10.23814131 | Z155: 3.765579233 | AA155: 6.343481921 | AB155: 3.951611958 | AC155: 3.864487464 | AD155: 10.23814131 | AE155: 8.883781184 | AF155: 15.44151772 | AG155: 10.23814131 | AH155: 19.7994624 | AI155: 10.23814131
B156: COFFEE | C156: COFFEE use | D156: 10.06846154 | E156: 10.06846154 | F156: 9.28 | G156: 10.57 | H156: 9.41 | I156: 11.43 | J156: 10.06846154 | K156: 10.06846154 | L156: 7.78 | M156: 10.06846154 | N156: 10.06846154 | O156: 10.06846154 | P156: 10.06846154 | Q156: 10.06846154 | R156: 10.06846154 | S156: 11.57 | T156: 10.06846154 | U156: 12.03 | V156: 10.06846154 | W156: 10.06846154 | X156: 10.39 | Y156: 13.54 | Z156: 9.86 | AA156: 10.06846154 | AB156: 10.78 | AC156: 11.13 | AD156: 9.52 | AE156: 7.14 | AF156: 10.06846154 | AG156: 10.06846154 | AH156: 10.06846154 | AI156: 10.06846154
B157: EGGS | C157: EGGS use | D157: 2.938123484 | E157: 3.285572741 | F157: 1.175416248 | G157: 2.701354157 | H157: 2.701354157 | I157: 1.284744836 | J157: 4.151523615 | K157: 2.701354157 | L157: 2.153917763 | M157: 4.159965823 | N157: 3.296731521 | O157: 4.354469477 | P157: 1.886669138 | Q157: 2.701354157 | R157: 2.695471329 | S157: 5.476516123 | T157: 2.701354157 | U157: 2.701354157 | V157: 2.701354157 | W157: 2.701354157 | X157: 2.284547187 | Y157: 2.701354157 | Z157: 1.145388287 | AA157: 2.264473346 | AB157: 1.212689177 | AC157: 1.179858189 | AD157: 2.701354157 | AE157: 3.646465976 | AF157: 2.733184728 | AG157: 2.701354157 | AH157: 4.36199053 | AI157: 2.701354157
B158: MILK | C158: MILK use | D158: 1.167465464 | E158: 1.581225689 | F158: 1.516521739 | G158: 1.268181818 | H158: 1.296819788 | I158: 0.7951775347 | J158: 1.326257633 | K158: 1.167927383 | L158: 1.983997527 | M158: 0.8947569685 | N158: 0.9425383543 | O158: 1.641331658 | P158: 1.243536613 | Q158: 1.24824361 | R158: 1.346132972 | S158: 1.126647359 | T158: 1.2647343 | U158: 1.278688525 | V158: 1.585774586 | W158: 1.891891892 | X158: 1.283944658 | Y158: 1.24824361 | Z158: 0.6292298523 | AA158: 0.729598296 | AB158: 1.479658793 | AC158: 0.8982125639 | AD158: 1.234614493 | AE158: 0.8355178448 | AF158: 1.29219318 | AG158: 1.24824361 | AH158: 0.99380858 | AI158: 1.24824361
B159: MINERAL WATER | C159: MINERAL WATER use | D159: 0.6759265618 | E159: 0.5776326242 | F159: 0.3533457423 | G159: 0.6277382646 | H159: 0.7442638528 | I159: 0.4471561113 | J159: 1.784392599 | K159: 0.9188235294 | L159: 1.987745984 | M159: 0.3253937764 | N159: 0.493436527 | O159: 0.6162893818 | P159: 0.3275637317 | Q159: 0.7442638528 | R159: 1.925 | S159: 0.2369547532 | T159: 0.4889466845 | U159: 0.7153193673 | V159: 0.7442638528 | W159: 0.7442638528 | X159: 0.9816378526 | Y159: 0.7442638528 | Z159: 0.3743481887 | AA159: 0.3577477897 | AB159: 0.3382928611 | AC159: 0.5124853688 | AD159: 0.6744868352 | AE159: 0.3673139625 | AF159: 1.75435397 | AG159: 0.7442638528 | AH159: 0.98278842 | AI159: 0.7442638528
B160: OLIVE OIL | C160: OLIVE OIL use | D160: 8.495238952 | E160: 7.572815534 | F160: 9.612244898 | G160: 8 | H160: 7.99999991 | I160: 1.119476195 | J160: 14.88235294 | K160: 1.25 | L160: 11.15384615 | M160: 8.464436183 | N160: 8.169657423 | O160: 8.422619476 | P160: 11.35714286 | Q160: 8.28199991 | R160: 8.113636364 | S160: 4.77969175 | T160: 7.764758824 | U160: 11.55555556 | V160: 7.333333333 | W160: 7.25 | X160: 8.116883117 | Y160: 8.28199991 | Z160: 8.647588235 | AA160: 4.885245916 | AB160: 8.487848785 | AC160: 11 | AD160: 12.8 | AE160: 4.923928945 | AF160: 11.45569623 | AG160: 8.28199991 | AH160: 7.59302326 | AI160: 8.28199991
B161: ORANGES | C161: ORANGES use | D161: 2.53598417 | E161: 2.553111811 | F161: 1.242455712 | G161: 1.970096055 | H161: 1.970096055 | I161: 1.349788496 | J161: 2.226898511 | K161: 1.970096055 | L161: 2.215341329 | M161: 2.785396154 | N161: 2.553462918 | O161: 1.854629252 | P161: 1.146922299 | Q161: 1.970096055 | R161: 2.957938219 | S161: 2.296685145 | T161: 1.970096055 | U161: 1.970096055 | V161: 1.970096055 | W161: 1.970096055 | X161: 2.32318387 | Y161: 1.970096055 | Z161: 1.184282219 | AA161: 1.458811838 | AB161: 1.244715736 | AC161: 1.238169148 | AD161: 1.970096055 | AE161: 1.268722935 | AF161: 2.995325282 | AG161: 1.970096055 | AH161: 3.76461975 | AI161: 1.970096055
B162: PASTA | C162: PASTA use | D162: 3.576347354 | E162: 3.123362336 | F162: 1.8 | G162: 3.27734375 | H162: 2.725882353 | I162: 2.468769512 | J162: 5.841121495 | K162: 2.774193548 | L162: 3.173913435 | M162: 3.146942175 | N162: 2.515 | O162: 2.553846154 | P162: 3.469798658 | Q162: 3.009770161 | R162: 3.126582278 | S162: 2.532767812 | T162: 3.178571429 | U162: 3.152631579 | V162: 3.525 | W162: 2.769237692 | X162: 3.982986767 | Y162: 3.009770161 | Z162: 1.847846442 | AA162: 2.677987366 | AB162: 2.116666667 | AC162: 3.135824691 | AD162: 2.649253731 | AE162: 2.637391787 | AF162: 3.484525328 | AG162: 3.009770161 | AH162: 4.0964591 | AI162: 3.009770161
B163: PORK | C163: PORK use | D163: 6.934164852 | E163: 6.842333373 | F163: 3.798372825 | G163: 6.480393561 | H163: 6.480393561 | I163: 4.13255295 | J163: 9.241669746 | K163: 6.480393561 | L163: 9.165514618 | M163: 8.791883219 | N163: 11.477282 | O163: 5.125832222 | P163: 3.464181645 | Q163: 6.480393561 | R163: 6.83353974 | S163: 6.687179548 | T163: 6.480393561 | U163: 6.480393561 | V163: 6.480393561 | W163: 6.480393561 | X163: 9.564827381 | Y163: 6.480393561 | Z163: 3.621142218 | AA163: 5.391313655 | AB163: 3.844195369 | AC163: 3.757647418 | AD163: 6.480393561 | AE163: 6.899255672 | AF163: 7.554589214 | AG163: 6.480393561 | AH163: 8.92136898 | AI163: 6.480393561
B164: POTATOES | C164: POTATOES use | D164: 1.341359946 | E164: 1.316699754 | F164: 0.3752587848 | G164: 0.116248373 | H164: 0.9368656639 | I164: 0.3861515367 | J164: 0.7323825419 | K164: 0.4233469812 | L164: 0.9581689796 | M164: 1.587593234 | N164: 1.351389277 | O164: 1.738396852 | P164: 0.4184426296 | Q164: 0.7859397614 | R164: 1.235992825 | S164: 2.148614912 | T164: 0.1955464767 | U164: 0.28684657 | V164: 0.1967949421 | W164: 0.2262665269 | X164: 0.6944517624 | Y164: 0.7859397614 | Z164: 0.3296811666 | AA164: 0.8217493681 | AB164: 0.3151622667 | AC164: 0.3823383973 | AD164: 0.2221818813 | AE164: 0.9472963333 | AF164: 1.535145578 | AG164: 0.7859397614 | AH164: 1.32774355 | AI164: 0.7859397614
B165: POULTRY | C165: POULTRY use | D165: 6.572258895 | E165: 6.449571122 | F165: 2.653891966 | G165: 1.355164861 | H165: 0.4513448123 | I165: 3.283647786 | J165: 6.595197466 | K165: 2.954514986 | L165: 4.767292433 | M165: 9.457637157 | N165: 6.225775832 | O165: 7.854926265 | P165: 2.216927755 | Q165: 4.16929507 | R165: 8.314686581 | S165: 1.133612586 | T165: 2.885258732 | U165: 2.91498992 | V165: 1.338792987 | W165: 3.368137427 | X165: 5.326342922 | Y165: 4.16929507 | Z165: 2.128997339 | AA165: 4.518956699 | AB165: 2.131249454 | AC165: 2.419485695 | AD165: 2.781457484 | AE165: 6.133619286 | AF165: 6.337228443 | AG165: 4.16929507 | AH165: 10.976831 | AI165: 4.16929507
B166: RICE | C166: RICE use | D166: 3.335515464 | E166: 3.125581395 | F166: 2.181518152 | G166: 4.388235294 | H166: 2.866666667 | I166: 2.268965517 | J166: 3.515151515 | K166: 3.827586269 | L166: 2.523895239 | M166: 2.238481386 | N166: 3.194761948 | O166: 3.452389524 | P166: 2.346774194 | Q166: 2.911487171 | R166: 3.954838797 | S166: 2.15918144 | T166: 5.75 | U166: 3.428571429 | V166: 3.2 | W166: 2.833333333 | X166: 2.833798883 | Y166: 2.911487171 | Z166: 1.765283843 | AA166: 1.648387968 | AB166: 1.766514864 | AC166: 1.491525424 | AD166: 2.747474747 | AE166: 1.38836184 | AF166: 4.377358496 | AG166: 2.911487171 | AH166: 3.46915224 | AI166: 2.911487171
B167: SALMON | C167: SALMON use | D167: 11.58544962 | E167: 11.72577894 | F167: 3.99733417 | G167: 10.23814131 | H167: 10.23814131 | I167: 4.25967584 | J167: 12.19972143 | K167: 10.23814131 | L167: 11.95648626 | M167: 16.55247367 | N167: 19.11317599 | O167: 12.75688292 | P167: 3.573739112 | Q167: 10.23814131 | R167: 15.24326534 | S167: 16.72125252 | T167: 10.23814131 | U167: 10.23814131 | V167: 10.23814131 | W167: 10.23814131 | X167: 12.58898965 | Y167: 10.23814131 | Z167: 3.765579233 | AA167: 6.343481921 | AB167: 3.951611958 | AC167: 3.864487464 | AD167: 10.23814131 | AE167: 8.883781184 | AF167: 15.44151772 | AG167: 10.23814131 | AH167: 19.7994624 | AI167: 10.23814131
B168: SHRIMP | C168: SHRIMP use | D168: 11.16998135 | E168: 11.3464967 | F168: 8.441599662 | G168: 14.69004451 | H168: 14.69004451 | I168: 9.176882167 | J168: 28.35898379 | K168: 14.69004451 | L168: 27.99876291 | M168: 17.55918828 | N168: 4.47793846 | O168: 18.35934438 | P168: 7.714912674 | Q168: 14.69004451 | R168: 17.26537669 | S168: 23.68645462 | T168: 14.69004451 | U168: 14.69004451 | V168: 14.69004451 | W168: 14.69004451 | X168: 29.47973344 | Y168: 14.69004451 | Z168: 8.128887611 | AA168: 8.991725869 | AB168: 8.536375932 | AC168: 8.342623422 | AD168: 14.69004451 | AE168: 12.64662447 | AF168: 17.42895317 | AG168: 14.69004451 | AH168: 22.9279096 | AI168: 14.69004451
B169: SUGAR | C169: SUGAR use | D169: 1.789634778 | E169: 1.816113563 | F169: 0.4826197248 | G169: 1.115455408 | H169: 1.115455408 | I169: 0.5247418211 | J169: 1.233893995 | K169: 1.115455408 | L169: 0.7531132544 | M169: 1.843787332 | N169: 1.719331625 | O169: 1.411697528 | P169: 0.4189289311 | Q169: 1.115455408 | R169: 0.7891554638 | S169: 2.149285395 | T169: 1.115455408 | U169: 1.115455408 | V169: 1.115455408 | W169: 1.115455408 | X169: 1.422274326 | Y169: 1.115455408 | Z169: 0.4648163969 | AA169: 1.141299581 | AB169: 0.4877892287 | AC169: 0.4773341944 | AD169: 1.115455408 | AE169: 1.568246226 | AF169: 0.6995893939 | AG169: 1.115455408 | AH169: 1.80542995 | AI169: 1.115455408
B170: SUNFLOWER OIL | C170: SUNFLOWER OIL use | D170: 6.196784314 | E170: 3.833333333 | F170: 2.766518848 | G170: 1.841911765 | H170: 2.153846154 | I170: 2.234113712 | J170: 3.75 | K170: 4.375 | L170: 8 | M170: 3.398995249 | N170: 2.815677966 | O170: 2.791287913 | P170: 1.788434783 | Q170: 3.327819855 | R170: 2.578947368 | S170: 3.264758824 | T170: 4.958941959 | U170: 3.826869565 | V170: 3.4 | W170: 2.4 | X170: 1.774193548 | Y170: 3.327819855 | Z170: 5.9625 | AA170: 1.412969283 | AB170: 1.64787638 | AC170: 2.774598392 | AD170: 2.835828955 | AE170: 2.412575367 | AF170: 4.655172414 | AG170: 3.327819855 | AH170: 2.08433735 | AI170: 3.327819855
B171: TEA | C171: TEA use | D171: 15.15054545 | E171: 15.15054545 | F171: 17.536 | G171: 15.15054545 | H171: 20.864 | I171: 14.08 | J171: 15.15054545 | K171: 15.15054545 | L171: 15.15054545 | M171: 15.15054545 | N171: 15.15054545 | O171: 15.15054545 | P171: 15.15054545 | Q171: 15.15054545 | R171: 15.15054545 | S171: 19.072 | T171: 15.15054545 | U171: 17.28 | V171: 15.15054545 | W171: 10.24 | X171: 14.592 | Y171: 40.832 | Z171: 17.664 | AA171: 15.15054545 | AB171: 15.15054545 | AC171: 14.592 | AD171: 20.736 | AE171: 15.15054545 | AF171: 15.15054545 | AG171: 15.15054545 | AH171: 15.15054545 | AI171: 15.15054545
B172: TOFU | C172: TOFU use | D172: 7 | E172: 2 | F172: 1 | G172: 8.307603014 | H172: 7 | I172: 6.8 | J172: 13 | K172: 8.307603014 | L172: 12.66666667 | M172: 13.25 | N172: 25.92857143 | O172: 8.307603014 | P172: 8.307603014 | Q172: 8.307603014 | R172: 6.2 | S172: 9.25 | T172: 8.307603014 | U172: 8.307603014 | V172: 8.307603014 | W172: 8.307603014 | X172: 6.28 | Y172: 8.307603014 | Z172: 5.222222222 | AA172: 8.307603014 | AB172: 7 | AC172: 5 | AD172: 5 | AE172: 8.939393939 | AF172: 8 | AG172: 8.307603014 | AH172: 9.46341463 | AI172: 8.307603014
B173: TOMATOES | C173: TOMATOES use | D173: 3.277744217 | E173: 3.164641856 | F173: 1.442127477 | G173: 0.4576984179 | H173: 0.5375594154 | I173: 1.562193977 | J173: 2.912235695 | K173: 0.6127676263 | L173: 2.293362928 | M173: 4.412191598 | N173: 2.773648973 | O173: 1.494764483 | P173: 1.326667453 | Q173: 1.833504745 | R173: 3.85925147 | S173: 3.211295765 | T173: 0.8539119712 | U173: 0.2392321646 | V173: 0.4359789727 | W173: 0.345914367 | X173: 2.386237664 | Y173: 1.833504745 | Z173: 1.377226346 | AA173: 1.468699946 | AB173: 1.364745267 | AC173: 1.424233546 | AD173: 0.8582954253 | AE173: 1.872373372 | AF173: 3.539627725 | AG173: 1.833504745 | AH173: 4.45517964 | AI173: 1.833504745
B174: WINE | C174: WINE use | D174: 7.998342999 | E174: 7.371396546 | F174: 5.757968127 | G174: 4.315753769 | H174: 9.639175258 | I174: 5.624936645 | J174: 8.787691799 | K174: 18.83333333 | L174: 14.2962963 | M174: 6.783266129 | N174: 4.164725985 | O174: 7.24474533 | P174: 4.295837367 | Q174: 7.00123747 | R174: 13.39554795 | S174: 4.834824459 | T174: 8.524598392 | U174: 1.581149724 | V174: 7.338235294 | W174: 8.875 | X174: 5.151639344 | Y174: 7.00123747 | Z174: 4.669645926 | AA174: 4.581372771 | AB174: 5.386818182 | AC174: 5.699134348 | AD174: 8.217564873 | AE174: 4.191292578 | AF174: 1.47311828 | AG174: 7.00123747 | AH174: 11.478634 | AI174: 7.00123747
B175: quinoa | C175: quinoa use | D175: 19.72945265 | E175: 19.96775533 | F175: 1.329776447 | G175: 11.02258979 | H175: 11.02258979 | I175: 11.23183828 | J175: 9.926745867 | K175: 11.02258979 | L175: 9.794749394 | M175: 23.45695686 | N175: 15.74555948 | O175: 15.36165798 | P175: 9.442266572 | Q175: 11.02258979 | R175: 5.965454234 | S175: 17.34447127 | T175: 11.02258979 | U175: 11.02258979 | V175: 11.02258979 | W175: 11.02258979 | X175: 1.312715137 | Y175: 11.02258979 | Z175: 9.949281969 | AA175: 15.44435828 | AB175: 1.447532149 | AC175: 1.215369398 | AD175: 11.02258979 | AE175: 14.34183677 | AF175: 6.421427942 | AG175: 11.02258979 | AH175: 16.6500449 | AI175: 11.02258979
B176: avocado | C176: avocado use | D176: 7.271238749 | E176: 7.672325997 | F176: 4.224758877 | G176: 7.229804004 | H176: 7.229804004 | I176: 4.585557234 | J176: 13.73875968 | K176: 7.229804004 | L176: 13.55532183 | M176: 9.632918656 | N176: 15.78417386 | O176: 7.985698369 | P176: 3.844379488 | Q176: 7.229804004 | R176: 5.19626826 | S176: 8.928813386 | T176: 7.229804004 | U176: 7.229804004 | V176: 7.229804004 | W176: 7.229804004 | X176: 14.32121957 | Y176: 7.229804004 | Z176: 4.145131362 | AA176: 1.23286559 | AB176: 4.288275459 | AC176: 4.355448676 | AD176: 7.229804004 | AE176: 1.339684118 | AF176: 5.263436919 | AG176: 7.229804004 | AH176: 6.54323748 | AI176: 7.229804004
B177: strawberries | C177: strawberries use | D177: 1.848243162 | E177: 1.236594336 | F177: 4.481368626 | G177: 4.483214485 | H177: 4.483214485 | I177: 4.848412619 | J177: 3.862174185 | K177: 4.483214485 | L177: 3.813131858 | M177: 8.847996535 | N177: 4.698196855 | O177: 3.977489442 | P177: 4.147617696 | Q177: 4.483214485 | R177: 9.532738345 | S177: 3.739675898 | T177: 4.483214485 | U177: 4.483214485 | V177: 4.483214485 | W177: 4.483214485 | X177: 4.294585987 | Y177: 4.483214485 | Z177: 4.367959513 | AA177: 3.714619649 | AB177: 4.593761373 | AC177: 4.448717949 | AD177: 4.483214485 | AE177: 3.378941313 | AF177: 5.348849871 | AG177: 4.483214485 | AH177: 12.3065401 | AI177: 4.483214485
B178: broccoli | C178: broccoli use | D178: 2.61761272 | E178: 2.492169322 | F178: 1.114815852 | G178: 0.3627259492 | H178: 0.1325427167 | I178: 1.28563128 | J178: 2.913837637 | K178: 0.2478563773 | L178: 2.831749258 | M178: 3.171721226 | N178: 3.324215543 | O178: 2.382233187 | P178: 1.331396482 | Q178: 1.801177798 | R178: 3.942822539 | S178: 3.467674589 | T178: 0.1269462135 | U178: 0.142313853 | V178: 0.2418827318 | W178: 0.7385359845 | X178: 2.996643135 | Y178: 1.801177798 | Z178: 1.714338497 | AA178: 1.974527277 | AB178: 1.119486316 | AC178: 1.31325465 | AD178: 0.2837194532 | AE178: 2.433779384 | AF178: 3.927368369 | AG178: 1.801177798 | AH178: 4.91571124 | AI178: 1.801177798
B179: carrots | C179: carrots use | D179: 2.61761272 | E179: 2.492169322 | F179: 1.114815852 | G179: 0.3627259492 | H179: 0.1325427167 | I179: 1.28563128 | J179: 2.913837637 | K179: 0.2478563773 | L179: 2.831749258 | M179: 3.171721226 | N179: 3.324215543 | O179: 2.382233187 | P179: 1.331396482 | Q179: 1.801177798 | R179: 3.942822539 | S179: 3.467674589 | T179: 0.1269462135 | U179: 0.142313853 | V179: 0.2418827318 | W179: 0.7385359845 | X179: 2.996643135 | Y179: 1.801177798 | Z179: 1.714338497 | AA179: 1.974527277 | AB179: 1.119486316 | AC179: 1.31325465 | AD179: 0.2837194532 | AE179: 2.433779384 | AF179: 3.927368369 | AG179: 1.801177798 | AH179: 4.91571124 | AI179: 1.801177798
